Workbook

Sheet Results2 (hidden)
A1: Delay investment until 2029
A2: Assume 2090-2099 hot days are same as 2080-2089 (since we don't have actual projections)
G4: 2018 | H4: =G4+1 -> 2019 | I4: =H4+1 -> 2020 | J4: 2021 | K4: 2022 | L4: 2023 | M4: 2024 | N4: 2025 | O4: 2026 | P4: 2027 | Q4: 2028 | R4: 2029 | S4: 2030 | T4: 2031 | U4: 2032 | V4: 2033 | W4: 2034 | X4: 2035 | Y4: 2036 | Z4: 2037 | AA4: 2038 | AB4: 2039 | AC4: 2040 | AD4: 2041 | AE4: 2042 | AF4: 2043 | AG4: 2044 | AH4: 2045 | AI4: 2046 | AJ4: 2047 | AK4: 2048 | AL4: 2049 | AM4: 2050 | AN4: 2051 | AO4: 2052 | AP4: 2053 | AQ4: 2054 | AR4: 2055 | AS4: 2056 | AT4: 2057 | AU4: 2058 | AV4: 2059 | AW4: 2060 | AX4: 2061 | AY4: 2062 | AZ4: 2063 | BA4: 2064 | BB4: 2065 | BC4: 2066 | BD4: 2067 | BE4: 2068 | BF4: 2069 | BG4: 2070 | BH4: 2071 | BI4: 2072 | BJ4: 2073 | BK4: 2074 | BL4: 2075 | BM4: 2076 | BN4: 2077 | BO4: 2078 | BP4: 2079 | BQ4: 2080 | BR4: 2081 | BS4: 2082 | BT4: 2083 | BU4: =BT4+1 -> 2084 | BV4: 2085 | BW4: 2086 | BX4: 2087 | BY4: 2088 | BZ4: 2089 | CA4: =BZ4+1 -> 2090 | CB4: =CA4+1 -> 2091 | CC4: =CB4+1 -> 2092 | CD4: =CC4+1 -> 2093 | CE4: =CD4+1 -> 2094 | CF4: =CE4+1 -> 2095 | CG4: =CF4+1 -> 2096 | CH4: =CG4+1 -> 2097 | CI4: =CH4+1 -> 2098 | CJ4: =CI4+1 -> 2099
F6: Annual Project Costs | G6: 0 | H6: 0 | I6: 0 | J6: 0 | K6: 0 | L6: 0 | M6: 0 | N6: 0 | O6: 0 | P6: 0 | Q6: 0 | R6: =#REF! ->  | S6: =IF(AND(S4>2040,MOD(S4,20)=10),#REF!,#REF!)*#REF! ->  | T6: =IF(AND(T4>2040,MOD(T4,20)=10),#REF!,#REF!)*#REF! ->  | U6: =IF(AND(U4>2040,MOD(U4,20)=10),#REF!,#REF!)*#REF! ->  | V6: =IF(AND(V4>2040,MOD(V4,20)=10),#REF!,#REF!)*#REF! ->  | W6: =IF(AND(W4>2040,MOD(W4,20)=10),#REF!,#REF!)*#REF! ->  | X6: =IF(AND(X4>2040,MOD(X4,20)=10),#REF!,#REF!)*#REF! ->  | Y6: =IF(AND(Y4>2040,MOD(Y4,20)=10),#REF!,#REF!)*#REF! ->  | Z6: =IF(AND(Z4>2040,MOD(Z4,20)=10),#REF!,#REF!)*#REF! ->  | AA6: =IF(AND(AA4>2040,MOD(AA4,20)=10),#REF!,#REF!)*#REF! ->  | AB6: =IF(AND(AB4>2040,MOD(AB4,20)=10),#REF!,#REF!)*#REF! ->  | AC6: =IF(AND(AC4>2040,MOD(AC4,20)=10),#REF!,#REF!)*#REF! ->  | AD6: =IF(AND(AD4>2040,MOD(AD4,20)=10),#REF!,#REF!)*#REF! ->  | AE6: =IF(AND(AE4>2040,MOD(AE4,20)=10),#REF!,#REF!)*#REF! ->  | AF6: =IF(AND(AF4>2040,MOD(AF4,20)=10),#REF!,#REF!)*#REF! ->  | AG6: =IF(AND(AG4>2040,MOD(AG4,20)=10),#REF!,#REF!)*#REF! ->  | AH6: =IF(AND(AH4>2040,MOD(AH4,20)=10),#REF!,#REF!)*#REF! ->  | AI6: =IF(AND(AI4>2040,MOD(AI4,20)=10),#REF!,#REF!)*#REF! ->  | AJ6: =IF(AND(AJ4>2040,MOD(AJ4,20)=10),#REF!,#REF!)*#REF! ->  | AK6: =IF(AND(AK4>2040,MOD(AK4,20)=10),#REF!,#REF!)*#REF! ->  | AL6: =IF(AND(AL4>2040,MOD(AL4,20)=10),#REF!,#REF!)*#REF! ->  | AM6: =IF(AND(AM4>2040,MOD(AM4,20)=10),#REF!,#REF!)*#REF! ->  | AN6: =IF(AND(AN4>2040,MOD(AN4,20)=10),#REF!,#REF!)*#REF! ->  | AO6: =IF(AND(AO4>2040,MOD(AO4,20)=10),#REF!,#REF!)*#REF! ->  | AP6: =IF(AND(AP4>2040,MOD(AP4,20)=10),#REF!,#REF!)*#REF! ->  | AQ6: =IF(AND(AQ4>2040,MOD(AQ4,20)=10),#REF!,#REF!)*#REF! ->  | AR6: =IF(AND(AR4>2040,MOD(AR4,20)=10),#REF!,#REF!)*#REF! ->  | AS6: =IF(AND(AS4>2040,MOD(AS4,20)=10),#REF!,#REF!)*#REF! ->  | AT6: =IF(AND(AT4>2040,MOD(AT4,20)=10),#REF!,#REF!)*#REF! ->  | AU6: =IF(AND(AU4>2040,MOD(AU4,20)=10),#REF!,#REF!)*#REF! ->  | AV6: =IF(AND(AV4>2040,MOD(AV4,20)=10),#REF!,#REF!)*#REF! ->  | AW6: =IF(AND(AW4>2040,MOD(AW4,20)=10),#REF!,#REF!)*#REF! ->  | AX6: =IF(AND(AX4>2040,MOD(AX4,20)=10),#REF!,#REF!)*#REF! ->  | AY6: =IF(AND(AY4>2040,MOD(AY4,20)=10),#REF!,#REF!)*#REF! ->  | AZ6: =IF(AND(AZ4>2040,MOD(AZ4,20)=10),#REF!,#REF!)*#REF! ->  | BA6: =IF(AND(BA4>2040,MOD(BA4,20)=10),#REF!,#REF!)*#REF! ->  | BB6: =IF(AND(BB4>2040,MOD(BB4,20)=10),#REF!,#REF!)*#REF! ->  | BC6: =IF(AND(BC4>2040,MOD(BC4,20)=10),#REF!,#REF!)*#REF! ->  | BD6: =IF(AND(BD4>2040,MOD(BD4,20)=10),#REF!,#REF!)*#REF! ->  | BE6: =IF(AND(BE4>2040,MOD(BE4,20)=10),#REF!,#REF!)*#REF! ->  | BF6: =IF(AND(BF4>2040,MOD(BF4,20)=10),#REF!,#REF!)*#REF! ->  | BG6: =IF(AND(BG4>2040,MOD(BG4,20)=10),#REF!,#REF!)*#REF! ->  | BH6: =IF(AND(BH4>2040,MOD(BH4,20)=10),#REF!,#REF!)*#REF! ->  | BI6: =IF(AND(BI4>2040,MOD(BI4,20)=10),#REF!,#REF!)*#REF! ->  | BJ6: =IF(AND(BJ4>2040,MOD(BJ4,20)=10),#REF!,#REF!)*#REF! ->  | BK6: =IF(AND(BK4>2040,MOD(BK4,20)=10),#REF!,#REF!)*#REF! ->  | BL6: =IF(AND(BL4>2040,MOD(BL4,20)=10),#REF!,#REF!)*#REF! ->  | BM6: =IF(AND(BM4>2040,MOD(BM4,20)=10),#REF!,#REF!)*#REF! ->  | BN6: =IF(AND(BN4>2040,MOD(BN4,20)=10),#REF!,#REF!)*#REF! ->  | BO6: =IF(AND(BO4>2040,MOD(BO4,20)=10),#REF!,#REF!)*#REF! ->  | BP6: =IF(AND(BP4>2040,MOD(BP4,20)=10),#REF!,#REF!)*#REF! ->  | BQ6: =IF(AND(BQ4>2040,MOD(BQ4,20)=10),#REF!,#REF!)*#REF! ->  | BR6: =IF(AND(BR4>2040,MOD(BR4,20)=10),#REF!,#REF!)*#REF! ->  | BS6: =IF(AND(BS4>2040,MOD(BS4,20)=10),#REF!,#REF!)*#REF! ->  | BT6: =IF(AND(BT4>2040,MOD(BT4,20)=10),#REF!,#REF!)*#REF! ->  | BU6: =IF(AND(BU4>2040,MOD(BU4,20)=10),#REF!,#REF!)*#REF! ->  | BV6: =IF(AND(BV4>2040,MOD(BV4,20)=10),#REF!,#REF!)*#REF! ->  | BW6: =IF(AND(BW4>2040,MOD(BW4,20)=10),#REF!,#REF!)*#REF! ->  | BX6: =IF(AND(BX4>2040,MOD(BX4,20)=10),#REF!,#REF!)*#REF! ->  | BY6: =IF(AND(BY4>2040,MOD(BY4,20)=10),#REF!,#REF!)*#REF! ->  | BZ6: =IF(AND(BZ4>2040,MOD(BZ4,20)=10),#REF!,#REF!)*#REF! ->  | CA6: =IF(AND(CA4>2040,MOD(CA4,20)=10),#REF!,#REF!)*#REF! ->  | CB6: =IF(AND(CB4>2040,MOD(CB4,20)=10),#REF!,#REF!)*#REF! ->  | CC6: =IF(AND(CC4>2040,MOD(CC4,20)=10),#REF!,#REF!)*#REF! ->  | CD6: =IF(AND(CD4>2040,MOD(CD4,20)=10),#REF!,#REF!)*#REF! ->  | CE6: =IF(AND(CE4>2040,MOD(CE4,20)=10),#REF!,#REF!)*#REF! ->  | CF6: =IF(AND(CF4>2040,MOD(CF4,20)=10),#REF!,#REF!)*#REF! ->  | CG6: =IF(AND(CG4>2040,MOD(CG4,20)=10),#REF!,#REF!)*#REF! ->  | CH6: =IF(AND(CH4>2040,MOD(CH4,20)=10),#REF!,#REF!)*#REF! ->  | CI6: =IF(AND(CI4>2040,MOD(CI4,20)=10),#REF!,#REF!)*#REF! ->  | CJ6: =IF(AND(CJ4>2040,MOD(CJ4,20)=10),#REF!,#REF!)*#REF! -> 
F7: Dep Growth Factor from 2017 | S7: =(1+#REF!)^(MIN(S4,2045)-2017)*(1+#REF!)^(MAX(S4,2045)-2045) ->  | T7: =(1+#REF!)^(MIN(T4,2045)-2017)*(1+#REF!)^(MAX(T4,2045)-2045) ->  | U7: =(1+#REF!)^(MIN(U4,2045)-2017)*(1+#REF!)^(MAX(U4,2045)-2045) ->  | V7: =(1+#REF!)^(MIN(V4,2045)-2017)*(1+#REF!)^(MAX(V4,2045)-2045) ->  | W7: =(1+#REF!)^(MIN(W4,2045)-2017)*(1+#REF!)^(MAX(W4,2045)-2045) ->  | X7: =(1+#REF!)^(MIN(X4,2045)-2017)*(1+#REF!)^(MAX(X4,2045)-2045) ->  | Y7: =(1+#REF!)^(MIN(Y4,2045)-2017)*(1+#REF!)^(MAX(Y4,2045)-2045) ->  | Z7: =(1+#REF!)^(MIN(Z4,2045)-2017)*(1+#REF!)^(MAX(Z4,2045)-2045) ->  | AA7: =(1+#REF!)^(MIN(AA4,2045)-2017)*(1+#REF!)^(MAX(AA4,2045)-2045) ->  | AB7: =(1+#REF!)^(MIN(AB4,2045)-2017)*(1+#REF!)^(MAX(AB4,2045)-2045) ->  | AC7: =(1+#REF!)^(MIN(AC4,2045)-2017)*(1+#REF!)^(MAX(AC4,2045)-2045) ->  | AD7: =(1+#REF!)^(MIN(AD4,2045)-2017)*(1+#REF!)^(MAX(AD4,2045)-2045) ->  | AE7: =(1+#REF!)^(MIN(AE4,2045)-2017)*(1+#REF!)^(MAX(AE4,2045)-2045) ->  | AF7: =(1+#REF!)^(MIN(AF4,2045)-2017)*(1+#REF!)^(MAX(AF4,2045)-2045) ->  | AG7: =(1+#REF!)^(MIN(AG4,2045)-2017)*(1+#REF!)^(MAX(AG4,2045)-2045) ->  | AH7: =(1+#REF!)^(MIN(AH4,2045)-2017)*(1+#REF!)^(MAX(AH4,2045)-2045) ->  | AI7: =(1+#REF!)^(MIN(AI4,2045)-2017)*(1+#REF!)^(MAX(AI4,2045)-2045) ->  | AJ7: =(1+#REF!)^(MIN(AJ4,2045)-2017)*(1+#REF!)^(MAX(AJ4,2045)-2045) ->  | AK7: =(1+#REF!)^(MIN(AK4,2045)-2017)*(1+#REF!)^(MAX(AK4,2045)-2045) ->  | AL7: =(1+#REF!)^(MIN(AL4,2045)-2017)*(1+#REF!)^(MAX(AL4,2045)-2045) ->  | AM7: =(1+#REF!)^(MIN(AM4,2045)-2017)*(1+#REF!)^(MAX(AM4,2045)-2045) ->  | AN7: =(1+#REF!)^(MIN(AN4,2045)-2017)*(1+#REF!)^(MAX(AN4,2045)-2045) ->  | AO7: =(1+#REF!)^(MIN(AO4,2045)-2017)*(1+#REF!)^(MAX(AO4,2045)-2045) ->  | AP7: =(1+#REF!)^(MIN(AP4,2045)-2017)*(1+#REF!)^(MAX(AP4,2045)-2045) ->  | AQ7: =(1+#REF!)^(MIN(AQ4,2045)-2017)*(1+#REF!)^(MAX(AQ4,2045)-2045) ->  | AR7: =(1+#REF!)^(MIN(AR4,2045)-2017)*(1+#REF!)^(MAX(AR4,2045)-2045) ->  | AS7: =(1+#REF!)^(MIN(AS4,2045)-2017)*(1+#REF!)^(MAX(AS4,2045)-2045) ->  | AT7: =(1+#REF!)^(MIN(AT4,2045)-2017)*(1+#REF!)^(MAX(AT4,2045)-2045) ->  | AU7: =(1+#REF!)^(MIN(AU4,2045)-2017)*(1+#REF!)^(MAX(AU4,2045)-2045) ->  | AV7: =(1+#REF!)^(MIN(AV4,2045)-2017)*(1+#REF!)^(MAX(AV4,2045)-2045) ->  | AW7: =(1+#REF!)^(MIN(AW4,2045)-2017)*(1+#REF!)^(MAX(AW4,2045)-2045) ->  | AX7: =(1+#REF!)^(MIN(AX4,2045)-2017)*(1+#REF!)^(MAX(AX4,2045)-2045) ->  | AY7: =(1+#REF!)^(MIN(AY4,2045)-2017)*(1+#REF!)^(MAX(AY4,2045)-2045) ->  | AZ7: =(1+#REF!)^(MIN(AZ4,2045)-2017)*(1+#REF!)^(MAX(AZ4,2045)-2045) ->  | BA7: =(1+#REF!)^(MIN(BA4,2045)-2017)*(1+#REF!)^(MAX(BA4,2045)-2045) ->  | BB7: =(1+#REF!)^(MIN(BB4,2045)-2017)*(1+#REF!)^(MAX(BB4,2045)-2045) ->  | BC7: =(1+#REF!)^(MIN(BC4,2045)-2017)*(1+#REF!)^(MAX(BC4,2045)-2045) ->  | BD7: =(1+#REF!)^(MIN(BD4,2045)-2017)*(1+#REF!)^(MAX(BD4,2045)-2045) ->  | BE7: =(1+#REF!)^(MIN(BE4,2045)-2017)*(1+#REF!)^(MAX(BE4,2045)-2045) ->  | BF7: =(1+#REF!)^(MIN(BF4,2045)-2017)*(1+#REF!)^(MAX(BF4,2045)-2045) ->  | BG7: =(1+#REF!)^(MIN(BG4,2045)-2017)*(1+#REF!)^(MAX(BG4,2045)-2045) ->  | BH7: =(1+#REF!)^(MIN(BH4,2045)-2017)*(1+#REF!)^(MAX(BH4,2045)-2045) ->  | BI7: =(1+#REF!)^(MIN(BI4,2045)-2017)*(1+#REF!)^(MAX(BI4,2045)-2045) ->  | BJ7: =(1+#REF!)^(MIN(BJ4,2045)-2017)*(1+#REF!)^(MAX(BJ4,2045)-2045) ->  | BK7: =(1+#REF!)^(MIN(BK4,2045)-2017)*(1+#REF!)^(MAX(BK4,2045)-2045) ->  | BL7: =(1+#REF!)^(MIN(BL4,2045)-2017)*(1+#REF!)^(MAX(BL4,2045)-2045) ->  | BM7: =(1+#REF!)^(MIN(BM4,2045)-2017)*(1+#REF!)^(MAX(BM4,2045)-2045) ->  | BN7: =(1+#REF!)^(MIN(BN4,2045)-2017)*(1+#REF!)^(MAX(BN4,2045)-2045) ->  | BO7: =(1+#REF!)^(MIN(BO4,2045)-2017)*(1+#REF!)^(MAX(BO4,2045)-2045) ->  | BP7: =(1+#REF!)^(MIN(BP4,2045)-2017)*(1+#REF!)^(MAX(BP4,2045)-2045) ->  | BQ7: =(1+#REF!)^(MIN(BQ4,2045)-2017)*(1+#REF!)^(MAX(BQ4,2045)-2045) ->  | BR7: =(1+#REF!)^(MIN(BR4,2045)-2017)*(1+#REF!)^(MAX(BR4,2045)-2045) ->  | BS7: =(1+#REF!)^(MIN(BS4,2045)-2017)*(1+#REF!)^(MAX(BS4,2045)-2045) ->  | BT7: =(1+#REF!)^(MIN(BT4,2045)-2017)*(1+#REF!)^(MAX(BT4,2045)-2045) ->  | BU7: =(1+#REF!)^(MIN(BU4,2045)-2017)*(1+#REF!)^(MAX(BU4,2045)-2045) ->  | BV7: =(1+#REF!)^(MIN(BV4,2045)-2017)*(1+#REF!)^(MAX(BV4,2045)-2045) ->  | BW7: =(1+#REF!)^(MIN(BW4,2045)-2017)*(1+#REF!)^(MAX(BW4,2045)-2045) ->  | BX7: =(1+#REF!)^(MIN(BX4,2045)-2017)*(1+#REF!)^(MAX(BX4,2045)-2045) ->  | BY7: =(1+#REF!)^(MIN(BY4,2045)-2017)*(1+#REF!)^(MAX(BY4,2045)-2045) ->  | BZ7: =(1+#REF!)^(MIN(BZ4,2045)-2017)*(1+#REF!)^(MAX(BZ4,2045)-2045) ->  | CA7: =(1+#REF!)^(MIN(CA4,2045)-2017)*(1+#REF!)^(MAX(CA4,2045)-2045) ->  | CB7: =(1+#REF!)^(MIN(CB4,2045)-2017)*(1+#REF!)^(MAX(CB4,2045)-2045) ->  | CC7: =(1+#REF!)^(MIN(CC4,2045)-2017)*(1+#REF!)^(MAX(CC4,2045)-2045) ->  | CD7: =(1+#REF!)^(MIN(CD4,2045)-2017)*(1+#REF!)^(MAX(CD4,2045)-2045) ->  | CE7: =(1+#REF!)^(MIN(CE4,2045)-2017)*(1+#REF!)^(MAX(CE4,2045)-2045) ->  | CF7: =(1+#REF!)^(MIN(CF4,2045)-2017)*(1+#REF!)^(MAX(CF4,2045)-2045) ->  | CG7: =(1+#REF!)^(MIN(CG4,2045)-2017)*(1+#REF!)^(MAX(CG4,2045)-2045) ->  | CH7: =(1+#REF!)^(MIN(CH4,2045)-2017)*(1+#REF!)^(MAX(CH4,2045)-2045) ->  | CI7: =(1+#REF!)^(MIN(CI4,2045)-2017)*(1+#REF!)^(MAX(CI4,2045)-2045) ->  | CJ7: =(1+#REF!)^(MIN(CJ4,2045)-2017)*(1+#REF!)^(MAX(CJ4,2045)-2045) -> 
A9: Simulation # | B9: NPV Benefits (2017$) | C9: NPV Costs (2017$) | D9: Net NPV (2017$) | E9: Project B/C Ratio | R9: Formula: | S9: =IF(#REF!>0,(INT(#REF!)*#REF!+MOD(#REF!,INT(#REF!))*1000*#REF!)*S$7,0) -> 
A10: 1 | B10: =NPV(#REF!,$G10:$CJ10) ->  | C10: =NPV(#REF!,$G$6:$CJ$6) ->  | D10: =B10-C10 ->  | E10: =B10/C10 ->  | G10: 0 | H10: 0 | I10: 0 | J10: 0 | K10: 0 | L10: 0 | M10: 0 | N10: 0 | O10: 0 | P10: 0 | Q10: 0 | R10: 0 | S10: 0 | T10: 0 | U10: 0 | V10: 0 | W10: 0 | X10: 0 | Y10: 0 | Z10: 953161.0657 | AA10: 972974.0369 | AB10: 0 | AC10: 0 | AD10: 1034918.437 | AE10: 2112861.73 | AF10: 0 | AG10: 3302419.582 | AH10: 0 | AI10: 0 | AJ10: 0 | AK10: 8104162.018 | AL10: 1169314.805 | AM10: 8267055.675 | AN10: 2385636.066 | AO10: 6023731.067 | AP10: 13384730.43 | AQ10: 0 | AR10: 2482502.457 | AS10: 46385558.41 | AT10: 3798601.134 | AU10: 6394311.909 | AV10: 0 | AW10: 0 | AX10: 21081811.05 | AY10: 21292629.17 | AZ10: 18817361.02 | BA10: 5430152.753 | BB10: 21937817.12 | BC10: 30466143.53 | BD10: 13986729.53 | BE10: 5650638.73 | BF10: 9987503.955 | BG10: 30262136.98 | BH10: 1455464.683 | BI10: 10290135.31 | BJ10: 14847195.24 | BK10: 0 | BL10: 19689311.02 | BM10: 10707956.07 | BN10: 12360040.72 | BO10: 24967282.25 | BP10: 50433910.15 | BQ10: 20693663.76 | BR10: 28939292.86 | BS10: 6495263.508 | BT10: 9840324.215 | BU10: 18221000.34 | BV10: 21749248.58 | BW10: 77728468.4 | BX10: 0 | BY10: 24131985.84 | BZ10: 50487561.8 | CA10: 22858678.84 | CB10: 31966983.18 | CC10: 7174811.781 | CD10: 10869839.85 | CE10: 20127320.12 | CF10: 24024701.2 | CG10: 85860585.97 | CH10: 0 | CI10: 26656725.49 | CJ10: 55769677.83
A11: =A10+1 -> 2 | B11: =NPV(#REF!,$G11:$CJ11) ->  | C11: =NPV(#REF!,$G$6:$CJ$6) ->  | D11: =B11-C11 ->  | E11: =B11/C11 ->  | G11: 0 | H11: 0 | I11: 0 | J11: 0 | K11: 0 | L11: 0 | M11: 0 | N11: 0 | O11: 0 | P11: 0 | Q11: 0 | R11: 0 | S11: 0 | T11: 0 | U11: 1719972.498 | V11: 7022899.467 | W11: 896110.2025 | X11: 0 | Y11: 0 | Z11: 0 | AA11: 4864870.185 | AB11: 993198.8523 | AC11: 0 | AD11: 1034918.437 | AE11: 0 | AF11: 0 | AG11: 15411291.38 | AH11: 0 | AI11: 10214328.87 | AJ11: 6877648.106 | AK11: 2315474.862 | AL11: 0 | AM11: 7086047.721 | AN11: 16699452.46 | AO11: 4818984.854 | AP11: 0 | AQ11: 0 | AR11: 1241251.228 | AS11: 0 | AT11: 1266200.378 | AU11: 8952036.673 | AV11: 7749906.034 | AW11: 7827405.095 | AX11: 5270452.764 | AY11: 1330789.323 | AZ11: 12096874.94 | BA11: 13575381.88 | BB11: 1371113.57 | BC11: 13848247.06 | BD11: 11189383.62 | BE11: 24015214.6 | BF11: 2853572.558 | BG11: 5764216.568 | BH11: 8732788.101 | BI11: 5880077.321 | BJ11: 19301353.81 | BK11: 13496100.47 | BL11: 158425560.1 | BM11: 7648540.049 | BN11: 69525229.05 | BO11: 199116481.3 | BP11: 120468934.3 | BQ11: 7959101.446 | BR11: 1607738.492 | BS11: 24357238.15 | BT11: 11480378.25 | BU11: 34785546.1 | BV11: 26768305.95 | BW11: 8448746.566 | BX11: 52906050.99 | BY11: 8618566.371 | BZ11: 58211782.75 | CA11: 8791799.556 | CB11: 1775943.51 | CC11: 26905544.18 | CD11: 12681479.82 | CE11: 38424883.87 | CF11: 29568863.01 | CG11: 9332672.388 | CH11: 58441194.5 | CI11: 9520259.103 | CJ11: 64302023.18
A12: =A11+1 -> 3 | B12: =NPV(#REF!,$G12:$CJ12) ->  | C12: =NPV(#REF!,$G$6:$CJ$6) ->  | G12: 0 | H12: 0 | I12: 0 | J12: 0 | K12: 0 | L12: 0 | M12: 0 | N12: 0 | O12: 0 | P12: 0 | Q12: 0 | R12: 0 | S12: 0 | T12: 8424740.833 | U12: 859986.2492 | V12: 0 | W12: 0 | X12: 0 | Y12: 0 | Z12: 0 | AA12: 1945948.074 | AB12: 2979596.557 | AC12: 0 | AD12: 0 | AE12: 0 | AF12: 2156780.927 | AG12: 5504032.636 | AH12: 8989508.357 | AI12: 9079403.44 | AJ12: 1146274.684 | AK12: 2315474.862 | AL12: 7015888.833 | AM12: 0 | AN12: 13120998.36 | AO12: 0 | AP12: 12167936.76 | AQ12: 7373769.674 | AR12: 1241251.228 | AS12: 3760991.222 | AT12: 6331001.891 | AU12: 76731742.91 | AV12: 3874953.017 | AW12: 15654810.19 | AX12: 2635226.382 | AY12: 7984735.937 | AZ12: 1344097.216 | BA12: 0 | BB12: 4113340.71 | BC12: 0 | BD12: 0 | BE12: 7063298.412 | BF12: 15694649.07 | BG12: 4323162.426 | BH12: 4366394.05 | BI12: 143876036.9 | BJ12: 7423597.618 | BK12: 34490034.53 | BL12: 7572811.93 | BM12: 13767372.09 | BN12: 12360040.72 | BO12: 23406827.11 | BP12: 11032417.85 | BQ12: 7959101.446 | BR12: 16077384.92 | BS12: 21109606.4 | BT12: 39361296.86 | BU12: 33129091.52 | BV12: 21749248.58 | BW12: 106454206.7 | BX12: 0 | BY12: 18960846.02 | BZ12: 226863860.4 | CA12: 8791799.556 | CB12: 17759435.1 | CC12: 23318138.29 | CD12: 43479359.39 | CE12: 36595127.49 | CF12: 24024701.2 | CG12: 117591672.1 | CH12: 0 | CI12: 20944570.03 | CJ12: 250598839.7
A13: 4 | B13: =NPV(#REF!,$G13:$CJ13) ->  | C13: =NPV(#REF!,$G$6:$CJ$6) ->  | G13: 0 | H13: 0 | I13: 0 | J13: 0 | K13: 0 | L13: 0 | M13: 0 | N13: 0 | O13: 0 | P13: 0 | Q13: 0 | R13: 0 | S13: 0 | T13: 8424740.833 | U13: 0 | V13: 1755724.867 | W13: 0 | X13: 0 | Y13: 0 | Z13: 0 | AA13: 0 | AB13: 0 | AC13: 0 | AD13: 0 | AE13: 0 | AF13: 2156780.927 | AG13: 0 | AH13: 0 | AI13: 1134925.43 | AJ13: 0 | AK13: 10419636.88 | AL13: 0 | AM13: 0 | AN13: 4771272.132 | AO13: 3614238.64 | AP13: 8517555.729 | AQ13: 1228961.612 | AR13: 2482502.457 | AS13: 47639222.15 | AT13: 1266200.378 | AU13: 2557724.764 | AV13: 5166604.023 | AW13: 3913702.547 | AX13: 14493745.1 | AY13: 5323157.291 | AZ13: 0 | BA13: 0 | BB13: 0 | BC13: 18002721.18 | BD13: 16784075.43 | BE13: 0 | BF13: 5707145.117 | BG13: 0 | BH13: 7277323.417 | BI13: 34024471.58 | BJ13: 14847195.24 | BK13: 34490034.53 | BL13: 22718435.79 | BM13: 0 | BN13: 13905045.81 | BO13: 10923185.99 | BP13: 7880298.461 | BQ13: 25469124.63 | BR13: 3215476.984 | BS13: 40595396.92 | BT13: 18040594.39 | BU13: 24846818.64 | BV13: 21749248.58 | BW13: 27035989.01 | BX13: 25599702.09 | BY13: 48263971.68 | BZ13: 27855206.51 | CA13: 28133758.58 | CB13: 3551887.02 | CC13: 44842573.63 | CD13: 19928039.72 | CE13: 27446345.62 | CF13: 24024701.2 | CG13: 29864551.64 | CH13: 28277997.34 | CI13: 53313450.98 | CJ13: 30769477.42
A14: 5 | B14: =NPV(#REF!,$G14:$CJ14) ->  | C14: =NPV(#REF!,$G$6:$CJ$6) ->  | G14: 0 | H14: 0 | I14: 0 | J14: 0 | K14: 0 | L14: 0 | M14: 0 | N14: 0 | O14: 0 | P14: 0 | Q14: 0 | R14: 0 | S14: 0 | T14: 0 | U14: 0 | V14: 2633587.3 | W14: 0 | X14: 6403160.965 | Y14: 2801254.657 | Z14: 0 | AA14: 1945948.074 | AB14: 1986397.705 | AC14: 5069220.363 | AD14: 5174592.184 | AE14: 0 | AF14: 0 | AG14: 1100806.527 | AH14: 0 | AI14: 0 | AJ14: 0 | AK14: 9261899.449 | AL14: 0 | AM14: 3543023.861 | AN14: 2385636.066 | AO14: 25299670.48 | AP14: 7300762.053 | AQ14: 1228961.612 | AR14: 13653763.51 | AS14: 0 | AT14: 0 | AU14: 11509761.44 | AV14: 1291651.006 | AW14: 5218270.063 | AX14: 26352263.82 | AY14: 9315525.26 | AZ14: 5376388.864 | BA14: 19005534.64 | BB14: 2742227.14 | BC14: 22157195.29 | BD14: 1398672.953 | BE14: 1412659.682 | BF14: 15694649.07 | BG14: 7205270.71 | BH14: 62796889.29 | BI14: 5880077.321 | BJ14: 8908317.141 | BK14: 32990467.81 | BL14: 9087374.316 | BM14: 136618760.9 | BN14: 0 | BO14: 0 | BP14: 149296940.5 | BQ14: 33428226.07 | BR14: 6430953.968 | BS14: 3247631.754 | BT14: 1640054.036 | BU14: 16564545.76 | BV14: 46844535.41 | BW14: 3379498.626 | BX14: 25599702.09 | BY14: 48263971.68 | BZ14: 73626863.3 | CA14: 36925558.13 | CB14: 7103774.041 | CC14: 3587405.891 | CD14: 1811639.975 | CE14: 18297563.75 | CF14: 51745510.27 | CG14: 3733068.955 | CH14: 28277997.34 | CI14: 53313450.98 | CJ14: 81329862.23
A15: 6 | B15: =NPV(#REF!,$G15:$CJ15) ->  | C15: =NPV(#REF!,$G$6:$CJ$6) ->  | G15: 0 | H15: 0 | I15: 0 | J15: 0 | K15: 0 | L15: 0 | M15: 0 | N15: 0 | O15: 0 | P15: 0 | Q15: 0 | R15: 0 | S15: 0 | T15: 1684948.167 | U15: 0 | V15: 877862.4334 | W15: 896110.2025 | X15: 0 | Y15: 0 | Z15: 0 | AA15: 0 | AB15: 0 | AC15: 0 | AD15: 0 | AE15: 7395016.056 | AF15: 0 | AG15: 0 | AH15: 2247377.089 | AI15: 7944478.01 | AJ15: 0 | AK15: 0 | AL15: 1169314.805 | AM15: 0 | AN15: 2385636.066 | AO15: 0 | AP15: 2433587.351 | AQ15: 2457923.225 | AR15: 0 | AS15: 1253663.741 | AT15: 7597202.269 | AU15: 76731742.91 | AV15: 68457503.3 | AW15: 9131972.61 | AX15: 0 | AY15: 60079275.36 | AZ15: 14785069.38 | BA15: 13575381.88 | BB15: 0 | BC15: 0 | BD15: 8392037.717 | BE15: 18364575.87 | BF15: 14267862.79 | BG15: 10087378.99 | BH15: 10188252.78 | BI15: 63638885.17 | BJ15: 32663829.52 | BK15: 0 | BL15: 45436871.58 | BM15: 6118832.039 | BN15: 4635015.27 | BO15: 7802275.704 | BP15: 17336656.61 | BQ15: 42979147.81 | BR15: 46624416.27 | BS15: 30852501.66 | BT15: 11480378.25 | BU15: 31472636.95 | BV15: 111880758.1 | BW15: 15207743.82 | BX15: 8533234.031 | BY15: 24131985.84 | BZ15: 63434633.97 | CA15: 47475717.6 | CB15: 51502361.8 | CC15: 34080355.96 | CD15: 12681479.82 | CE15: 34765371.12 | CF15: 123585960.8 | CG15: 16798810.3 | CH15: 9425999.112 | CI15: 26656725.49 | CJ15: 70071300.2
A16: 7 | B16: =NPV(#REF!,$G16:$CJ16) ->  | C16: =NPV(#REF!,$G$6:$CJ$6) ->  | G16: 0 | H16: 0 | I16: 0 | J16: 0 | K16: 0 | L16: 0 | M16: 0 | N16: 0 | O16: 0 | P16: 0 | Q16: 0 | R16: 0 | S16: 0 | T16: 0 | U16: 0 | V16: 2633587.3 | W16: 0 | X16: 0 | Y16: 1867503.104 | Z16: 953161.0657 | AA16: 0 | AB16: 0 | AC16: 1013844.073 | AD16: 1034918.437 | AE16: 0 | AF16: 3235171.391 | AG16: 0 | AH16: 10113196.9 | AI16: 0 | AJ16: 0 | AK16: 1157737.431 | AL16: 1169314.805 | AM16: 0 | AN16: 17892270.5 | AO16: 30294059.97 | AP16: 0 | AQ16: 4915846.449 | AR16: 3723753.685 | AS16: 6268318.704 | AT16: 5064801.512 | AU16: 12788623.82 | AV16: 1291651.006 | AW16: 1304567.516 | AX16: 3952839.573 | AY16: 2661578.646 | AZ16: 1344097.216 | BA16: 1357538.188 | BB16: 9597794.991 | BC16: 0 | BD16: 18182748.39 | BE16: 0 | BF16: 2853572.558 | BG16: 11528433.14 | BH16: 2910929.367 | BI16: 11760154.64 | BJ16: 7423597.618 | BK16: 7497833.594 | BL16: 10601936.7 | BM16: 1529708.01 | BN16: 20085066.17 | BO16: 15604551.41 | BP16: 33326719.43 | BQ16: 66856452.15 | BR16: 30547031.35 | BS16: 11366711.14 | BT16: 18040594.39 | BU16: 13251636.61 | BV16: 52107175.45 | BW16: 3379498.626 | BX16: 48034589.26 | BY16: 147519482.2 | BZ16: 20891404.88 | CA16: 73851116.27 | CB16: 33742926.69 | CC16: 12555920.62 | CD16: 19928039.72 | CE16: 14638051 | CF16: 57558738.89 | CG16: 3733068.955 | CH16: 53060070.08 | CI16: 162953284 | CJ16: 23077108.07
A17: 8 | B17: =NPV(#REF!,$G17:$CJ17) ->  | C17: =NPV(#REF!,$G$6:$CJ$6) ->  | G17: 0 | H17: 0 | I17: 0 | J17: 0 | K17: 0 | L17: 0 | M17: 0 | N17: 0 | O17: 0 | P17: 0 | Q17: 0 | R17: 0 | S17: 0 | T17: 1684948.167 | U17: 0 | V17: 2633587.3 | W17: 0 | X17: 914737.2806 | Y17: 0 | Z17: 0 | AA17: 0 | AB17: 0 | AC17: 4055376.29 | AD17: 0 | AE17: 3169292.595 | AF17: 0 | AG17: 0 | AH17: 1123688.545 | AI17: 0 | AJ17: 20632944.32 | AK17: 5788687.156 | AL17: 0 | AM17: 0 | AN17: 17892270.5 | AO17: 3614238.64 | AP17: 2433587.351 | AQ17: 3686884.837 | AR17: 6206256.142 | AS17: 0 | AT17: 7597202.269 | AU17: 2557724.764 | AV17: 6458255.029 | AW17: 0 | AX17: 5270452.764 | AY17: 23954207.81 | AZ17: 10752777.73 | BA17: 9502767.318 | BB17: 5484454.28 | BC17: 6924123.529 | BD17: 2797345.906 | BE17: 16951916.19 | BF17: 14267862.79 | BG17: 10087378.99 | BH17: 8732788.101 | BI17: 14700193.3 | BJ17: 7423597.618 | BK17: 10496967.03 | BL17: 19689311.02 | BM17: 0 | BN17: 15450050.9 | BO17: 1560455.141 | BP17: 28369074.46 | BQ17: 19101843.47 | BR17: 3215476.984 | BS17: 22733422.28 | BT17: 6560216.143 | BU17: 8282272.881 | BV17: 40152458.93 | BW17: 27035989.01 | BX17: 15359821.26 | BY17: 18960846.02 | BZ17: 198501707.7 | CA17: 21100318.93 | CB17: 3551887.02 | CC17: 25111841.23 | CD17: 7246559.899 | CE17: 9148781.873 | CF17: 44353294.52 | CG17: 29864551.64 | CH17: 16966798.4 | CI17: 20944570.03 | CJ17: 219269378.3
A18: 9 | B18: =NPV(#REF!,$G18:$CJ18) ->  | C18: =NPV(#REF!,$G$6:$CJ$6) ->  | G18: 0 | H18: 0 | I18: 0 | J18: 0 | K18: 0 | L18: 0 | M18: 0 | N18: 0 | O18: 0 | P18: 0 | Q18: 0 | R18: 0 | S18: 0 | T18: 0 | U18: 0 | V18: 1755724.867 | W18: 0 | X18: 0 | Y18: 0 | Z18: 2859483.197 | AA18: 0 | AB18: 0 | AC18: 0 | AD18: 0 | AE18: 7395016.056 | AF18: 0 | AG18: 0 | AH18: 1123688.545 | AI18: 1134925.43 | AJ18: 0 | AK18: 0 | AL18: 0 | AM18: 0 | AN18: 0 | AO18: 0 | AP18: 8517555.729 | AQ18: 3686884.837 | AR18: 0 | AS18: 2507327.481 | AT18: 2532400.756 | AU18: 1278862.382 | AV18: 0 | AW18: 3913702.547 | AX18: 5270452.764 | AY18: 5323157.291 | AZ18: 21505555.46 | BA18: 0 | BB18: 19195589.98 | BC18: 0 | BD18: 12588056.58 | BE18: 36729151.74 | BF18: 2853572.558 | BG18: 7205270.71 | BH18: 1455464.683 | BI18: 4410057.991 | BJ18: 11877756.19 | BK18: 13496100.47 | BL18: 15145623.86 | BM18: 4589124.03 | BN18: 18540061.08 | BO18: 14044096.27 | BP18: 18912716.31 | BQ18: 0 | BR18: 51447631.75 | BS18: 22733422.28 | BT18: 14760486.32 | BU18: 9938727.457 | BV18: 0 | BW18: 6758997.252 | BX18: 101686076.3 | BY18: 13789706.19 | BZ18: 8704752.035 | CA18: 0 | CB18: 56830192.33 | CC18: 25111841.23 | CD18: 16304759.77 | CE18: 10978538.25 | CF18: 0 | CG18: 7466137.911 | CH18: 112324689.7 | CI18: 15232414.57 | CJ18: 9615461.694
A19: 10 | B19: =NPV(#REF!,$G19:$CJ19) ->  | C19: =NPV(#REF!,$G$6:$CJ$6) ->  | G19: 0 | H19: 0 | I19: 0 | J19: 0 | K19: 0 | L19: 0 | M19: 0 | N19: 0 | O19: 0 | P19: 0 | Q19: 0 | R19: 0 | S19: 0 | T19: 0 | U19: 0 | V19: 9656486.767 | W19: 0 | X19: 0 | Y19: 0 | Z19: 0 | AA19: 972974.0369 | AB19: 1986397.705 | AC19: 5069220.363 | AD19: 0 | AE19: 0 | AF19: 1078390.464 | AG19: 0 | AH19: 3371065.634 | AI19: 11349254.3 | AJ19: 1146274.684 | AK19: 10419636.88 | AL19: 0 | AM19: 0 | AN19: 1192818.033 | AO19: 0 | AP19: 0 | AQ19: 27037155.47 | AR19: 6206256.142 | AS19: 3760991.222 | AT19: 13928204.16 | AU19: 15346348.58 | AV19: 24541369.11 | AW19: 0 | AX19: 17128971.48 | AY19: 5323157.291 | AZ19: 0 | BA19: 5430152.753 | BB19: 1371113.57 | BC19: 4154474.117 | BD19: 2797345.906 | BE19: 7063298.412 | BF19: 2853572.558 | BG19: 4323162.426 | BH19: 27653828.99 | BI19: 5880077.321 | BJ19: 35633268.57 | BK19: 0 | BL19: 7572811.93 | BM19: 10707956.07 | BN19: 15450050.9 | BO19: 0 | BP19: 58314208.61 | BQ19: 313015329.7 | BR19: 0 | BS19: 22733422.28 | BT19: 14760486.32 | BU19: 78335707 | BV19: 10038114.73 | BW19: 23656490.38 | BX19: 0 | BY19: 38172655.5 | BZ19: 10445702.44 | CA19: 345763658.7 | CB19: 0 | CC19: 25111841.23 | CD19: 16304759.77 | CE19: 86531355.16 | CF19: 11088323.63 | CG19: 26131482.69 | CH19: 0 | CI19: 42166359.86 | CJ19: 11538554.03
A20: 11 | B20: =NPV(#REF!,$G20:$CJ20) ->  | C20: =NPV(#REF!,$G$6:$CJ$6) ->  | G20: 0 | H20: 0 | I20: 0 | J20: 0 | K20: 0 | L20: 0 | M20: 0 | N20: 0 | O20: 0 | P20: 0 | Q20: 0 | R20: 0 | S20: 0 | T20: 0 | U20: 0 | V20: 0 | W20: 0 | X20: 0 | Y20: 0 | Z20: 0 | AA20: 1945948.074 | AB20: 0 | AC20: 0 | AD20: 0 | AE20: 1056430.865 | AF20: 0 | AG20: 0 | AH20: 0 | AI20: 0 | AJ20: 5731373.422 | AK20: 1157737.431 | AL20: 0 | AM20: 17715119.3 | AN20: 0 | AO20: 0 | AP20: 3650381.027 | AQ20: 3686884.837 | AR20: 1241251.228 | AS20: 11465500.43 | AT20: 0 | AU20: 3836587.146 | AV20: 14396218.57 | AW20: 0 | AX20: 0 | AY20: 14638682.55 | AZ20: 1344097.216 | BA20: 39368607.46 | BB20: 12340022.13 | BC20: 30466143.53 | BD20: 4196018.859 | BE20: 8475958.094 | BF20: 2853572.558 | BG20: 7205270.71 | BH20: 1455464.683 | BI20: 13230173.97 | BJ20: 26724951.42 | BK20: 11996533.75 | BL20: 150632236 | BM20: 0 | BN20: 150990216.3 | BO20: 23406827.11 | BP20: 36249372.92 | BQ20: 9550921.735 | BR20: 64543617.84 | BS20: 24357238.15 | BT20: 3280108.072 | BU20: 38098455.25 | BV20: 50434156.33 | BW20: 61323012.27 | BX20: 42666170.16 | BY20: 0 | BZ20: 30103103.13 | CA20: 10550159.47 | CB20: 71296308.32 | CC20: 26905544.18 | CD20: 3623279.95 | CE20: 42084396.61 | CF20: 55710684.96 | CG20: 67738756.15 | CH20: 47129995.56 | CI20: 0 | CJ20: 33252553.76
A21: 12 | B21: =NPV(#REF!,$G21:$CJ21) ->  | C21: =NPV(#REF!,$G$6:$CJ$6) ->  | G21: 0 | H21: 0 | I21: 0 | J21: 0 | K21: 0 | L21: 0 | M21: 0 | N21: 0 | O21: 0 | P21: 0 | Q21: 0 | R21: 0 | S21: 0 | T21: 1684948.167 | U21: 0 | V21: 0 | W21: 0 | X21: 0 | Y21: 0 | Z21: 0 | AA21: 0 | AB21: 0 | AC21: 5069220.363 | AD21: 2069836.874 | AE21: 0 | AF21: 0 | AG21: 3302419.582 | AH21: 1123688.545 | AI21: 1134925.43 | AJ21: 10316472.16 | AK21: 4630949.725 | AL21: 0 | AM21: 5905039.768 | AN21: 0 | AO21: 4818984.854 | AP21: 0 | AQ21: 0 | AR21: 0 | AS21: 0 | AT21: 6331001.891 | AU21: 0 | AV21: 0 | AW21: 1304567.516 | AX21: 5270452.764 | AY21: 2661578.646 | AZ21: 9408680.512 | BA21: 1357538.188 | BB21: 16453362.84 | BC21: 20772370.59 | BD21: 6993364.764 | BE21: 24220890.32 | BF21: 2853572.558 | BG21: 12969487.28 | BH21: 8732788.101 | BI21: 34024471.58 | BJ21: 4454158.571 | BK21: 4498700.156 | BL21: 43922309.19 | BM21: 0 | BN21: 42165026.45 | BO21: 35890468.24 | BP21: 3152119.385 | BQ21: 63672811.57 | BR21: 190212107 | BS21: 9742895.262 | BT21: 14760486.32 | BU21: 19877454.91 | BV21: 8365095.609 | BW21: 30415487.64 | BX21: 94859489.08 | BY21: 8618566.371 | BZ21: 50487561.8 | CA21: 70334396.44 | CB21: 210112501.9 | CC21: 10762217.67 | CD21: 16304759.77 | CE21: 21957076.49 | CF21: 9240269.691 | CG21: 33597620.6 | CH21: 104783890.4 | CI21: 9520259.103 | CJ21: 55769677.83
A22: 13 | B22: =NPV(#REF!,$G22:$CJ22) ->  | C22: =NPV(#REF!,$G$6:$CJ$6) ->  | G22: 0 | H22: 0 | I22: 0 | J22: 0 | K22: 0 | L22: 0 | M22: 0 | N22: 0 | O22: 0 | P22: 0 | Q22: 0 | R22: 0 | S22: 0 | T22: 0 | U22: 0 | V22: 0 | W22: 0 | X22: 0 | Y22: 0 | Z22: 0 | AA22: 0 | AB22: 1986397.705 | AC22: 0 | AD22: 2069836.874 | AE22: 11620739.52 | AF22: 0 | AG22: 2201613.055 | AH22: 0 | AI22: 11349254.3 | AJ22: 10316472.16 | AK22: 0 | AL22: 3507944.416 | AM22: 10629071.58 | AN22: 4771272.132 | AO22: 3614238.64 | AP22: 1216793.676 | AQ22: 23350270.63 | AR22: 1241251.228 | AS22: 2507327.481 | AT22: 0 | AU22: 2557724.764 | AV22: 69749154.31 | AW22: 0 | AX22: 3952839.573 | AY22: 2661578.646 | AZ22: 1344097.216 | BA22: 0 | BB22: 8226681.421 | BC22: 19387545.88 | BD22: 6993364.764 | BE22: 2825319.365 | BF22: 70120260.16 | BG22: 8646324.852 | BH22: 0 | BI22: 24990328.61 | BJ22: 5938878.094 | BK22: 13496100.47 | BL22: 7572811.93 | BM22: 16826788.11 | BN22: 30900101.8 | BO22: 81143667.32 | BP22: 7880298.461 | BQ22: 39795507.23 | BR22: 11254169.44 | BS22: 25981054.03 | BT22: 19680648.43 | BU22: 24846818.64 | BV22: 20076229.46 | BW22: 27035989.01 | BX22: 8533234.031 | BY22: 8618566.371 | BZ22: 24373305.7 | CA22: 43958997.78 | CB22: 12431604.57 | CC22: 28699247.13 | CD22: 21739679.7 | CE22: 27446345.62 | CF22: 22176647.26 | CG22: 29864551.64 | CH22: 9425999.112 | CI22: 9520259.103 | CJ22: 26923292.74
A23: 14 | B23: =NPV(#REF!,$G23:$CJ23) ->  | C23: =NPV(#REF!,$G$6:$CJ$6) ->  | G23: 0 | H23: 0 | I23: 0 | J23: 0 | K23: 0 | L23: 0 | M23: 0 | N23: 0 | O23: 0 | P23: 0 | Q23: 0 | R23: 0 | S23: 0 | T23: 0 | U23: 0 | V23: 10534349.2 | W23: 3584440.81 | X23: 0 | Y23: 933751.5522 | Z23: 2859483.197 | AA23: 972974.0369 | AB23: 0 | AC23: 0 | AD23: 0 | AE23: 1056430.865 | AF23: 1078390.464 | AG23: 0 | AH23: 0 | AI23: 0 | AJ23: 0 | AK23: 8104162.018 | AL23: 4677259.222 | AM23: 0 | AN23: 0 | AO23: 0 | AP23: 3650381.027 | AQ23: 0 | AR23: 0 | AS23: 0 | AT23: 45583213.61 | AU23: 8952036.673 | AV23: 71040805.31 | AW23: 27395917.83 | AX23: 5270452.764 | AY23: 2661578.646 | AZ23: 0 | BA23: 16290458.26 | BB23: 5484454.28 | BC23: 12463422.35 | BD23: 9790710.67 | BE23: 2825319.365 | BF23: 5707145.117 | BG23: 17292649.7 | BH23: 26198364.3 | BI23: 22050289.95 | BJ23: 14847195.24 | BK23: 11996533.75 | BL23: 10601936.7 | BM23: 3059416.02 | BN23: 3090010.18 | BO23: 1560455.141 | BP23: 28369074.46 | BQ23: 4775460.868 | BR23: 1607738.492 | BS23: 9742895.262 | BT23: 21320702.46 | BU23: 56319455.59 | BV23: 40152458.93 | BW23: 18587242.44 | BX23: 103392723.1 | BY23: 60329964.6 | BZ23: 63434633.97 | CA23: 5275079.733 | CB23: 1775943.51 | CC23: 10762217.67 | CD23: 23551319.67 | CE23: 62211716.73 | CF23: 44353294.52 | CG23: 20531879.25 | CH23: 114209889.5 | CI23: 66641813.72 | CJ23: 70071300.2
A24: 15 | B24: =NPV(#REF!,$G24:$CJ24) ->  | C24: =NPV(#REF!,$G$6:$CJ$6) ->  | G24: 0 | H24: 0 | I24: 0 | J24: 0 | K24: 0 | L24: 0 | M24: 0 | N24: 0 | O24: 0 | P24: 0 | Q24: 0 | R24: 0 | S24: 0 | T24: 0 | U24: 0 | V24: 0 | W24: 0 | X24: 0 | Y24: 0 | Z24: 0 | AA24: 0 | AB24: 0 | AC24: 0 | AD24: 5174592.184 | AE24: 0 | AF24: 0 | AG24: 2201613.055 | AH24: 0 | AI24: 0 | AJ24: 1146274.684 | AK24: 10419636.88 | AL24: 2338629.611 | AM24: 5905039.768 | AN24: 10735362.3 | AO24: 7228477.28 | AP24: 14601524.11 | AQ24: 1228961.612 | AR24: 0 | AS24: 0 | AT24: 1266200.378 | AU24: 11509761.44 | AV24: 0 | AW24: 1304567.516 | AX24: 0 | AY24: 25284997.13 | AZ24: 4032291.648 | BA24: 19005534.64 | BB24: 8226681.421 | BC24: 0 | BD24: 2797345.906 | BE24: 7063298.412 | BF24: 22828580.47 | BG24: 0 | BH24: 17465576.2 | BI24: 7350096.651 | BJ24: 10393036.66 | BK24: 14995667.19 | BL24: 7572811.93 | BM24: 3059416.02 | BN24: 23175076.35 | BO24: 22073565.93 | BP24: 17336656.61 | BQ24: 11142742.02 | BR24: 0 | BS24: 9742895.262 | BT24: 14760486.32 | BU24: 13492807.57 | BV24: 0 | BW24: 21966741.07 | BX24: 0 | BY24: 38172655.5 | BZ24: 12186652.85 | CA24: 12308519.38 | CB24: 0 | CC24: 10762217.67 | CD24: 16304759.77 | CE24: 14904453.78 | CF24: 0 | CG24: 24264948.21 | CH24: 0 | CI24: 42166359.86 | CJ24: 13461646.37
A25: 16 | B25: =NPV(#REF!,$G25:$CJ25) ->  | C25: =NPV(#REF!,$G$6:$CJ$6) ->  | G25: 0 | H25: 0 | I25: 0 | J25: 0 | K25: 0 | L25: 0 | M25: 0 | N25: 0 | O25: 0 | P25: 0 | Q25: 0 | R25: 0 | S25: 0 | T25: 0 | U25: 0 | V25: 0 | W25: 0 | X25: 2744211.842 | Y25: 0 | Z25: 3812644.263 | AA25: 0 | AB25: 993198.8523 | AC25: 2027688.145 | AD25: 2069836.874 | AE25: 0 | AF25: 0 | AG25: 0 | AH25: 2247377.089 | AI25: 0 | AJ25: 0 | AK25: 10419636.88 | AL25: 0 | AM25: 0 | AN25: 3578454.099 | AO25: 7228477.28 | AP25: 12167936.76 | AQ25: 0 | AR25: 1241251.228 | AS25: 1253663.741 | AT25: 13928204.16 | AU25: 7673174.291 | AV25: 0 | AW25: 1304567.516 | AX25: 2635226.382 | AY25: 14638682.55 | AZ25: 0 | BA25: 5430152.753 | BB25: 2742227.14 | BC25: 0 | BD25: 6993364.764 | BE25: 33903832.38 | BF25: 0 | BG25: 5764216.568 | BH25: 17465576.2 | BI25: 14700193.3 | BJ25: 20786073.33 | BK25: 2999133.438 | BL25: 6058249.544 | BM25: 116064404.8 | BN25: 13905045.81 | BO25: 205585495.8 | BP25: 128119766.9 | BQ25: 7959101.446 | BR25: 4823215.476 | BS25: 27604869.91 | BT25: 16400540.36 | BU25: 9938727.457 | BV25: 0 | BW25: 43933482.14 | BX25: 8533234.031 | BY25: 248313804.5 | BZ25: 13927603.26 | CA25: 8791799.556 | CB25: 5327830.531 | CC25: 30492950.07 | CD25: 18116399.75 | CE25: 10978538.25 | CF25: 0 | CG25: 48529896.42 | CH25: 9425999.112 | CI25: 274292922.5 | CJ25: 15384738.71
A26: 17 | B26: =NPV(#REF!,$G26:$CJ26) ->  | C26: =NPV(#REF!,$G$6:$CJ$6) ->  | G26: 0 | H26: 0 | I26: 0 | J26: 0 | K26: 0 | L26: 0 | M26: 0 | N26: 0 | O26: 0 | P26: 0 | Q26: 0 | R26: 0 | S26: 1650637.046 | T26: 1684948.167 | U26: 0 | V26: 0 | W26: 3584440.81 | X26: 2744211.842 | Y26: 0 | Z26: 953161.0657 | AA26: 0 | AB26: 0 | AC26: 4055376.29 | AD26: 0 | AE26: 5282154.326 | AF26: 1078390.464 | AG26: 0 | AH26: 0 | AI26: 0 | AJ26: 0 | AK26: 0 | AL26: 0 | AM26: 7086047.721 | AN26: 16699452.46 | AO26: 0 | AP26: 1216793.676 | AQ26: 0 | AR26: 0 | AS26: 5014654.963 | AT26: 10129603.02 | AU26: 2557724.764 | AV26: 1291651.006 | AW26: 10436540.13 | AX26: 2635226.382 | AY26: 7984735.937 | AZ26: 8064583.296 | BA26: 16290458.26 | BB26: 10968908.56 | BC26: 19387545.88 | BD26: 2797345.906 | BE26: 21189895.24 | BF26: 4280358.838 | BG26: 17292649.7 | BH26: 8732788.101 | BI26: 63638885.17 | BJ26: 8908317.141 | BK26: 13496100.47 | BL26: 46951433.97 | BM26: 7648540.049 | BN26: 72840183.74 | BO26: 17165006.55 | BP26: 18912716.31 | BQ26: 28652765.21 | BR26: 4823215.476 | BS26: 19485790.52 | BT26: 91843026 | BU26: 123059980.6 | BV26: 0 | BW26: 63012761.58 | BX26: 22186408.48 | BY26: 27579412.39 | BZ26: 31337107.33 | CA26: 31650478.4 | CB26: 5327830.531 | CC26: 21524435.34 | CD26: 101451838.6 | CE26: 135934777.3 | CF26: 0 | CG26: 69605290.63 | CH26: 24507597.69 | CI26: 30464829.13 | CJ26: 34615662.1
A27: 18 | B27: =NPV(#REF!,$G27:$CJ27) ->  | C27: =NPV(#REF!,$G$6:$CJ$6) ->  | G27: 0 | H27: 0 | I27: 0 | J27: 0 | K27: 0 | L27: 0 | M27: 0 | N27: 0 | O27: 0 | P27: 0 | Q27: 0 | R27: 0 | S27: 4951911.138 | T27: 0 | U27: 0 | V27: 1755724.867 | W27: 3584440.81 | X27: 0 | Y27: 3735006.209 | Z27: 0 | AA27: 972974.0369 | AB27: 0 | AC27: 1013844.073 | AD27: 0 | AE27: 1056430.865 | AF27: 3235171.391 | AG27: 2201613.055 | AH27: 0 | AI27: 7944478.01 | AJ27: 0 | AK27: 0 | AL27: 1169314.805 | AM27: 0 | AN27: 17892270.5 | AO27: 0 | AP27: 0 | AQ27: 0 | AR27: 2482502.457 | AS27: 1253663.741 | AT27: 0 | AU27: 0 | AV27: 2583302.011 | AW27: 6522837.579 | AX27: 5270452.764 | AY27: 19961839.84 | AZ27: 1344097.216 | BA27: 2715076.376 | BB27: 1371113.57 | BC27: 9693772.941 | BD27: 2797345.906 | BE27: 7063298.412 | BF27: 31389298.14 | BG27: 8646324.852 | BH27: 1455464.683 | BI27: 7350096.651 | BJ27: 5938878.094 | BK27: 52484835.16 | BL27: 15145623.86 | BM27: 7648540.049 | BN27: 179700085.9 | BO27: 224992539.3 | BP27: 20488776 | BQ27: 305056228.2 | BR27: 14469646.43 | BS27: 9742895.262 | BT27: 13120432.29 | BU27: 21533909.49 | BV27: 16730191.22 | BW27: 16897493.13 | BX27: 5119940.419 | BY27: 17237132.74 | BZ27: 26114256.11 | CA27: 336971859.2 | CB27: 15983491.59 | CC27: 10762217.67 | CD27: 14493119.8 | CE27: 23786832.87 | CF27: 18480539.38 | CG27: 18665344.78 | CH27: 5655599.467 | CI27: 19040518.21 | CJ27: 28846385.08
A28: 19 | B28: =NPV(#REF!,$G28:$CJ28) ->  | C28: =NPV(#REF!,$G$6:$CJ$6) ->  | G28: 0 | H28: 0 | I28: 0 | J28: 0 | K28: 0 | L28: 0 | M28: 0 | N28: 0 | O28: 0 | P28: 0 | Q28: 0 | R28: 0 | S28: 825318.523 | T28: 0 | U28: 5159917.495 | V28: 0 | W28: 0 | X28: 0 | Y28: 0 | Z28: 953161.0657 | AA28: 0 | AB28: 0 | AC28: 0 | AD28: 0 | AE28: 0 | AF28: 1078390.464 | AG28: 0 | AH28: 0 | AI28: 3404776.29 | AJ28: 0 | AK28: 6946424.587 | AL28: 0 | AM28: 0 | AN28: 4771272.132 | AO28: 2409492.427 | AP28: 3650381.027 | AQ28: 1228961.612 | AR28: 1241251.228 | AS28: 5014654.963 | AT28: 8863402.647 | AU28: 0 | AV28: 18083114.08 | AW28: 5218270.063 | AX28: 6588065.955 | AY28: 9315525.26 | AZ28: 1344097.216 | BA28: 0 | BB28: 0 | BC28: 22157195.29 | BD28: 2797345.906 | BE28: 2825319.365 | BF28: 15694649.07 | BG28: 4323162.426 | BH28: 5821858.734 | BI28: 4410057.991 | BJ28: 5938878.094 | BK28: 11996533.75 | BL28: 18174748.63 | BM28: 0 | BN28: 37080122.16 | BO28: 23634021.07 | BP28: 66194507.07 | BQ28: 7959101.446 | BR28: 45016677.78 | BS28: 42219212.8 | BT28: 223348987.7 | BU28: 21533909.49 | BV28: 11711133.85 | BW28: 30415487.64 | BX28: 152669705.8 | BY28: 76596274.48 | BZ28: 1740950.407 | CA28: 8791799.556 | CB28: 49726418.29 | CC28: 46636276.58 | CD28: 246716233.6 | CE28: 23786832.87 | CF28: 12936377.57 | CG28: 33597620.6 | CH28: 168642334.9 | CI28: 84609939.51 | CJ28: 1923092.339
A29: 20 | B29: =NPV(#REF!,$G29:$CJ29) ->  | C29: =NPV(#REF!,$G$6:$CJ$6) ->  | G29: 0 | H29: 0 | I29: 0 | J29: 0 | K29: 0 | L29: 0 | M29: 0 | N29: 0 | O29: 0 | P29: 0 | Q29: 0 | R29: 0 | S29: 0 | T29: 0 | U29: 0 | V29: 2633587.3 | W29: 0 | X29: 914737.2806 | Y29: 0 | Z29: 953161.0657 | AA29: 2918922.111 | AB29: 0 | AC29: 1013844.073 | AD29: 0 | AE29: 1056430.865 | AF29: 0 | AG29: 0 | AH29: 0 | AI29: 0 | AJ29: 12609021.53 | AK29: 0 | AL29: 22216981.3 | AM29: 15353103.4 | AN29: 17892270.5 | AO29: 0 | AP29: 10951143.08 | AQ29: 1228961.612 | AR29: 4965004.914 | AS29: 7521982.444 | AT29: 1266200.378 | AU29: 3836587.146 | AV29: 0 | AW29: 3913702.547 | AX29: 1317613.191 | AY29: 23954207.81 | AZ29: 18817361.02 | BA29: 0 | BB29: 1371113.57 | BC29: 11078597.65 | BD29: 13986729.53 | BE29: 15539256.51 | BF29: 2853572.558 | BG29: 0 | BH29: 24742899.62 | BI29: 4410057.991 | BJ29: 14847195.24 | BK29: 8997400.313 | BL29: 6058249.544 | BM29: 6118832.039 | BN29: 9270030.54 | BO29: 7802275.704 | BP29: 19142182.2 | BQ29: 3183640.578 | BR29: 180331597.9 | BS29: 19485790.52 | BT29: 13120432.29 | BU29: 31472636.95 | BV29: 120245853.7 | BW29: 3379498.626 | BX29: 60478074.27 | BY29: 1723713.274 | BZ29: 53969462.62 | CA29: 3516719.822 | CB29: 199198272.9 | CC29: 21524435.34 | CD29: 14493119.8 | CE29: 34765371.12 | CF29: 132826230.5 | CG29: 3733068.955 | CH29: 66805418.94 | CI29: 1904051.821 | CJ29: 59615862.5
A30: 21 | B30: =NPV(#REF!,$G30:$CJ30) ->  | C30: =NPV(#REF!,$G$6:$CJ$6) ->  | G30: 0 | H30: 0 | I30: 0 | J30: 0 | K30: 0 | L30: 0 | M30: 0 | N30: 0 | O30: 0 | P30: 0 | Q30: 0 | R30: 0 | S30: 0 | T30: 1684948.167 | U30: 0 | V30: 1755724.867 | W30: 3584440.81 | X30: 0 | Y30: 933751.5522 | Z30: 0 | AA30: 972974.0369 | AB30: 993198.8523 | AC30: 1013844.073 | AD30: 0 | AE30: 0 | AF30: 5391952.318 | AG30: 3302419.582 | AH30: 1123688.545 | AI30: 1134925.43 | AJ30: 0 | AK30: 2315474.862 | AL30: 0 | AM30: 10629071.58 | AN30: 4771272.132 | AO30: 3614238.64 | AP30: 12167936.76 | AQ30: 0 | AR30: 1241251.228 | AS30: 8775646.185 | AT30: 1266200.378 | AU30: 6394311.909 | AV30: 11624859.05 | AW30: 5218270.063 | AX30: 1317613.191 | AY30: 21292629.17 | AZ30: 9408680.512 | BA30: 1357538.188 | BB30: 1371113.57 | BC30: 66673208.98 | BD30: 0 | BE30: 0 | BF30: 0 | BG30: 7205270.71 | BH30: 21831970.25 | BI30: 19110251.29 | BJ30: 5938878.094 | BK30: 0 | BL30: 16660186.25 | BM30: 12237664.08 | BN30: 12360040.72 | BO30: 15604551.41 | BP30: 11032417.85 | BQ30: 67088212.7 | BR30: 11254169.44 | BS30: 22733422.28 | BT30: 36081188.79 | BU30: 29816182.37 | BV30: 26768305.95 | BW30: 27035989.01 | BX30: 139729263.4 | BY30: 81014523.89 | BZ30: 15668553.66 | CA30: 74107124.1 | CB30: 12431604.57 | CC30: 25111841.23 | CD30: 39856079.45 | CE30: 32935614.74 | CF30: 29568863.01 | CG30: 29864551.64 | CH30: 154348035.9 | CI30: 89490435.57 | CJ30: 17307831.05
A31: 22 | B31: =NPV(#REF!,$G31:$CJ31) ->  | C31: =NPV(#REF!,$G$6:$CJ$6) ->  | G31: 0 | H31: 0 | I31: 0 | J31: 0 | K31: 0 | L31: 0 | M31: 0 | N31: 0 | O31: 0 | P31: 0 | Q31: 0 | R31: 0 | S31: 4951911.138 | T31: 0 | U31: 3439944.997 | V31: 877862.4334 | W31: 0 | X31: 0 | Y31: 1867503.104 | Z31: 3812644.263 | AA31: 972974.0369 | AB31: 993198.8523 | AC31: 0 | AD31: 7244429.057 | AE31: 0 | AF31: 1078390.464 | AG31: 0 | AH31: 0 | AI31: 0 | AJ31: 2292549.369 | AK31: 0 | AL31: 8185203.638 | AM31: 16534111.35 | AN31: 17892270.5 | AO31: 0 | AP31: 6083968.378 | AQ31: 0 | AR31: 0 | AS31: 0 | AT31: 0 | AU31: 0 | AV31: 0 | AW31: 0 | AX31: 6588065.955 | AY31: 60079275.36 | AZ31: 9408680.512 | BA31: 39368607.46 | BB31: 98919803.88 | BC31: 18002721.18 | BD31: 18182748.39 | BE31: 5650638.73 | BF31: 15694649.07 | BG31: 15851595.56 | BH31: 5821858.734 | BI31: 26460347.94 | BJ31: 5938878.094 | BK31: 16495233.91 | BL31: 6058249.544 | BM31: 7648540.049 | BN31: 12360040.72 | BO31: 9362730.845 | BP31: 7880298.461 | BQ31: 49346428.96 | BR31: 9646430.952 | BS31: 21109606.4 | BT31: 41001350.89 | BU31: 53006546.44 | BV31: 5019057.366 | BW31: 27035989.01 | BX31: 158038124.9 | BY31: 13789706.19 | BZ31: 226863860.4 | CA31: 54509157.24 | CB31: 10655661.06 | CC31: 23318138.29 | CD31: 45290999.37 | CE31: 58552203.98 | CF31: 5544161.815 | CG31: 29864551.64 | CH31: 174572409.4 | CI31: 15232414.57 | CJ31: 250598839.7
A32: 23 | B32: =NPV(#REF!,$G32:$CJ32) ->  | C32: =NPV(#REF!,$G$6:$CJ$6) ->  | G32: 0 | H32: 0 | I32: 0 | J32: 0 | K32: 0 | L32: 0 | M32: 0 | N32: 0 | O32: 0 | P32: 0 | Q32: 0 | R32: 0 | S32: 0 | T32: 0 | U32: 0 | V32: 0 | W32: 0 | X32: 6403160.965 | Y32: 0 | Z32: 0 | AA32: 0 | AB32: 993198.8523 | AC32: 0 | AD32: 0 | AE32: 0 | AF32: 0 | AG32: 0 | AH32: 1123688.545 | AI32: 0 | AJ32: 10316472.16 | AK32: 1157737.431 | AL32: 1169314.805 | AM32: 0 | AN32: 9542544.265 | AO32: 21685431.84 | AP32: 0 | AQ32: 0 | AR32: 0 | AS32: 2507327.481 | AT32: 2532400.756 | AU32: 6394311.909 | AV32: 0 | AW32: 1304567.516 | AX32: 1317613.191 | AY32: 2661578.646 | AZ32: 5376388.864 | BA32: 21720611.01 | BB32: 10968908.56 | BC32: 4154474.117 | BD32: 11189383.62 | BE32: 9888617.777 | BF32: 38730962.02 | BG32: 7205270.71 | BH32: 0 | BI32: 16598266.6 | BJ32: 23755512.38 | BK32: 174443868.8 | BL32: 7572811.93 | BM32: 21415912.14 | BN32: 4635015.27 | BO32: 21846371.97 | BP32: 18912716.31 | BQ32: 25469124.63 | BR32: 0 | BS32: 17861974.65 | BT32: 49201621.07 | BU32: 16564545.76 | BV32: 53780194.57 | BW32: 73643294.46 | BX32: 56319344.61 | BY32: 87909376.99 | BZ32: 29849630.02 | CA32: 28133758.58 | CB32: 0 | CC32: 19730732.4 | CD32: 54349199.24 | CE32: 18297563.75 | CF32: 59406792.83 | CG32: 81348012.44 | CH32: 62211594.14 | CI32: 97106642.85 | CJ32: 32972561.76
A33: 24 | B33: =NPV(#REF!,$G33:$CJ33) ->  | C33: =NPV(#REF!,$G$6:$CJ$6) ->  | G33: 0 | H33: 0 | I33: 0 | J33: 0 | K33: 0 | L33: 0 | M33: 0 | N33: 0 | O33: 0 | P33: 0 | Q33: 0 | R33: 0 | S33: 0 | T33: 0 | U33: 859986.2492 | V33: 0 | W33: 896110.2025 | X33: 9147372.806 | Y33: 933751.5522 | Z33: 0 | AA33: 1945948.074 | AB33: 0 | AC33: 0 | AD33: 0 | AE33: 0 | AF33: 4313561.854 | AG33: 4403226.109 | AH33: 0 | AI33: 11349254.3 | AJ33: 0 | AK33: 2315474.862 | AL33: 22216981.3 | AM33: 7086047.721 | AN33: 9542544.265 | AO33: 1204746.213 | AP33: 12167936.76 | AQ33: 1228961.612 | AR33: 0 | AS33: 7521982.444 | AT33: 0 | AU33: 0 | AV33: 5166604.023 | AW33: 2609135.032 | AX33: 46116461.68 | AY33: 13307893.23 | AZ33: 0 | BA33: 14932920.07 | BB33: 13711135.7 | BC33: 22157195.29 | BD33: 6993364.764 | BE33: 33903832.38 | BF33: 19975007.91 | BG33: 7205270.71 | BH33: 5821858.734 | BI33: 0 | BJ33: 0 | BK33: 5998266.875 | BL33: 6058249.544 | BM33: 7648540.049 | BN33: 6180020.36 | BO33: 4681365.423 | BP33: 9456358.154 | BQ33: 66856452.15 | BR33: 28939292.86 | BS33: 30852501.66 | BT33: 6560216.143 | BU33: 8282272.881 | BV33: 43498497.17 | BW33: 18587242.44 | BX33: 17066468.06 | BY33: 18960846.02 | BZ33: 29849630.02 | CA33: 73851116.27 | CB33: 31966983.18 | CC33: 34080355.96 | CD33: 7246559.899 | CE33: 9148781.873 | CF33: 48049402.4 | CG33: 20531879.25 | CH33: 18851998.22 | CI33: 20944570.03 | CJ33: 32972561.76
A34: 25 | B34: =NPV(#REF!,$G34:$CJ34) ->  | C34: =NPV(#REF!,$G$6:$CJ$6) ->  | G34: 0 | H34: 0 | I34: 0 | J34: 0 | K34: 0 | L34: 0 | M34: 0 | N34: 0 | O34: 0 | P34: 0 | Q34: 0 | R34: 0 | S34: 4126592.615 | T34: 0 | U34: 5159917.495 | V34: 9656486.767 | W34: 0 | X34: 2744211.842 | Y34: 0 | Z34: 0 | AA34: 0 | AB34: 0 | AC34: 3041532.218 | AD34: 2069836.874 | AE34: 2112861.73 | AF34: 0 | AG34: 0 | AH34: 25844836.53 | AI34: 0 | AJ34: 3438824.053 | AK34: 0 | AL34: 0 | AM34: 0 | AN34: 0 | AO34: 0 | AP34: 0 | AQ34: 0 | AR34: 0 | AS34: 6268318.704 | AT34: 3798601.134 | AU34: 11509761.44 | AV34: 3874953.017 | AW34: 18263945.22 | AX34: 0 | AY34: 7984735.937 | AZ34: 5376388.864 | BA34: 10860305.51 | BB34: 4113340.71 | BC34: 0 | BD34: 16784075.43 | BE34: 15539256.51 | BF34: 12841076.51 | BG34: 5764216.568 | BH34: 26198364.3 | BI34: 5880077.321 | BJ34: 0 | BK34: 20993934.06 | BL34: 21203873.4 | BM34: 0 | BN34: 21630071.26 | BO34: 28088192.54 | BP34: 20488776 | BQ34: 0 | BR34: 3215476.984 | BS34: 6495263.508 | BT34: 32801080.72 | BU34: 9938727.457 | BV34: 18403210.34 | BW34: 69525740.34 | BX34: 23893055.29 | BY34: 18960846.02 | BZ34: 24626778.8 | CA34: 0 | CB34: 3551887.02 | CC34: 7174811.781 | CD34: 36232799.5 | CE34: 10978538.25 | CF34: 20328593.32 | CG34: 76799671.06 | CH34: 26392797.51 | CI34: 20944570.03 | CJ34: 27203284.74
A35: 26 | B35: =NPV(#REF!,$G35:$CJ35) ->  | C35: =NPV(#REF!,$G$6:$CJ$6) ->  | G35: 0 | H35: 0 | I35: 0 | J35: 0 | K35: 0 | L35: 0 | M35: 0 | N35: 0 | O35: 0 | P35: 0 | Q35: 0 | R35: 0 | S35: 0 | T35: 0 | U35: 0 | V35: 0 | W35: 0 | X35: 0 | Y35: 1867503.104 | Z35: 3812644.263 | AA35: 0 | AB35: 0 | AC35: 4055376.29 | AD35: 2069836.874 | AE35: 23241479.03 | AF35: 0 | AG35: 3302419.582 | AH35: 0 | AI35: 1134925.43 | AJ35: 1146274.684 | AK35: 0 | AL35: 5846574.027 | AM35: 2362015.907 | AN35: 2385636.066 | AO35: 0 | AP35: 0 | AQ35: 0 | AR35: 0 | AS35: 0 | AT35: 0 | AU35: 11509761.44 | AV35: 3874953.017 | AW35: 27395917.83 | AX35: 1317613.191 | AY35: 9315525.26 | AZ35: 1344097.216 | BA35: 14932920.07 | BB35: 6855567.851 | BC35: 19387545.88 | BD35: 16784075.43 | BE35: 7063298.412 | BF35: 41792267.06 | BG35: 5764216.568 | BH35: 8732788.101 | BI35: 14700193.3 | BJ35: 17816634.28 | BK35: 14995667.19 | BL35: 10601936.7 | BM35: 21415912.14 | BN35: 13905045.81 | BO35: 17165006.55 | BP35: 28369074.46 | BQ35: 25469124.63 | BR35: 12861907.94 | BS35: 11366711.14 | BT35: 6560216.143 | BU35: 9938727.457 | BV35: 60715853.73 | BW35: 20276991.76 | BX35: 15359821.26 | BY35: 24131985.84 | BZ35: 26114256.11 | CA35: 28133758.58 | CB35: 14207548.08 | CC35: 12555920.62 | CD35: 7246559.899 | CE35: 10978538.25 | CF35: 67068075.39 | CG35: 22398413.73 | CH35: 16966798.4 | CI35: 26656725.49 | CJ35: 28846385.08
A36: 27 | B36: =NPV(#REF!,$G36:$CJ36) ->  | C36: =NPV(#REF!,$G$6:$CJ$6) ->  | G36: 0 | H36: 0 | I36: 0 | J36: 0 | K36: 0 | L36: 0 | M36: 0 | N36: 0 | O36: 0 | P36: 0 | Q36: 0 | R36: 0 | S36: 825318.523 | T36: 0 | U36: 0 | V36: 0 | W36: 0 | X36: 2744211.842 | Y36: 0 | Z36: 0 | AA36: 0 | AB36: 0 | AC36: 1013844.073 | AD36: 1034918.437 | AE36: 0 | AF36: 0 | AG36: 2201613.055 | AH36: 0 | AI36: 7944478.01 | AJ36: 6877648.106 | AK36: 0 | AL36: 2338629.611 | AM36: 8267055.675 | AN36: 0 | AO36: 1204746.213 | AP36: 0 | AQ36: 0 | AR36: 13653763.51 | AS36: 1253663.741 | AT36: 45583213.61 | AU36: 1278862.382 | AV36: 69749154.31 | AW36: 3913702.547 | AX36: 5270452.764 | AY36: 6653946.614 | AZ36: 1344097.216 | BA36: 1357538.188 | BB36: 10968908.56 | BC36: 12463422.35 | BD36: 13986729.53 | BE36: 53681067.93 | BF36: 5707145.117 | BG36: 10087378.99 | BH36: 2910929.367 | BI36: 5880077.321 | BJ36: 11877756.19 | BK36: 14995667.19 | BL36: 6058249.544 | BM36: 13767372.09 | BN36: 183015040.6 | BO36: 0 | BP36: 15760596.92 | BQ36: 15918202.89 | BR36: 180331597.9 | BS36: 160552469.6 | BT36: 19680648.43 | BU36: 4969363.728 | BV36: 16730191.22 | BW36: 3379498.626 | BX36: 18773114.87 | BY36: 37921692.03 | BZ36: 10445702.44 | CA36: 17583599.11 | CB36: 199198272.9 | CC36: 177349810.2 | CD36: 21739679.7 | CE36: 5489269.124 | CF36: 18480539.38 | CG36: 3733068.955 | CH36: 20737198.05 | CI36: 41889140.05 | CJ36: 11538554.03
A37: 28 | B37: =NPV(#REF!,$G37:$CJ37) ->  | C37: =NPV(#REF!,$G$6:$CJ$6) ->  | G37: 0 | H37: 0 | I37: 0 | J37: 0 | K37: 0 | L37: 0 | M37: 0 | N37: 0 | O37: 0 | P37: 0 | Q37: 0 | R37: 0 | S37: 0 | T37: 0 | U37: 3439944.997 | V37: 3511449.734 | W37: 0 | X37: 9147372.806 | Y37: 0 | Z37: 0 | AA37: 1945948.074 | AB37: 1986397.705 | AC37: 5069220.363 | AD37: 3104755.31 | AE37: 0 | AF37: 1078390.464 | AG37: 15411291.38 | AH37: 0 | AI37: 6809552.58 | AJ37: 0 | AK37: 0 | AL37: 8185203.638 | AM37: 0 | AN37: 1192818.033 | AO37: 0 | AP37: 0 | AQ37: 0 | AR37: 0 | AS37: 1253663.741 | AT37: 6331001.891 | AU37: 0 | AV37: 71040805.31 | AW37: 3913702.547 | AX37: 0 | AY37: 6653946.614 | AZ37: 18817361.02 | BA37: 4072614.565 | BB37: 8226681.421 | BC37: 4154474.117 | BD37: 18182748.39 | BE37: 15539256.51 | BF37: 2853572.558 | BG37: 8646324.852 | BH37: 8732788.101 | BI37: 0 | BJ37: 7423597.618 | BK37: 7497833.594 | BL37: 10601936.7 | BM37: 10707956.07 | BN37: 1545005.09 | BO37: 12483641.13 | BP37: 7880298.461 | BQ37: 19101843.47 | BR37: 48232154.76 | BS37: 74695530.34 | BT37: 9840324.215 | BU37: 54663001.01 | BV37: 0 | BW37: 18587242.44 | BX37: 54612697.8 | BY37: 24131985.84 | BZ37: 63434633.97 | CA37: 21100318.93 | CB37: 53278305.31 | CC37: 82510335.48 | CD37: 10869839.85 | CE37: 60381960.36 | CF37: 0 | CG37: 20531879.25 | CH37: 60326394.32 | CI37: 26656725.49 | CJ37: 70071300.2
A38: 29 | B38: =NPV(#REF!,$G38:$CJ38) ->  | C38: =NPV(#REF!,$G$6:$CJ$6) ->  | G38: 0 | H38: 0 | I38: 0 | J38: 0 | K38: 0 | L38: 0 | M38: 0 | N38: 0 | O38: 0 | P38: 0 | Q38: 0 | R38: 0 | S38: 0 | T38: 0 | U38: 0 | V38: 877862.4334 | W38: 0 | X38: 0 | Y38: 0 | Z38: 0 | AA38: 0 | AB38: 1986397.705 | AC38: 0 | AD38: 0 | AE38: 11620739.52 | AF38: 5391952.318 | AG38: 0 | AH38: 0 | AI38: 2269850.86 | AJ38: 0 | AK38: 0 | AL38: 5846574.027 | AM38: 8267055.675 | AN38: 0 | AO38: 4818984.854 | AP38: 4867174.702 | AQ38: 2457923.225 | AR38: 9930009.827 | AS38: 0 | AT38: 2532400.756 | AU38: 3836587.146 | AV38: 0 | AW38: 5218270.063 | AX38: 0 | AY38: 1330789.323 | AZ38: 96970692.95 | BA38: 102210664.8 | BB38: 5484454.28 | BC38: 18002721.18 | BD38: 43358861.54 | BE38: 24015214.6 | BF38: 39950015.82 | BG38: 0 | BH38: 4366394.05 | BI38: 151440160.6 | BJ38: 19301353.81 | BK38: 11996533.75 | BL38: 7572811.93 | BM38: 0 | BN38: 35760061.58 | BO38: 64887436.6 | BP38: 18912716.31 | BQ38: 11142742.02 | BR38: 51447631.75 | BS38: 42219212.8 | BT38: 34441134.75 | BU38: 13251636.61 | BV38: 6692076.488 | BW38: 42243732.83 | BX38: 25599702.09 | BY38: 68948530.97 | BZ38: 52228512.21 | CA38: 12308519.38 | CB38: 56830192.33 | CC38: 46636276.58 | CD38: 38044439.47 | CE38: 14638051 | CF38: 7392215.753 | CG38: 46663361.94 | CH38: 28277997.34 | CI38: 76162072.83 | CJ38: 57692770.17
A39: 30 | B39: =NPV(#REF!,$G39:$CJ39) ->  | C39: =NPV(#REF!,$G$6:$CJ$6) ->  | G39: 0 | H39: 0 | I39: 0 | J39: 0 | K39: 0 | L39: 0 | M39: 0 | N39: 0 | O39: 0 | P39: 0 | Q39: 0 | R39: 0 | S39: 0 | T39: 0 | U39: 0 | V39: 0 | W39: 12545542.84 | X39: 0 | Y39: 0 | Z39: 0 | AA39: 0 | AB39: 993198.8523 | AC39: 4055376.29 | AD39: 0 | AE39: 0 | AF39: 1078390.464 | AG39: 0 | AH39: 0 | AI39: 0 | AJ39: 0 | AK39: 10419636.88 | AL39: 0 | AM39: 0 | AN39: 0 | AO39: 25299670.48 | AP39: 7300762.053 | AQ39: 3686884.837 | AR39: 0 | AS39: 5014654.963 | AT39: 0 | AU39: 12788623.82 | AV39: 0 | AW39: 10436540.13 | AX39: 17128971.48 | AY39: 21292629.17 | AZ39: 9408680.512 | BA39: 8145229.129 | BB39: 2742227.14 | BC39: 2769649.412 | BD39: 9790710.67 | BE39: 0 | BF39: 0 | BG39: 18733703.85 | BH39: 4366394.05 | BI39: 1470019.33 | BJ39: 19301353.81 | BK39: 2999133.438 | BL39: 0 | BM39: 10707956.07 | BN39: 10815035.63 | BO39: 12483641.13 | BP39: 30174600.05 | BQ39: 22285484.05 | BR39: 14469646.43 | BS39: 42219212.8 | BT39: 13120432.29 | BU39: 4969363.728 | BV39: 16730191.22 | BW39: 3379498.626 | BX39: 5119940.419 | BY39: 5171139.823 | BZ39: 198501707.7 | CA39: 24617038.76 | CB39: 15983491.59 | CC39: 46636276.58 | CD39: 14493119.8 | CE39: 5489269.124 | CF39: 18480539.38 | CG39: 3733068.955 | CH39: 5655599.467 | CI39: 5712155.462 | CJ39: 219269378.3
A40: 31 | B40: =NPV(#REF!,$G40:$CJ40) ->  | C40: =NPV(#REF!,$G$6:$CJ$6) ->  | G40: 0 | H40: 0 | I40: 0 | J40: 0 | K40: 0 | L40: 0 | M40: 0 | N40: 0 | O40: 0 | P40: 0 | Q40: 0 | R40: 0 | S40: 0 | T40: 2527422.25 | U40: 0 | V40: 1755724.867 | W40: 1792220.405 | X40: 6403160.965 | Y40: 933751.5522 | Z40: 3812644.263 | AA40: 0 | AB40: 0 | AC40: 0 | AD40: 0 | AE40: 1056430.865 | AF40: 0 | AG40: 5504032.636 | AH40: 1123688.545 | AI40: 0 | AJ40: 0 | AK40: 2315474.862 | AL40: 0 | AM40: 0 | AN40: 16699452.46 | AO40: 1204746.213 | AP40: 0 | AQ40: 2457923.225 | AR40: 1241251.228 | AS40: 6268318.704 | AT40: 13928204.16 | AU40: 2557724.764 | AV40: 69749154.31 | AW40: 3913702.547 | AX40: 5270452.764 | AY40: 1330789.323 | AZ40: 1344097.216 | BA40: 14932920.07 | BB40: 12340022.13 | BC40: 1384824.706 | BD40: 6993364.764 | BE40: 0 | BF40: 4280358.838 | BG40: 15851595.56 | BH40: 1455464.683 | BI40: 7350096.651 | BJ40: 31395277.25 | BK40: 8997400.313 | BL40: 39378622.04 | BM40: 16826788.11 | BN40: 38625127.25 | BO40: 18725461.69 | BP40: 18912716.31 | BQ40: 25469124.63 | BR40: 54663108.73 | BS40: 4871447.631 | BT40: 13120432.29 | BU40: 3312909.152 | BV40: 214210566.8 | BW40: 18587242.44 | BX40: 10239880.84 | BY40: 48263971.68 | BZ40: 94011321.98 | CA40: 28133758.58 | CB40: 60382079.35 | CC40: 5381108.836 | CD40: 14493119.8 | CE40: 3659512.749 | CF40: 236621731.5 | CG40: 20531879.25 | CH40: 11311198.93 | CI40: 53313450.98 | CJ40: 103846986.3
A41: 32 | B41: =NPV(#REF!,$G41:$CJ41) ->  | C41: =NPV(#REF!,$G$6:$CJ$6) ->  | G41: 0 | H41: 0 | I41: 0 | J41: 0 | K41: 0 | L41: 0 | M41: 0 | N41: 0 | O41: 0 | P41: 0 | Q41: 0 | R41: 0 | S41: 0 | T41: 0 | U41: 0 | V41: 5394986.694 | W41: 0 | X41: 914737.2806 | Y41: 933751.5522 | Z41: 953161.0657 | AA41: 0 | AB41: 0 | AC41: 1013844.073 | AD41: 0 | AE41: 10564308.65 | AF41: 5391952.318 | AG41: 5504032.636 | AH41: 0 | AI41: 5674627.15 | AJ41: 0 | AK41: 2315474.862 | AL41: 19878351.69 | AM41: 3543023.861 | AN41: 0 | AO41: 4818984.854 | AP41: 8517555.729 | AQ41: 2457923.225 | AR41: 6206256.142 | AS41: 0 | AT41: 45583213.61 | AU41: 0 | AV41: 0 | AW41: 2609135.032 | AX41: 0 | AY41: 6653946.614 | AZ41: 13440972.16 | BA41: 0 | BB41: 5484454.28 | BC41: 9693772.941 | BD41: 6993364.764 | BE41: 14126596.82 | BF41: 12841076.51 | BG41: 4323162.426 | BH41: 8732788.101 | BI41: 7350096.651 | BJ41: 5938878.094 | BK41: 47986135 | BL41: 10601936.7 | BM41: 52010072.34 | BN41: 0 | BO41: 0 | BP41: 15760596.92 | BQ41: 19101843.47 | BR41: 30547031.35 | BS41: 25981054.03 | BT41: 3280108.072 | BU41: 16564545.76 | BV41: 238850747.8 | BW41: 6758997.252 | BX41: 8533234.031 | BY41: 13789706.19 | BZ41: 24373305.7 | CA41: 21100318.93 | CB41: 33742926.69 | CC41: 28699247.13 | CD41: 3623279.95 | CE41: 18297563.75 | CF41: 263839820.7 | CG41: 7466137.911 | CH41: 9425999.112 | CI41: 15232414.57 | CJ41: 26923292.74
A42: 33 | B42: =NPV(#REF!,$G42:$CJ42) ->  | C42: =NPV(#REF!,$G$6:$CJ$6) ->  | G42: 0 | H42: 0 | I42: 0 | J42: 0 | K42: 0 | L42: 0 | M42: 0 | N42: 0 | O42: 0 | P42: 0 | Q42: 0 | R42: 0 | S42: 0 | T42: 0 | U42: 0 | V42: 0 | W42: 4480551.013 | X42: 0 | Y42: 0 | Z42: 15250577.05 | AA42: 0 | AB42: 6952391.966 | AC42: 4055376.29 | AD42: 0 | AE42: 0 | AF42: 0 | AG42: 2201613.055 | AH42: 0 | AI42: 0 | AJ42: 0 | AK42: 3473212.294 | AL42: 7015888.833 | AM42: 7086047.721 | AN42: 4771272.132 | AO42: 2409492.427 | AP42: 3650381.027 | AQ42: 23350270.63 | AR42: 1241251.228 | AS42: 6268318.704 | AT42: 0 | AU42: 10230899.06 | AV42: 69749154.31 | AW42: 1304567.516 | AX42: 0 | AY42: 5323157.291 | AZ42: 0 | BA42: 1357538.188 | BB42: 13711135.7 | BC42: 13848247.06 | BD42: 8392037.717 | BE42: 2825319.365 | BF42: 32816084.42 | BG42: 15851595.56 | BH42: 0 | BI42: 1470019.33 | BJ42: 16331914.76 | BK42: 4498700.156 | BL42: 69669869.76 | BM42: 0 | BN42: 1545005.09 | BO42: 1560455.141 | BP42: 15760596.92 | BQ42: 46162788.39 | BR42: 12861907.94 | BS42: 3247631.754 | BT42: 44281458.97 | BU42: 9938727.457 | BV42: 18403210.34 | BW42: 3379498.626 | BX42: 29012995.71 | BY42: 38172655.5 | BZ42: 20891404.88 | CA42: 50992437.42 | CB42: 14207548.08 | CC42: 3587405.891 | CD42: 48914279.32 | CE42: 10978538.25 | CF42: 20328593.32 | CG42: 3733068.955 | CH42: 32048396.98 | CI42: 42166359.86 | CJ42: 23077108.07
A43: 34 | B43: =NPV(#REF!,$G43:$CJ43) ->  | C43: =NPV(#REF!,$G$6:$CJ$6) ->  | G43: 0 | H43: 0 | I43: 0 | J43: 0 | K43: 0 | L43: 0 | M43: 0 | N43: 0 | O43: 0 | P43: 0 | Q43: 0 | R43: 0 | S43: 0 | T43: 0 | U43: 0 | V43: 1755724.867 | W43: 0 | X43: 0 | Y43: 0 | Z43: 953161.0657 | AA43: 972974.0369 | AB43: 0 | AC43: 0 | AD43: 0 | AE43: 0 | AF43: 1078390.464 | AG43: 0 | AH43: 0 | AI43: 0 | AJ43: 0 | AK43: 0 | AL43: 5846574.027 | AM43: 2362015.907 | AN43: 3578454.099 | AO43: 2409492.427 | AP43: 8517555.729 | AQ43: 1228961.612 | AR43: 0 | AS43: 0 | AT43: 0 | AU43: 3836587.146 | AV43: 5166604.023 | AW43: 3913702.547 | AX43: 15811358.29 | AY43: 11977103.91 | AZ43: 14785069.38 | BA43: 0 | BB43: 2742227.14 | BC43: 12463422.35 | BD43: 9790710.67 | BE43: 8475958.094 | BF43: 27108939.31 | BG43: 7205270.71 | BH43: 18921040.88 | BI43: 7350096.651 | BJ43: 5938878.094 | BK43: 34490034.53 | BL43: 39378622.04 | BM43: 50480364.33 | BN43: 4635015.27 | BO43: 9362730.845 | BP43: 28369074.46 | BQ43: 0 | BR43: 25723815.87 | BS43: 12990527.02 | BT43: 21320702.46 | BU43: 29816182.37 | BV43: 31787363.32 | BW43: 30415487.64 | BX43: 46079463.77 | BY43: 49987684.95 | BZ43: 47005660.99 | CA43: 0 | CB43: 28415096.16 | CC43: 14349623.56 | CD43: 23551319.67 | CE43: 32935614.74 | CF43: 35113024.83 | CG43: 33597620.6 | CH43: 50900395.21 | CI43: 55217502.8 | CJ43: 51923493.15
A44: 35 | B44: =NPV(#REF!,$G44:$CJ44) ->  | C44: =NPV(#REF!,$G$6:$CJ$6) ->  | G44: 0 | H44: 0 | I44: 0 | J44: 0 | K44: 0 | L44: 0 | M44: 0 | N44: 0 | O44: 0 | P44: 0 | Q44: 0 | R44: 0 | S44: 0 | T44: 842474.0833 | U44: 0 | V44: 877862.4334 | W44: 10753322.43 | X44: 914737.2806 | Y44: 2801254.657 | Z44: 0 | AA44: 0 | AB44: 1986397.705 | AC44: 0 | AD44: 0 | AE44: 6338585.191 | AF44: 1078390.464 | AG44: 0 | AH44: 1123688.545 | AI44: 0 | AJ44: 1146274.684 | AK44: 0 | AL44: 1169314.805 | AM44: 0 | AN44: 16699452.46 | AO44: 0 | AP44: 0 | AQ44: 19663385.8 | AR44: 9930009.827 | AS44: 11282973.67 | AT44: 10129603.02 | AU44: 3836587.146 | AV44: 2583302.011 | AW44: 0 | AX44: 3952839.573 | AY44: 1330789.323 | AZ44: 4032291.648 | BA44: 8145229.129 | BB44: 6855567.851 | BC44: 8308948.235 | BD44: 16784075.43 | BE44: 0 | BF44: 2853572.558 | BG44: 7205270.71 | BH44: 0 | BI44: 11760154.64 | BJ44: 16331914.76 | BK44: 19494367.34 | BL44: 9087374.316 | BM44: 7648540.049 | BN44: 42165026.45 | BO44: 10923185.99 | BP44: 15760596.92 | BQ44: 42979147.81 | BR44: 49839893.25 | BS44: 27604869.91 | BT44: 1640054.036 | BU44: 9938727.457 | BV44: 6692076.488 | BW44: 18587242.44 | BX44: 20479761.67 | BY44: 38172655.5 | BZ44: 22632355.29 | CA44: 47475717.6 | CB44: 55054248.82 | CC44: 30492950.07 | CD44: 1811639.975 | CE44: 10978538.25 | CF44: 7392215.753 | CG44: 20531879.25 | CH44: 22622397.87 | CI44: 42166359.86 | CJ44: 25000200.41
A45: 36 | B45: =NPV(#REF!,$G45:$CJ45) ->  | C45: =NPV(#REF!,$G$6:$CJ$6) ->  | G45: 0 | H45: 0 | I45: 0 | J45: 0 | K45: 0 | L45: 0 | M45: 0 | N45: 0 | O45: 0 | P45: 0 | Q45: 0 | R45: 0 | S45: 0 | T45: 0 | U45: 0 | V45: 0 | W45: 0 | X45: 0 | Y45: 0 | Z45: 0 | AA45: 4864870.185 | AB45: 993198.8523 | AC45: 4055376.29 | AD45: 1034918.437 | AE45: 0 | AF45: 0 | AG45: 0 | AH45: 24721147.98 | AI45: 0 | AJ45: 5731373.422 | AK45: 2315474.862 | AL45: 1169314.805 | AM45: 3543023.861 | AN45: 0 | AO45: 6023731.067 | AP45: 4867174.702 | AQ45: 1228961.612 | AR45: 6206256.142 | AS45: 1253663.741 | AT45: 0 | AU45: 6394311.909 | AV45: 0 | AW45: 1304567.516 | AX45: 5270452.764 | AY45: 9315525.26 | AZ45: 13440972.16 | BA45: 12217843.69 | BB45: 26051157.83 | BC45: 30466143.53 | BD45: 0 | BE45: 15539256.51 | BF45: 9987503.955 | BG45: 7205270.71 | BH45: 24742899.62 | BI45: 1470019.33 | BJ45: 14847195.24 | BK45: 174443868.8 | BL45: 13631061.47 | BM45: 24475328.16 | BN45: 41715137.43 | BO45: 79583212.18 | BP45: 15990062.82 | BQ45: 4775460.868 | BR45: 190212107 | BS45: 17861974.65 | BT45: 6560216.143 | BU45: 24846818.64 | BV45: 238850747.8 | BW45: 15207743.82 | BX45: 153382437.9 | BY45: 24131985.84 | BZ45: 26114256.11 | CA45: 5275079.733 | CB45: 210112501.9 | CC45: 19730732.4 | CD45: 7246559.899 | CE45: 27446345.62 | CF45: 263839820.7 | CG45: 16798810.3 | CH45: 169429634.5 | CI45: 26656725.49 | CJ45: 28846385.08
A46: 37 | B46: =NPV(#REF!,$G46:$CJ46) ->  | C46: =NPV(#REF!,$G$6:$CJ$6) ->  | G46: 0 | H46: 0 | I46: 0 | J46: 0 | K46: 0 | L46: 0 | M46: 0 | N46: 0 | O46: 0 | P46: 0 | Q46: 0 | R46: 0 | S46: 0 | T46: 842474.0833 | U46: 0 | V46: 9656486.767 | W46: 3584440.81 | X46: 914737.2806 | Y46: 933751.5522 | Z46: 0 | AA46: 0 | AB46: 0 | AC46: 5069220.363 | AD46: 0 | AE46: 3169292.595 | AF46: 0 | AG46: 0 | AH46: 8989508.357 | AI46: 1134925.43 | AJ46: 0 | AK46: 0 | AL46: 22216981.3 | AM46: 0 | AN46: 1192818.033 | AO46: 4818984.854 | AP46: 8517555.729 | AQ46: 2457923.225 | AR46: 6206256.142 | AS46: 0 | AT46: 0 | AU46: 5115449.528 | AV46: 19374765.09 | AW46: 0 | AX46: 3952839.573 | AY46: 10646314.58 | AZ46: 2688194.432 | BA46: 20363072.82 | BB46: 16453362.84 | BC46: 19387545.88 | BD46: 13986729.53 | BE46: 22602554.92 | BF46: 14267862.79 | BG46: 5764216.568 | BH46: 1455464.683 | BI46: 0 | BJ46: 5938878.094 | BK46: 8997400.313 | BL46: 16660186.25 | BM46: 0 | BN46: 0 | BO46: 35890468.24 | BP46: 7880298.461 | BQ46: 7959101.446 | BR46: 1607738.492 | BS46: 27604869.91 | BT46: 27880918.61 | BU46: 18221000.34 | BV46: 208947926.7 | BW46: 3379498.626 | BX46: 13653174.45 | BY46: 62053677.87 | BZ46: 13927603.26 | CA46: 8791799.556 | CB46: 1775943.51 | CC46: 30492950.07 | CD46: 30797879.57 | CE46: 20127320.12 | CF46: 230808502.9 | CG46: 3733068.955 | CH46: 15081598.58 | CI46: 68545865.54 | CJ46: 15384738.71
A47: 38 | B47: =NPV(#REF!,$G47:$CJ47) ->  | C47: =NPV(#REF!,$G$6:$CJ$6) ->  | G47: 0 | H47: 0 | I47: 0 | J47: 0 | K47: 0 | L47: 0 | M47: 0 | N47: 0 | O47: 0 | P47: 0 | Q47: 0 | R47: 0 | S47: 0 | T47: 842474.0833 | U47: 0 | V47: 9656486.767 | W47: 0 | X47: 9147372.806 | Y47: 933751.5522 | Z47: 3812644.263 | AA47: 0 | AB47: 0 | AC47: 5069220.363 | AD47: 1034918.437 | AE47: 0 | AF47: 0 | AG47: 0 | AH47: 0 | AI47: 0 | AJ47: 5731373.422 | AK47: 0 | AL47: 7015888.833 | AM47: 0 | AN47: 1192818.033 | AO47: 2409492.427 | AP47: 8517555.729 | AQ47: 0 | AR47: 0 | AS47: 1253663.741 | AT47: 0 | AU47: 6394311.909 | AV47: 3874953.017 | AW47: 14350242.67 | AX47: 0 | AY47: 26615786.46 | AZ47: 0 | BA47: 12217843.69 | BB47: 116171674 | BC47: 0 | BD47: 40561515.63 | BE47: 11301277.46 | BF47: 0 | BG47: 7205270.71 | BH47: 8732788.101 | BI47: 5880077.321 | BJ47: 16331914.76 | BK47: 19494367.34 | BL47: 10601936.7 | BM47: 7648540.049 | BN47: 12360040.72 | BO47: 67099571.06 | BP47: 28369074.46 | BQ47: 14326382.6 | BR47: 33762508.33 | BS47: 24357238.15 | BT47: 13120432.29 | BU47: 23190364.07 | BV47: 6692076.488 | BW47: 42243732.83 | BX47: 51696361.55 | BY47: 38172655.5 | BZ47: 15668553.66 | CA47: 15825239.2 | CB47: 37294813.71 | CC47: 26905544.18 | CD47: 14493119.8 | CE47: 25616589.24 | CF47: 7392215.753 | CG47: 46663361.94 | CH47: 57104944.77 | CI47: 42166359.86 | CJ47: 17307831.05
A48: 39 | B48: =NPV(#REF!,$G48:$CJ48) ->  | C48: =NPV(#REF!,$G$6:$CJ$6) ->  | G48: 0 | H48: 0 | I48: 0 | J48: 0 | K48: 0 | L48: 0 | M48: 0 | N48: 0 | O48: 0 | P48: 0 | Q48: 0 | R48: 0 | S48: 0 | T48: 0 | U48: 859986.2492 | V48: 0 | W48: 0 | X48: 0 | Y48: 0 | Z48: 953161.0657 | AA48: 0 | AB48: 0 | AC48: 0 | AD48: 2069836.874 | AE48: 1056430.865 | AF48: 1078390.464 | AG48: 0 | AH48: 0 | AI48: 3404776.29 | AJ48: 0 | AK48: 10419636.88 | AL48: 1169314.805 | AM48: 0 | AN48: 10735362.3 | AO48: 0 | AP48: 0 | AQ48: 1228961.612 | AR48: 13653763.51 | AS48: 2507327.481 | AT48: 0 | AU48: 7673174.291 | AV48: 1291651.006 | AW48: 26091350.32 | AX48: 2635226.382 | AY48: 9315525.26 | AZ48: 0 | BA48: 0 | BB48: 4113340.71 | BC48: 1384824.706 | BD48: 16784075.43 | BE48: 53681067.93 | BF48: 0 | BG48: 18733703.85 | BH48: 24742899.62 | BI48: 1470019.33 | BJ48: 31395277.25 | BK48: 17994800.63 | BL48: 10601936.7 | BM48: 10707956.07 | BN48: 20085066.17 | BO48: 0 | BP48: 11032417.85 | BQ48: 68448272.43 | BR48: 14469646.43 | BS48: 4871447.631 | BT48: 9840324.215 | BU48: 4969363.728 | BV48: 53780194.57 | BW48: 6758997.252 | BX48: 20479761.67 | BY48: 43092831.86 | BZ48: 87300993.46 | CA48: 75609476.18 | CB48: 15983491.59 | CC48: 5381108.836 | CD48: 10869839.85 | CE48: 5489269.124 | CF48: 59406792.83 | CG48: 7466137.911 | CH48: 22622397.87 | CI48: 47601295.52 | CJ48: 96434608.94
A49: 40 | B49: =NPV(#REF!,$G49:$CJ49) ->  | C49: =NPV(#REF!,$G$6:$CJ$6) ->  | G49: 0 | H49: 0 | I49: 0 | J49: 0 | K49: 0 | L49: 0 | M49: 0 | N49: 0 | O49: 0 | P49: 0 | Q49: 0 | R49: 0 | S49: 0 | T49: 0 | U49: 859986.2492 | V49: 0 | W49: 0 | X49: 0 | Y49: 0 | Z49: 953161.0657 | AA49: 0 | AB49: 0 | AC49: 1013844.073 | AD49: 1034918.437 | AE49: 2112861.73 | AF49: 3235171.391 | AG49: 2201613.055 | AH49: 0 | AI49: 6809552.58 | AJ49: 0 | AK49: 4630949.725 | AL49: 5846574.027 | AM49: 0 | AN49: 5964090.165 | AO49: 2409492.427 | AP49: 0 | AQ49: 1228961.612 | AR49: 0 | AS49: 0 | AT49: 0 | AU49: 6394311.909 | AV49: 5166604.023 | AW49: 6522837.579 | AX49: 0 | AY49: 2661578.646 | AZ49: 0 | BA49: 21720611.01 | BB49: 98919803.88 | BC49: 0 | BD49: 12588056.58 | BE49: 5650638.73 | BF49: 2853572.558 | BG49: 7205270.71 | BH49: 7277323.417 | BI49: 7350096.651 | BJ49: 31395277.25 | BK49: 11996533.75 | BL49: 7572811.93 | BM49: 4589124.03 | BN49: 13905045.81 | BO49: 67099571.06 | BP49: 20488776 | BQ49: 20693663.76 | BR49: 3215476.984 | BS49: 4871447.631 | BT49: 3280108.072 | BU49: 24846818.64 | BV49: 5019057.366 | BW49: 16897493.13 | BX49: 5119940.419 | BY49: 22408272.57 | BZ49: 15668553.66 | CA49: 22858678.84 | CB49: 3551887.02 | CC49: 5381108.836 | CD49: 3623279.95 | CE49: 27446345.62 | CF49: 5544161.815 | CG49: 18665344.78 | CH49: 5655599.467 | CI49: 24752673.67 | CJ49: 17307831.05
A50: 41 | B50: =NPV(#REF!,$G50:$CJ50) ->  | C50: =NPV(#REF!,$G$6:$CJ$6) ->  | G50: 0 | H50: 0 | I50: 0 | J50: 0 | K50: 0 | L50: 0 | M50: 0 | N50: 0 | O50: 0 | P50: 0 | Q50: 0 | R50: 0 | S50: 0 | T50: 0 | U50: 4299931.246 | V50: 0 | W50: 0 | X50: 914737.2806 | Y50: 933751.5522 | Z50: 0 | AA50: 1945948.074 | AB50: 0 | AC50: 4055376.29 | AD50: 0 | AE50: 1056430.865 | AF50: 1078390.464 | AG50: 0 | AH50: 4494754.178 | AI50: 0 | AJ50: 2292549.369 | AK50: 10419636.88 | AL50: 1169314.805 | AM50: 0 | AN50: 4771272.132 | AO50: 0 | AP50: 1216793.676 | AQ50: 2457923.225 | AR50: 0 | AS50: 0 | AT50: 0 | AU50: 1278862.382 | AV50: 2583302.011 | AW50: 5218270.063 | AX50: 5270452.764 | AY50: 5323157.291 | AZ50: 21505555.46 | BA50: 0 | BB50: 5484454.28 | BC50: 0 | BD50: 15385402.48 | BE50: 79520293.66 | BF50: 32816084.42 | BG50: 18733703.85 | BH50: 8732788.101 | BI50: 0 | BJ50: 14847195.24 | BK50: 2999133.438 | BL50: 10601936.7 | BM50: 0 | BN50: 12360040.72 | BO50: 53737056.66 | BP50: 31521193.85 | BQ50: 6367281.157 | BR50: 12861907.94 | BS50: 6495263.508 | BT50: 16400540.36 | BU50: 19877454.91 | BV50: 30114344.19 | BW50: 18587242.44 | BX50: 15359821.26 | BY50: 25855699.11 | BZ50: 52228512.21 | CA50: 7033439.644 | CB50: 14207548.08 | CC50: 7174811.781 | CD50: 18116399.75 | CE50: 21957076.49 | CF50: 33264970.89 | CG50: 20531879.25 | CH50: 16966798.4 | CI50: 28560777.31 | CJ50: 57692770.17
A51: 42 | B51: =NPV(#REF!,$G51:$CJ51) ->  | C51: =NPV(#REF!,$G$6:$CJ$6) ->  | G51: 0 | H51: 0 | I51: 0 | J51: 0 | K51: 0 | L51: 0 | M51: 0 | N51: 0 | O51: 0 | P51: 0 | Q51: 0 | R51: 0 | S51: 0 | T51: 2527422.25 | U51: 5159917.495 | V51: 0 | W51: 0 | X51: 9147372.806 | Y51: 0 | Z51: 0 | AA51: 0 | AB51: 1986397.705 | AC51: 0 | AD51: 0 | AE51: 1056430.865 | AF51: 0 | AG51: 4403226.109 | AH51: 1123688.545 | AI51: 7944478.01 | AJ51: 9170197.475 | AK51: 0 | AL51: 21047666.5 | AM51: 10629071.58 | AN51: 7156908.198 | AO51: 2409492.427 | AP51: 0 | AQ51: 19663385.8 | AR51: 0 | AS51: 3760991.222 | AT51: 0 | AU51: 74174018.15 | AV51: 3874953.017 | AW51: 7827405.095 | AX51: 3952839.573 | AY51: 10646314.58 | AZ51: 47043402.56 | BA51: 0 | BB51: 4113340.71 | BC51: 0 | BD51: 2797345.906 | BE51: 22602554.92 | BF51: 2853572.558 | BG51: 11528433.14 | BH51: 36598524.99 | BI51: 7350096.651 | BJ51: 8908317.141 | BK51: 16495233.91 | BL51: 68155307.37 | BM51: 13767372.09 | BN51: 1545005.09 | BO51: 12483641.13 | BP51: 123850519.6 | BQ51: 11142742.02 | BR51: 24116077.38 | BS51: 48950895.25 | BT51: 6560216.143 | BU51: 31472636.95 | BV51: 0 | BW51: 10138495.88 | BX51: 15359821.26 | BY51: 0 | BZ51: 22632355.29 | CA51: 12308519.38 | CB51: 26639152.65 | CC51: 54072241.95 | CD51: 7246559.899 | CE51: 34765371.12 | CF51: 0 | CG51: 11199206.87 | CH51: 16966798.4 | CI51: 0 | CJ51: 25000200.41
A52: 43 | B52: =NPV(#REF!,$G52:$CJ52) ->  | C52: =NPV(#REF!,$G$6:$CJ$6) ->  | G52: 0 | H52: 0 | I52: 0 | J52: 0 | K52: 0 | L52: 0 | M52: 0 | N52: 0 | O52: 0 | P52: 0 | Q52: 0 | R52: 0 | S52: 0 | T52: 0 | U52: 859986.2492 | V52: 0 | W52: 6272771.418 | X52: 0 | Y52: 0 | Z52: 4765805.329 | AA52: 0 | AB52: 1986397.705 | AC52: 0 | AD52: 1034918.437 | AE52: 2112861.73 | AF52: 0 | AG52: 5504032.636 | AH52: 25844836.53 | AI52: 1134925.43 | AJ52: 0 | AK52: 10419636.88 | AL52: 0 | AM52: 0 | AN52: 8349726.232 | AO52: 0 | AP52: 3650381.027 | AQ52: 0 | AR52: 4965004.914 | AS52: 2507327.481 | AT52: 1266200.378 | AU52: 6394311.909 | AV52: 0 | AW52: 2609135.032 | AX52: 3952839.573 | AY52: 64265399.17 | AZ52: 5376388.864 | BA52: 0 | BB52: 10968908.56 | BC52: 4154474.117 | BD52: 4196018.859 | BE52: 5650638.73 | BF52: 8560717.675 | BG52: 43231624.26 | BH52: 24742899.62 | BI52: 1470019.33 | BJ52: 5938878.094 | BK52: 174443868.8 | BL52: 19689311.02 | BM52: 21415912.14 | BN52: 4635015.27 | BO52: 53737056.66 | BP52: 113935229.6 | BQ52: 6367281.157 | BR52: 46624416.27 | BS52: 22733422.28 | BT52: 42641404.93 | BU52: 36442000.67 | BV52: 21749248.58 | BW52: 15207743.82 | BX52: 63145931.83 | BY52: 32750552.21 | BZ52: 54729881.93 | CA52: 7033439.644 | CB52: 51502361.8 | CC52: 25111841.23 | CD52: 47102639.34 | CE52: 40254640.24 | CF52: 24024701.2 | CG52: 16798810.3 | CH52: 69752393.43 | CI52: 36176984.59 | CJ52: 60455838.5
A53: 44 | B53: =NPV(#REF!,$G53:$CJ53) ->  | C53: =NPV(#REF!,$G$6:$CJ$6) ->  | G53: 0 | H53: 0 | I53: 0 | J53: 0 | K53: 0 | L53: 0 | M53: 0 | N53: 0 | O53: 0 | P53: 0 | Q53: 0 | R53: 0 | S53: 0 | T53: 0 | U53: 0 | V53: 0 | W53: 0 | X53: 914737.2806 | Y53: 0 | Z53: 0 | AA53: 1945948.074 | AB53: 0 | AC53: 0 | AD53: 0 | AE53: 1056430.865 | AF53: 0 | AG53: 5504032.636 | AH53: 0 | AI53: 0 | AJ53: 8023922.79 | AK53: 8104162.018 | AL53: 7015888.833 | AM53: 0 | AN53: 0 | AO53: 0 | AP53: 7300762.053 | AQ53: 0 | AR53: 0 | AS53: 0 | AT53: 7597202.269 | AU53: 11509761.44 | AV53: 2583302.011 | AW53: 5218270.063 | AX53: 0 | AY53: 7984735.937 | AZ53: 5376388.864 | BA53: 6787690.941 | BB53: 4113340.71 | BC53: 9693772.941 | BD53: 75528339.45 | BE53: 4237979.047 | BF53: 34242870.7 | BG53: 20174757.99 | BH53: 5821858.734 | BI53: 5880077.321 | BJ53: 22270792.85 | BK53: 154294514.6 | BL53: 21203873.4 | BM53: 13767372.09 | BN53: 38850071.76 | BO53: 21846371.97 | BP53: 18912716.31 | BQ53: 23877304.34 | BR53: 190212107 | BS53: 42219212.8 | BT53: 24600810.54 | BU53: 28159727.79 | BV53: 43498497.17 | BW53: 27035989.01 | BX53: 153382437.9 | BY53: 63777391.15 | BZ53: 24373305.7 | CA53: 26375398.67 | CB53: 210112501.9 | CC53: 46636276.58 | CD53: 27174599.62 | CE53: 31105858.37 | CF53: 48049402.4 | CG53: 29864551.64 | CH53: 169429634.5 | CI53: 70449917.36 | CJ53: 26923292.74
A54: 45 | B54: =NPV(#REF!,$G54:$CJ54) ->  | C54: =NPV(#REF!,$G$6:$CJ$6) ->  | G54: 0 | H54: 0 | I54: 0 | J54: 0 | K54: 0 | L54: 0 | M54: 0 | N54: 0 | O54: 0 | P54: 0 | Q54: 0 | R54: 0 | S54: 0 | T54: 0 | U54: 0 | V54: 0 | W54: 0 | X54: 6403160.965 | Y54: 0 | Z54: 0 | AA54: 972974.0369 | AB54: 993198.8523 | AC54: 2027688.145 | AD54: 0 | AE54: 11620739.52 | AF54: 3235171.391 | AG54: 15411291.38 | AH54: 0 | AI54: 1134925.43 | AJ54: 5731373.422 | AK54: 3473212.294 | AL54: 3507944.416 | AM54: 0 | AN54: 17892270.5 | AO54: 0 | AP54: 4867174.702 | AQ54: 1228961.612 | AR54: 0 | AS54: 0 | AT54: 0 | AU54: 3836587.146 | AV54: 2583302.011 | AW54: 2609135.032 | AX54: 0 | AY54: 13307893.23 | AZ54: 2688194.432 | BA54: 5430152.753 | BB54: 12340022.13 | BC54: 22157195.29 | BD54: 6993364.764 | BE54: 1412659.682 | BF54: 4280358.838 | BG54: 12969487.28 | BH54: 7277323.417 | BI54: 1470019.33 | BJ54: 13362475.71 | BK54: 13496100.47 | BL54: 0 | BM54: 7648540.049 | BN54: 10815035.63 | BO54: 61766526.31 | BP54: 0 | BQ54: 7959101.446 | BR54: 33762508.33 | BS54: 38971581.05 | BT54: 11480378.25 | BU54: 245009332.8 | BV54: 5019057.366 | BW54: 3379498.626 | BX54: 5119940.419 | BY54: 27579412.39 | BZ54: 34819008.14 | CA54: 8791799.556 | CB54: 37294813.71 | CC54: 43048870.69 | CD54: 12681479.82 | CE54: 270642729.9 | CF54: 5544161.815 | CG54: 3733068.955 | CH54: 5655599.467 | CI54: 30464829.13 | CJ54: 38461846.78
A55: 46 | B55: =NPV(#REF!,$G55:$CJ55) ->  | C55: =NPV(#REF!,$G$6:$CJ$6) ->  | G55: 0 | H55: 0 | I55: 0 | J55: 0 | K55: 0 | L55: 0 | M55: 0 | N55: 0 | O55: 0 | P55: 0 | Q55: 0 | R55: 0 | S55: 0 | T55: 0 | U55: 0 | V55: 1755724.867 | W55: 0 | X55: 0 | Y55: 933751.5522 | Z55: 0 | AA55: 0 | AB55: 0 | AC55: 0 | AD55: 2069836.874 | AE55: 2112861.73 | AF55: 1078390.464 | AG55: 2201613.055 | AH55: 1123688.545 | AI55: 0 | AJ55: 2292549.369 | AK55: 0 | AL55: 0 | AM55: 0 | AN55: 16699452.46 | AO55: 2409492.427 | AP55: 3650381.027 | AQ55: 1228961.612 | AR55: 9930009.827 | AS55: 0 | AT55: 7597202.269 | AU55: 0 | AV55: 3874953.017 | AW55: 3913702.547 | AX55: 2635226.382 | AY55: 9315525.26 | AZ55: 9408680.512 | BA55: 0 | BB55: 1371113.57 | BC55: 5539298.823 | BD55: 6993364.764 | BE55: 0 | BF55: 8560717.675 | BG55: 8646324.852 | BH55: 0 | BI55: 1470019.33 | BJ55: 5938878.094 | BK55: 13496100.47 | BL55: 21203873.4 | BM55: 7648540.049 | BN55: 4635015.27 | BO55: 12483641.13 | BP55: 3152119.385 | BQ55: 0 | BR55: 0 | BS55: 24357238.15 | BT55: 11480378.25 | BU55: 19877454.91 | BV55: 60715853.73 | BW55: 27035989.01 | BX55: 22186408.48 | BY55: 253484944.4 | BZ55: 20891404.88 | CA55: 0 | CB55: 0 | CC55: 26905544.18 | CD55: 12681479.82 | CE55: 21957076.49 | CF55: 67068075.39 | CG55: 29864551.64 | CH55: 24507597.69 | CI55: 280005078 | CJ55: 23077108.07
A56: 47 | B56: =NPV(#REF!,$G56:$CJ56) ->  | C56: =NPV(#REF!,$G$6:$CJ$6) ->  | G56: 0 | H56: 0 | I56: 0 | J56: 0 | K56: 0 | L56: 0 | M56: 0 | N56: 0 | O56: 0 | P56: 0 | Q56: 0 | R56: 0 | S56: 825318.523 | T56: 0 | U56: 2579958.748 | V56: 1755724.867 | W56: 1792220.405 | X56: 914737.2806 | Y56: 0 | Z56: 1906322.131 | AA56: 972974.0369 | AB56: 0 | AC56: 4055376.29 | AD56: 0 | AE56: 19015755.57 | AF56: 1078390.464 | AG56: 15571562.95 | AH56: 5618442.723 | AI56: 0 | AJ56: 9170197.475 | AK56: 0 | AL56: 0 | AM56: 5905039.768 | AN56: 0 | AO56: 0 | AP56: 9734349.404 | AQ56: 1228961.612 | AR56: 9930009.827 | AS56: 1253663.741 | AT56: 5064801.512 | AU56: 3836587.146 | AV56: 6458255.029 | AW56: 5218270.063 | AX56: 1317613.191 | AY56: 60079275.36 | AZ56: 4032291.648 | BA56: 0 | BB56: 8226681.421 | BC56: 22157195.29 | BD56: 15385402.48 | BE56: 1412659.682 | BF56: 29962511.86 | BG56: 8646324.852 | BH56: 2910929.367 | BI56: 5880077.321 | BJ56: 5938878.094 | BK56: 14995667.19 | BL56: 3029124.772 | BM56: 0 | BN56: 23175076.35 | BO56: 17165006.55 | BP56: 39401492.31 | BQ56: 19101843.47 | BR56: 28939292.86 | BS56: 21109606.4 | BT56: 3280108.072 | BU56: 34785546.1 | BV56: 23422267.71 | BW56: 27035989.01 | BX56: 8533234.031 | BY56: 36448942.23 | BZ56: 26114256.11 | CA56: 21100318.93 | CB56: 31966983.18 | CC56: 23318138.29 | CD56: 3623279.95 | CE56: 38424883.87 | CF56: 25872755.14 | CG56: 29864551.64 | CH56: 9425999.112 | CI56: 40262308.04 | CJ56: 28846385.08
A57: 48 | B57: =NPV(#REF!,$G57:$CJ57) ->  | C57: =NPV(#REF!,$G$6:$CJ$6) ->  | G57: 0 | H57: 0 | I57: 0 | J57: 0 | K57: 0 | L57: 0 | M57: 0 | N57: 0 | O57: 0 | P57: 0 | Q57: 0 | R57: 0 | S57: 0 | T57: 0 | U57: 0 | V57: 0 | W57: 10753322.43 | X57: 0 | Y57: 0 | Z57: 0 | AA57: 0 | AB57: 993198.8523 | AC57: 4055376.29 | AD57: 1034918.437 | AE57: 0 | AF57: 2156780.927 | AG57: 3302419.582 | AH57: 24721147.98 | AI57: 0 | AJ57: 0 | AK57: 2315474.862 | AL57: 0 | AM57: 7086047.721 | AN57: 0 | AO57: 2409492.427 | AP57: 4867174.702 | AQ57: 1228961.612 | AR57: 0 | AS57: 6268318.704 | AT57: 1266200.378 | AU57: 11509761.44 | AV57: 0 | AW57: 16959377.71 | AX57: 0 | AY57: 2661578.646 | AZ57: 18817361.02 | BA57: 16290458.26 | BB57: 8226681.421 | BC57: 1384824.706 | BD57: 18182748.39 | BE57: 1412659.682 | BF57: 41792267.06 | BG57: 14410541.42 | BH57: 24742899.62 | BI57: 0 | BJ57: 11877756.19 | BK57: 14995667.19 | BL57: 22718435.79 | BM57: 61188320.39 | BN57: 69525229.05 | BO57: 7802275.704 | BP57: 11032417.85 | BQ57: 63672811.57 | BR57: 25723815.87 | BS57: 9742895.262 | BT57: 3280108.072 | BU57: 57975910.16 | BV57: 11711133.85 | BW57: 15207743.82 | BX57: 8533234.031 | BY57: 18960846.02 | BZ57: 10445702.44 | CA57: 70334396.44 | CB57: 28415096.16 | CC57: 10762217.67 | CD57: 3623279.95 | CE57: 64041473.11 | CF57: 12936377.57 | CG57: 16798810.3 | CH57: 9425999.112 | CI57: 20944570.03 | CJ57: 11538554.03
A58: 49 | B58: =NPV(#REF!,$G58:$CJ58) ->  | C58: =NPV(#REF!,$G$6:$CJ$6) ->  | G58: 0 | H58: 0 | I58: 0 | J58: 0 | K58: 0 | L58: 0 | M58: 0 | N58: 0 | O58: 0 | P58: 0 | Q58: 0 | R58: 0 | S58: 0 | T58: 0 | U58: 0 | V58: 4517124.261 | W58: 2688330.608 | X58: 0 | Y58: 0 | Z58: 0 | AA58: 972974.0369 | AB58: 1986397.705 | AC58: 1013844.073 | AD58: 1034918.437 | AE58: 0 | AF58: 1078390.464 | AG58: 0 | AH58: 0 | AI58: 1134925.43 | AJ58: 3438824.053 | AK58: 5788687.156 | AL58: 0 | AM58: 0 | AN58: 7156908.198 | AO58: 0 | AP58: 0 | AQ58: 1228961.612 | AR58: 0 | AS58: 2507327.481 | AT58: 3798601.134 | AU58: 1278862.382 | AV58: 25833020.11 | AW58: 15654810.19 | AX58: 7905679.146 | AY58: 6653946.614 | AZ58: 0 | BA58: 8145229.129 | BB58: 10968908.56 | BC58: 1384824.706 | BD58: 12588056.58 | BE58: 14126596.82 | BF58: 7133931.396 | BG58: 4323162.426 | BH58: 14554646.83 | BI58: 51450676.56 | BJ58: 10393036.66 | BK58: 174443868.8 | BL58: 12116499.09 | BM58: 16826788.11 | BN58: 3090010.18 | BO58: 12483641.13 | BP58: 33097253.54 | BQ58: 0 | BR58: 19292861.9 | BS58: 25981054.03 | BT58: 18040594.39 | BU58: 26503273.22 | BV58: 36806420.68 | BW58: 27035989.01 | BX58: 17066468.06 | BY58: 51711398.23 | BZ58: 8704752.035 | CA58: 0 | CB58: 21311322.12 | CC58: 28699247.13 | CD58: 19928039.72 | CE58: 29276101.99 | CF58: 40657186.64 | CG58: 29864551.64 | CH58: 18851998.22 | CI58: 57121554.62 | CJ58: 9615461.694
A59: 50 | B59: =NPV(#REF!,$G59:$CJ59) ->  | C59: =NPV(#REF!,$G$6:$CJ$6) ->  | G59: 0 | H59: 0 | I59: 0 | J59: 0 | K59: 0 | L59: 0 | M59: 0 | N59: 0 | O59: 0 | P59: 0 | Q59: 0 | R59: 0 | S59: 0 | T59: 0 | U59: 0 | V59: 10534349.2 | W59: 6272771.418 | X59: 0 | Y59: 0 | Z59: 0 | AA59: 7783792.295 | AB59: 1986397.705 | AC59: 0 | AD59: 7244429.057 | AE59: 2112861.73 | AF59: 1078390.464 | AG59: 3302419.582 | AH59: 1123688.545 | AI59: 0 | AJ59: 0 | AK59: 2315474.862 | AL59: 9354518.444 | AM59: 18896127.26 | AN59: 10735362.3 | AO59: 3614238.64 | AP59: 0 | AQ59: 0 | AR59: 9930009.827 | AS59: 0 | AT59: 5064801.512 | AU59: 2557724.764 | AV59: 9041557.04 | AW59: 2609135.032 | AX59: 14493745.1 | AY59: 0 | AZ59: 99658887.38 | BA59: 14932920.07 | BB59: 5484454.28 | BC59: 1384824.706 | BD59: 13986729.53 | BE59: 14126596.82 | BF59: 5707145.117 | BG59: 4323162.426 | BH59: 0 | BI59: 5880077.321 | BJ59: 19301353.81 | BK59: 32990467.81 | BL59: 19689311.02 | BM59: 16826788.11 | BN59: 30900101.8 | BO59: 3120910.282 | BP59: 7880298.461 | BQ59: 12734562.31 | BR59: 12861907.94 | BS59: 22733422.28 | BT59: 29520972.64 | BU59: 4969363.728 | BV59: 21749248.58 | BW59: 328465304.6 | BX59: 0 | BY59: 8618566.371 | BZ59: 22632355.29 | CA59: 14066879.29 | CB59: 14207548.08 | CC59: 25111841.23 | CD59: 32609519.55 | CE59: 5489269.124 | CF59: 24024701.2 | CG59: 362830042.9 | CH59: 0 | CI59: 9520259.103 | CJ59: 25000200.41
A60: 51 | B60: =NPV(#REF!,$G60:$CJ60) ->  | C60: =NPV(#REF!,$G$6:$CJ$6) ->  | G60: 0 | H60: 0 | I60: 0 | J60: 0 | K60: 0 | L60: 0 | M60: 0 | N60: 0 | O60: 0 | P60: 0 | Q60: 0 | R60: 0 | S60: 0 | T60: 842474.0833 | U60: 0 | V60: 0 | W60: 0 | X60: 914737.2806 | Y60: 0 | Z60: 0 | AA60: 1945948.074 | AB60: 0 | AC60: 0 | AD60: 0 | AE60: 1056430.865 | AF60: 3235171.391 | AG60: 0 | AH60: 0 | AI60: 12484179.73 | AJ60: 0 | AK60: 3473212.294 | AL60: 1169314.805 | AM60: 4724031.814 | AN60: 0 | AO60: 0 | AP60: 0 | AQ60: 3686884.837 | AR60: 4965004.914 | AS60: 6268318.704 | AT60: 0 | AU60: 5115449.528 | AV60: 1291651.006 | AW60: 5218270.063 | AX60: 3952839.573 | AY60: 6653946.614 | AZ60: 1344097.216 | BA60: 13575381.88 | BB60: 1371113.57 | BC60: 6924123.529 | BD60: 12588056.58 | BE60: 5650638.73 | BF60: 41792267.06 | BG60: 5764216.568 | BH60: 2910929.367 | BI60: 2940038.661 | BJ60: 31395277.25 | BK60: 19494367.34 | BL60: 10601936.7 | BM60: 10707956.07 | BN60: 40170132.34 | BO60: 32769557.96 | BP60: 9456358.154 | BQ60: 63672811.57 | BR60: 56504925.38 | BS60: 17861974.65 | BT60: 44281458.97 | BU60: 35026717.06 | BV60: 11711133.85 | BW60: 16897493.13 | BX60: 25599702.09 | BY60: 81014523.89 | BZ60: 85560043.05 | CA60: 70334396.44 | CB60: 62416590.77 | CC60: 19730732.4 | CD60: 48914279.32 | CE60: 38691286.65 | CF60: 12936377.57 | CG60: 18665344.78 | CH60: 28277997.34 | CI60: 89490435.57 | CJ60: 94511516.6
A61: 52 | B61: =NPV(#REF!,$G61:$CJ61) ->  | C61: =NPV(#REF!,$G$6:$CJ$6) ->  | G61: 0 | H61: 0 | I61: 0 | J61: 0 | K61: 0 | L61: 0 | M61: 0 | N61: 0 | O61: 0 | P61: 0 | Q61: 0 | R61: 0 | S61: 4126592.615 | T61: 0 | U61: 1719972.498 | V61: 0 | W61: 896110.2025 | X61: 0 | Y61: 0 | Z61: 953161.0657 | AA61: 0 | AB61: 0 | AC61: 1013844.073 | AD61: 2069836.874 | AE61: 2112861.73 | AF61: 6470342.782 | AG61: 2201613.055 | AH61: 0 | AI61: 0 | AJ61: 0 | AK61: 3473212.294 | AL61: 1169314.805 | AM61: 16534111.35 | AN61: 0 | AO61: 0 | AP61: 10951143.08 | AQ61: 1228961.612 | AR61: 12412512.28 | AS61: 6268318.704 | AT61: 7597202.269 | AU61: 2557724.764 | AV61: 6458255.029 | AW61: 9131972.61 | AX61: 6588065.955 | AY61: 7984735.937 | AZ61: 5376388.864 | BA61: 4072614.565 | BB61: 12340022.13 | BC61: 2769649.412 | BD61: 18182748.39 | BE61: 76694974.3 | BF61: 0 | BG61: 7205270.71 | BH61: 18921040.88 | BI61: 4410057.991 | BJ61: 16331914.76 | BK61: 8997400.313 | BL61: 7572811.93 | BM61: 32123868.21 | BN61: 7725025.45 | BO61: 60857750.49 | BP61: 50433910.15 | BQ61: 6367281.157 | BR61: 14469646.43 | BS61: 42219212.8 | BT61: 39600079.99 | BU61: 56319455.59 | BV61: 120245853.7 | BW61: 6758997.252 | BX61: 22186408.48 | BY61: 12065992.92 | BZ61: 43523760.18 | CA61: 7033439.644 | CB61: 15983491.59 | CC61: 46636276.58 | CD61: 43743124.52 | CE61: 62211716.73 | CF61: 132826230.5 | CG61: 7466137.911 | CH61: 24507597.69 | CI61: 13328362.74 | CJ61: 48077308.47
A62: 53 | B62: =NPV(#REF!,$G62:$CJ62) ->  | C62: =NPV(#REF!,$G$6:$CJ$6) ->  | G62: 0 | H62: 0 | I62: 0 | J62: 0 | K62: 0 | L62: 0 | M62: 0 | N62: 0 | O62: 0 | P62: 0 | Q62: 0 | R62: 0 | S62: 0 | T62: 0 | U62: 0 | V62: 0 | W62: 0 | X62: 0 | Y62: 0 | Z62: 14297415.99 | AA62: 0 | AB62: 1986397.705 | AC62: 0 | AD62: 2069836.874 | AE62: 2112861.73 | AF62: 0 | AG62: 1100806.527 | AH62: 6742131.268 | AI62: 1134925.43 | AJ62: 0 | AK62: 3473212.294 | AL62: 0 | AM62: 0 | AN62: 2385636.066 | AO62: 3614238.64 | AP62: 3650381.027 | AQ62: 3686884.837 | AR62: 13653763.51 | AS62: 2507327.481 | AT62: 8863402.647 | AU62: 0 | AV62: 14396218.57 | AW62: 5218270.063 | AX62: 5270452.764 | AY62: 2661578.646 | AZ62: 1344097.216 | BA62: 0 | BB62: 12340022.13 | BC62: 19387545.88 | BD62: 11189383.62 | BE62: 0 | BF62: 8560717.675 | BG62: 15851595.56 | BH62: 45119405.19 | BI62: 14700193.3 | BJ62: 14847195.24 | BK62: 0 | BL62: 10601936.7 | BM62: 6118832.039 | BN62: 38625127.25 | BO62: 22073565.93 | BP62: 4728179.077 | BQ62: 23877304.34 | BR62: 16077384.92 | BS62: 3247631.754 | BT62: 44281458.97 | BU62: 64601728.47 | BV62: 6692076.488 | BW62: 16897493.13 | BX62: 148262497.4 | BY62: 51711398.23 | BZ62: 17409504.07 | CA62: 26375398.67 | CB62: 17759435.1 | CC62: 3587405.891 | CD62: 48914279.32 | CE62: 71360498.61 | CF62: 7392215.753 | CG62: 18665344.78 | CH62: 163774035 | CI62: 57121554.62 | CJ62: 19230923.39
A63: 54 | B63: =NPV(#REF!,$G63:$CJ63) ->  | C63: =NPV(#REF!,$G$6:$CJ$6) ->  | G63: 0 | H63: 0 | I63: 0 | J63: 0 | K63: 0 | L63: 0 | M63: 0 | N63: 0 | O63: 0 | P63: 0 | Q63: 0 | R63: 0 | S63: 0 | T63: 842474.0833 | U63: 0 | V63: 0 | W63: 0 | X63: 0 | Y63: 0 | Z63: 953161.0657 | AA63: 0 | AB63: 0 | AC63: 4055376.29 | AD63: 0 | AE63: 19015755.57 | AF63: 3235171.391 | AG63: 6604839.164 | AH63: 17979016.71 | AI63: 0 | AJ63: 12609021.53 | AK63: 0 | AL63: 7015888.833 | AM63: 0 | AN63: 1192818.033 | AO63: 0 | AP63: 8517555.729 | AQ63: 1228961.612 | AR63: 1241251.228 | AS63: 0 | AT63: 5064801.512 | AU63: 0 | AV63: 2583302.011 | AW63: 0 | AX63: 33132167.23 | AY63: 1330789.323 | AZ63: 0 | BA63: 14932920.07 | BB63: 1371113.57 | BC63: 30466143.53 | BD63: 16784075.43 | BE63: 12713937.14 | BF63: 0 | BG63: 7205270.71 | BH63: 1455464.683 | BI63: 4410057.991 | BJ63: 1484719.524 | BK63: 10496967.03 | BL63: 12116499.09 | BM63: 4589124.03 | BN63: 13905045.81 | BO63: 14044096.27 | BP63: 15760596.92 | BQ63: 22285484.05 | BR63: 66385434.49 | BS63: 24357238.15 | BT63: 42641404.93 | BU63: 56319455.59 | BV63: 50190573.66 | BW63: 8448746.566 | BX63: 199991563 | BY63: 81014523.89 | BZ63: 45264710.58 | CA63: 24617038.76 | CB63: 73330819.75 | CC63: 26905544.18 | CD63: 47102639.34 | CE63: 62211716.73 | CF63: 55441618.15 | CG63: 9332672.388 | CH63: 220915105.3 | CI63: 89490435.57 | CJ63: 50000400.81
A64: 55 | B64: =NPV(#REF!,$G64:$CJ64) ->  | C64: =NPV(#REF!,$G$6:$CJ$6) ->  | G64: 0 | H64: 0 | I64: 0 | J64: 0 | K64: 0 | L64: 0 | M64: 0 | N64: 0 | O64: 0 | P64: 0 | Q64: 0 | R64: 0 | S64: 0 | T64: 842474.0833 | U64: 0 | V64: 0 | W64: 0 | X64: 0 | Y64: 0 | Z64: 0 | AA64: 0 | AB64: 0 | AC64: 2027688.145 | AD64: 2069836.874 | AE64: 1056430.865 | AF64: 0 | AG64: 2201613.055 | AH64: 1123688.545 | AI64: 0 | AJ64: 0 | AK64: 10419636.88 | AL64: 3507944.416 | AM64: 0 | AN64: 2385636.066 | AO64: 1204746.213 | AP64: 1216793.676 | AQ64: 1228961.612 | AR64: 0 | AS64: 2507327.481 | AT64: 11395803.4 | AU64: 0 | AV64: 2583302.011 | AW64: 3913702.547 | AX64: 0 | AY64: 1330789.323 | AZ64: 1344097.216 | BA64: 19005534.64 | BB64: 1371113.57 | BC64: 13848247.06 | BD64: 22378767.25 | BE64: 5650638.73 | BF64: 22828580.47 | BG64: 40349515.98 | BH64: 17465576.2 | BI64: 13230173.97 | BJ64: 14847195.24 | BK64: 2999133.438 | BL64: 10601936.7 | BM64: 7648540.049 | BN64: 37080122.16 | BO64: 79583212.18 | BP64: 1576059.692 | BQ64: 66856452.15 | BR64: 16077384.92 | BS64: 3247631.754 | BT64: 14760486.32 | BU64: 66258183.04 | BV64: 0 | BW64: 106454206.7 | BX64: 8533234.031 | BY64: 68948530.97 | BZ64: 24626778.8 | CA64: 73851116.27 | CB64: 17759435.1 | CC64: 3587405.891 | CD64: 16304759.77 | CE64: 73190254.98 | CF64: 0 | CG64: 117591672.1 | CH64: 9425999.112 | CI64: 76162072.83 | CJ64: 27203284.74
A65: 56 | B65: =NPV(#REF!,$G65:$CJ65) ->  | C65: =NPV(#REF!,$G$6:$CJ$6) ->  | G65: 0 | H65: 0 | I65: 0 | J65: 0 | K65: 0 | L65: 0 | M65: 0 | N65: 0 | O65: 0 | P65: 0 | Q65: 0 | R65: 0 | S65: 0 | T65: 0 | U65: 0 | V65: 0 | W65: 0 | X65: 0 | Y65: 933751.5522 | Z65: 0 | AA65: 4864870.185 | AB65: 0 | AC65: 0 | AD65: 1034918.437 | AE65: 0 | AF65: 0 | AG65: 0 | AH65: 0 | AI65: 7944478.01 | AJ65: 0 | AK65: 0 | AL65: 0 | AM65: 0 | AN65: 9542544.265 | AO65: 3614238.64 | AP65: 13384730.43 | AQ65: 0 | AR65: 13653763.51 | AS65: 1253663.741 | AT65: 10129603.02 | AU65: 0 | AV65: 14208161.06 | AW65: 5218270.063 | AX65: 21081811.05 | AY65: 62740854.01 | AZ65: 1344097.216 | BA65: 0 | BB65: 6855567.851 | BC65: 22157195.29 | BD65: 20980094.29 | BE65: 1412659.682 | BF65: 5707145.117 | BG65: 4323162.426 | BH65: 173467986.5 | BI65: 11760154.64 | BJ65: 40519761.64 | BK65: 13496100.47 | BL65: 6058249.544 | BM65: 160232533.1 | BN65: 0 | BO65: 9362730.845 | BP65: 18912716.31 | BQ65: 22285484.05 | BR65: 51447631.75 | BS65: 361824802.9 | BT65: 32801080.72 | BU65: 18221000.34 | BV65: 23422267.71 | BW65: 21966741.07 | BX65: 42666170.16 | BY65: 46540258.41 | BZ65: 47005660.99 | CA65: 24617038.76 | CB65: 56830192.33 | CC65: 399679682.9 | CD65: 36232799.5 | CE65: 20127320.12 | CF65: 25872755.14 | CG65: 24264948.21 | CH65: 47129995.56 | CI65: 51409399.16 | CJ65: 51923493.15
A66: 57 | B66: =NPV(#REF!,$G66:$CJ66) ->  | C66: =NPV(#REF!,$G$6:$CJ$6) ->  | G66: 0 | H66: 0 | I66: 0 | J66: 0 | K66: 0 | L66: 0 | M66: 0 | N66: 0 | O66: 0 | P66: 0 | Q66: 0 | R66: 0 | S66: 0 | T66: 842474.0833 | U66: 859986.2492 | V66: 0 | W66: 896110.2025 | X66: 1829474.561 | Y66: 0 | Z66: 0 | AA66: 0 | AB66: 0 | AC66: 1013844.073 | AD66: 0 | AE66: 0 | AF66: 3235171.391 | AG66: 4403226.109 | AH66: 12524177.06 | AI66: 3404776.29 | AJ66: 0 | AK66: 10419636.88 | AL66: 1169314.805 | AM66: 0 | AN66: 1192818.033 | AO66: 8433223.494 | AP66: 7300762.053 | AQ66: 3686884.837 | AR66: 0 | AS66: 0 | AT66: 7597202.269 | AU66: 1278862.382 | AV66: 14208161.06 | AW66: 0 | AX66: 5270452.764 | AY66: 9315525.26 | AZ66: 5376388.864 | BA66: 8145229.129 | BB66: 10968908.56 | BC66: 12463422.35 | BD66: 5594691.811 | BE66: 22602554.92 | BF66: 2853572.558 | BG66: 0 | BH66: 17465576.2 | BI66: 14700193.3 | BJ66: 7423597.618 | BK66: 32990467.81 | BL66: 18174748.63 | BM66: 0 | BN66: 10815035.63 | BO66: 12483641.13 | BP66: 3152119.385 | BQ66: 55713710.12 | BR66: 4823215.476 | BS66: 3247631.754 | BT66: 29520972.64 | BU66: 8282272.881 | BV66: 33460382.44 | BW66: 63012761.58 | BX66: 10239880.84 | BY66: 1723713.274 | BZ66: 53969462.62 | CA66: 61542596.89 | CB66: 5327830.531 | CC66: 3587405.891 | CD66: 32609519.55 | CE66: 9148781.873 | CF66: 36961078.77 | CG66: 69605290.63 | CH66: 11311198.93 | CI66: 1904051.821 | CJ66: 59615862.5
A67: 58 | B67: =NPV(#REF!,$G67:$CJ67) ->  | C67: =NPV(#REF!,$G$6:$CJ$6) ->  | G67: 0 | H67: 0 | I67: 0 | J67: 0 | K67: 0 | L67: 0 | M67: 0 | N67: 0 | O67: 0 | P67: 0 | Q67: 0 | R67: 0 | S67: 825318.523 | T67: 0 | U67: 4299931.246 | V67: 9656486.767 | W67: 0 | X67: 0 | Y67: 933751.5522 | Z67: 0 | AA67: 0 | AB67: 0 | AC67: 0 | AD67: 1034918.437 | AE67: 1056430.865 | AF67: 0 | AG67: 0 | AH67: 10113196.9 | AI67: 0 | AJ67: 2292549.369 | AK67: 0 | AL67: 0 | AM67: 7086047.721 | AN67: 5964090.165 | AO67: 6023731.067 | AP67: 0 | AQ67: 0 | AR67: 0 | AS67: 7521982.444 | AT67: 0 | AU67: 11509761.44 | AV67: 6458255.029 | AW67: 3913702.547 | AX67: 36893169.35 | AY67: 6653946.614 | AZ67: 13440972.16 | BA67: 6787690.941 | BB67: 8226681.421 | BC67: 13848247.06 | BD67: 12588056.58 | BE67: 15539256.51 | BF67: 22828580.47 | BG67: 4323162.426 | BH67: 21831970.25 | BI67: 13230173.97 | BJ67: 5938878.094 | BK67: 19494367.34 | BL67: 7572811.93 | BM67: 16826788.11 | BN67: 69525229.05 | BO67: 10923185.99 | BP67: 66194507.07 | BQ67: 20693663.76 | BR67: 48232154.76 | BS67: 69824082.71 | BT67: 83642755.82 | BU67: 29816182.37 | BV67: 55696796.36 | BW67: 11828245.19 | BX67: 10239880.84 | BY67: 27579412.39 | BZ67: 10445702.44 | CA67: 22858678.84 | CB67: 53278305.31 | CC67: 77129226.65 | CD67: 92393638.71 | CE67: 32935614.74 | CF67: 61523913.58 | CG67: 13065741.34 | CH67: 11311198.93 | CI67: 30464829.13 | CJ67: 11538554.03
A68: 59 | B68: =NPV(#REF!,$G68:$CJ68) ->  | C68: =NPV(#REF!,$G$6:$CJ$6) ->  | G68: 0 | H68: 0 | I68: 0 | J68: 0 | K68: 0 | L68: 0 | M68: 0 | N68: 0 | O68: 0 | P68: 0 | Q68: 0 | R68: 0 | S68: 0 | T68: 0 | U68: 0 | V68: 3511449.734 | W68: 0 | X68: 0 | Y68: 933751.5522 | Z68: 0 | AA68: 0 | AB68: 1986397.705 | AC68: 0 | AD68: 0 | AE68: 1056430.865 | AF68: 0 | AG68: 0 | AH68: 0 | AI68: 0 | AJ68: 1146274.684 | AK68: 0 | AL68: 7015888.833 | AM68: 10629071.58 | AN68: 13120998.36 | AO68: 25299670.48 | AP68: 4867174.702 | AQ68: 0 | AR68: 0 | AS68: 0 | AT68: 0 | AU68: 1278862.382 | AV68: 0 | AW68: 5218270.063 | AX68: 2635226.382 | AY68: 6653946.614 | AZ68: 24193749.89 | BA68: 10860305.51 | BB68: 0 | BC68: 70827683.1 | BD68: 2797345.906 | BE68: 15539256.51 | BF68: 41792267.06 | BG68: 1441054.142 | BH68: 20376505.57 | BI68: 4410057.991 | BJ68: 32663829.52 | BK68: 1499566.719 | BL68: 16660186.25 | BM68: 10707956.07 | BN68: 16995055.99 | BO68: 23406827.11 | BP68: 120468934.3 | BQ68: 9550921.735 | BR68: 0 | BS68: 9742895.262 | BT68: 42641404.93 | BU68: 39754909.83 | BV68: 53780194.57 | BW68: 13517994.5 | BX68: 25599702.09 | BY68: 49987684.95 | BZ68: 1740950.407 | CA68: 10550159.47 | CB68: 0 | CC68: 10762217.67 | CD68: 47102639.34 | CE68: 43914152.99 | CF68: 59406792.83 | CG68: 14932275.82 | CH68: 28277997.34 | CI68: 55217502.8 | CJ68: 1923092.339
A69: 60 | B69: =NPV(#REF!,$G69:$CJ69) ->  | C69: =NPV(#REF!,$G$6:$CJ$6) ->  | G69: 0 | H69: 0 | I69: 0 | J69: 0 | K69: 0 | L69: 0 | M69: 0 | N69: 0 | O69: 0 | P69: 0 | Q69: 0 | R69: 0 | S69: 0 | T69: 0 | U69: 1719972.498 | V69: 0 | W69: 896110.2025 | X69: 4573686.403 | Y69: 0 | Z69: 15250577.05 | AA69: 0 | AB69: 3972795.409 | AC69: 0 | AD69: 0 | AE69: 0 | AF69: 3235171.391 | AG69: 0 | AH69: 0 | AI69: 9079403.44 | AJ69: 12609021.53 | AK69: 3473212.294 | AL69: 1169314.805 | AM69: 0 | AN69: 0 | AO69: 3614238.64 | AP69: 8517555.729 | AQ69: 1228961.612 | AR69: 0 | AS69: 5014654.963 | AT69: 3798601.134 | AU69: 8952036.673 | AV69: 15687869.57 | AW69: 0 | AX69: 14493745.1 | AY69: 9315525.26 | AZ69: 6720486.08 | BA69: 8145229.129 | BB69: 8226681.421 | BC69: 11078597.65 | BD69: 13986729.53 | BE69: 38141811.42 | BF69: 19975007.91 | BG69: 20174757.99 | BH69: 65099985.59 | BI69: 7350096.651 | BJ69: 10393036.66 | BK69: 13496100.47 | BL69: 18174748.63 | BM69: 7648540.049 | BN69: 12360040.72 | BO69: 3120910.282 | BP69: 15990062.82 | BQ69: 20693663.76 | BR69: 163551978.5 | BS69: 3247631.754 | BT69: 228507933 | BU69: 67914637.62 | BV69: 8365095.609 | BW69: 3379498.626 | BX69: 44372816.96 | BY69: 17237132.74 | BZ69: 40295332.47 | CA69: 22858678.84 | CB69: 180663134.1 | CC69: 3587405.891 | CD69: 252414918.6 | CE69: 75020011.36 | CF69: 9240269.691 | CG69: 3733068.955 | CH69: 49015195.38 | CI69: 19040518.21 | CJ69: 44511115.79
A70: 61 | B70: =NPV(#REF!,$G70:$CJ70) ->  | C70: =NPV(#REF!,$G$6:$CJ$6) ->  | G70: 0 | H70: 0 | I70: 0 | J70: 0 | K70: 0 | L70: 0 | M70: 0 | N70: 0 | O70: 0 | P70: 0 | Q70: 0 | R70: 0 | S70: 0 | T70: 0 | U70: 0 | V70: 1755724.867 | W70: 2688330.608 | X70: 0 | Y70: 933751.5522 | Z70: 0 | AA70: 1945948.074 | AB70: 0 | AC70: 2027688.145 | AD70: 2069836.874 | AE70: 0 | AF70: 2156780.927 | AG70: 0 | AH70: 1123688.545 | AI70: 1134925.43 | AJ70: 0 | AK70: 4630949.725 | AL70: 0 | AM70: 0 | AN70: 3578454.099 | AO70: 0 | AP70: 4867174.702 | AQ70: 27037155.47 | AR70: 1241251.228 | AS70: 0 | AT70: 5064801.512 | AU70: 2557724.764 | AV70: 2583302.011 | AW70: 13045675.16 | AX70: 27669877.01 | AY70: 1330789.323 | AZ70: 2688194.432 | BA70: 21720611.01 | BB70: 17824476.41 | BC70: 30466143.53 | BD70: 8392037.717 | BE70: 7063298.412 | BF70: 2853572.558 | BG70: 7205270.71 | BH70: 54487917 | BI70: 10290135.31 | BJ70: 10393036.66 | BK70: 7497833.594 | BL70: 19689311.02 | BM70: 13767372.09 | BN70: 77700143.52 | BO70: 12483641.13 | BP70: 104478871.5 | BQ70: 22285484.05 | BR70: 48232154.76 | BS70: 4871447.631 | BT70: 14760486.32 | BU70: 4969363.728 | BV70: 10038114.73 | BW70: 20276991.76 | BX70: 156331478.1 | BY70: 36448942.23 | BZ70: 1740950.407 | CA70: 24617038.76 | CB70: 53278305.31 | CC70: 5381108.836 | CD70: 16304759.77 | CE70: 5489269.124 | CF70: 11088323.63 | CG70: 22398413.73 | CH70: 172687209.6 | CI70: 40262308.04 | CJ70: 1923092.339
A71: 62 | B71: =NPV(#REF!,$G71:$CJ71) ->  | C71: =NPV(#REF!,$G$6:$CJ$6) ->  | G71: 0 | H71: 0 | I71: 0 | J71: 0 | K71: 0 | L71: 0 | M71: 0 | N71: 0 | O71: 0 | P71: 0 | Q71: 0 | R71: 0 | S71: 0 | T71: 842474.0833 | U71: 2579958.748 | V71: 9656486.767 | W71: 0 | X71: 0 | Y71: 933751.5522 | Z71: 953161.0657 | AA71: 0 | AB71: 0 | AC71: 0 | AD71: 0 | AE71: 0 | AF71: 10783904.64 | AG71: 0 | AH71: 2247377.089 | AI71: 0 | AJ71: 4585098.737 | AK71: 0 | AL71: 5846574.027 | AM71: 0 | AN71: 8349726.232 | AO71: 0 | AP71: 0 | AQ71: 2457923.225 | AR71: 0 | AS71: 0 | AT71: 1266200.378 | AU71: 3836587.146 | AV71: 2583302.011 | AW71: 3913702.547 | AX71: 0 | AY71: 13307893.23 | AZ71: 1344097.216 | BA71: 40726145.65 | BB71: 1371113.57 | BC71: 19387545.88 | BD71: 9790710.67 | BE71: 1412659.682 | BF71: 18548221.63 | BG71: 8646324.852 | BH71: 0 | BI71: 36964510.24 | BJ71: 19301353.81 | BK71: 2999133.438 | BL71: 10601936.7 | BM71: 4589124.03 | BN71: 50985167.97 | BO71: 0 | BP71: 34673313.23 | BQ71: 20693663.76 | BR71: 3215476.984 | BS71: 9742895.262 | BT71: 3280108.072 | BU71: 245009332.8 | BV71: 28441325.07 | BW71: 72905238.96 | BX71: 23893055.29 | BY71: 13789706.19 | BZ71: 24373305.7 | CA71: 22858678.84 | CB71: 3551887.02 | CC71: 10762217.67 | CD71: 3623279.95 | CE71: 270642729.9 | CF71: 31416916.95 | CG71: 80532740.02 | CH71: 26392797.51 | CI71: 15232414.57 | CJ71: 26923292.74
A72: 63 | B72: =NPV(#REF!,$G72:$CJ72) ->  | C72: =NPV(#REF!,$G$6:$CJ$6) ->  | G72: 0 | H72: 0 | I72: 0 | J72: 0 | K72: 0 | L72: 0 | M72: 0 | N72: 0 | O72: 0 | P72: 0 | Q72: 0 | R72: 0 | S72: 0 | T72: 0 | U72: 1719972.498 | V72: 3511449.734 | W72: 0 | X72: 0 | Y72: 0 | Z72: 0 | AA72: 4864870.185 | AB72: 0 | AC72: 2027688.145 | AD72: 6209510.621 | AE72: 1056430.865 | AF72: 1078390.464 | AG72: 1100806.527 | AH72: 1123688.545 | AI72: 9079403.44 | AJ72: 0 | AK72: 9261899.449 | AL72: 1169314.805 | AM72: 5905039.768 | AN72: 16699452.46 | AO72: 0 | AP72: 0 | AQ72: 17205462.57 | AR72: 0 | AS72: 0 | AT72: 0 | AU72: 8952036.673 | AV72: 7749906.034 | AW72: 6522837.579 | AX72: 2635226.382 | AY72: 1330789.323 | AZ72: 13440972.16 | BA72: 5430152.753 | BB72: 8226681.421 | BC72: 13848247.06 | BD72: 75528339.45 | BE72: 1412659.682 | BF72: 2853572.558 | BG72: 7205270.71 | BH72: 62796889.29 | BI72: 7350096.651 | BJ72: 35633268.57 | BK72: 14995667.19 | BL72: 16660186.25 | BM72: 136618760.9 | BN72: 15450050.9 | BO72: 3120910.282 | BP72: 18912716.31 | BQ72: 0 | BR72: 3215476.984 | BS72: 1623815.877 | BT72: 14760486.32 | BU72: 123059980.6 | BV72: 16730191.22 | BW72: 10138495.88 | BX72: 10239880.84 | BY72: 68948530.97 | BZ72: 57451363.43 | CA72: 0 | CB72: 3551887.02 | CC72: 1793702.945 | CD72: 16304759.77 | CE72: 135934777.3 | CF72: 18480539.38 | CG72: 11199206.87 | CH72: 11311198.93 | CI72: 76162072.83 | CJ72: 63462047.18
A73: 64 | B73: =NPV(#REF!,$G73:$CJ73) ->  | C73: =NPV(#REF!,$G$6:$CJ$6) ->  | G73: 0 | H73: 0 | I73: 0 | J73: 0 | K73: 0 | L73: 0 | M73: 0 | N73: 0 | O73: 0 | P73: 0 | Q73: 0 | R73: 0 | S73: 0 | T73: 0 | U73: 859986.2492 | V73: 0 | W73: 0 | X73: 0 | Y73: 0 | Z73: 0 | AA73: 972974.0369 | AB73: 0 | AC73: 0 | AD73: 1034918.437 | AE73: 0 | AF73: 0 | AG73: 0 | AH73: 1123688.545 | AI73: 2269850.86 | AJ73: 0 | AK73: 11577374.31 | AL73: 7015888.833 | AM73: 0 | AN73: 8349726.232 | AO73: 4818984.854 | AP73: 2433587.351 | AQ73: 0 | AR73: 4965004.914 | AS73: 0 | AT73: 2532400.756 | AU73: 2557724.764 | AV73: 6458255.029 | AW73: 15654810.19 | AX73: 36893169.35 | AY73: 10646314.58 | AZ73: 0 | BA73: 1357538.188 | BB73: 12340022.13 | BC73: 16617896.47 | BD73: 8392037.717 | BE73: 21189895.24 | BF73: 15694649.07 | BG73: 7205270.71 | BH73: 65099985.59 | BI73: 1470019.33 | BJ73: 23971679.63 | BK73: 20993934.06 | BL73: 7572811.93 | BM73: 29064452.19 | BN73: 20085066.17 | BO73: 199116481.3 | BP73: 4728179.077 | BQ73: 52761830.1 | BR73: 32154769.84 | BS73: 40595396.92 | BT73: 6560216.143 | BU73: 29816182.37 | BV73: 20076229.46 | BW73: 52382228.71 | BX73: 47786110.57 | BY73: 22408272.57 | BZ73: 48746611.4 | CA73: 58281884.9 | CB73: 35518870.2 | CC73: 44842573.63 | CD73: 7246559.899 | CE73: 32935614.74 | CF73: 22176647.26 | CG73: 57862568.81 | CH73: 52785595.03 | CI73: 24752673.67 | CJ73: 53846585.49
A74: 65 | B74: =NPV(#REF!,$G74:$CJ74) ->  | C74: =NPV(#REF!,$G$6:$CJ$6) ->  | G74: 0 | H74: 0 | I74: 0 | J74: 0 | K74: 0 | L74: 0 | M74: 0 | N74: 0 | O74: 0 | P74: 0 | Q74: 0 | R74: 0 | S74: 4126592.615 | T74: 0 | U74: 0 | V74: 1755724.867 | W74: 0 | X74: 0 | Y74: 0 | Z74: 0 | AA74: 0 | AB74: 993198.8523 | AC74: 4055376.29 | AD74: 0 | AE74: 2112861.73 | AF74: 7548733.245 | AG74: 3302419.582 | AH74: 0 | AI74: 0 | AJ74: 0 | AK74: 6946424.587 | AL74: 0 | AM74: 0 | AN74: 0 | AO74: 4818984.854 | AP74: 0 | AQ74: 2457923.225 | AR74: 2482502.457 | AS74: 5014654.963 | AT74: 45583213.61 | AU74: 3836587.146 | AV74: 19374765.09 | AW74: 3913702.547 | AX74: 0 | AY74: 6653946.614 | AZ74: 5376388.864 | BA74: 1357538.188 | BB74: 0 | BC74: 18002721.18 | BD74: 16784075.43 | BE74: 0 | BF74: 7133931.396 | BG74: 11528433.14 | BH74: 5821858.734 | BI74: 5880077.321 | BJ74: 19301353.81 | BK74: 47986135 | BL74: 34834934.88 | BM74: 0 | BN74: 18540061.08 | BO74: 17392200.5 | BP74: 11032417.85 | BQ74: 17510023.18 | BR74: 1607738.492 | BS74: 40595396.92 | BT74: 88562917.93 | BU74: 3312909.152 | BV74: 30114344.19 | BW74: 45869249.95 | BX74: 5119940.419 | BY74: 51711398.23 | BZ74: 30103103.13 | CA74: 19341959.02 | CB74: 1775943.51 | CC74: 44842573.63 | CD74: 97828558.64 | CE74: 3659512.749 | CF74: 33264970.89 | CG74: 50668188.37 | CH74: 5655599.467 | CI74: 57121554.62 | CJ74: 33252553.76
A75: 66 | B75: =NPV(#REF!,$G75:$CJ75) ->  | C75: =NPV(#REF!,$G$6:$CJ$6) ->  | D75: =B75-C75 ->  | E75: =B75/C75 ->  | G75: 0 | H75: 0 | I75: 0 | J75: 0 | K75: 0 | L75: 0 | M75: 0 | N75: 0 | O75: 0 | P75: 0 | Q75: 0 | R75: 0 | S75: 0 | T75: 2527422.25 | U75: 859986.2492 | V75: 1755724.867 | W75: 2688330.608 | X75: 0 | Y75: 1867503.104 | Z75: 953161.0657 | AA75: 0 | AB75: 0 | AC75: 0 | AD75: 0 | AE75: 1056430.865 | AF75: 1078390.464 | AG75: 0 | AH75: 0 | AI75: 0 | AJ75: 0 | AK75: 0 | AL75: 0 | AM75: 0 | AN75: 10735362.3 | AO75: 7228477.28 | AP75: 4867174.702 | AQ75: 4915846.449 | AR75: 6206256.142 | AS75: 2507327.481 | AT75: 1266200.378 | AU75: 6394311.909 | AV75: 0 | AW75: 3913702.547 | AX75: 23908874.9 | AY75: 7984735.937 | AZ75: 2688194.432 | BA75: 1357538.188 | BB75: 15082249.27 | BC75: 30466143.53 | BD75: 6993364.764 | BE75: 22602554.92 | BF75: 21401794.19 | BG75: 5764216.568 | BH75: 26198364.3 | BI75: 22050289.95 | BJ75: 16331914.76 | BK75: 180660464.6 | BL75: 18174748.63 | BM75: 9178248.059 | BN75: 16995055.99 | BO75: 17165006.55 | BP75: 7880298.461 | BQ75: 68448272.43 | BR75: 0 | BS75: 9742895.262 | BT75: 14760486.32 | BU75: 9938727.457 | BV75: 23422267.71 | BW75: 23656490.38 | BX75: 22186408.48 | BY75: 6894853.097 | BZ75: 43523760.18 | CA75: 75609476.18 | CB75: 0 | CC75: 10762217.67 | CD75: 16304759.77 | CE75: 10978538.25 | CF75: 25872755.14 | CG75: 26131482.69 | CH75: 24507597.69 | CI75: 7616207.283 | CJ75: 48077308.47
A76: =A75+1 -> 67 | B76: =NPV(#REF!,$G76:$CJ76) ->  | C76: =NPV(#REF!,$G$6:$CJ$6) ->  | G76: 0 | H76: 0 | I76: 0 | J76: 0 | K76: 0 | L76: 0 | M76: 0 | N76: 0 | O76: 0 | P76: 0 | Q76: 0 | R76: 0 | S76: 0 | T76: 0 | U76: 0 | V76: 0 | W76: 896110.2025 | X76: 0 | Y76: 0 | Z76: 3812644.263 | AA76: 0 | AB76: 0 | AC76: 0 | AD76: 6209510.621 | AE76: 2112861.73 | AF76: 0 | AG76: 15411291.38 | AH76: 1123688.545 | AI76: 0 | AJ76: 1146274.684 | AK76: 8104162.018 | AL76: 0 | AM76: 0 | AN76: 0 | AO76: 0 | AP76: 7300762.053 | AQ76: 2457923.225 | AR76: 8688758.599 | AS76: 0 | AT76: 2532400.756 | AU76: 5115449.528 | AV76: 2583302.011 | AW76: 2609135.032 | AX76: 0 | AY76: 0 | AZ76: 1344097.216 | BA76: 16290458.26 | BB76: 8226681.421 | BC76: 22157195.29 | BD76: 43358861.54 | BE76: 1412659.682 | BF76: 27108939.31 | BG76: 7205270.71 | BH76: 2910929.367 | BI76: 13658227.94 | BJ76: 23971679.63 | BK76: 2999133.438 | BL76: 18174748.63 | BM76: 19886204.13 | BN76: 150990216.3 | BO76: 3120910.282 | BP76: 29945134.15 | BQ76: 46162788.39 | BR76: 180331597.9 | BS76: 9742895.262 | BT76: 11480378.25 | BU76: 39754909.83 | BV76: 43498497.17 | BW76: 30415487.64 | BX76: 8533234.031 | BY76: 27579412.39 | BZ76: 22632355.29 | CA76: 50992437.42 | CB76: 199198272.9 | CC76: 10762217.67 | CD76: 12681479.82 | CE76: 43914152.99 | CF76: 48049402.4 | CG76: 33597620.6 | CH76: 9425999.112 | CI76: 30464829.13 | CJ76: 25000200.41
A77: 68 | B77: =NPV(#REF!,$G77:$CJ77) ->  | C77: =NPV(#REF!,$G$6:$CJ$6) ->  | G77: 0 | H77: 0 | I77: 0 | J77: 0 | K77: 0 | L77: 0 | M77: 0 | N77: 0 | O77: 0 | P77: 0 | Q77: 0 | R77: 0 | S77: 0 | T77: 0 | U77: 0 | V77: 0 | W77: 0 | X77: 914737.2806 | Y77: 0 | Z77: 953161.0657 | AA77: 1945948.074 | AB77: 0 | AC77: 1013844.073 | AD77: 0 | AE77: 0 | AF77: 0 | AG77: 0 | AH77: 0 | AI77: 1134925.43 | AJ77: 0 | AK77: 0 | AL77: 1169314.805 | AM77: 0 | AN77: 8349726.232 | AO77: 0 | AP77: 3650381.027 | AQ77: 0 | AR77: 2482502.457 | AS77: 8775646.185 | AT77: 1266200.378 | AU77: 3836587.146 | AV77: 2583302.011 | AW77: 5218270.063 | AX77: 0 | AY77: 7984735.937 | AZ77: 0 | BA77: 0 | BB77: 0 | BC77: 2769649.412 | BD77: 13986729.53 | BE77: 12713937.14 | BF77: 4280358.838 | BG77: 99432735.8 | BH77: 2910929.367 | BI77: 5880077.321 | BJ77: 0 | BK77: 52703164.08 | BL77: 9087374.316 | BM77: 0 | BN77: 38625127.25 | BO77: 3120910.282 | BP77: 17336656.61 | BQ77: 0 | BR77: 4823215.476 | BS77: 42219212.8 | BT77: 11480378.25 | BU77: 56319455.59 | BV77: 6692076.488 | BW77: 109833705.4 | BX77: 22186408.48 | BY77: 17237132.74 | BZ77: 87300993.46 | CA77: 0 | CB77: 5327830.531 | CC77: 46636276.58 | CD77: 12681479.82 | CE77: 62211716.73 | CF77: 7392215.753 | CG77: 121324741 | CH77: 24507597.69 | CI77: 19040518.21 | CJ77: 96434608.94
A78: 69 | B78: =NPV(#REF!,$G78:$CJ78) ->  | C78: =NPV(#REF!,$G$6:$CJ$6) ->  | G78: 0 | H78: 0 | I78: 0 | J78: 0 | K78: 0 | L78: 0 | M78: 0 | N78: 0 | O78: 0 | P78: 0 | Q78: 0 | R78: 0 | S78: 0 | T78: 0 | U78: 0 | V78: 0 | W78: 1792220.405 | X78: 4573686.403 | Y78: 0 | Z78: 0 | AA78: 1945948.074 | AB78: 1986397.705 | AC78: 1013844.073 | AD78: 0 | AE78: 7395016.056 | AF78: 0 | AG78: 4403226.109 | AH78: 1123688.545 | AI78: 0 | AJ78: 0 | AK78: 0 | AL78: 0 | AM78: 0 | AN78: 0 | AO78: 3614238.64 | AP78: 10951143.08 | AQ78: 0 | AR78: 8688758.599 | AS78: 0 | AT78: 10129603.02 | AU78: 0 | AV78: 0 | AW78: 5218270.063 | AX78: 1317613.191 | AY78: 65596188.49 | AZ78: 0 | BA78: 4072614.565 | BB78: 1371113.57 | BC78: 2769649.412 | BD78: 8392037.717 | BE78: 22602554.92 | BF78: 5707145.117 | BG78: 7205270.71 | BH78: 173467986.5 | BI78: 20580270.62 | BJ78: 31395277.25 | BK78: 17994800.63 | BL78: 10601936.7 | BM78: 9178248.059 | BN78: 1545005.09 | BO78: 12483641.13 | BP78: 4728179.077 | BQ78: 9550921.735 | BR78: 1607738.492 | BS78: 361824802.9 | BT78: 14760486.32 | BU78: 36683171.64 | BV78: 5019057.366 | BW78: 15207743.82 | BX78: 10239880.84 | BY78: 48263971.68 | BZ78: 73626863.3 | CA78: 10550159.47 | CB78: 1775943.51 | CC78: 399679682.9 | CD78: 16304759.77 | CE78: 40521043.02 | CF78: 5544161.815 | CG78: 16798810.3 | CH78: 11311198.93 | CI78: 53313450.98 | CJ78: 81329862.23
A79: 70 | B79: =NPV(#REF!,$G79:$CJ79) ->  | C79: =NPV(#REF!,$G$6:$CJ$6) ->  | G79: 0 | H79: 0 | I79: 0 | J79: 0 | K79: 0 | L79: 0 | M79: 0 | N79: 0 | O79: 0 | P79: 0 | Q79: 0 | R79: 0 | S79: 0 | T79: 842474.0833 | U79: 859986.2492 | V79: 1755724.867 | W79: 6272771.418 | X79: 0 | Y79: 0 | Z79: 0 | AA79: 0 | AB79: 6952391.966 | AC79: 0 | AD79: 0 | AE79: 2112861.73 | AF79: 10783904.64 | AG79: 5504032.636 | AH79: 2247377.089 | AI79: 0 | AJ79: 1146274.684 | AK79: 0 | AL79: 2338629.611 | AM79: 0 | AN79: 3578454.099 | AO79: 4818984.854 | AP79: 0 | AQ79: 23350270.63 | AR79: 16136265.97 | AS79: 1253663.741 | AT79: 3798601.134 | AU79: 0 | AV79: 11624859.05 | AW79: 1304567.516 | AX79: 6588065.955 | AY79: 1330789.323 | AZ79: 9408680.512 | BA79: 1357538.188 | BB79: 5484454.28 | BC79: 6924123.529 | BD79: 4196018.859 | BE79: 8475958.094 | BF79: 4280358.838 | BG79: 15851595.56 | BH79: 5821858.734 | BI79: 11760154.64 | BJ79: 111570131.5 | BK79: 53984401.88 | BL79: 12116499.09 | BM79: 7648540.049 | BN79: 20085066.17 | BO79: 3120910.282 | BP79: 64618447.38 | BQ79: 15918202.89 | BR79: 45016677.78 | BS79: 11366711.14 | BT79: 14760486.32 | BU79: 88756776.38 | BV79: 10038114.73 | BW79: 3379498.626 | BX79: 5119940.419 | BY79: 1723713.274 | BZ79: 20891404.88 | CA79: 17583599.11 | CB79: 49726418.29 | CC79: 12555920.62 | CD79: 16304759.77 | CE79: 98042698.97 | CF79: 11088323.63 | CG79: 3733068.955 | CH79: 5655599.467 | CI79: 1904051.821 | CJ79: 23077108.07
A80: 71 | B80: =NPV(#REF!,$G80:$CJ80) ->  | C80: =NPV(#REF!,$G$6:$CJ$6) ->  | G80: 0 | H80: 0 | I80: 0 | J80: 0 | K80: 0 | L80: 0 | M80: 0 | N80: 0 | O80: 0 | P80: 0 | Q80: 0 | R80: 0 | S80: 0 | T80: 0 | U80: 0 | V80: 0 | W80: 0 | X80: 0 | Y80: 933751.5522 | Z80: 0 | AA80: 1945948.074 | AB80: 1986397.705 | AC80: 0 | AD80: 2069836.874 | AE80: 2112861.73 | AF80: 3235171.391 | AG80: 15411291.38 | AH80: 0 | AI80: 0 | AJ80: 0 | AK80: 2315474.862 | AL80: 7015888.833 | AM80: 0 | AN80: 10735362.3 | AO80: 3614238.64 | AP80: 8517555.729 | AQ80: 0 | AR80: 6206256.142 | AS80: 7521982.444 | AT80: 5064801.512 | AU80: 8952036.673 | AV80: 5166604.023 | AW80: 0 | AX80: 0 | AY80: 10646314.58 | AZ80: 1344097.216 | BA80: 39368607.46 | BB80: 1371113.57 | BC80: 11078597.65 | BD80: 16784075.43 | BE80: 31284188.74 | BF80: 0 | BG80: 0 | BH80: 5821858.734 | BI80: 0 | BJ80: 23755512.38 | BK80: 16495233.91 | BL80: 10601936.7 | BM80: 10707956.07 | BN80: 7725025.45 | BO80: 18725461.69 | BP80: 6304238.769 | BQ80: 39795507.23 | BR80: 45016677.78 | BS80: 22733422.28 | BT80: 247264876.8 | BU80: 34785546.1 | BV80: 20076229.46 | BW80: 301888972.4 | BX80: 13653174.45 | BY80: 25855699.11 | BZ80: 45264710.58 | CA80: 43958997.78 | CB80: 49726418.29 | CC80: 25111841.23 | CD80: 273134253.7 | CE80: 38424883.87 | CF80: 22176647.26 | CG80: 333473238.4 | CH80: 15081598.58 | CI80: 28560777.31 | CJ80: 50000400.81
A81: 72 | B81: =NPV(#REF!,$G81:$CJ81) ->  | C81: =NPV(#REF!,$G$6:$CJ$6) ->  | G81: 0 | H81: 0 | I81: 0 | J81: 0 | K81: 0 | L81: 0 | M81: 0 | N81: 0 | O81: 0 | P81: 0 | Q81: 0 | R81: 0 | S81: 0 | T81: 2527422.25 | U81: 5159917.495 | V81: 4517124.261 | W81: 4480551.013 | X81: 2744211.842 | Y81: 0 | Z81: 2859483.197 | AA81: 1945948.074 | AB81: 0 | AC81: 0 | AD81: 0 | AE81: 3169292.595 | AF81: 6470342.782 | AG81: 2201613.055 | AH81: 0 | AI81: 6809552.58 | AJ81: 8023922.79 | AK81: 9261899.449 | AL81: 0 | AM81: 0 | AN81: 2385636.066 | AO81: 21685431.84 | AP81: 0 | AQ81: 29495078.7 | AR81: 0 | AS81: 0 | AT81: 7597202.269 | AU81: 76731742.91 | AV81: 2583302.011 | AW81: 0 | AX81: 6588065.955 | AY81: 14638682.55 | AZ81: 12096874.94 | BA81: 4072614.565 | BB81: 24680044.26 | BC81: 5539298.823 | BD81: 8392037.717 | BE81: 0 | BF81: 0 | BG81: 15851595.56 | BH81: 5821858.734 | BI81: 151440160.6 | BJ81: 13362475.71 | BK81: 34490034.53 | BL81: 0 | BM81: 19886204.13 | BN81: 4635015.27 | BO81: 0 | BP81: 113935229.6 | BQ81: 12734562.31 | BR81: 1607738.492 | BS81: 3247631.754 | BT81: 32801080.72 | BU81: 56319455.59 | BV81: 21749248.58 | BW81: 27035989.01 | BX81: 8533234.031 | BY81: 22408272.57 | BZ81: 58211782.75 | CA81: 14066879.29 | CB81: 1775943.51 | CC81: 3587405.891 | CD81: 36232799.5 | CE81: 62211716.73 | CF81: 24024701.2 | CG81: 29864551.64 | CH81: 9425999.112 | CI81: 24752673.67 | CJ81: 64302023.18
A82: 73 | B82: =NPV(#REF!,$G82:$CJ82) ->  | C82: =NPV(#REF!,$G$6:$CJ$6) ->  | G82: 0 | H82: 0 | I82: 0 | J82: 0 | K82: 0 | L82: 0 | M82: 0 | N82: 0 | O82: 0 | P82: 0 | Q82: 0 | R82: 0 | S82: 0 | T82: 6739792.666 | U82: 0 | V82: 3511449.734 | W82: 0 | X82: 0 | Y82: 933751.5522 | Z82: 0 | AA82: 1945948.074 | AB82: 0 | AC82: 2027688.145 | AD82: 1034918.437 | AE82: 0 | AF82: 11862295.1 | AG82: 0 | AH82: 0 | AI82: 0 | AJ82: 0 | AK82: 2315474.862 | AL82: 1169314.805 | AM82: 8267055.675 | AN82: 10735362.3 | AO82: 1204746.213 | AP82: 0 | AQ82: 3686884.837 | AR82: 0 | AS82: 0 | AT82: 0 | AU82: 0 | AV82: 1291651.006 | AW82: 0 | AX82: 6588065.955 | AY82: 7984735.937 | AZ82: 0 | BA82: 0 | BB82: 10968908.56 | BC82: 20772370.59 | BD82: 22378767.25 | BE82: 1412659.682 | BF82: 4280358.838 | BG82: 4323162.426 | BH82: 4366394.05 | BI82: 5880077.321 | BJ82: 0 | BK82: 20993934.06 | BL82: 6058249.544 | BM82: 3059416.02 | BN82: 7725025.45 | BO82: 3120910.282 | BP82: 37825432.61 | BQ82: 20693663.76 | BR82: 51447631.75 | BS82: 25981054.03 | BT82: 34441134.75 | BU82: 29816182.37 | BV82: 16730191.22 | BW82: 25346239.7 | BX82: 101686076.3 | BY82: 20684559.29 | BZ82: 10445702.44 | CA82: 22858678.84 | CB82: 56830192.33 | CC82: 28699247.13 | CD82: 38044439.47 | CE82: 32935614.74 | CF82: 18480539.38 | CG82: 27998017.16 | CH82: 112324689.7 | CI82: 22848621.85 | CJ82: 11538554.03
A83: 74 | B83: =NPV(#REF!,$G83:$CJ83) ->  | C83: =NPV(#REF!,$G$6:$CJ$6) ->  | G83: 0 | H83: 0 | I83: 0 | J83: 0 | K83: 0 | L83: 0 | M83: 0 | N83: 0 | O83: 0 | P83: 0 | Q83: 0 | R83: 0 | S83: 0 | T83: 0 | U83: 0 | V83: 877862.4334 | W83: 0 | X83: 0 | Y83: 0 | Z83: 0 | AA83: 1945948.074 | AB83: 0 | AC83: 4055376.29 | AD83: 9314265.931 | AE83: 2112861.73 | AF83: 0 | AG83: 0 | AH83: 0 | AI83: 12484179.73 | AJ83: 1146274.684 | AK83: 0 | AL83: 19878351.69 | AM83: 0 | AN83: 16699452.46 | AO83: 0 | AP83: 8517555.729 | AQ83: 8602731.286 | AR83: 1241251.228 | AS83: 47639222.15 | AT83: 7597202.269 | AU83: 3836587.146 | AV83: 1291651.006 | AW83: 3913702.547 | AX83: 3952839.573 | AY83: 0 | AZ83: 8064583.296 | BA83: 4072614.565 | BB83: 8226681.421 | BC83: 2769649.412 | BD83: 2797345.906 | BE83: 5650638.73 | BF83: 2853572.558 | BG83: 17292649.7 | BH83: 80686281.3 | BI83: 7350096.651 | BJ83: 40519761.64 | BK83: 11996533.75 | BL83: 6058249.544 | BM83: 10707956.07 | BN83: 7725025.45 | BO83: 18725461.69 | BP83: 18912716.31 | BQ83: 313247090.2 | BR83: 41801200.79 | BS83: 38971581.05 | BT83: 8200270.179 | BU83: 6625818.304 | BV83: 20076229.46 | BW83: 27035989.01 | BX83: 13653174.45 | BY83: 8618566.371 | BZ83: 5222851.221 | CA83: 346019666.6 | CB83: 46174531.27 | CC83: 43048870.69 | CD83: 9058199.874 | CE83: 7319025.498 | CF83: 22176647.26 | CG83: 29864551.64 | CH83: 15081598.58 | CI83: 9520259.103 | CJ83: 5769277.017
A84: 75 | B84: =NPV(#REF!,$G84:$CJ84) ->  | C84: =NPV(#REF!,$G$6:$CJ$6) ->  | G84: 0 | H84: 0 | I84: 0 | J84: 0 | K84: 0 | L84: 0 | M84: 0 | N84: 0 | O84: 0 | P84: 0 | Q84: 0 | R84: 0 | S84: 0 | T84: 0 | U84: 0 | V84: 1755724.867 | W84: 11649432.63 | X84: 6403160.965 | Y84: 0 | Z84: 953161.0657 | AA84: 0 | AB84: 1986397.705 | AC84: 2027688.145 | AD84: 0 | AE84: 1056430.865 | AF84: 1078390.464 | AG84: 0 | AH84: 0 | AI84: 0 | AJ84: 0 | AK84: 0 | AL84: 9354518.444 | AM84: 20077135.21 | AN84: 9542544.265 | AO84: 2409492.427 | AP84: 0 | AQ84: 3686884.837 | AR84: 1241251.228 | AS84: 1253663.741 | AT84: 2532400.756 | AU84: 2557724.764 | AV84: 1291651.006 | AW84: 3913702.547 | AX84: 0 | AY84: 10646314.58 | AZ84: 9408680.512 | BA84: 1357538.188 | BB84: 1371113.57 | BC84: 0 | BD84: 0 | BE84: 15539256.51 | BF84: 2853572.558 | BG84: 8646324.852 | BH84: 5821858.734 | BI84: 1470019.33 | BJ84: 5938878.094 | BK84: 14995667.19 | BL84: 153661360.7 | BM84: 10707956.07 | BN84: 72840183.74 | BO84: 49934564.51 | BP84: 20488776 | BQ84: 74815553.59 | BR84: 49839893.25 | BS84: 19485790.52 | BT84: 0 | BU84: 21533909.49 | BV84: 60472271.06 | BW84: 11828245.19 | BX84: 11946527.64 | BY84: 22408272.57 | BZ84: 48746611.4 | CA84: 82642915.82 | CB84: 55054248.82 | CC84: 21524435.34 | CD84: 0 | CE84: 23786832.87 | CF84: 66799008.59 | CG84: 13065741.34 | CH84: 13196398.76 | CI84: 24752673.67 | CJ84: 53846585.49
A85: 76 | B85: =NPV(#REF!,$G85:$CJ85) ->  | C85: =NPV(#REF!,$G$6:$CJ$6) ->  | G85: 0 | H85: 0 | I85: 0 | J85: 0 | K85: 0 | L85: 0 | M85: 0 | N85: 0 | O85: 0 | P85: 0 | Q85: 0 | R85: 0 | S85: 0 | T85: 0 | U85: 859986.2492 | V85: 877862.4334 | W85: 3584440.81 | X85: 0 | Y85: 0 | Z85: 15250577.05 | AA85: 0 | AB85: 993198.8523 | AC85: 1013844.073 | AD85: 0 | AE85: 0 | AF85: 0 | AG85: 13369949.89 | AH85: 0 | AI85: 4539701.72 | AJ85: 0 | AK85: 3473212.294 | AL85: 0 | AM85: 3543023.861 | AN85: 2385636.066 | AO85: 32703552.39 | AP85: 4867174.702 | AQ85: 29495078.7 | AR85: 0 | AS85: 47639222.15 | AT85: 0 | AU85: 0 | AV85: 0 | AW85: 0 | AX85: 5270452.764 | AY85: 10646314.58 | AZ85: 9408680.512 | BA85: 0 | BB85: 5484454.28 | BC85: 8308948.235 | BD85: 4196018.859 | BE85: 79314617.94 | BF85: 49133930.94 | BG85: 7205270.71 | BH85: 5821858.734 | BI85: 27930367.28 | BJ85: 31395277.25 | BK85: 1499566.719 | BL85: 13631061.47 | BM85: 0 | BN85: 13905045.81 | BO85: 0 | BP85: 7880298.461 | BQ85: 19101843.47 | BR85: 3215476.984 | BS85: 50574711.13 | BT85: 39361296.86 | BU85: 29816182.37 | BV85: 23422267.71 | BW85: 30415487.64 | BX85: 199991563 | BY85: 0 | BZ85: 47005660.99 | CA85: 21100318.93 | CB85: 3551887.02 | CC85: 55865944.9 | CD85: 43479359.39 | CE85: 32935614.74 | CF85: 25872755.14 | CG85: 33597620.6 | CH85: 220915105.3 | CI85: 0 | CJ85: 51923493.15
A86: 77 | B86: =NPV(#REF!,$G86:$CJ86) ->  | C86: =NPV(#REF!,$G$6:$CJ$6) ->  | G86: 0 | H86: 0 | I86: 0 | J86: 0 | K86: 0 | L86: 0 | M86: 0 | N86: 0 | O86: 0 | P86: 0 | Q86: 0 | R86: 0 | S86: 0 | T86: 842474.0833 | U86: 0 | V86: 0 | W86: 0 | X86: 0 | Y86: 0 | Z86: 0 | AA86: 4864870.185 | AB86: 2979596.557 | AC86: 0 | AD86: 0 | AE86: 0 | AF86: 0 | AG86: 2201613.055 | AH86: 0 | AI86: 0 | AJ86: 0 | AK86: 0 | AL86: 22216981.3 | AM86: 0 | AN86: 7156908.198 | AO86: 7228477.28 | AP86: 0 | AQ86: 0 | AR86: 1241251.228 | AS86: 0 | AT86: 0 | AU86: 0 | AV86: 0 | AW86: 9131972.61 | AX86: 3952839.573 | AY86: 14638682.55 | AZ86: 1344097.216 | BA86: 0 | BB86: 17824476.41 | BC86: 6924123.529 | BD86: 2797345.906 | BE86: 14126596.82 | BF86: 15694649.07 | BG86: 10087378.99 | BH86: 0 | BI86: 5880077.321 | BJ86: 8908317.141 | BK86: 0 | BL86: 6058249.544 | BM86: 3059416.02 | BN86: 16995055.99 | BO86: 61766526.31 | BP86: 44129671.38 | BQ86: 20693663.76 | BR86: 9646430.952 | BS86: 6495263.508 | BT86: 42641404.93 | BU86: 29816182.37 | BV86: 120002271 | BW86: 6758997.252 | BX86: 213893216.1 | BY86: 0 | BZ86: 20891404.88 | CA86: 22858678.84 | CB86: 10655661.06 | CC86: 7174811.781 | CD86: 47102639.34 | CE86: 32935614.74 | CF86: 132557163.7 | CG86: 7466137.911 | CH86: 236271179 | CI86: 0 | CJ86: 23077108.07
A87: 78 | B87: =NPV(#REF!,$G87:$CJ87) ->  | C87: =NPV(#REF!,$G$6:$CJ$6) ->  | G87: 0 | H87: 0 | I87: 0 | J87: 0 | K87: 0 | L87: 0 | M87: 0 | N87: 0 | O87: 0 | P87: 0 | Q87: 0 | R87: 0 | S87: 0 | T87: 9267214.916 | U87: 0 | V87: 0 | W87: 0 | X87: 0 | Y87: 0 | Z87: 15250577.05 | AA87: 972974.0369 | AB87: 0 | AC87: 1013844.073 | AD87: 2069836.874 | AE87: 3169292.595 | AF87: 0 | AG87: 4403226.109 | AH87: 2247377.089 | AI87: 1134925.43 | AJ87: 0 | AK87: 0 | AL87: 9354518.444 | AM87: 7086047.721 | AN87: 20277906.56 | AO87: 0 | AP87: 0 | AQ87: 0 | AR87: 11171261.06 | AS87: 0 | AT87: 5064801.512 | AU87: 0 | AV87: 0 | AW87: 3913702.547 | AX87: 1317613.191 | AY87: 7984735.937 | AZ87: 1344097.216 | BA87: 1357538.188 | BB87: 2742227.14 | BC87: 22157195.29 | BD87: 0 | BE87: 21189895.24 | BF87: 5707145.117 | BG87: 4323162.426 | BH87: 20376505.57 | BI87: 63638885.17 | BJ87: 32663829.52 | BK87: 154294514.6 | BL87: 4543687.158 | BM87: 0 | BN87: 61800203.6 | BO87: 4681365.423 | BP87: 11032417.85 | BQ87: 73687254.41 | BR87: 32388848 | BS87: 22733422.28 | BT87: 1640054.036 | BU87: 8282272.881 | BV87: 11711133.85 | BW87: 27035989.01 | BX87: 0 | BY87: 13789706.19 | BZ87: 10445702.44 | CA87: 81396571.58 | CB87: 35777438.12 | CC87: 25111841.23 | CD87: 1811639.975 | CE87: 9148781.873 | CF87: 12936377.57 | CG87: 29864551.64 | CH87: 0 | CI87: 15232414.57 | CJ87: 11538554.03
A88: 79 | B88: =NPV(#REF!,$G88:$CJ88) ->  | C88: =NPV(#REF!,$G$6:$CJ$6) ->  | G88: 0 | H88: 0 | I88: 0 | J88: 0 | K88: 0 | L88: 0 | M88: 0 | N88: 0 | O88: 0 | P88: 0 | Q88: 0 | R88: 0 | S88: 0 | T88: 0 | U88: 859986.2492 | V88: 0 | W88: 0 | X88: 6403160.965 | Y88: 0 | Z88: 0 | AA88: 0 | AB88: 0 | AC88: 0 | AD88: 6209510.621 | AE88: 1056430.865 | AF88: 7548733.245 | AG88: 0 | AH88: 0 | AI88: 4539701.72 | AJ88: 6877648.106 | AK88: 3473212.294 | AL88: 5846574.027 | AM88: 5905039.768 | AN88: 0 | AO88: 0 | AP88: 2433587.351 | AQ88: 4915846.449 | AR88: 2482502.457 | AS88: 0 | AT88: 3798601.134 | AU88: 0 | AV88: 5166604.023 | AW88: 3913702.547 | AX88: 1317613.191 | AY88: 21292629.17 | AZ88: 1344097.216 | BA88: 8145229.129 | BB88: 8226681.421 | BC88: 9693772.941 | BD88: 20980094.29 | BE88: 4237979.047 | BF88: 75827405.28 | BG88: 12969487.28 | BH88: 4366394.05 | BI88: 14700193.3 | BJ88: 14847195.24 | BK88: 2999133.438 | BL88: 22718435.79 | BM88: 13767372.09 | BN88: 16995055.99 | BO88: 23406827.11 | BP88: 18912716.31 | BQ88: 6367281.157 | BR88: 61328140.86 | BS88: 349985253.9 | BT88: 18040594.39 | BU88: 29816182.37 | BV88: 43498497.17 | BW88: 25346239.7 | BX88: 59732638.22 | BY88: 49987684.95 | BZ88: 29849630.02 | CA88: 7033439.644 | CB88: 67744421.3 | CC88: 386601455.1 | CD88: 19928039.72 | CE88: 32935614.74 | CF88: 48049402.4 | CG88: 27998017.16 | CH88: 65981993.79 | CI88: 55217502.8 | CJ88: 32972561.76
A89: 80 | B89: =NPV(#REF!,$G89:$CJ89) ->  | C89: =NPV(#REF!,$G$6:$CJ$6) ->  | G89: 0 | H89: 0 | I89: 0 | J89: 0 | K89: 0 | L89: 0 | M89: 0 | N89: 0 | O89: 0 | P89: 0 | Q89: 0 | R89: 0 | S89: 0 | T89: 0 | U89: 859986.2492 | V89: 2633587.3 | W89: 0 | X89: 0 | Y89: 0 | Z89: 3812644.263 | AA89: 0 | AB89: 0 | AC89: 1013844.073 | AD89: 0 | AE89: 4225723.46 | AF89: 0 | AG89: 4403226.109 | AH89: 0 | AI89: 1134925.43 | AJ89: 0 | AK89: 0 | AL89: 1169314.805 | AM89: 0 | AN89: 0 | AO89: 3614238.64 | AP89: 8517555.729 | AQ89: 4915846.449 | AR89: 12412512.28 | AS89: 0 | AT89: 0 | AU89: 0 | AV89: 5166604.023 | AW89: 3913702.547 | AX89: 6588065.955 | AY89: 7984735.937 | AZ89: 47043402.56 | BA89: 13575381.88 | BB89: 26051157.83 | BC89: 2769649.412 | BD89: 0 | BE89: 5650638.73 | BF89: 34242870.7 | BG89: 12969487.28 | BH89: 21831970.25 | BI89: 20580270.62 | BJ89: 5938878.094 | BK89: 4498700.156 | BL89: 6058249.544 | BM89: 7648540.049 | BN89: 30900101.8 | BO89: 3120910.282 | BP89: 4728179.077 | BQ89: 20693663.76 | BR89: 3215476.984 | BS89: 361824802.9 | BT89: 0 | BU89: 56319455.59 | BV89: 16730191.22 | BW89: 23656490.38 | BX89: 94859489.08 | BY89: 5171139.823 | BZ89: 225122910 | CA89: 22858678.84 | CB89: 3551887.02 | CC89: 399679682.9 | CD89: 0 | CE89: 62211716.73 | CF89: 18480539.38 | CG89: 26131482.69 | CH89: 104783890.4 | CI89: 5712155.462 | CJ89: 248675747.4
A90: 81 | B90: =NPV(#REF!,$G90:$CJ90) ->  | C90: =NPV(#REF!,$G$6:$CJ$6) ->  | G90: 0 | H90: 0 | I90: 0 | J90: 0 | K90: 0 | L90: 0 | M90: 0 | N90: 0 | O90: 0 | P90: 0 | Q90: 0 | R90: 0 | S90: 0 | T90: 9267214.916 | U90: 0 | V90: 1755724.867 | W90: 3584440.81 | X90: 0 | Y90: 1867503.104 | Z90: 953161.0657 | AA90: 0 | AB90: 0 | AC90: 0 | AD90: 2069836.874 | AE90: 0 | AF90: 1078390.464 | AG90: 15411291.38 | AH90: 4494754.178 | AI90: 0 | AJ90: 0 | AK90: 0 | AL90: 5846574.027 | AM90: 2362015.907 | AN90: 0 | AO90: 0 | AP90: 0 | AQ90: 0 | AR90: 1241251.228 | AS90: 5014654.963 | AT90: 45583213.61 | AU90: 6394311.909 | AV90: 14208161.06 | AW90: 7827405.095 | AX90: 3952839.573 | AY90: 7984735.937 | AZ90: 13440972.16 | BA90: 8145229.129 | BB90: 12340022.13 | BC90: 0 | BD90: 9790710.67 | BE90: 15539256.51 | BF90: 9987503.955 | BG90: 17292649.7 | BH90: 8732788.101 | BI90: 8820115.982 | BJ90: 1484719.524 | BK90: 11996533.75 | BL90: 6058249.544 | BM90: 4589124.03 | BN90: 13905045.81 | BO90: 28088192.54 | BP90: 11032417.85 | BQ90: 22285484.05 | BR90: 1607738.492 | BS90: 17861974.65 | BT90: 13120432.29 | BU90: 24846818.64 | BV90: 15057172.1 | BW90: 98005460.16 | BX90: 5119940.419 | BY90: 13789706.19 | BZ90: 24626778.8 | CA90: 24617038.76 | CB90: 1775943.51 | CC90: 19730732.4 | CD90: 14493119.8 | CE90: 27446345.62 | CF90: 16632485.44 | CG90: 108258999.7 | CH90: 5655599.467 | CI90: 15232414.57 | CJ90: 27203284.74
A91: 82 | B91: =NPV(#REF!,$G91:$CJ91) ->  | C91: =NPV(#REF!,$G$6:$CJ$6) ->  | G91: 0 | H91: 0 | I91: 0 | J91: 0 | K91: 0 | L91: 0 | M91: 0 | N91: 0 | O91: 0 | P91: 0 | Q91: 0 | R91: 0 | S91: 0 | T91: 0 | U91: 0 | V91: 2633587.3 | W91: 0 | X91: 0 | Y91: 933751.5522 | Z91: 0 | AA91: 0 | AB91: 0 | AC91: 1013844.073 | AD91: 2069836.874 | AE91: 0 | AF91: 7548733.245 | AG91: 0 | AH91: 1123688.545 | AI91: 1134925.43 | AJ91: 0 | AK91: 10419636.88 | AL91: 0 | AM91: 2362015.907 | AN91: 3578454.099 | AO91: 2409492.427 | AP91: 4867174.702 | AQ91: 0 | AR91: 4965004.914 | AS91: 5014654.963 | AT91: 5064801.512 | AU91: 3836587.146 | AV91: 1291651.006 | AW91: 3913702.547 | AX91: 3952839.573 | AY91: 14638682.55 | AZ91: 1344097.216 | BA91: 40726145.65 | BB91: 9597794.991 | BC91: 15233071.76 | BD91: 22378767.25 | BE91: 21189895.24 | BF91: 21401794.19 | BG91: 4323162.426 | BH91: 27653828.99 | BI91: 142406017.6 | BJ91: 1484719.524 | BK91: 2999133.438 | BL91: 13631061.47 | BM91: 7648540.049 | BN91: 20085066.17 | BO91: 12483641.13 | BP91: 9456358.154 | BQ91: 39795507.23 | BR91: 33996586.49 | BS91: 44079447.62 | BT91: 42641404.93 | BU91: 33129091.52 | BV91: 18403210.34 | BW91: 109833705.4 | BX91: 15359821.26 | BY91: 20684559.29 | BZ91: 54729881.93 | CA91: 43958997.78 | CB91: 37553381.63 | CC91: 48691133.12 | CD91: 47102639.34 | CE91: 36595127.49 | CF91: 20328593.32 | CG91: 121324741 | CH91: 16966798.4 | CI91: 22848621.85 | CJ91: 60455838.5
A92: 83 | B92: =NPV(#REF!,$G92:$CJ92) ->  | C92: =NPV(#REF!,$G$6:$CJ$6) ->  | G92: 0 | H92: 0 | I92: 0 | J92: 0 | K92: 0 | L92: 0 | M92: 0 | N92: 0 | O92: 0 | P92: 0 | Q92: 0 | R92: 0 | S92: 0 | T92: 0 | U92: 0 | V92: 0 | W92: 0 | X92: 4573686.403 | Y92: 0 | Z92: 953161.0657 | AA92: 0 | AB92: 0 | AC92: 1013844.073 | AD92: 2069836.874 | AE92: 1056430.865 | AF92: 0 | AG92: 8806452.218 | AH92: 0 | AI92: 2269850.86 | AJ92: 6877648.106 | AK92: 10419636.88 | AL92: 5846574.027 | AM92: 0 | AN92: 0 | AO92: 21685431.84 | AP92: 7300762.053 | AQ92: 1228961.612 | AR92: 0 | AS92: 6268318.704 | AT92: 3798601.134 | AU92: 0 | AV92: 6458255.029 | AW92: 6522837.579 | AX92: 13176131.91 | AY92: 0 | AZ92: 96970692.95 | BA92: 2715076.376 | BB92: 0 | BC92: 2769649.412 | BD92: 75528339.45 | BE92: 24015214.6 | BF92: 14267862.79 | BG92: 20174757.99 | BH92: 80686281.3 | BI92: 4410057.991 | BJ92: 16331914.76 | BK92: 14995667.19 | BL92: 22718435.79 | BM92: 55069488.35 | BN92: 37305066.67 | BO92: 4681365.423 | BP92: 15760596.92 | BQ92: 20693663.76 | BR92: 32154769.84 | BS92: 24357238.15 | BT92: 9840324.215 | BU92: 36442000.67 | BV92: 26768305.95 | BW92: 23656490.38 | BX92: 42666170.16 | BY92: 6894853.097 | BZ92: 53969462.62 | CA92: 22858678.84 | CB92: 35518870.2 | CC92: 26905544.18 | CD92: 10869839.85 | CE92: 40254640.24 | CF92: 29568863.01 | CG92: 26131482.69 | CH92: 47129995.56 | CI92: 7616207.283 | CJ92: 59615862.5
A93: 84 | B93: =NPV(#REF!,$G93:$CJ93) ->  | C93: =NPV(#REF!,$G$6:$CJ$6) ->  | G93: 0 | H93: 0 | I93: 0 | J93: 0 | K93: 0 | L93: 0 | M93: 0 | N93: 0 | O93: 0 | P93: 0 | Q93: 0 | R93: 0 | S93: 0 | T93: 0 | U93: 0 | V93: 1755724.867 | W93: 0 | X93: 0 | Y93: 1867503.104 | Z93: 0 | AA93: 0 | AB93: 0 | AC93: 0 | AD93: 1034918.437 | AE93: 2112861.73 | AF93: 6470342.782 | AG93: 1100806.527 | AH93: 0 | AI93: 0 | AJ93: 8023922.79 | AK93: 2315474.862 | AL93: 5846574.027 | AM93: 0 | AN93: 0 | AO93: 0 | AP93: 4867174.702 | AQ93: 28266117.08 | AR93: 0 | AS93: 0 | AT93: 2532400.756 | AU93: 0 | AV93: 1291651.006 | AW93: 1304567.516 | AX93: 0 | AY93: 7984735.937 | AZ93: 9408680.512 | BA93: 8145229.129 | BB93: 16453362.84 | BC93: 1384824.706 | BD93: 2797345.906 | BE93: 2825319.365 | BF93: 19975007.91 | BG93: 100873789.9 | BH93: 11643717.47 | BI93: 32768479.23 | BJ93: 14847195.24 | BK93: 2999133.438 | BL93: 18174748.63 | BM93: 3059416.02 | BN93: 4635015.27 | BO93: 0 | BP93: 3152119.385 | BQ93: 22285484.05 | BR93: 1607738.492 | BS93: 24357238.15 | BT93: 22960756.5 | BU93: 26503273.22 | BV93: 214210566.8 | BW93: 25346239.7 | BX93: 94859489.08 | BY93: 242891701.3 | BZ93: 24626778.8 | CA93: 24617038.76 | CB93: 1775943.51 | CC93: 26905544.18 | CD93: 25362959.65 | CE93: 29276101.99 | CF93: 236621731.5 | CG93: 27998017.16 | CH93: 104783890.4 | CI93: 268303547.3 | CJ93: 27203284.74
A94: 85 | B94: =NPV(#REF!,$G94:$CJ94) ->  | C94: =NPV(#REF!,$G$6:$CJ$6) ->  | G94: 0 | H94: 0 | I94: 0 | J94: 0 | K94: 0 | L94: 0 | M94: 0 | N94: 0 | O94: 0 | P94: 0 | Q94: 0 | R94: 0 | S94: 0 | T94: 0 | U94: 0 | V94: 1755724.867 | W94: 0 | X94: 914737.2806 | Y94: 933751.5522 | Z94: 0 | AA94: 4864870.185 | AB94: 7945590.818 | AC94: 0 | AD94: 0 | AE94: 5282154.326 | AF94: 0 | AG94: 5504032.636 | AH94: 0 | AI94: 0 | AJ94: 2292549.369 | AK94: 0 | AL94: 0 | AM94: 0 | AN94: 0 | AO94: 4818984.854 | AP94: 0 | AQ94: 8602731.286 | AR94: 9930009.827 | AS94: 3760991.222 | AT94: 0 | AU94: 5115449.528 | AV94: 15687869.57 | AW94: 1304567.516 | AX94: 14493745.1 | AY94: 13307893.23 | AZ94: 0 | BA94: 8145229.129 | BB94: 1371113.57 | BC94: 0 | BD94: 0 | BE94: 11301277.46 | BF94: 41792267.06 | BG94: 103965708 | BH94: 1455464.683 | BI94: 0 | BJ94: 26724951.42 | BK94: 8997400.313 | BL94: 9087374.316 | BM94: 0 | BN94: 0 | BO94: 15604551.41 | BP94: 31521193.85 | BQ94: 25469124.63 | BR94: 14469646.43 | BS94: 22733422.28 | BT94: 6560216.143 | BU94: 29816182.37 | BV94: 43498497.17 | BW94: 8448746.566 | BX94: 17066468.06 | BY94: 73148847.93 | BZ94: 26114256.11 | CA94: 28133758.58 | CB94: 15983491.59 | CC94: 25111841.23 | CD94: 7246559.899 | CE94: 32935614.74 | CF94: 48049402.4 | CG94: 9332672.388 | CH94: 18851998.22 | CI94: 80801835.87 | CJ94: 28846385.08
A95: 86 | B95: =NPV(#REF!,$G95:$CJ95) ->  | C95: =NPV(#REF!,$G$6:$CJ$6) ->  | G95: 0 | H95: 0 | I95: 0 | J95: 0 | K95: 0 | L95: 0 | M95: 0 | N95: 0 | O95: 0 | P95: 0 | Q95: 0 | R95: 0 | S95: 0 | T95: 0 | U95: 0 | V95: 0 | W95: 0 | X95: 914737.2806 | Y95: 933751.5522 | Z95: 0 | AA95: 0 | AB95: 0 | AC95: 2027688.145 | AD95: 0 | AE95: 4225723.46 | AF95: 3235171.391 | AG95: 0 | AH95: 0 | AI95: 1134925.43 | AJ95: 0 | AK95: 3473212.294 | AL95: 0 | AM95: 0 | AN95: 0 | AO95: 0 | AP95: 3650381.027 | AQ95: 2457923.225 | AR95: 2482502.457 | AS95: 7521982.444 | AT95: 8863402.647 | AU95: 3836587.146 | AV95: 6458255.029 | AW95: 5218270.063 | AX95: 3952839.573 | AY95: 64265399.17 | AZ95: 4032291.648 | BA95: 0 | BB95: 9597794.991 | BC95: 26311669.41 | BD95: 16784075.43 | BE95: 11301277.46 | BF95: 68485741.4 | BG95: 7205270.71 | BH95: 27653828.99 | BI95: 8820115.982 | BJ95: 1484719.524 | BK95: 11996533.75 | BL95: 39378622.04 | BM95: 10707956.07 | BN95: 21630071.26 | BO95: 24967282.25 | BP95: 19142182.2 | BQ95: 55713710.12 | BR95: 38585723.81 | BS95: 1623815.877 | BT95: 1640054.036 | BU95: 3312909.152 | BV95: 0 | BW95: 18587242.44 | BX95: 155089084.7 | BY95: 24131985.84 | BZ95: 24373305.7 | CA95: 61542596.89 | CB95: 42622644.25 | CC95: 1793702.945 | CD95: 1811639.975 | CE95: 3659512.749 | CF95: 0 | CG95: 20531879.25 | CH95: 171314834.3 | CI95: 26656725.49 | CJ95: 26923292.74
A96: 87 | B96: =NPV(#REF!,$G96:$CJ96) ->  | C96: =NPV(#REF!,$G$6:$CJ$6) ->  | G96: 0 | H96: 0 | I96: 0 | J96: 0 | K96: 0 | L96: 0 | M96: 0 | N96: 0 | O96: 0 | P96: 0 | Q96: 0 | R96: 0 | S96: 0 | T96: 0 | U96: 1719972.498 | V96: 1755724.867 | W96: 0 | X96: 0 | Y96: 0 | Z96: 953161.0657 | AA96: 0 | AB96: 1986397.705 | AC96: 0 | AD96: 1034918.437 | AE96: 2112861.73 | AF96: 1078390.464 | AG96: 2201613.055 | AH96: 1123688.545 | AI96: 0 | AJ96: 0 | AK96: 0 | AL96: 0 | AM96: 0 | AN96: 3578454.099 | AO96: 0 | AP96: 0 | AQ96: 0 | AR96: 12412512.28 | AS96: 5014654.963 | AT96: 1266200.378 | AU96: 0 | AV96: 5166604.023 | AW96: 5218270.063 | AX96: 0 | AY96: 2661578.646 | AZ96: 0 | BA96: 0 | BB96: 17824476.41 | BC96: 22157195.29 | BD96: 8392037.717 | BE96: 5650638.73 | BF96: 17121435.35 | BG96: 0 | BH96: 24742899.62 | BI96: 16170212.63 | BJ96: 0 | BK96: 10496967.03 | BL96: 6058249.544 | BM96: 7648540.049 | BN96: 29355096.71 | BO96: 10923185.99 | BP96: 14184537.23 | BQ96: 25469124.63 | BR96: 1607738.492 | BS96: 74695530.34 | BT96: 13120432.29 | BU96: 11836352.99 | BV96: 0 | BW96: 8448746.566 | BX96: 77047584.96 | BY96: 1723713.274 | BZ96: 24626778.8 | CA96: 28133758.58 | CB96: 1775943.51 | CC96: 82510335.48 | CD96: 14493119.8 | CE96: 13074697.4 | CF96: 0 | CG96: 9332672.388 | CH96: 85108467.06 | CI96: 1904051.821 | CJ96: 27203284.74
A97: 88 | B97: =NPV(#REF!,$G97:$CJ97) ->  | C97: =NPV(#REF!,$G$6:$CJ$6) ->  | G97: 0 | H97: 0 | I97: 0 | J97: 0 | K97: 0 | L97: 0 | M97: 0 | N97: 0 | O97: 0 | P97: 0 | Q97: 0 | R97: 0 | S97: 3301274.092 | T97: 0 | U97: 0 | V97: 0 | W97: 0 | X97: 0 | Y97: 3735006.209 | Z97: 4765805.329 | AA97: 0 | AB97: 0 | AC97: 1013844.073 | AD97: 0 | AE97: 2112861.73 | AF97: 2156780.927 | AG97: 7705645.691 | AH97: 0 | AI97: 0 | AJ97: 0 | AK97: 3473212.294 | AL97: 0 | AM97: 8267055.675 | AN97: 2385636.066 | AO97: 0 | AP97: 15818317.78 | AQ97: 0 | AR97: 6206256.142 | AS97: 5014654.963 | AT97: 2532400.756 | AU97: 0 | AV97: 1291651.006 | AW97: 3913702.547 | AX97: 6588065.955 | AY97: 29277365.1 | AZ97: 0 | BA97: 39368607.46 | BB97: 1371113.57 | BC97: 22157195.29 | BD97: 9790710.67 | BE97: 76694974.3 | BF97: 34242870.7 | BG97: 8646324.852 | BH97: 24742899.62 | BI97: 27930367.28 | BJ97: 16331914.76 | BK97: 14995667.19 | BL97: 43922309.19 | BM97: 143183027.6 | BN97: 77700143.52 | BO97: 15604551.41 | BP97: 29945134.15 | BQ97: 11142742.02 | BR97: 1607738.492 | BS97: 69824082.71 | BT97: 13120432.29 | BU97: 9938727.457 | BV97: 30114344.19 | BW97: 23656490.38 | BX97: 22186408.48 | BY97: 24131985.84 | BZ97: 15668553.66 | CA97: 12308519.38 | CB97: 1775943.51 | CC97: 77129226.65 | CD97: 14493119.8 | CE97: 10978538.25 | CF97: 33264970.89 | CG97: 26131482.69 | CH97: 24507597.69 | CI97: 26656725.49 | CJ97: 17307831.05
A98: 89 | B98: =NPV(#REF!,$G98:$CJ98) ->  | C98: =NPV(#REF!,$G$6:$CJ$6) ->  | G98: 0 | H98: 0 | I98: 0 | J98: 0 | K98: 0 | L98: 0 | M98: 0 | N98: 0 | O98: 0 | P98: 0 | Q98: 0 | R98: 0 | S98: 1650637.046 | T98: 0 | U98: 0 | V98: 0 | W98: 11649432.63 | X98: 6403160.965 | Y98: 0 | Z98: 1906322.131 | AA98: 0 | AB98: 3972795.409 | AC98: 0 | AD98: 1034918.437 | AE98: 0 | AF98: 0 | AG98: 0 | AH98: 0 | AI98: 4539701.72 | AJ98: 5731373.422 | AK98: 3473212.294 | AL98: 9354518.444 | AM98: 0 | AN98: 3578454.099 | AO98: 0 | AP98: 4867174.702 | AQ98: 29495078.7 | AR98: 0 | AS98: 5014654.963 | AT98: 0 | AU98: 3836587.146 | AV98: 12916510.06 | AW98: 16959377.71 | AX98: 3952839.573 | AY98: 7984735.937 | AZ98: 5376388.864 | BA98: 103568203 | BB98: 4113340.71 | BC98: 1384824.706 | BD98: 18182748.39 | BE98: 1412659.682 | BF98: 0 | BG98: 7205270.71 | BH98: 197814961 | BI98: 11760154.64 | BJ98: 1484719.524 | BK98: 174443868.8 | BL98: 10601936.7 | BM98: 12237664.08 | BN98: 6180020.36 | BO98: 14044096.27 | BP98: 4728179.077 | BQ98: 67088212.7 | BR98: 17685123.41 | BS98: 21109606.4 | BT98: 3280108.072 | BU98: 39754909.83 | BV98: 21749248.58 | BW98: 38864234.2 | BX98: 51944840.24 | BY98: 32750552.21 | BZ98: 226863860.4 | CA98: 74107124.1 | CB98: 19535378.61 | CC98: 23318138.29 | CD98: 3623279.95 | CE98: 43914152.99 | CF98: 24024701.2 | CG98: 42930292.99 | CH98: 57379419.83 | CI98: 36176984.59 | CJ98: 250598839.7
A99: 90 | B99: =NPV(#REF!,$G99:$CJ99) ->  | C99: =NPV(#REF!,$G$6:$CJ$6) ->  | G99: 0 | H99: 0 | I99: 0 | J99: 0 | K99: 0 | L99: 0 | M99: 0 | N99: 0 | O99: 0 | P99: 0 | Q99: 0 | R99: 0 | S99: 0 | T99: 0 | U99: 859986.2492 | V99: 877862.4334 | W99: 0 | X99: 0 | Y99: 0 | Z99: 4765805.329 | AA99: 7783792.295 | AB99: 0 | AC99: 2027688.145 | AD99: 0 | AE99: 0 | AF99: 1078390.464 | AG99: 0 | AH99: 0 | AI99: 0 | AJ99: 0 | AK99: 5788687.156 | AL99: 0 | AM99: 3543023.861 | AN99: 1192818.033 | AO99: 1204746.213 | AP99: 0 | AQ99: 1228961.612 | AR99: 0 | AS99: 0 | AT99: 0 | AU99: 3836587.146 | AV99: 0 | AW99: 5218270.063 | AX99: 3952839.573 | AY99: 10646314.58 | AZ99: 0 | BA99: 0 | BB99: 17824476.41 | BC99: 0 | BD99: 2797345.906 | BE99: 24015214.6 | BF99: 5707145.117 | BG99: 5764216.568 | BH99: 1455464.683 | BI99: 143876036.9 | BJ99: 5938878.094 | BK99: 13496100.47 | BL99: 6058249.544 | BM99: 61188320.39 | BN99: 12360040.72 | BO99: 35890468.24 | BP99: 17336656.61 | BQ99: 4775460.868 | BR99: 64777696 | BS99: 21109606.4 | BT99: 24600810.54 | BU99: 9938727.457 | BV99: 10038114.73 | BW99: 328465304.6 | BX99: 22186408.48 | BY99: 27579412.39 | BZ99: 31337107.33 | CA99: 5275079.733 | CB99: 71554876.24 | CC99: 23318138.29 | CD99: 27174599.62 | CE99: 10978538.25 | CF99: 11088323.63 | CG99: 362830042.9 | CH99: 24507597.69 | CI99: 30464829.13 | CJ99: 34615662.1
A100: 91 | B100: =NPV(#REF!,$G100:$CJ100) ->  | C100: =NPV(#REF!,$G$6:$CJ$6) ->  | G100: 0 | H100: 0 | I100: 0 | J100: 0 | K100: 0 | L100: 0 | M100: 0 | N100: 0 | O100: 0 | P100: 0 | Q100: 0 | R100: 0 | S100: 0 | T100: 0 | U100: 0 | V100: 0 | W100: 0 | X100: 914737.2806 | Y100: 0 | Z100: 0 | AA100: 0 | AB100: 0 | AC100: 1013844.073 | AD100: 0 | AE100: 1056430.865 | AF100: 1078390.464 | AG100: 0 | AH100: 8989508.357 | AI100: 0 | AJ100: 2292549.369 | AK100: 0 | AL100: 7015888.833 | AM100: 0 | AN100: 13120998.36 | AO100: 3614238.64 | AP100: 8517555.729 | AQ100: 2457923.225 | AR100: 4965004.914 | AS100: 0 | AT100: 0 | AU100: 6394311.909 | AV100: 5166604.023 | AW100: 3913702.547 | AX100: 27669877.01 | AY100: 9315525.26 | AZ100: 1344097.216 | BA100: 12217843.69 | BB100: 0 | BC100: 0 | BD100: 6993364.764 | BE100: 8475958.094 | BF100: 21401794.19 | BG100: 5764216.568 | BH100: 2910929.367 | BI100: 14700193.3 | BJ100: 1484719.524 | BK100: 32990467.81 | BL100: 19689311.02 | BM100: 15297080.1 | BN100: 46350152.7 | BO100: 4681365.423 | BP100: 17336656.61 | BQ100: 15918202.89 | BR100: 9646430.952 | BS100: 159165072.7 | BT100: 29520972.64 | BU100: 28159727.79 | BV100: 35133401.56 | BW100: 15207743.82 | BX100: 40959523.35 | BY100: 8618566.371 | BZ100: 8704752.035 | CA100: 17583599.11 | CB100: 10655661.06 | CC100: 175817260.8 | CD100: 32609519.55 | CE100: 31105858.37 | CF100: 38809132.7 | CG100: 16798810.3 | CH100: 45244795.74 | CI100: 9520259.103 | CJ100: 9615461.694
A101: 92 | B101: =NPV(#REF!,$G101:$CJ101) ->  | C101: =NPV(#REF!,$G$6:$CJ$6) ->  | G101: 0 | H101: 0 | I101: 0 | J101: 0 | K101: 0 | L101: 0 | M101: 0 | N101: 0 | O101: 0 | P101: 0 | Q101: 0 | R101: 0 | S101: 0 | T101: 0 | U101: 2579958.748 | V101: 0 | W101: 3584440.81 | X101: 0 | Y101: 0 | Z101: 0 | AA101: 0 | AB101: 0 | AC101: 1013844.073 | AD101: 2069836.874 | AE101: 0 | AF101: 0 | AG101: 1100806.527 | AH101: 0 | AI101: 0 | AJ101: 20632944.32 | AK101: 2315474.862 | AL101: 0 | AM101: 0 | AN101: 3578454.099 | AO101: 1204746.213 | AP101: 2433587.351 | AQ101: 1228961.612 | AR101: 1241251.228 | AS101: 2507327.481 | AT101: 7597202.269 | AU101: 0 | AV101: 12916510.06 | AW101: 5218270.063 | AX101: 5270452.764 | AY101: 14638682.55 | AZ101: 9408680.512 | BA101: 0 | BB101: 17824476.41 | BC101: 1384824.706 | BD101: 2797345.906 | BE101: 1412659.682 | BF101: 8560717.675 | BG101: 17292649.7 | BH101: 5821858.734 | BI101: 20580270.62 | BJ101: 7423597.618 | BK101: 29991334.38 | BL101: 6058249.544 | BM101: 7648540.049 | BN101: 38850071.76 | BO101: 23634021.07 | BP101: 33097253.54 | BQ101: 17510023.18 | BR101: 1607738.492 | BS101: 122495447.6 | BT101: 32801080.72 | BU101: 28159727.79 | BV101: 33460382.44 | BW101: 15207743.82 | BX101: 82167525.38 | BY101: 36197978.76 | BZ101: 33078057.73 | CA101: 19341959.02 | CB101: 1775943.51 | CC101: 135311181.7 | CD101: 36232799.5 | CE101: 31105858.37 | CF101: 36961078.77 | CG101: 16798810.3 | CH101: 90764066.53 | CI101: 39985088.23 | CJ101: 36538754.44
A102: 93 | B102: =NPV(#REF!,$G102:$CJ102) ->  | C102: =NPV(#REF!,$G$6:$CJ$6) ->  | G102: 0 | H102: 0 | I102: 0 | J102: 0 | K102: 0 | L102: 0 | M102: 0 | N102: 0 | O102: 0 | P102: 0 | Q102: 0 | R102: 0 | S102: 0 | T102: 1684948.167 | U102: 0 | V102: 0 | W102: 0 | X102: 914737.2806 | Y102: 933751.5522 | Z102: 0 | AA102: 972974.0369 | AB102: 993198.8523 | AC102: 3041532.218 | AD102: 0 | AE102: 1056430.865 | AF102: 0 | AG102: 0 | AH102: 1123688.545 | AI102: 0 | AJ102: 5731373.422 | AK102: 11577374.31 | AL102: 0 | AM102: 0 | AN102: 8349726.232 | AO102: 4818984.854 | AP102: 1216793.676 | AQ102: 0 | AR102: 14895014.74 | AS102: 8775646.185 | AT102: 10129603.02 | AU102: 16625210.96 | AV102: 0 | AW102: 0 | AX102: 0 | AY102: 9315525.26 | AZ102: 1344097.216 | BA102: 6787690.941 | BB102: 4113340.71 | BC102: 2769649.412 | BD102: 6993364.764 | BE102: 15539256.51 | BF102: 7133931.396 | BG102: 44672678.4 | BH102: 24742899.62 | BI102: 5880077.321 | BJ102: 2969439.047 | BK102: 0 | BL102: 6058249.544 | BM102: 3059416.02 | BN102: 12360040.72 | BO102: 79583212.18 | BP102: 20488776 | BQ102: 7959101.446 | BR102: 1607738.492 | BS102: 17861974.65 | BT102: 44281458.97 | BU102: 4969363.728 | BV102: 15057172.1 | BW102: 15207743.82 | BX102: 103392723.1 | BY102: 1723713.274 | BZ102: 58211782.75 | CA102: 8791799.556 | CB102: 1775943.51 | CC102: 19730732.4 | CD102: 48914279.32 | CE102: 5489269.124 | CF102: 16632485.44 | CG102: 16798810.3 | CH102: 114209889.5 | CI102: 1904051.821 | CJ102: 64302023.18
A103: 94 | B103: =NPV(#REF!,$G103:$CJ103) ->  | C103: =NPV(#REF!,$G$6:$CJ$6) ->  | G103: 0 | H103: 0 | I103: 0 | J103: 0 | K103: 0 | L103: 0 | M103: 0 | N103: 0 | O103: 0 | P103: 0 | Q103: 0 | R103: 0 | S103: 0 | T103: 0 | U103: 0 | V103: 0 | W103: 0 | X103: 0 | Y103: 933751.5522 | Z103: 0 | AA103: 972974.0369 | AB103: 993198.8523 | AC103: 4055376.29 | AD103: 0 | AE103: 0 | AF103: 0 | AG103: 0 | AH103: 0 | AI103: 0 | AJ103: 0 | AK103: 0 | AL103: 0 | AM103: 0 | AN103: 7156908.198 | AO103: 1204746.213 | AP103: 14601524.11 | AQ103: 1228961.612 | AR103: 6206256.142 | AS103: 0 | AT103: 6331001.891 | AU103: 3836587.146 | AV103: 3874953.017 | AW103: 10436540.13 | AX103: 6588065.955 | AY103: 14638682.55 | AZ103: 0 | BA103: 8145229.129 | BB103: 10968908.56 | BC103: 0 | BD103: 6993364.764 | BE103: 7063298.412 | BF103: 2853572.558 | BG103: 4323162.426 | BH103: 1455464.683 | BI103: 5880077.321 | BJ103: 23971679.63 | BK103: 22493500.78 | BL103: 16660186.25 | BM103: 10707956.07 | BN103: 24720081.44 | BO103: 17165006.55 | BP103: 7880298.461 | BQ103: 28652765.21 | BR103: 48232154.76 | BS103: 69824082.71 | BT103: 29520972.64 | BU103: 23190364.07 | BV103: 10038114.73 | BW103: 109833705.4 | BX103: 20479761.67 | BY103: 93331480.28 | BZ103: 26114256.11 | CA103: 31650478.4 | CB103: 53278305.31 | CC103: 77129226.65 | CD103: 32609519.55 | CE103: 25616589.24 | CF103: 11088323.63 | CG103: 121324741 | CH103: 22622397.87 | CI103: 103096018.1 | CJ103: 28846385.08
A104: 95 | B104: =NPV(#REF!,$G104:$CJ104) ->  | C104: =NPV(#REF!,$G$6:$CJ$6) ->  | G104: 0 | H104: 0 | I104: 0 | J104: 0 | K104: 0 | L104: 0 | M104: 0 | N104: 0 | O104: 0 | P104: 0 | Q104: 0 | R104: 0 | S104: 0 | T104: 0 | U104: 0 | V104: 0 | W104: 0 | X104: 2744211.842 | Y104: 933751.5522 | Z104: 3812644.263 | AA104: 7783792.295 | AB104: 0 | AC104: 0 | AD104: 1034918.437 | AE104: 2112861.73 | AF104: 0 | AG104: 0 | AH104: 0 | AI104: 5674627.15 | AJ104: 0 | AK104: 3473212.294 | AL104: 1169314.805 | AM104: 7086047.721 | AN104: 0 | AO104: 0 | AP104: 0 | AQ104: 2457923.225 | AR104: 0 | AS104: 0 | AT104: 0 | AU104: 0 | AV104: 2583302.011 | AW104: 5218270.063 | AX104: 15811358.29 | AY104: 22623418.49 | AZ104: 2688194.432 | BA104: 10860305.51 | BB104: 24680044.26 | BC104: 6924123.529 | BD104: 0 | BE104: 21189895.24 | BF104: 2853572.558 | BG104: 4323162.426 | BH104: 1455464.683 | BI104: 4410057.991 | BJ104: 17816634.28 | BK104: 0 | BL104: 37864059.65 | BM104: 160232533.1 | BN104: 12360040.72 | BO104: 26527737.39 | BP104: 128119766.9 | BQ104: 23877304.34 | BR104: 11254169.44 | BS104: 9742895.262 | BT104: 223348987.7 | BU104: 80233332.54 | BV104: 18403210.34 | BW104: 30415487.64 | BX104: 22186408.48 | BY104: 27579412.39 | BZ104: 31337107.33 | CA104: 26375398.67 | CB104: 12431604.57 | CC104: 10762217.67 | CD104: 246716233.6 | CE104: 88627514.32 | CF104: 20328593.32 | CG104: 33597620.6 | CH104: 24507597.69 | CI104: 30464829.13 | CJ104: 34615662.1
A105: 96 | B105: =NPV(#REF!,$G105:$CJ105) ->  | C105: =NPV(#REF!,$G$6:$CJ$6) ->  | G105: 0 | H105: 0 | I105: 0 | J105: 0 | K105: 0 | L105: 0 | M105: 0 | N105: 0 | O105: 0 | P105: 0 | Q105: 0 | R105: 0 | S105: 0 | T105: 4212370.417 | U105: 0 | V105: 0 | W105: 1792220.405 | X105: 0 | Y105: 933751.5522 | Z105: 3812644.263 | AA105: 0 | AB105: 0 | AC105: 1013844.073 | AD105: 0 | AE105: 2112861.73 | AF105: 1078390.464 | AG105: 0 | AH105: 0 | AI105: 0 | AJ105: 2292549.369 | AK105: 3473212.294 | AL105: 7015888.833 | AM105: 9448063.628 | AN105: 3578454.099 | AO105: 4818984.854 | AP105: 6083968.378 | AQ105: 4915846.449 | AR105: 6206256.142 | AS105: 0 | AT105: 3798601.134 | AU105: 0 | AV105: 14208161.06 | AW105: 0 | AX105: 0 | AY105: 6653946.614 | AZ105: 1344097.216 | BA105: 0 | BB105: 6855567.851 | BC105: 6924123.529 | BD105: 6993364.764 | BE105: 18364575.87 | BF105: 27108939.31 | BG105: 11528433.14 | BH105: 0 | BI105: 7350096.651 | BJ105: 7423597.618 | BK105: 10496967.03 | BL105: 6058249.544 | BM105: 116064404.8 | BN105: 13905045.81 | BO105: 20285916.83 | BP105: 3152119.385 | BQ105: 12734562.31 | BR105: 17685123.41 | BS105: 48950895.25 | BT105: 0 | BU105: 39754909.83 | BV105: 5019057.366 | BW105: 45869249.95 | BX105: 8533234.031 | BY105: 32750552.21 | BZ105: 101735542.9 | CA105: 14066879.29 | CB105: 19535378.61 | CC105: 54072241.95 | CD105: 0 | CE105: 43914152.99 | CF105: 5544161.815 | CG105: 50668188.37 | CH105: 9425999.112 | CI105: 36176984.59 | CJ105: 112379331.7
A106: 97 | B106: =NPV(#REF!,$G106:$CJ106) ->  | C106: =NPV(#REF!,$G$6:$CJ$6) ->  | G106: 0 | H106: 0 | I106: 0 | J106: 0 | K106: 0 | L106: 0 | M106: 0 | N106: 0 | O106: 0 | P106: 0 | Q106: 0 | R106: 0 | S106: 825318.523 | T106: 0 | U106: 3439944.997 | V106: 4517124.261 | W106: 0 | X106: 914737.2806 | Y106: 0 | Z106: 0 | AA106: 0 | AB106: 1986397.705 | AC106: 5069220.363 | AD106: 1034918.437 | AE106: 0 | AF106: 0 | AG106: 0 | AH106: 0 | AI106: 1134925.43 | AJ106: 1146274.684 | AK106: 0 | AL106: 1169314.805 | AM106: 16534111.35 | AN106: 0 | AO106: 27709162.91 | AP106: 1216793.676 | AQ106: 4915846.449 | AR106: 12412512.28 | AS106: 47639222.15 | AT106: 45583213.61 | AU106: 0 | AV106: 68457503.3 | AW106: 0 | AX106: 6588065.955 | AY106: 1330789.323 | AZ106: 0 | BA106: 1357538.188 | BB106: 8226681.421 | BC106: 19387545.88 | BD106: 18182748.39 | BE106: 24015214.6 | BF106: 37096443.26 | BG106: 5764216.568 | BH106: 2910929.367 | BI106: 1470019.33 | BJ106: 5938878.094 | BK106: 31490901.09 | BL106: 16660186.25 | BM106: 13767372.09 | BN106: 20085066.17 | BO106: 3120910.282 | BP106: 154254585.5 | BQ106: 9550921.735 | BR106: 190212107 | BS106: 40595396.92 | BT106: 1640054.036 | BU106: 245009332.8 | BV106: 11711133.85 | BW106: 3379498.626 | BX106: 56319344.61 | BY106: 62053677.87 | BZ106: 106704921 | CA106: 10550159.47 | CB106: 210112501.9 | CC106: 44842573.63 | CD106: 1811639.975 | CE106: 270642729.9 | CF106: 12936377.57 | CG106: 3733068.955 | CH106: 62211594.14 | CI106: 68545865.54 | CJ106: 117868616.7
A107: 98 | B107: =NPV(#REF!,$G107:$CJ107) ->  | C107: =NPV(#REF!,$G$6:$CJ$6) ->  | G107: 0 | H107: 0 | I107: 0 | J107: 0 | K107: 0 | L107: 0 | M107: 0 | N107: 0 | O107: 0 | P107: 0 | Q107: 0 | R107: 0 | S107: 0 | T107: 842474.0833 | U107: 0 | V107: 0 | W107: 0 | X107: 0 | Y107: 0 | Z107: 0 | AA107: 0 | AB107: 0 | AC107: 3041532.218 | AD107: 1034918.437 | AE107: 1056430.865 | AF107: 0 | AG107: 0 | AH107: 4494754.178 | AI107: 3404776.29 | AJ107: 1146274.684 | AK107: 3473212.294 | AL107: 5846574.027 | AM107: 0 | AN107: 2385636.066 | AO107: 0 | AP107: 1216793.676 | AQ107: 0 | AR107: 11171261.06 | AS107: 5014654.963 | AT107: 11395803.4 | AU107: 2557724.764 | AV107: 2583302.011 | AW107: 30005052.86 | AX107: 5270452.764 | AY107: 7984735.937 | AZ107: 8064583.296 | BA107: 17647996.45 | BB107: 8226681.421 | BC107: 22157195.29 | BD107: 11189383.62 | BE107: 8475958.094 | BF107: 5707145.117 | BG107: 100873789.9 | BH107: 1455464.683 | BI107: 27930367.28 | BJ107: 35633268.57 | BK107: 14995667.19 | BL107: 21203873.4 | BM107: 61188320.39 | BN107: 15450050.9 | BO107: 199116481.3 | BP107: 4728179.077 | BQ107: 9550921.735 | BR107: 48232154.76 | BS107: 32476317.54 | BT107: 228507933 | BU107: 26503273.22 | BV107: 0 | BW107: 16897493.13 | BX107: 22186408.48 | BY107: 22408272.57 | BZ107: 55710413.03 | CA107: 10550159.47 | CB107: 53278305.31 | CC107: 35874058.91 | CD107: 252414918.6 | CE107: 29276101.99 | CF107: 0 | CG107: 18665344.78 | CH107: 24507597.69 | CI107: 24752673.67 | CJ107: 61538954.84
A108: 99 | B108: =NPV(#REF!,$G108:$CJ108) ->  | C108: =NPV(#REF!,$G$6:$CJ$6) ->  | G108: 0 | H108: 0 | I108: 0 | J108: 0 | K108: 0 | L108: 0 | M108: 0 | N108: 0 | O108: 0 | P108: 0 | Q108: 0 | R108: 0 | S108: 0 | T108: 0 | U108: 0 | V108: 0 | W108: 0 | X108: 0 | Y108: 0 | Z108: 953161.0657 | AA108: 0 | AB108: 0 | AC108: 1013844.073 | AD108: 0 | AE108: 3169292.595 | AF108: 1078390.464 | AG108: 5504032.636 | AH108: 2247377.089 | AI108: 0 | AJ108: 0 | AK108: 2315474.862 | AL108: 2338629.611 | AM108: 8267055.675 | AN108: 0 | AO108: 0 | AP108: 0 | AQ108: 0 | AR108: 0 | AS108: 1253663.741 | AT108: 6331001.891 | AU108: 0 | AV108: 15499812.07 | AW108: 3913702.547 | AX108: 0 | AY108: 6653946.614 | AZ108: 5376388.864 | BA108: 102210664.8 | BB108: 0 | BC108: 6924123.529 | BD108: 8392037.717 | BE108: 86583592.07 | BF108: 5707145.117 | BG108: 4323162.426 | BH108: 21831970.25 | BI108: 8820115.982 | BJ108: 22270792.85 | BK108: 14995667.19 | BL108: 4543687.158 | BM108: 9178248.059 | BN108: 20085066.17 | BO108: 3120910.282 | BP108: 4728179.077 | BQ108: 12734562.31 | BR108: 12861907.94 | BS108: 69824082.71 | BT108: 41001350.89 | BU108: 13492807.57 | BV108: 238850747.8 | BW108: 21966741.07 | BX108: 40959523.35 | BY108: 8618566.371 | BZ108: 33078057.73 | CA108: 14066879.29 | CB108: 14207548.08 | CC108: 77129226.65 | CD108: 45290999.37 | CE108: 14904453.78 | CF108: 263839820.7 | CG108: 24264948.21 | CH108: 45244795.74 | CI108: 9520259.103 | CJ108: 36538754.44
A109: 100 | B109: =NPV(#REF!,$G109:$CJ109) ->  | C109: =NPV(#REF!,$G$6:$CJ$6) ->  | G109: 0 | H109: 0 | I109: 0 | J109: 0 | K109: 0 | L109: 0 | M109: 0 | N109: 0 | O109: 0 | P109: 0 | Q109: 0 | R109: 0 | S109: 0 | T109: 0 | U109: 859986.2492 | V109: 0 | W109: 896110.2025 | X109: 0 | Y109: 3735006.209 | Z109: 14297415.99 | AA109: 0 | AB109: 0 | AC109: 0 | AD109: 1034918.437 | AE109: 0 | AF109: 0 | AG109: 0 | AH109: 0 | AI109: 1134925.43 | AJ109: 0 | AK109: 1157737.431 | AL109: 7015888.833 | AM109: 0 | AN109: 0 | AO109: 0 | AP109: 8517555.729 | AQ109: 0 | AR109: 14895014.74 | AS109: 1253663.741 | AT109: 7597202.269 | AU109: 0 | AV109: 7749906.034 | AW109: 1304567.516 | AX109: 6588065.955 | AY109: 1330789.323 | AZ109: 1344097.216 | BA109: 0 | BB109: 13711135.7 | BC109: 73798955.61 | BD109: 6993364.764 | BE109: 22602554.92 | BF109: 11414290.23 | BG109: 15851595.56 | BH109: 8732788.101 | BI109: 51450676.56 | BJ109: 31395277.25 | BK109: 46704897.21 | BL109: 22718435.79 | BM109: 10707956.07 | BN109: 12360040.72 | BO109: 51495019.65 | BP109: 17336656.61 | BQ109: 313247090.2 | BR109: 16077384.92 | BS109: 122495447.6 | BT109: 18040594.39 | BU109: 19877454.91 | BV109: 52107175.45 | BW109: 8448746.566 | BX109: 46079463.77 | BY109: 24131985.84 | BZ109: 63434633.97 | CA109: 346019666.6 | CB109: 17759435.1 | CC109: 135311181.7 | CD109: 19928039.72 | CE109: 21957076.49 | CF109: 57558738.89 | CG109: 9332672.388 | CH109: 50900395.21 | CI109: 26656725.49 | CJ109: 70071300.2
A110: 101 | B110: =NPV(#REF!,$G110:$CJ110) ->  | C110: =NPV(#REF!,$G$6:$CJ$6) ->  | G110: 0 | H110: 0 | I110: 0 | J110: 0 | K110: 0 | L110: 0 | M110: 0 | N110: 0 | O110: 0 | P110: 0 | Q110: 0 | R110: 0 | S110: 0 | T110: 0 | U110: 859986.2492 | V110: 0 | W110: 0 | X110: 4573686.403 | Y110: 1867503.104 | Z110: 0 | AA110: 4864870.185 | AB110: 0 | AC110: 0 | AD110: 1034918.437 | AE110: 0 | AF110: 1078390.464 | AG110: 1100806.527 | AH110: 0 | AI110: 1134925.43 | AJ110: 2292549.369 | AK110: 0 | AL110: 3507944.416 | AM110: 3543023.861 | AN110: 0 | AO110: 4818984.854 | AP110: 14601524.11 | AQ110: 18434424.18 | AR110: 0 | AS110: 0 | AT110: 0 | AU110: 0 | AV110: 72332456.32 | AW110: 1304567.516 | AX110: 5270452.764 | AY110: 14638682.55 | AZ110: 1344097.216 | BA110: 5430152.753 | BB110: 0 | BC110: 11078597.65 | BD110: 1398672.953 | BE110: 0 | BF110: 2853572.558 | BG110: 0 | BH110: 8732788.101 | BI110: 4410057.991 | BJ110: 5938878.094 | BK110: 2999133.438 | BL110: 0 | BM110: 4589124.03 | BN110: 29355096.71 | BO110: 25194476.21 | BP110: 15760596.92 | BQ110: 22285484.05 | BR110: 14469646.43 | BS110: 3247631.754 | BT110: 4920162.107 | BU110: 6625818.304 | BV110: 118572834.6 | BW110: 10138495.88 | BX110: 101686076.3 | BY110: 10342279.65 | BZ110: 53969462.62 | CA110: 24617038.76 | CB110: 15983491.59 | CC110: 3587405.891 | CD110: 5434919.924 | CE110: 7319025.498 | CF110: 130978176.5 | CG110: 11199206.87 | CH110: 112324689.7 | CI110: 11424310.92 | CJ110: 59615862.5
A111: 102 | B111: =NPV(#REF!,$G111:$CJ111) ->  | C111: =NPV(#REF!,$G$6:$CJ$6) ->  | G111: 0 | H111: 0 | I111: 0 | J111: 0 | K111: 0 | L111: 0 | M111: 0 | N111: 0 | O111: 0 | P111: 0 | Q111: 0 | R111: 0 | S111: 0 | T111: 0 | U111: 0 | V111: 0 | W111: 3584440.81 | X111: 914737.2806 | Y111: 4668757.761 | Z111: 953161.0657 | AA111: 0 | AB111: 0 | AC111: 2027688.145 | AD111: 1034918.437 | AE111: 2112861.73 | AF111: 1078390.464 | AG111: 0 | AH111: 0 | AI111: 1134925.43 | AJ111: 0 | AK111: 0 | AL111: 1169314.805 | AM111: 1181007.954 | AN111: 9542544.265 | AO111: 0 | AP111: 0 | AQ111: 4915846.449 | AR111: 0 | AS111: 5014654.963 | AT111: 5064801.512 | AU111: 0 | AV111: 15687869.57 | AW111: 5218270.063 | AX111: 2635226.382 | AY111: 14638682.55 | AZ111: 8064583.296 | BA111: 13575381.88 | BB111: 6855567.851 | BC111: 4154474.117 | BD111: 9790710.67 | BE111: 0 | BF111: 19975007.91 | BG111: 4323162.426 | BH111: 20376505.57 | BI111: 5880077.321 | BJ111: 7423597.618 | BK111: 20993934.06 | BL111: 7572811.93 | BM111: 58128904.37 | BN111: 12360040.72 | BO111: 24967282.25 | BP111: 33097253.54 | BQ111: 19101843.47 | BR111: 29173371.02 | BS111: 32476317.54 | BT111: 13120432.29 | BU111: 64601728.47 | BV111: 0 | BW111: 11828245.19 | BX111: 5119940.419 | BY111: 93331480.28 | BZ111: 24373305.7 | CA111: 21100318.93 | CB111: 32225551.1 | CC111: 35874058.91 | CD111: 14493119.8 | CE111: 71360498.61 | CF111: 0 | CG111: 13065741.34 | CH111: 5655599.467 | CI111: 103096018.1 | CJ111: 26923292.74
A112: 103 | B112: =NPV(#REF!,$G112:$CJ112) ->  | C112: =NPV(#REF!,$G$6:$CJ$6) ->  | G112: 0 | H112: 0 | I112: 0 | J112: 0 | K112: 0 | L112: 0 | M112: 0 | N112: 0 | O112: 0 | P112: 0 | Q112: 0 | R112: 0 | S112: 0 | T112: 0 | U112: 0 | V112: 877862.4334 | W112: 0 | X112: 0 | Y112: 0 | Z112: 0 | AA112: 1945948.074 | AB112: 0 | AC112: 0 | AD112: 0 | AE112: 3169292.595 | AF112: 6470342.782 | AG112: 2201613.055 | AH112: 25844836.53 | AI112: 3404776.29 | AJ112: 5731373.422 | AK112: 0 | AL112: 19878351.69 | AM112: 0 | AN112: 4771272.132 | AO112: 1204746.213 | AP112: 0 | AQ112: 3686884.837 | AR112: 0 | AS112: 0 | AT112: 1266200.378 | AU112: 0 | AV112: 0 | AW112: 2609135.032 | AX112: 0 | AY112: 6653946.614 | AZ112: 22849652.67 | BA112: 21720611.01 | BB112: 12340022.13 | BC112: 66673208.98 | BD112: 15385402.48 | BE112: 12713937.14 | BF112: 5707145.117 | BG112: 15851595.56 | BH112: 21831970.25 | BI112: 4410057.991 | BJ112: 35633268.57 | BK112: 13496100.47 | BL112: 153661360.7 | BM112: 4589124.03 | BN112: 72840183.74 | BO112: 20285916.83 | BP112: 3152119.385 | BQ112: 7959101.446 | BR112: 6430953.968 | BS112: 9742895.262 | BT112: 13120432.29 | BU112: 8282272.881 | BV112: 33460382.44 | BW112: 37174484.89 | BX112: 63145931.83 | BY112: 25855699.11 | BZ112: 30103103.13 | CA112: 8791799.556 | CB112: 7103774.041 | CC112: 10762217.67 | CD112: 14493119.8 | CE112: 9148781.873 | CF112: 36961078.77 | CG112: 41063758.51 | CH112: 69752393.43 | CI112: 28560777.31 | CJ112: 33252553.76
A113: 104 | B113: =NPV(#REF!,$G113:$CJ113) ->  | C113: =NPV(#REF!,$G$6:$CJ$6) ->  | G113: 0 | H113: 0 | I113: 0 | J113: 0 | K113: 0 | L113: 0 | M113: 0 | N113: 0 | O113: 0 | P113: 0 | Q113: 0 | R113: 0 | S113: 0 | T113: 0 | U113: 859986.2492 | V113: 0 | W113: 896110.2025 | X113: 0 | Y113: 0 | Z113: 0 | AA113: 6810818.258 | AB113: 3972795.409 | AC113: 1013844.073 | AD113: 0 | AE113: 2112861.73 | AF113: 2156780.927 | AG113: 0 | AH113: 0 | AI113: 0 | AJ113: 11462746.84 | AK113: 5788687.156 | AL113: 1169314.805 | AM113: 0 | AN113: 2385636.066 | AO113: 1204746.213 | AP113: 3650381.027 | AQ113: 3686884.837 | AR113: 11171261.06 | AS113: 3760991.222 | AT113: 12662003.78 | AU113: 2557724.764 | AV113: 19374765.09 | AW113: 1304567.516 | AX113: 5270452.764 | AY113: 15969471.87 | AZ113: 5376388.864 | BA113: 1357538.188 | BB113: 4113340.71 | BC113: 30466143.53 | BD113: 9790710.67 | BE113: 29665853.33 | BF113: 68485741.4 | BG113: 15851595.56 | BH113: 26198364.3 | BI113: 10290135.31 | BJ113: 10393036.66 | BK113: 52484835.16 | BL113: 21203873.4 | BM113: 13767372.09 | BN113: 4635015.27 | BO113: 3120910.282 | BP113: 31521193.85 | BQ113: 291858144.8 | BR113: 17685123.41 | BS113: 9742895.262 | BT113: 223110204.6 | BU113: 8282272.881 | BV113: 8365095.609 | BW113: 27035989.01 | BX113: 214141694.8 | BY113: 8618566.371 | BZ113: 63434633.97 | CA113: 322392964.2 | CB113: 19535378.61 | CC113: 10762217.67 | CD113: 246452468.4 | CE113: 9148781.873 | CF113: 9240269.691 | CG113: 29864551.64 | CH113: 236545654 | CI113: 9520259.103 | CJ113: 70071300.2
A114: 105 | B114: =NPV(#REF!,$G114:$CJ114) ->  | C114: =NPV(#REF!,$G$6:$CJ$6) ->  | G114: 0 | H114: 0 | I114: 0 | J114: 0 | K114: 0 | L114: 0 | M114: 0 | N114: 0 | O114: 0 | P114: 0 | Q114: 0 | R114: 0 | S114: 0 | T114: 0 | U114: 2579958.748 | V114: 0 | W114: 0 | X114: 4573686.403 | Y114: 0 | Z114: 3812644.263 | AA114: 972974.0369 | AB114: 1986397.705 | AC114: 4055376.29 | AD114: 2069836.874 | AE114: 1056430.865 | AF114: 1078390.464 | AG114: 0 | AH114: 8989508.357 | AI114: 0 | AJ114: 1146274.684 | AK114: 4630949.725 | AL114: 19878351.69 | AM114: 0 | AN114: 5964090.165 | AO114: 7228477.28 | AP114: 6083968.378 | AQ114: 1228961.612 | AR114: 0 | AS114: 2507327.481 | AT114: 3798601.134 | AU114: 2557724.764 | AV114: 7749906.034 | AW114: 1304567.516 | AX114: 15811358.29 | AY114: 1330789.323 | AZ114: 96970692.95 | BA114: 6787690.941 | BB114: 9597794.991 | BC114: 4154474.117 | BD114: 16784075.43 | BE114: 5650638.73 | BF114: 2853572.558 | BG114: 15851595.56 | BH114: 24742899.62 | BI114: 0 | BJ114: 22270792.85 | BK114: 16495233.91 | BL114: 12116499.09 | BM114: 19886204.13 | BN114: 35535117.07 | BO114: 4681365.423 | BP114: 123850519.6 | BQ114: 25469124.63 | BR114: 0 | BS114: 19485790.52 | BT114: 39361296.86 | BU114: 67914637.62 | BV114: 71939822.24 | BW114: 27035989.01 | BX114: 48034589.26 | BY114: 248313804.5 | BZ114: 24626778.8 | CA114: 28133758.58 | CB114: 0 | CC114: 21524435.34 | CD114: 43479359.39 | CE114: 75020011.36 | CF114: 79466319.35 | CG114: 29864551.64 | CH114: 53060070.08 | CI114: 274292922.5 | CJ114: 27203284.74
A115: 106 | B115: =NPV(#REF!,$G115:$CJ115) ->  | C115: =NPV(#REF!,$G$6:$CJ$6) ->  | G115: 0 | H115: 0 | I115: 0 | J115: 0 | K115: 0 | L115: 0 | M115: 0 | N115: 0 | O115: 0 | P115: 0 | Q115: 0 | R115: 0 | S115: 825318.523 | T115: 0 | U115: 0 | V115: 0 | W115: 6272771.418 | X115: 0 | Y115: 0 | Z115: 0 | AA115: 0 | AB115: 0 | AC115: 2027688.145 | AD115: 7244429.057 | AE115: 1056430.865 | AF115: 0 | AG115: 2201613.055 | AH115: 0 | AI115: 0 | AJ115: 0 | AK115: 6946424.587 | AL115: 7015888.833 | AM115: 3543023.861 | AN115: 0 | AO115: 3614238.64 | AP115: 2433587.351 | AQ115: 28266117.08 | AR115: 6206256.142 | AS115: 0 | AT115: 1266200.378 | AU115: 1278862.382 | AV115: 15499812.07 | AW115: 3913702.547 | AX115: 0 | AY115: 5323157.291 | AZ115: 13440972.16 | BA115: 19005534.64 | BB115: 16453362.84 | BC115: 6924123.529 | BD115: 18182748.39 | BE115: 7063298.412 | BF115: 49133930.94 | BG115: 4323162.426 | BH115: 54487917 | BI115: 5880077.321 | BJ115: 26724951.42 | BK115: 14995667.19 | BL115: 21203873.4 | BM115: 0 | BN115: 7725025.45 | BO115: 10923185.99 | BP115: 53586029.54 | BQ115: 41387327.52 | BR115: 9646430.952 | BS115: 47327079.37 | BT115: 42641404.93 | BU115: 29816182.37 | BV115: 25095286.83 | BW115: 20276991.76 | BX115: 94859489.08 | BY115: 8618566.371 | BZ115: 15668553.66 | CA115: 45717357.69 | CB115: 10655661.06 | CC115: 52278539.01 | CD115: 47102639.34 | CE115: 32935614.74 | CF115: 27720809.07 | CG115: 22398413.73 | CH115: 104783890.4 | CI115: 9520259.103 | CJ115: 17307831.05
A116: 107 | B116: =NPV(#REF!,$G116:$CJ116) ->  | C116: =NPV(#REF!,$G$6:$CJ$6) ->  | G116: 0 | H116: 0 | I116: 0 | J116: 0 | K116: 0 | L116: 0 | M116: 0 | N116: 0 | O116: 0 | P116: 0 | Q116: 0 | R116: 0 | S116: 0 | T116: 0 | U116: 0 | V116: 0 | W116: 0 | X116: 7317898.245 | Y116: 933751.5522 | Z116: 0 | AA116: 0 | AB116: 0 | AC116: 1013844.073 | AD116: 6209510.621 | AE116: 0 | AF116: 1078390.464 | AG116: 0 | AH116: 0 | AI116: 0 | AJ116: 0 | AK116: 1157737.431 | AL116: 2338629.611 | AM116: 1181007.954 | AN116: 0 | AO116: 2409492.427 | AP116: 2433587.351 | AQ116: 0 | AR116: 6206256.142 | AS116: 2507327.481 | AT116: 3798601.134 | AU116: 3836587.146 | AV116: 0 | AW116: 5218270.063 | AX116: 3952839.573 | AY116: 5323157.291 | AZ116: 18817361.02 | BA116: 2715076.376 | BB116: 13711135.7 | BC116: 8308948.235 | BD116: 82725343.55 | BE116: 4237979.047 | BF116: 2853572.558 | BG116: 4323162.426 | BH116: 27653828.99 | BI116: 7350096.651 | BJ116: 23971679.63 | BK116: 32990467.81 | BL116: 19689311.02 | BM116: 30594160.2 | BN116: 23175076.35 | BO116: 14044096.27 | BP116: 19142182.2 | BQ116: 25469124.63 | BR116: 6430953.968 | BS116: 4871447.631 | BT116: 14760486.32 | BU116: 19877454.91 | BV116: 16730191.22 | BW116: 11828245.19 | BX116: 49989714.75 | BY116: 18960846.02 | BZ116: 68910958.29 | CA116: 28133758.58 | CB116: 7103774.041 | CC116: 5381108.836 | CD116: 16304759.77 | CE116: 21957076.49 | CF116: 18480539.38 | CG116: 13065741.34 | CH116: 55219744.95 | CI116: 20944570.03 | CJ116: 76120569.21
A117: 108 | B117: =NPV(#REF!,$G117:$CJ117) ->  | C117: =NPV(#REF!,$G$6:$CJ$6) ->  | G117: 0 | H117: 0 | I117: 0 | J117: 0 | K117: 0 | L117: 0 | M117: 0 | N117: 0 | O117: 0 | P117: 0 | Q117: 0 | R117: 0 | S117: 0 | T117: 0 | U117: 0 | V117: 877862.4334 | W117: 0 | X117: 6403160.965 | Y117: 0 | Z117: 0 | AA117: 0 | AB117: 0 | AC117: 0 | AD117: 6209510.621 | AE117: 1056430.865 | AF117: 1078390.464 | AG117: 15411291.38 | AH117: 0 | AI117: 3404776.29 | AJ117: 5731373.422 | AK117: 2315474.862 | AL117: 0 | AM117: 0 | AN117: 0 | AO117: 7228477.28 | AP117: 8517555.729 | AQ117: 0 | AR117: 3723753.685 | AS117: 11465500.43 | AT117: 0 | AU117: 11509761.44 | AV117: 72332456.32 | AW117: 3913702.547 | AX117: 27669877.01 | AY117: 1330789.323 | AZ117: 1344097.216 | BA117: 4072614.565 | BB117: 9597794.991 | BC117: 19387545.88 | BD117: 53556850.87 | BE117: 38141811.42 | BF117: 4280358.838 | BG117: 14410541.42 | BH117: 0 | BI117: 13230173.97 | BJ117: 23755512.38 | BK117: 5998266.875 | BL117: 18174748.63 | BM117: 0 | BN117: 6180020.36 | BO117: 1560455.141 | BP117: 33326719.43 | BQ117: 36611866.65 | BR117: 20900600.4 | BS117: 34100133.42 | BT117: 14760486.32 | BU117: 61288819.32 | BV117: 5019057.366 | BW117: 91738499.9 | BX117: 25599702.09 | BY117: 68948530.97 | BZ117: 17409504.07 | CA117: 40442277.96 | CB117: 23087265.63 | CC117: 37667761.85 | CD117: 16304759.77 | CE117: 67700985.86 | CF117: 5544161.815 | CG117: 101336376.7 | CH117: 28277997.34 | CI117: 76162072.83 | CJ117: 19230923.39
A118: 109 | B118: =NPV(#REF!,$G118:$CJ118) ->  | C118: =NPV(#REF!,$G$6:$CJ$6) ->  | G118: 0 | H118: 0 | I118: 0 | J118: 0 | K118: 0 | L118: 0 | M118: 0 | N118: 0 | O118: 0 | P118: 0 | Q118: 0 | R118: 0 | S118: 0 | T118: 0 | U118: 859986.2492 | V118: 5394986.694 | W118: 0 | X118: 0 | Y118: 1867503.104 | Z118: 953161.0657 | AA118: 0 | AB118: 1986397.705 | AC118: 0 | AD118: 1034918.437 | AE118: 0 | AF118: 1078390.464 | AG118: 5504032.636 | AH118: 0 | AI118: 1134925.43 | AJ118: 0 | AK118: 0 | AL118: 0 | AM118: 1181007.954 | AN118: 11928180.33 | AO118: 0 | AP118: 3650381.027 | AQ118: 1228961.612 | AR118: 0 | AS118: 6268318.704 | AT118: 1266200.378 | AU118: 0 | AV118: 2583302.011 | AW118: 6522837.579 | AX118: 3952839.573 | AY118: 29277365.1 | AZ118: 1344097.216 | BA118: 1357538.188 | BB118: 26051157.83 | BC118: 18002721.18 | BD118: 4196018.859 | BE118: 1412659.682 | BF118: 4280358.838 | BG118: 14410541.42 | BH118: 5821858.734 | BI118: 5880077.321 | BJ118: 22270792.85 | BK118: 4498700.156 | BL118: 6058249.544 | BM118: 0 | BN118: 37305066.67 | BO118: 199116481.3 | BP118: 20488776 | BQ118: 33428226.07 | BR118: 176882042.8 | BS118: 27604869.91 | BT118: 6560216.143 | BU118: 13251636.61 | BV118: 36806420.68 | BW118: 40800002.01 | BX118: 10239880.84 | BY118: 8618566.371 | BZ118: 41782809.77 | CA118: 36925558.13 | CB118: 195387818 | CC118: 30492950.07 | CD118: 7246559.899 | CE118: 14638051 | CF118: 40657186.64 | CG118: 45068584.94 | CH118: 11311198.93 | CI118: 9520259.103 | CJ118: 46154216.13
A119: 110 | B119: =NPV(#REF!,$G119:$CJ119) ->  | C119: =NPV(#REF!,$G$6:$CJ$6) ->  | G119: 0 | H119: 0 | I119: 0 | J119: 0 | K119: 0 | L119: 0 | M119: 0 | N119: 0 | O119: 0 | P119: 0 | Q119: 0 | R119: 0 | S119: 825318.523 | T119: 842474.0833 | U119: 859986.2492 | V119: 0 | W119: 10753322.43 | X119: 0 | Y119: 1867503.104 | Z119: 0 | AA119: 1945948.074 | AB119: 0 | AC119: 0 | AD119: 0 | AE119: 1056430.865 | AF119: 7548733.245 | AG119: 3302419.582 | AH119: 1123688.545 | AI119: 0 | AJ119: 1146274.684 | AK119: 3473212.294 | AL119: 3507944.416 | AM119: 0 | AN119: 17892270.5 | AO119: 0 | AP119: 0 | AQ119: 4915846.449 | AR119: 0 | AS119: 0 | AT119: 12662003.78 | AU119: 3836587.146 | AV119: 1291651.006 | AW119: 15654810.19 | AX119: 6588065.955 | AY119: 6653946.614 | AZ119: 9408680.512 | BA119: 9502767.318 | BB119: 21937817.12 | BC119: 6924123.529 | BD119: 8392037.717 | BE119: 11301277.46 | BF119: 0 | BG119: 7205270.71 | BH119: 17465576.2 | BI119: 5880077.321 | BJ119: 14847195.24 | BK119: 10496967.03 | BL119: 6058249.544 | BM119: 0 | BN119: 10815035.63 | BO119: 0 | BP119: 7880298.461 | BQ119: 19101843.47 | BR119: 4823215.476 | BS119: 69824082.71 | BT119: 14760486.32 | BU119: 53006546.44 | BV119: 6692076.488 | BW119: 8448746.566 | BX119: 13653174.45 | BY119: 49987684.95 | BZ119: 87300993.46 | CA119: 21100318.93 | CB119: 5327830.531 | CC119: 77129226.65 | CD119: 16304759.77 | CE119: 58552203.98 | CF119: 7392215.753 | CG119: 9332672.388 | CH119: 15081598.58 | CI119: 55217502.8 | CJ119: 96434608.94
A120: 111 | B120: =NPV(#REF!,$G120:$CJ120) ->  | C120: =NPV(#REF!,$G$6:$CJ$6) ->  | G120: 0 | H120: 0 | I120: 0 | J120: 0 | K120: 0 | L120: 0 | M120: 0 | N120: 0 | O120: 0 | P120: 0 | Q120: 0 | R120: 0 | S120: 0 | T120: 0 | U120: 0 | V120: 0 | W120: 0 | X120: 0 | Y120: 0 | Z120: 0 | AA120: 0 | AB120: 0 | AC120: 4055376.29 | AD120: 0 | AE120: 0 | AF120: 2156780.927 | AG120: 2201613.055 | AH120: 8989508.357 | AI120: 7944478.01 | AJ120: 5731373.422 | AK120: 9261899.449 | AL120: 2338629.611 | AM120: 0 | AN120: 5964090.165 | AO120: 1204746.213 | AP120: 3650381.027 | AQ120: 2457923.225 | AR120: 0 | AS120: 1253663.741 | AT120: 1266200.378 | AU120: 0 | AV120: 71040805.31 | AW120: 3913702.547 | AX120: 1317613.191 | AY120: 6653946.614 | AZ120: 1344097.216 | BA120: 19005534.64 | BB120: 9597794.991 | BC120: 0 | BD120: 9790710.67 | BE120: 15539256.51 | BF120: 7133931.396 | BG120: 10087378.99 | BH120: 7277323.417 | BI120: 34024471.58 | BJ120: 7423597.618 | BK120: 14995667.19 | BL120: 0 | BM120: 6118832.039 | BN120: 179700085.9 | BO120: 15604551.41 | BP120: 31521193.85 | BQ120: 38203686.94 | BR120: 4823215.476 | BS120: 21109606.4 | BT120: 11480378.25 | BU120: 28159727.79 | BV120: 38479439.8 | BW120: 6758997.252 | BX120: 17066468.06 | BY120: 29303125.66 | BZ120: 53969462.62 | CA120: 42200637.87 | CB120: 5327830.531 | CC120: 23318138.29 | CD120: 12681479.82 | CE120: 31105858.37 | CF120: 42505240.58 | CG120: 7466137.911 | CH120: 18851998.22 | CI120: 32368880.95 | CJ120: 59615862.5
A121: 112 | B121: =NPV(#REF!,$G121:$CJ121) ->  | C121: =NPV(#REF!,$G$6:$CJ$6) ->  | G121: 0 | H121: 0 | I121: 0 | J121: 0 | K121: 0 | L121: 0 | M121: 0 | N121: 0 | O121: 0 | P121: 0 | Q121: 0 | R121: 0 | S121: 4126592.615 | T121: 0 | U121: 0 | V121: 0 | W121: 0 | X121: 0 | Y121: 933751.5522 | Z121: 0 | AA121: 0 | AB121: 1986397.705 | AC121: 2027688.145 | AD121: 0 | AE121: 0 | AF121: 3235171.391 | AG121: 0 | AH121: 17979016.71 | AI121: 1134925.43 | AJ121: 2292549.369 | AK121: 1157737.431 | AL121: 1169314.805 | AM121: 4724031.814 | AN121: 2385636.066 | AO121: 3614238.64 | AP121: 0 | AQ121: 0 | AR121: 8688758.599 | AS121: 1253663.741 | AT121: 3798601.134 | AU121: 0 | AV121: 2583302.011 | AW121: 2609135.032 | AX121: 6588065.955 | AY121: 6653946.614 | AZ121: 5376388.864 | BA121: 4072614.565 | BB121: 17824476.41 | BC121: 13848247.06 | BD121: 9790710.67 | BE121: 2825319.365 | BF121: 5707145.117 | BG121: 18733703.85 | BH121: 20376505.57 | BI121: 5880077.321 | BJ121: 7423597.618 | BK121: 0 | BL121: 7572811.93 | BM121: 0 | BN121: 3090010.18 | BO121: 1560455.141 | BP121: 31521193.85 | BQ121: 11142742.02 | BR121: 3215476.984 | BS121: 159165072.7 | BT121: 11480378.25 | BU121: 4969363.728 | BV121: 46844535.41 | BW121: 23656490.38 | BX121: 156331478.1 | BY121: 60329964.6 | BZ121: 24373305.7 | CA121: 12308519.38 | CB121: 3551887.02 | CC121: 175817260.8 | CD121: 12681479.82 | CE121: 5489269.124 | CF121: 51745510.27 | CG121: 26131482.69 | CH121: 172687209.6 | CI121: 66641813.72 | CJ121: 26923292.74
A122: 113 | B122: =NPV(#REF!,$G122:$CJ122) ->  | C122: =NPV(#REF!,$G$6:$CJ$6) ->  | G122: 0 | H122: 0 | I122: 0 | J122: 0 | K122: 0 | L122: 0 | M122: 0 | N122: 0 | O122: 0 | P122: 0 | Q122: 0 | R122: 0 | S122: 0 | T122: 0 | U122: 0 | V122: 0 | W122: 0 | X122: 914737.2806 | Y122: 0 | Z122: 0 | AA122: 0 | AB122: 993198.8523 | AC122: 0 | AD122: 0 | AE122: 1056430.865 | AF122: 1078390.464 | AG122: 0 | AH122: 10113196.9 | AI122: 6809552.58 | AJ122: 0 | AK122: 0 | AL122: 0 | AM122: 3543023.861 | AN122: 0 | AO122: 32703552.39 | AP122: 8517555.729 | AQ122: 0 | AR122: 7447507.371 | AS122: 1253663.741 | AT122: 2532400.756 | AU122: 0 | AV122: 5166604.023 | AW122: 0 | AX122: 0 | AY122: 0 | AZ122: 6720486.08 | BA122: 2715076.376 | BB122: 24680044.26 | BC122: 0 | BD122: 8392037.717 | BE122: 11301277.46 | BF122: 8560717.675 | BG122: 14410541.42 | BH122: 0 | BI122: 10290135.31 | BJ122: 8908317.141 | BK122: 14995667.19 | BL122: 6058249.544 | BM122: 48950656.32 | BN122: 18540061.08 | BO122: 18725461.69 | BP122: 7880298.461 | BQ122: 20693663.76 | BR122: 29173371.02 | BS122: 27604869.91 | BT122: 32801080.72 | BU122: 29816182.37 | BV122: 0 | BW122: 11828245.19 | BX122: 29012995.71 | BY122: 5171139.823 | BZ122: 20891404.88 | CA122: 22858678.84 | CB122: 32225551.1 | CC122: 30492950.07 | CD122: 36232799.5 | CE122: 32935614.74 | CF122: 0 | CG122: 13065741.34 | CH122: 32048396.98 | CI122: 5712155.462 | CJ122: 23077108.07
A123: 114 | B123: =NPV(#REF!,$G123:$CJ123) ->  | C123: =NPV(#REF!,$G$6:$CJ$6) ->  | G123: 0 | H123: 0 | I123: 0 | J123: 0 | K123: 0 | L123: 0 | M123: 0 | N123: 0 | O123: 0 | P123: 0 | Q123: 0 | R123: 0 | S123: 0 | T123: 0 | U123: 859986.2492 | V123: 0 | W123: 0 | X123: 0 | Y123: 2801254.657 | Z123: 953161.0657 | AA123: 972974.0369 | AB123: 2979596.557 | AC123: 5069220.363 | AD123: 0 | AE123: 2112861.73 | AF123: 0 | AG123: 2201613.055 | AH123: 0 | AI123: 2269850.86 | AJ123: 5731373.422 | AK123: 0 | AL123: 5846574.027 | AM123: 0 | AN123: 0 | AO123: 25299670.48 | AP123: 2433587.351 | AQ123: 3686884.837 | AR123: 0 | AS123: 1253663.741 | AT123: 3798601.134 | AU123: 8952036.673 | AV123: 1291651.006 | AW123: 15654810.19 | AX123: 0 | AY123: 6653946.614 | AZ123: 1344097.216 | BA123: 19005534.64 | BB123: 8226681.421 | BC123: 18002721.18 | BD123: 18182748.39 | BE123: 12713937.14 | BF123: 15694649.07 | BG123: 14410541.42 | BH123: 13099182.15 | BI123: 0 | BJ123: 23755512.38 | BK123: 2999133.438 | BL123: 0 | BM123: 160232533.1 | BN123: 29355096.71 | BO123: 4681365.423 | BP123: 40977552 | BQ123: 4775460.868 | BR123: 54663108.73 | BS123: 3247631.754 | BT123: 6560216.143 | BU123: 24846818.64 | BV123: 33460382.44 | BW123: 20276991.76 | BX123: 56319344.61 | BY123: 12065992.92 | BZ123: 48746611.4 | CA123: 5275079.733 | CB123: 60382079.35 | CC123: 3587405.891 | CD123: 7246559.899 | CE123: 27446345.62 | CF123: 36961078.77 | CG123: 22398413.73 | CH123: 62211594.14 | CI123: 13328362.74 | CJ123: 53846585.49
A124: 115 | B124: =NPV(#REF!,$G124:$CJ124) ->  | C124: =NPV(#REF!,$G$6:$CJ$6) ->  | G124: 0 | H124: 0 | I124: 0 | J124: 0 | K124: 0 | L124: 0 | M124: 0 | N124: 0 | O124: 0 | P124: 0 | Q124: 0 | R124: 0 | S124: 0 | T124: 8424740.833 | U124: 0 | V124: 0 | W124: 10753322.43 | X124: 0 | Y124: 0 | Z124: 2859483.197 | AA124: 0 | AB124: 0 | AC124: 0 | AD124: 0 | AE124: 0 | AF124: 2156780.927 | AG124: 3302419.582 | AH124: 0 | AI124: 3404776.29 | AJ124: 0 | AK124: 0 | AL124: 5846574.027 | AM124: 0 | AN124: 16699452.46 | AO124: 1204746.213 | AP124: 0 | AQ124: 3686884.837 | AR124: 1241251.228 | AS124: 3760991.222 | AT124: 11395803.4 | AU124: 0 | AV124: 0 | AW124: 0 | AX124: 5270452.764 | AY124: 13307893.23 | AZ124: 8064583.296 | BA124: 1357538.188 | BB124: 12340022.13 | BC124: 19387545.88 | BD124: 18182748.39 | BE124: 24015214.6 | BF124: 15694649.07 | BG124: 7205270.71 | BH124: 4366394.05 | BI124: 4410057.991 | BJ124: 10393036.66 | BK124: 16495233.91 | BL124: 7572811.93 | BM124: 0 | BN124: 10815035.63 | BO124: 35890468.24 | BP124: 20488776 | BQ124: 9550921.735 | BR124: 3215476.984 | BS124: 361824802.9 | BT124: 91843026 | BU124: 35026717.06 | BV124: 5019057.366 | BW124: 20276991.76 | BX124: 15359821.26 | BY124: 60329964.6 | BZ124: 13927603.26 | CA124: 10550159.47 | CB124: 3551887.02 | CC124: 399679682.9 | CD124: 101451838.6 | CE124: 38691286.65 | CF124: 5544161.815 | CG124: 22398413.73 | CH124: 16966798.4 | CI124: 66641813.72 | CJ124: 15384738.71
A125: 116 | B125: =NPV(#REF!,$G125:$CJ125) ->  | C125: =NPV(#REF!,$G$6:$CJ$6) ->  | G125: 0 | H125: 0 | I125: 0 | J125: 0 | K125: 0 | L125: 0 | M125: 0 | N125: 0 | O125: 0 | P125: 0 | Q125: 0 | R125: 0 | S125: 0 | T125: 0 | U125: 0 | V125: 0 | W125: 0 | X125: 0 | Y125: 0 | Z125: 953161.0657 | AA125: 0 | AB125: 0 | AC125: 1013844.073 | AD125: 0 | AE125: 3169292.595 | AF125: 0 | AG125: 5504032.636 | AH125: 0 | AI125: 0 | AJ125: 0 | AK125: 3473212.294 | AL125: 22216981.3 | AM125: 0 | AN125: 3578454.099 | AO125: 3614238.64 | AP125: 0 | AQ125: 3686884.837 | AR125: 0 | AS125: 8775646.185 | AT125: 5064801.512 | AU125: 0 | AV125: 7749906.034 | AW125: 6522837.579 | AX125: 36893169.35 | AY125: 22623418.49 | AZ125: 17473263.81 | BA125: 16290458.26 | BB125: 1371113.57 | BC125: 6924123.529 | BD125: 6993364.764 | BE125: 79520293.66 | BF125: 71339313.96 | BG125: 43231624.26 | BH125: 17465576.2 | BI125: 11760154.64 | BJ125: 25240231.9 | BK125: 7497833.594 | BL125: 10601936.7 | BM125: 12237664.08 | BN125: 42165026.45 | BO125: 0 | BP125: 11032417.85 | BQ125: 0 | BR125: 14469646.43 | BS125: 4871447.631 | BT125: 26240864.57 | BU125: 16564545.76 | BV125: 238850747.8 | BW125: 27035989.01 | BX125: 74131248.72 | BY125: 5171139.823 | BZ125: 27855206.51 | CA125: 0 | CB125: 15983491.59 | CC125: 5381108.836 | CD125: 28986239.6 | CE125: 18297563.75 | CF125: 263839820.7 | CG125: 29864551.64 | CH125: 81887017.52 | CI125: 5712155.462 | CJ125: 30769477.42
A126: 117 | B126: =NPV(#REF!,$G126:$CJ126) ->  | C126: =NPV(#REF!,$G$6:$CJ$6) ->  | G126: 0 | H126: 0 | I126: 0 | J126: 0 | K126: 0 | L126: 0 | M126: 0 | N126: 0 | O126: 0 | P126: 0 | Q126: 0 | R126: 0 | S126: 0 | T126: 0 | U126: 4299931.246 | V126: 0 | W126: 0 | X126: 914737.2806 | Y126: 0 | Z126: 953161.0657 | AA126: 0 | AB126: 0 | AC126: 4055376.29 | AD126: 5174592.184 | AE126: 1056430.865 | AF126: 0 | AG126: 0 | AH126: 0 | AI126: 0 | AJ126: 0 | AK126: 10419636.88 | AL126: 0 | AM126: 0 | AN126: 0 | AO126: 28913909.12 | AP126: 0 | AQ126: 4915846.449 | AR126: 0 | AS126: 5014654.963 | AT126: 0 | AU126: 3836587.146 | AV126: 3874953.017 | AW126: 14350242.67 | AX126: 7905679.146 | AY126: 7984735.937 | AZ126: 1344097.216 | BA126: 5430152.753 | BB126: 9597794.991 | BC126: 26311669.41 | BD126: 0 | BE126: 14126596.82 | BF126: 14267862.79 | BG126: 0 | BH126: 0 | BI126: 8820115.982 | BJ126: 23755512.38 | BK126: 0 | BL126: 10601936.7 | BM126: 0 | BN126: 12360040.72 | BO126: 10923185.99 | BP126: 15990062.82 | BQ126: 9550921.735 | BR126: 30547031.35 | BS126: 42219212.8 | BT126: 22960756.5 | BU126: 53006546.44 | BV126: 208947926.7 | BW126: 64210473.9 | BX126: 5119940.419 | BY126: 0 | BZ126: 64922111.27 | CA126: 10550159.47 | CB126: 33742926.69 | CC126: 46636276.58 | CD126: 25362959.65 | CE126: 58552203.98 | CF126: 230808502.9 | CG126: 70928310.15 | CH126: 5655599.467 | CI126: 0 | CJ126: 71714400.54
A127: 118 | B127: =NPV(#REF!,$G127:$CJ127) ->  | C127: =NPV(#REF!,$G$6:$CJ$6) ->  | G127: 0 | H127: 0 | I127: 0 | J127: 0 | K127: 0 | L127: 0 | M127: 0 | N127: 0 | O127: 0 | P127: 0 | Q127: 0 | R127: 0 | S127: 0 | T127: 842474.0833 | U127: 0 | V127: 4517124.261 | W127: 12545542.84 | X127: 0 | Y127: 0 | Z127: 953161.0657 | AA127: 972974.0369 | AB127: 1986397.705 | AC127: 5069220.363 | AD127: 0 | AE127: 0 | AF127: 6470342.782 | AG127: 0 | AH127: 1123688.545 | AI127: 0 | AJ127: 20632944.32 | AK127: 3473212.294 | AL127: 1169314.805 | AM127: 17715119.3 | AN127: 5964090.165 | AO127: 0 | AP127: 9734349.404 | AQ127: 3686884.837 | AR127: 0 | AS127: 0 | AT127: 3798601.134 | AU127: 2557724.764 | AV127: 2583302.011 | AW127: 0 | AX127: 2635226.382 | AY127: 14638682.55 | AZ127: 1344097.216 | BA127: 1357538.188 | BB127: 4113340.71 | BC127: 19387545.88 | BD127: 2797345.906 | BE127: 5650638.73 | BF127: 15694649.07 | BG127: 7205270.71 | BH127: 55943381.68 | BI127: 5880077.321 | BJ127: 8908317.141 | BK127: 22493500.78 | BL127: 16660186.25 | BM127: 21415912.14 | BN127: 10815035.63 | BO127: 3120910.282 | BP127: 18912716.31 | BQ127: 70040092.72 | BR127: 32154769.84 | BS127: 22733422.28 | BT127: 11480378.25 | BU127: 61288819.32 | BV127: 10038114.73 | BW127: 6758997.252 | BX127: 18773114.87 | BY127: 8618566.371 | BZ127: 27855206.51 | CA127: 77367836.09 | CB127: 35518870.2 | CC127: 25111841.23 | CD127: 12681479.82 | CE127: 67700985.86 | CF127: 11088323.63 | CG127: 7466137.911 | CH127: 20737198.05 | CI127: 9520259.103 | CJ127: 30769477.42
A128: 119 | B128: =NPV(#REF!,$G128:$CJ128) ->  | C128: =NPV(#REF!,$G$6:$CJ$6) ->  | G128: 0 | H128: 0 | I128: 0 | J128: 0 | K128: 0 | L128: 0 | M128: 0 | N128: 0 | O128: 0 | P128: 0 | Q128: 0 | R128: 0 | S128: 825318.523 | T128: 0 | U128: 0 | V128: 0 | W128: 4480551.013 | X128: 914737.2806 | Y128: 933751.5522 | Z128: 0 | AA128: 0 | AB128: 0 | AC128: 4055376.29 | AD128: 1034918.437 | AE128: 1056430.865 | AF128: 0 | AG128: 0 | AH128: 0 | AI128: 0 | AJ128: 1146274.684 | AK128: 0 | AL128: 3507944.416 | AM128: 10629071.58 | AN128: 16699452.46 | AO128: 0 | AP128: 7300762.053 | AQ128: 6144808.061 | AR128: 6206256.142 | AS128: 6268318.704 | AT128: 6331001.891 | AU128: 76731742.91 | AV128: 0 | AW128: 15654810.19 | AX128: 15811358.29 | AY128: 7984735.937 | AZ128: 4032291.648 | BA128: 4072614.565 | BB128: 1371113.57 | BC128: 0 | BD128: 13986729.53 | BE128: 16951916.19 | BF128: 0 | BG128: 10087378.99 | BH128: 21831970.25 | BI128: 2940038.661 | BJ128: 4454158.571 | BK128: 19494367.34 | BL128: 6058249.544 | BM128: 4589124.03 | BN128: 3090010.18 | BO128: 21846371.97 | BP128: 0 | BQ128: 4775460.868 | BR128: 4823215.476 | BS128: 48950895.25 | BT128: 0 | BU128: 21533909.49 | BV128: 20076229.46 | BW128: 15207743.82 | BX128: 155089084.7 | BY128: 10342279.65 | BZ128: 34819008.14 | CA128: 5275079.733 | CB128: 5327830.531 | CC128: 54072241.95 | CD128: 0 | CE128: 23786832.87 | CF128: 22176647.26 | CG128: 16798810.3 | CH128: 171314834.3 | CI128: 11424310.92 | CJ128: 38461846.78
A129: 120 | B129: =NPV(#REF!,$G129:$CJ129) ->  | C129: =NPV(#REF!,$G$6:$CJ$6) ->  | G129: 0 | H129: 0 | I129: 0 | J129: 0 | K129: 0 | L129: 0 | M129: 0 | N129: 0 | O129: 0 | P129: 0 | Q129: 0 | R129: 0 | S129: 0 | T129: 842474.0833 | U129: 0 | V129: 0 | W129: 0 | X129: 0 | Y129: 0 | Z129: 0 | AA129: 972974.0369 | AB129: 0 | AC129: 1013844.073 | AD129: 9314265.931 | AE129: 8451446.921 | AF129: 1078390.464 | AG129: 0 | AH129: 0 | AI129: 3404776.29 | AJ129: 0 | AK129: 0 | AL129: 1169314.805 | AM129: 0 | AN129: 2385636.066 | AO129: 7228477.28 | AP129: 0 | AQ129: 3686884.837 | AR129: 0 | AS129: 10029309.93 | AT129: 2532400.756 | AU129: 3836587.146 | AV129: 1291651.006 | AW129: 0 | AX129: 1317613.191 | AY129: 14638682.55 | AZ129: 5376388.864 | BA129: 19005534.64 | BB129: 8226681.421 | BC129: 2769649.412 | BD129: 13986729.53 | BE129: 16951916.19 | BF129: 0 | BG129: 99432735.8 | BH129: 16010111.52 | BI129: 10290135.31 | BJ129: 26724951.42 | BK129: 2999133.438 | BL129: 7572811.93 | BM129: 9178248.059 | BN129: 29355096.71 | BO129: 26527737.39 | BP129: 19142182.2 | BQ129: 22285484.05 | BR129: 46624416.27 | BS129: 38971581.05 | BT129: 3280108.072 | BU129: 9938727.457 | BV129: 6692076.488 | BW129: 42243732.83 | BX129: 0 | BY129: 24131985.84 | BZ129: 22632355.29 | CA129: 24617038.76 | CB129: 51502361.8 | CC129: 43048870.69 | CD129: 3623279.95 | CE129: 10978538.25 | CF129: 7392215.753 | CG129: 46663361.94 | CH129: 0 | CI129: 26656725.49 | CJ129: 25000200.41
A130: 121 | B130: =NPV(#REF!,$G130:$CJ130) ->  | C130: =NPV(#REF!,$G$6:$CJ$6) ->  | G130: 0 | H130: 0 | I130: 0 | J130: 0 | K130: 0 | L130: 0 | M130: 0 | N130: 0 | O130: 0 | P130: 0 | Q130: 0 | R130: 0 | S130: 0 | T130: 8424740.833 | U130: 0 | V130: 0 | W130: 0 | X130: 0 | Y130: 933751.5522 | Z130: 0 | AA130: 972974.0369 | AB130: 0 | AC130: 6083064.436 | AD130: 2069836.874 | AE130: 0 | AF130: 3235171.391 | AG130: 0 | AH130: 8989508.357 | AI130: 0 | AJ130: 2292549.369 | AK130: 0 | AL130: 18709036.89 | AM130: 0 | AN130: 0 | AO130: 7228477.28 | AP130: 14601524.11 | AQ130: 0 | AR130: 0 | AS130: 10211836.69 | AT130: 1266200.378 | AU130: 1278862.382 | AV130: 1291651.006 | AW130: 0 | AX130: 27669877.01 | AY130: 5323157.291 | AZ130: 0 | BA130: 1357538.188 | BB130: 101861657.9 | BC130: 6924123.529 | BD130: 20980094.29 | BE130: 53681067.93 | BF130: 5707145.117 | BG130: 4323162.426 | BH130: 4366394.05 | BI130: 0 | BJ130: 122395502.7 | BK130: 19494367.34 | BL130: 12116499.09 | BM130: 10707956.07 | BN130: 20085066.17 | BO130: 32769557.96 | BP130: 15760596.92 | BQ130: 313247090.2 | BR130: 66385434.49 | BS130: 50338292.19 | BT130: 42641404.93 | BU130: 9938727.457 | BV130: 41825478.05 | BW130: 38864234.2 | BX130: 52906050.99 | BY130: 13789706.19 | BZ130: 43523760.18 | CA130: 346019666.6 | CB130: 73330819.75 | CC130: 55604791.31 | CD130: 47102639.34 | CE130: 10978538.25 | CF130: 46201348.46 | CG130: 42930292.99 | CH130: 58441194.5 | CI130: 15232414.57 | CJ130: 48077308.47
A131: 122 | B131: =NPV(#REF!,$G131:$CJ131) ->  | C131: =NPV(#REF!,$G$6:$CJ$6) ->  | G131: 0 | H131: 0 | I131: 0 | J131: 0 | K131: 0 | L131: 0 | M131: 0 | N131: 0 | O131: 0 | P131: 0 | Q131: 0 | R131: 0 | S131: 0 | T131: 0 | U131: 1719972.498 | V131: 0 | W131: 0 | X131: 0 | Y131: 933751.5522 | Z131: 2859483.197 | AA131: 0 | AB131: 0 | AC131: 0 | AD131: 0 | AE131: 1056430.865 | AF131: 0 | AG131: 0 | AH131: 1123688.545 | AI131: 5674627.15 | AJ131: 0 | AK131: 0 | AL131: 9354518.444 | AM131: 0 | AN131: 5964090.165 | AO131: 0 | AP131: 4867174.702 | AQ131: 1228961.612 | AR131: 9930009.827 | AS131: 46385558.41 | AT131: 11395803.4 | AU131: 14067486.2 | AV131: 6458255.029 | AW131: 0 | AX131: 1317613.191 | AY131: 7984735.937 | AZ131: 10752777.73 | BA131: 1357538.188 | BB131: 0 | BC131: 18002721.18 | BD131: 20980094.29 | BE131: 7063298.412 | BF131: 2853572.558 | BG131: 12969487.28 | BH131: 17465576.2 | BI131: 2940038.661 | BJ131: 8908317.141 | BK131: 70697964.71 | BL131: 18174748.63 | BM131: 0 | BN131: 30900101.8 | BO131: 3120910.282 | BP131: 19142182.2 | BQ131: 30244585.49 | BR131: 35370246.83 | BS131: 8119079.385 | BT131: 8200270.179 | BU131: 8282272.881 | BV131: 11711133.85 | BW131: 11828245.19 | BX131: 158038124.9 | BY131: 29303125.66 | BZ131: 15668553.66 | CA131: 33408838.31 | CB131: 39070757.22 | CC131: 8968514.727 | CD131: 9058199.874 | CE131: 9148781.873 | CF131: 12936377.57 | CG131: 13065741.34 | CH131: 174572409.4 | CI131: 32368880.95 | CJ131: 17307831.05
A132: 123 | B132: =NPV(#REF!,$G132:$CJ132) ->  | C132: =NPV(#REF!,$G$6:$CJ$6) ->  | G132: 0 | H132: 0 | I132: 0 | J132: 0 | K132: 0 | L132: 0 | M132: 0 | N132: 0 | O132: 0 | P132: 0 | Q132: 0 | R132: 0 | S132: 0 | T132: 842474.0833 | U132: 0 | V132: 0 | W132: 896110.2025 | X132: 0 | Y132: 2801254.657 | Z132: 0 | AA132: 0 | AB132: 0 | AC132: 4055376.29 | AD132: 2069836.874 | AE132: 10564308.65 | AF132: 2156780.927 | AG132: 2201613.055 | AH132: 0 | AI132: 0 | AJ132: 0 | AK132: 3473212.294 | AL132: 1169314.805 | AM132: 0 | AN132: 17892270.5 | AO132: 0 | AP132: 0 | AQ132: 1228961.612 | AR132: 0 | AS132: 1253663.741 | AT132: 0 | AU132: 0 | AV132: 0 | AW132: 0 | AX132: 0 | AY132: 0 | AZ132: 6720486.08 | BA132: 6787690.941 | BB132: 13711135.7 | BC132: 4154474.117 | BD132: 6993364.764 | BE132: 4237979.047 | BF132: 8560717.675 | BG132: 4323162.426 | BH132: 13099182.15 | BI132: 2940038.661 | BJ132: 13362475.71 | BK132: 0 | BL132: 0 | BM132: 12237664.08 | BN132: 4635015.27 | BO132: 20285916.83 | BP132: 20488776 | BQ132: 20693663.76 | BR132: 46624416.27 | BS132: 24357238.15 | BT132: 85282809.86 | BU132: 19877454.91 | BV132: 82465102.32 | BW132: 18587242.44 | BX132: 15359821.26 | BY132: 49987684.95 | BZ132: 50487561.8 | CA132: 22858678.84 | CB132: 51502361.8 | CC132: 26905544.18 | CD132: 94205278.69 | CE132: 21957076.49 | CF132: 91092776.59 | CG132: 20531879.25 | CH132: 16966798.4 | CI132: 55217502.8 | CJ132: 55769677.83
A133: 124 | B133: =NPV(#REF!,$G133:$CJ133) ->  | C133: =NPV(#REF!,$G$6:$CJ$6) ->  | G133: 0 | H133: 0 | I133: 0 | J133: 0 | K133: 0 | L133: 0 | M133: 0 | N133: 0 | O133: 0 | P133: 0 | Q133: 0 | R133: 0 | S133: 0 | T133: 0 | U133: 2579958.748 | V133: 0 | W133: 0 | X133: 914737.2806 | Y133: 0 | Z133: 0 | AA133: 1945948.074 | AB133: 0 | AC133: 0 | AD133: 0 | AE133: 2112861.73 | AF133: 0 | AG133: 0 | AH133: 21350082.35 | AI133: 1134925.43 | AJ133: 0 | AK133: 11577374.31 | AL133: 3507944.416 | AM133: 0 | AN133: 2385636.066 | AO133: 25299670.48 | AP133: 8517555.729 | AQ133: 1228961.612 | AR133: 1241251.228 | AS133: 0 | AT133: 5064801.512 | AU133: 0 | AV133: 3874953.017 | AW133: 18263945.22 | AX133: 15811358.29 | AY133: 1330789.323 | AZ133: 0 | BA133: 21720611.01 | BB133: 5484454.28 | BC133: 8308948.235 | BD133: 9790710.67 | BE133: 5650638.73 | BF133: 1426786.279 | BG133: 4323162.426 | BH133: 11643717.47 | BI133: 10290135.31 | BJ133: 14847195.24 | BK133: 7497833.594 | BL133: 9087374.316 | BM133: 10707956.07 | BN133: 15450050.9 | BO133: 81143667.32 | BP133: 9456358.154 | BQ133: 7959101.446 | BR133: 29173371.02 | BS133: 9742895.262 | BT133: 21320702.46 | BU133: 39754909.83 | BV133: 46844535.41 | BW133: 11828245.19 | BX133: 32426289.32 | BY133: 22408272.57 | BZ133: 31337107.33 | CA133: 8791799.556 | CB133: 32225551.1 | CC133: 10762217.67 | CD133: 23551319.67 | CE133: 43914152.99 | CF133: 51745510.27 | CG133: 13065741.34 | CH133: 35818796.63 | CI133: 24752673.67 | CJ133: 34615662.1
A134: 125 | B134: =NPV(#REF!,$G134:$CJ134) ->  | C134: =NPV(#REF!,$G$6:$CJ$6) ->  | G134: 0 | H134: 0 | I134: 0 | J134: 0 | K134: 0 | L134: 0 | M134: 0 | N134: 0 | O134: 0 | P134: 0 | Q134: 0 | R134: 0 | S134: 0 | T134: 0 | U134: 0 | V134: 5394986.694 | W134: 896110.2025 | X134: 7317898.245 | Y134: 0 | Z134: 953161.0657 | AA134: 972974.0369 | AB134: 1986397.705 | AC134: 1013844.073 | AD134: 0 | AE134: 0 | AF134: 3235171.391 | AG134: 0 | AH134: 0 | AI134: 6809552.58 | AJ134: 9170197.475 | AK134: 0 | AL134: 22216981.3 | AM134: 7086047.721 | AN134: 0 | AO134: 0 | AP134: 4867174.702 | AQ134: 0 | AR134: 6206256.142 | AS134: 11465500.43 | AT134: 10129603.02 | AU134: 0 | AV134: 14396218.57 | AW134: 5218270.063 | AX134: 6588065.955 | AY134: 9315525.26 | AZ134: 1344097.216 | BA134: 21720611.01 | BB134: 8226681.421 | BC134: 12463422.35 | BD134: 16784075.43 | BE134: 12713937.14 | BF134: 8560717.675 | BG134: 8646324.852 | BH134: 0 | BI134: 5880077.321 | BJ134: 1484719.524 | BK134: 4498700.156 | BL134: 1514562.386 | BM134: 9178248.059 | BN134: 20085066.17 | BO134: 25194476.21 | BP134: 31521193.85 | BQ134: 0 | BR134: 48232154.76 | BS134: 25981054.03 | BT134: 247264876.8 | BU134: 19877454.91 | BV134: 21749248.58 | BW134: 32105236.95 | BX134: 5119940.419 | BY134: 93331480.28 | BZ134: 22632355.29 | CA134: 0 | CB134: 53278305.31 | CC134: 28699247.13 | CD134: 273134253.7 | CE134: 21957076.49 | CF134: 24024701.2 | CG134: 35464155.08 | CH134: 5655599.467 | CI134: 103096018.1 | CJ134: 25000200.41
A135: 126 | B135: =NPV(#REF!,$G135:$CJ135) ->  | C135: =NPV(#REF!,$G$6:$CJ$6) ->  | G135: 0 | H135: 0 | I135: 0 | J135: 0 | K135: 0 | L135: 0 | M135: 0 | N135: 0 | O135: 0 | P135: 0 | Q135: 0 | R135: 0 | S135: 0 | T135: 0 | U135: 0 | V135: 0 | W135: 3584440.81 | X135: 0 | Y135: 0 | Z135: 0 | AA135: 6810818.258 | AB135: 0 | AC135: 0 | AD135: 0 | AE135: 0 | AF135: 0 | AG135: 0 | AH135: 0 | AI135: 0 | AJ135: 0 | AK135: 1157737.431 | AL135: 3507944.416 | AM135: 7086047.721 | AN135: 9542544.265 | AO135: 3614238.64 | AP135: 0 | AQ135: 6144808.061 | AR135: 0 | AS135: 1253663.741 | AT135: 0 | AU135: 0 | AV135: 6458255.029 | AW135: 3913702.547 | AX135: 3952839.573 | AY135: 0 | AZ135: 0 | BA135: 5430152.753 | BB135: 116171674 | BC135: 19387545.88 | BD135: 20980094.29 | BE135: 24220890.32 | BF135: 1426786.279 | BG135: 4323162.426 | BH135: 71741585.3 | BI135: 10290135.31 | BJ135: 40519761.64 | BK135: 8997400.313 | BL135: 19689311.02 | BM135: 6118832.039 | BN135: 13905045.81 | BO135: 12483641.13 | BP135: 18912716.31 | BQ135: 4775460.868 | BR135: 33762508.33 | BS135: 50338292.19 | BT135: 8200270.179 | BU135: 36442000.67 | BV135: 26768305.95 | BW135: 21966741.07 | BX135: 25599702.09 | BY135: 15513419.47 | BZ135: 24373305.7 | CA135: 5275079.733 | CB135: 37294813.71 | CC135: 55604791.31 | CD135: 9058199.874 | CE135: 40254640.24 | CF135: 29568863.01 | CG135: 24264948.21 | CH135: 28277997.34 | CI135: 17136466.39 | CJ135: 26923292.74
A136: 127 | B136: =NPV(#REF!,$G136:$CJ136) ->  | C136: =NPV(#REF!,$G$6:$CJ$6) ->  | G136: 0 | H136: 0 | I136: 0 | J136: 0 | K136: 0 | L136: 0 | M136: 0 | N136: 0 | O136: 0 | P136: 0 | Q136: 0 | R136: 0 | S136: 3301274.092 | T136: 0 | U136: 0 | V136: 0 | W136: 0 | X136: 0 | Y136: 0 | Z136: 1906322.131 | AA136: 1945948.074 | AB136: 0 | AC136: 0 | AD136: 1034918.437 | AE136: 0 | AF136: 0 | AG136: 3302419.582 | AH136: 0 | AI136: 0 | AJ136: 0 | AK136: 1157737.431 | AL136: 0 | AM136: 4724031.814 | AN136: 0 | AO136: 4818984.854 | AP136: 0 | AQ136: 0 | AR136: 0 | AS136: 1253663.741 | AT136: 2532400.756 | AU136: 2557724.764 | AV136: 14208161.06 | AW136: 5218270.063 | AX136: 17128971.48 | AY136: 60079275.36 | AZ136: 5376388.864 | BA136: 13575381.88 | BB136: 9597794.991 | BC136: 66673208.98 | BD136: 9790710.67 | BE136: 25427874.28 | BF136: 0 | BG136: 99432735.8 | BH136: 8732788.101 | BI136: 8820115.982 | BJ136: 111570131.5 | BK136: 17994800.63 | BL136: 0 | BM136: 9178248.059 | BN136: 29355096.71 | BO136: 17392200.5 | BP136: 34673313.23 | BQ136: 22285484.05 | BR136: 43408939.29 | BS136: 40595396.92 | BT136: 34441134.75 | BU136: 24846818.64 | BV136: 8365095.609 | BW136: 15207743.82 | BX136: 3413293.612 | BY136: 24131985.84 | BZ136: 48746611.4 | CA136: 24617038.76 | CB136: 47950474.78 | CC136: 44842573.63 | CD136: 38044439.47 | CE136: 27446345.62 | CF136: 9240269.691 | CG136: 16798810.3 | CH136: 3770399.645 | CI136: 26656725.49 | CJ136: 53846585.49
A137: 128 | B137: =NPV(#REF!,$G137:$CJ137) ->  | C137: =NPV(#REF!,$G$6:$CJ$6) ->  | G137: 0 | H137: 0 | I137: 0 | J137: 0 | K137: 0 | L137: 0 | M137: 0 | N137: 0 | O137: 0 | P137: 0 | Q137: 0 | R137: 0 | S137: 0 | T137: 0 | U137: 0 | V137: 0 | W137: 4480551.013 | X137: 0 | Y137: 0 | Z137: 0 | AA137: 0 | AB137: 2979596.557 | AC137: 0 | AD137: 0 | AE137: 3169292.595 | AF137: 2156780.927 | AG137: 2201613.055 | AH137: 17979016.71 | AI137: 0 | AJ137: 5731373.422 | AK137: 0 | AL137: 4677259.222 | AM137: 7086047.721 | AN137: 8349726.232 | AO137: 1204746.213 | AP137: 0 | AQ137: 0 | AR137: 6206256.142 | AS137: 0 | AT137: 0 | AU137: 8952036.673 | AV137: 2583302.011 | AW137: 30005052.86 | AX137: 25034650.63 | AY137: 5323157.291 | AZ137: 6720486.08 | BA137: 0 | BB137: 1371113.57 | BC137: 9693772.941 | BD137: 6993364.764 | BE137: 8475958.094 | BF137: 15694649.07 | BG137: 18733703.85 | BH137: 17465576.2 | BI137: 22050289.95 | BJ137: 19301353.81 | BK137: 16495233.91 | BL137: 6058249.544 | BM137: 52010072.34 | BN137: 15450050.9 | BO137: 20285916.83 | BP137: 23640895.38 | BQ137: 9550921.735 | BR137: 46624416.27 | BS137: 1623815.877 | BT137: 16400540.36 | BU137: 128029344.3 | BV137: 116656232.8 | BW137: 13517994.5 | BX137: 18773114.87 | BY137: 13789706.19 | BZ137: 53969462.62 | CA137: 10550159.47 | CB137: 51502361.8 | CC137: 1793702.945 | CD137: 18116399.75 | CE137: 141424046.4 | CF137: 128861055.8 | CG137: 14932275.82 | CH137: 20737198.05 | CI137: 15232414.57 | CJ137: 59615862.5
A138: 129 | B138: =NPV(#REF!,$G138:$CJ138) ->  | C138: =NPV(#REF!,$G$6:$CJ$6) ->  | G138: 0 | H138: 0 | I138: 0 | J138: 0 | K138: 0 | L138: 0 | M138: 0 | N138: 0 | O138: 0 | P138: 0 | Q138: 0 | R138: 0 | S138: 0 | T138: 0 | U138: 4299931.246 | V138: 0 | W138: 0 | X138: 1829474.561 | Y138: 0 | Z138: 0 | AA138: 0 | AB138: 1986397.705 | AC138: 4055376.29 | AD138: 0 | AE138: 2112861.73 | AF138: 4313561.854 | AG138: 0 | AH138: 1123688.545 | AI138: 0 | AJ138: 5731373.422 | AK138: 1157737.431 | AL138: 3507944.416 | AM138: 0 | AN138: 0 | AO138: 0 | AP138: 4867174.702 | AQ138: 2457923.225 | AR138: 0 | AS138: 7521982.444 | AT138: 1266200.378 | AU138: 3836587.146 | AV138: 24541369.11 | AW138: 15654810.19 | AX138: 0 | AY138: 5323157.291 | AZ138: 1344097.216 | BA138: 6787690.941 | BB138: 0 | BC138: 11078597.65 | BD138: 13986729.53 | BE138: 76694974.3 | BF138: 8560717.675 | BG138: 12969487.28 | BH138: 1455464.683 | BI138: 7350096.651 | BJ138: 5938878.094 | BK138: 14995667.19 | BL138: 3029124.772 | BM138: 10707956.07 | BN138: 0 | BO138: 24967282.25 | BP138: 4728179.077 | BQ138: 12734562.31 | BR138: 6430953.968 | BS138: 334661654.2 | BT138: 41001350.89 | BU138: 29816182.37 | BV138: 5019057.366 | BW138: 15207743.82 | BX138: 20479761.67 | BY138: 12065992.92 | BZ138: 13927603.26 | CA138: 14066879.29 | CB138: 7103774.041 | CC138: 369674667.8 | CD138: 45290999.37 | CE138: 32935614.74 | CF138: 5544161.815 | CG138: 16798810.3 | CH138: 22622397.87 | CI138: 13328362.74 | CJ138: 15384738.71
A139: 130 | B139: =NPV(#REF!,$G139:$CJ139) ->  | C139: =NPV(#REF!,$G$6:$CJ$6) ->  | D139: =B139-C139 ->  | E139: =B139/C139 ->  | G139: 0 | H139: 0 | I139: 0 | J139: 0 | K139: 0 | L139: 0 | M139: 0 | N139: 0 | O139: 0 | P139: 0 | Q139: 0 | R139: 0 | S139: 0 | T139: 842474.0833 | U139: 0 | V139: 10534349.2 | W139: 0 | X139: 4573686.403 | Y139: 2801254.657 | Z139: 0 | AA139: 7783792.295 | AB139: 0 | AC139: 2027688.145 | AD139: 0 | AE139: 0 | AF139: 0 | AG139: 2201613.055 | AH139: 3371065.634 | AI139: 0 | AJ139: 2292549.369 | AK139: 4630949.725 | AL139: 5846574.027 | AM139: 7086047.721 | AN139: 17892270.5 | AO139: 3614238.64 | AP139: 13384730.43 | AQ139: 1228961.612 | AR139: 0 | AS139: 7521982.444 | AT139: 6331001.891 | AU139: 0 | AV139: 0 | AW139: 5218270.063 | AX139: 6588065.955 | AY139: 3992367.969 | AZ139: 1344097.216 | BA139: 6787690.941 | BB139: 1371113.57 | BC139: 5539298.823 | BD139: 16784075.43 | BE139: 1412659.682 | BF139: 12841076.51 | BG139: 7205270.71 | BH139: 55943381.68 | BI139: 4410057.991 | BJ139: 31395277.25 | BK139: 22493500.78 | BL139: 0 | BM139: 0 | BN139: 3090010.18 | BO139: 10923185.99 | BP139: 9456358.154 | BQ139: 20693663.76 | BR139: 20900600.4 | BS139: 144077891.9 | BT139: 41001350.89 | BU139: 31472636.95 | BV139: 3346038.244 | BW139: 15207743.82 | BX139: 5119940.419 | BY139: 27579412.39 | BZ139: 24373305.7 | CA139: 22858678.84 | CB139: 23087265.63 | CC139: 159151627.2 | CD139: 45290999.37 | CE139: 34765371.12 | CF139: 3696107.877 | CG139: 16798810.3 | CH139: 5655599.467 | CI139: 30464829.13 | CJ139: 26923292.74
A140: =A139+1 -> 131 | B140: =NPV(#REF!,$G140:$CJ140) ->  | C140: =NPV(#REF!,$G$6:$CJ$6) ->  | G140: 0 | H140: 0 | I140: 0 | J140: 0 | K140: 0 | L140: 0 | M140: 0 | N140: 0 | O140: 0 | P140: 0 | Q140: 0 | R140: 0 | S140: 0 | T140: 0 | U140: 0 | V140: 3511449.734 | W140: 7168881.62 | X140: 0 | Y140: 0 | Z140: 0 | AA140: 0 | AB140: 2979596.557 | AC140: 0 | AD140: 0 | AE140: 3169292.595 | AF140: 3235171.391 | AG140: 2201613.055 | AH140: 0 | AI140: 0 | AJ140: 0 | AK140: 3473212.294 | AL140: 1169314.805 | AM140: 8267055.675 | AN140: 0 | AO140: 4818984.854 | AP140: 0 | AQ140: 0 | AR140: 0 | AS140: 1253663.741 | AT140: 1266200.378 | AU140: 76731742.91 | AV140: 7749906.034 | AW140: 27395917.83 | AX140: 1317613.191 | AY140: 14638682.55 | AZ140: 5376388.864 | BA140: 19005534.64 | BB140: 6855567.851 | BC140: 22157195.29 | BD140: 16784075.43 | BE140: 5650638.73 | BF140: 5707145.117 | BG140: 10087378.99 | BH140: 5821858.734 | BI140: 1470019.33 | BJ140: 35633268.57 | BK140: 34490034.53 | BL140: 34834934.88 | BM140: 50480364.33 | BN140: 7725025.45 | BO140: 15604551.41 | BP140: 139381650.6 | BQ140: 7959101.446 | BR140: 14469646.43 | BS140: 119247815.8 | BT140: 6560216.143 | BU140: 66258183.04 | BV140: 33460382.44 | BW140: 21966741.07 | BX140: 25599702.09 | BY140: 32750552.21 | BZ140: 57451363.43 | CA140: 8791799.556 | CB140: 15983491.59 | CC140: 131723775.8 | CD140: 7246559.899 | CE140: 73190254.98 | CF140: 36961078.77 | CG140: 24264948.21 | CH140: 28277997.34 | CI140: 36176984.59 | CJ140: 63462047.18
A141: 132 | B141: =NPV(#REF!,$G141:$CJ141) ->  | C141: =NPV(#REF!,$G$6:$CJ$6) ->  | G141: 0 | H141: 0 | I141: 0 | J141: 0 | K141: 0 | L141: 0 | M141: 0 | N141: 0 | O141: 0 | P141: 0 | Q141: 0 | R141: 0 | S141: 0 | T141: 0 | U141: 0 | V141: 0 | W141: 12545542.84 | X141: 9147372.806 | Y141: 0 | Z141: 0 | AA141: 0 | AB141: 3972795.409 | AC141: 2027688.145 | AD141: 0 | AE141: 3169292.595 | AF141: 3235171.391 | AG141: 1100806.527 | AH141: 3371065.634 | AI141: 0 | AJ141: 0 | AK141: 5788687.156 | AL141: 19878351.69 | AM141: 7086047.721 | AN141: 0 | AO141: 0 | AP141: 15818317.78 | AQ141: 3686884.837 | AR141: 2482502.457 | AS141: 2507327.481 | AT141: 5064801.512 | AU141: 0 | AV141: 2583302.011 | AW141: 5218270.063 | AX141: 5270452.764 | AY141: 7984735.937 | AZ141: 12096874.94 | BA141: 8145229.129 | BB141: 8226681.421 | BC141: 0 | BD141: 16784075.43 | BE141: 11301277.46 | BF141: 8560717.675 | BG141: 5764216.568 | BH141: 173467986.5 | BI141: 7350096.651 | BJ141: 7423597.618 | BK141: 13496100.47 | BL141: 68155307.37 | BM141: 0 | BN141: 183015040.6 | BO141: 0 | BP141: 1576059.692 | BQ141: 9550921.735 | BR141: 11254169.44 | BS141: 6495263.508 | BT141: 22960756.5 | BU141: 4969363.728 | BV141: 0 | BW141: 69525740.34 | BX141: 60478074.27 | BY141: 60329964.6 | BZ141: 5222851.221 | CA141: 10550159.47 | CB141: 12431604.57 | CC141: 7174811.781 | CD141: 25362959.65 | CE141: 5489269.124 | CF141: 0 | CG141: 76799671.06 | CH141: 66805418.94 | CI141: 66641813.72 | CJ141: 5769277.017
A142: 133 | B142: =NPV(#REF!,$G142:$CJ142) ->  | C142: =NPV(#REF!,$G$6:$CJ$6) ->  | G142: 0 | H142: 0 | I142: 0 | J142: 0 | K142: 0 | L142: 0 | M142: 0 | N142: 0 | O142: 0 | P142: 0 | Q142: 0 | R142: 0 | S142: 0 | T142: 842474.0833 | U142: 0 | V142: 0 | W142: 0 | X142: 4573686.403 | Y142: 0 | Z142: 953161.0657 | AA142: 1945948.074 | AB142: 993198.8523 | AC142: 0 | AD142: 0 | AE142: 2112861.73 | AF142: 2156780.927 | AG142: 5504032.636 | AH142: 17979016.71 | AI142: 0 | AJ142: 20632944.32 | AK142: 9261899.449 | AL142: 9354518.444 | AM142: 1181007.954 | AN142: 5964090.165 | AO142: 2409492.427 | AP142: 13384730.43 | AQ142: 0 | AR142: 0 | AS142: 0 | AT142: 2532400.756 | AU142: 8952036.673 | AV142: 0 | AW142: 3913702.547 | AX142: 0 | AY142: 7984735.937 | AZ142: 2688194.432 | BA142: 8145229.129 | BB142: 8226681.421 | BC142: 5539298.823 | BD142: 2797345.906 | BE142: 22602554.92 | BF142: 5707145.117 | BG142: 5764216.568 | BH142: 65099985.59 | BI142: 22050289.95 | BJ142: 1484719.524 | BK142: 2999133.438 | BL142: 64052644.64 | BM142: 10707956.07 | BN142: 30900101.8 | BO142: 4681365.423 | BP142: 55162089.23 | BQ142: 4775460.868 | BR142: 3215476.984 | BS142: 25981054.03 | BT142: 13120432.29 | BU142: 56319455.59 | BV142: 5019057.366 | BW142: 13517994.5 | BX142: 8533234.031 | BY142: 15513419.47 | BZ142: 17409504.07 | CA142: 5275079.733 | CB142: 3551887.02 | CC142: 28699247.13 | CD142: 14493119.8 | CE142: 62211716.73 | CF142: 5544161.815 | CG142: 14932275.82 | CH142: 9425999.112 | CI142: 17136466.39 | CJ142: 19230923.39
A143: 134 | B143: =NPV(#REF!,$G143:$CJ143) ->  | C143: =NPV(#REF!,$G$6:$CJ$6) ->  | G143: 0 | H143: 0 | I143: 0 | J143: 0 | K143: 0 | L143: 0 | M143: 0 | N143: 0 | O143: 0 | P143: 0 | Q143: 0 | R143: 0 | S143: 0 | T143: 842474.0833 | U143: 0 | V143: 0 | W143: 0 | X143: 0 | Y143: 933751.5522 | Z143: 2859483.197 | AA143: 0 | AB143: 0 | AC143: 4055376.29 | AD143: 2069836.874 | AE143: 0 | AF143: 0 | AG143: 3302419.582 | AH143: 8989508.357 | AI143: 0 | AJ143: 5731373.422 | AK143: 10419636.88 | AL143: 1169314.805 | AM143: 8267055.675 | AN143: 2385636.066 | AO143: 0 | AP143: 4867174.702 | AQ143: 0 | AR143: 1241251.228 | AS143: 46385558.41 | AT143: 3798601.134 | AU143: 2557724.764 | AV143: 0 | AW143: 0 | AX143: 0 | AY143: 7984735.937 | AZ143: 9408680.512 | BA143: 10860305.51 | BB143: 101861657.9 | BC143: 0 | BD143: 18182748.39 | BE143: 1412659.682 | BF143: 2853572.558 | BG143: 8646324.852 | BH143: 10188252.78 | BI143: 14700193.3 | BJ143: 20786073.33 | BK143: 2999133.438 | BL143: 69669869.76 | BM143: 7648540.049 | BN143: 9270030.54 | BO143: 12483641.13 | BP143: 17336656.61 | BQ143: 4775460.868 | BR143: 67759094.83 | BS143: 22733422.28 | BT143: 1640054.036 | BU143: 29816182.37 | BV143: 120002271 | BW143: 23656490.38 | BX143: 17066468.06 | BY143: 60329964.6 | BZ143: 64922111.27 | CA143: 5275079.733 | CB143: 74848195.34 | CC143: 25111841.23 | CD143: 1811639.975 | CE143: 32935614.74 | CF143: 132557163.7 | CG143: 26131482.69 | CH143: 18851998.22 | CI143: 66641813.72 | CJ143: 71714400.54
A144: 135 | B144: =NPV(#REF!,$G144:$CJ144) ->  | C144: =NPV(#REF!,$G$6:$CJ$6) ->  | G144: 0 | H144: 0 | I144: 0 | J144: 0 | K144: 0 | L144: 0 | M144: 0 | N144: 0 | O144: 0 | P144: 0 | Q144: 0 | R144: 0 | S144: 0 | T144: 0 | U144: 0 | V144: 877862.4334 | W144: 0 | X144: 0 | Y144: 2801254.657 | Z144: 0 | AA144: 0 | AB144: 0 | AC144: 1013844.073 | AD144: 0 | AE144: 3169292.595 | AF144: 0 | AG144: 2201613.055 | AH144: 4494754.178 | AI144: 2269850.86 | AJ144: 0 | AK144: 0 | AL144: 10523833.25 | AM144: 8267055.675 | AN144: 7156908.198 | AO144: 21685431.84 | AP144: 0 | AQ144: 1228961.612 | AR144: 3723753.685 | AS144: 1253663.741 | AT144: 6331001.891 | AU144: 0 | AV144: 2583302.011 | AW144: 0 | AX144: 0 | AY144: 2661578.646 | AZ144: 6720486.08 | BA144: 0 | BB144: 17824476.41 | BC144: 19387545.88 | BD144: 9790710.67 | BE144: 11301277.46 | BF144: 14267862.79 | BG144: 30262136.98 | BH144: 5821858.734 | BI144: 1470019.33 | BJ144: 8908317.141 | BK144: 14995667.19 | BL144: 9087374.316 | BM144: 59658612.38 | BN144: 20085066.17 | BO144: 224992539.3 | BP144: 19142182.2 | BQ144: 313247090.2 | BR144: 20900600.4 | BS144: 27604869.91 | BT144: 26240864.57 | BU144: 23190364.07 | BV144: 82221519.64 | BW144: 81107967.03 | BX144: 27306348.9 | BY144: 86185663.71 | BZ144: 24373305.7 | CA144: 346019666.6 | CB144: 23087265.63 | CC144: 30492950.07 | CD144: 28986239.6 | CE144: 25616589.24 | CF144: 90823709.78 | CG144: 89593654.93 | CH144: 30163197.16 | CI144: 95202591.03 | CJ144: 26923292.74
A145: 136 | B145: =NPV(#REF!,$G145:$CJ145) ->  | C145: =NPV(#REF!,$G$6:$CJ$6) ->  | G145: 0 | H145: 0 | I145: 0 | J145: 0 | K145: 0 | L145: 0 | M145: 0 | N145: 0 | O145: 0 | P145: 0 | Q145: 0 | R145: 0 | S145: 0 | T145: 0 | U145: 0 | V145: 0 | W145: 2688330.608 | X145: 0 | Y145: 0 | Z145: 1906322.131 | AA145: 0 | AB145: 2979596.557 | AC145: 4055376.29 | AD145: 0 | AE145: 11620739.52 | AF145: 1078390.464 | AG145: 4403226.109 | AH145: 2247377.089 | AI145: 9079403.44 | AJ145: 1146274.684 | AK145: 2315474.862 | AL145: 7015888.833 | AM145: 0 | AN145: 5964090.165 | AO145: 3614238.64 | AP145: 7300762.053 | AQ145: 27037155.47 | AR145: 3723753.685 | AS145: 0 | AT145: 13928204.16 | AU145: 2557724.764 | AV145: 1291651.006 | AW145: 9131972.61 | AX145: 33132167.23 | AY145: 7984735.937 | AZ145: 4032291.648 | BA145: 5430152.753 | BB145: 2742227.14 | BC145: 0 | BD145: 22378767.25 | BE145: 25427874.28 | BF145: 2853572.558 | BG145: 21615812.13 | BH145: 26198364.3 | BI145: 22050289.95 | BJ145: 31395277.25 | BK145: 32990467.81 | BL145: 19689311.02 | BM145: 9178248.059 | BN145: 23175076.35 | BO145: 3120910.282 | BP145: 7880298.461 | BQ145: 25469124.63 | BR145: 20900600.4 | BS145: 349985253.9 | BT145: 83642755.82 | BU145: 39754909.83 | BV145: 13384152.98 | BW145: 328465304.6 | BX145: 15359821.26 | BY145: 24131985.84 | BZ145: 54729881.93 | CA145: 28133758.58 | CB145: 23087265.63 | CC145: 386601455.1 | CD145: 92393638.71 | CE145: 43914152.99 | CF145: 14784431.51 | CG145: 362830042.9 | CH145: 16966798.4 | CI145: 26656725.49 | CJ145: 60455838.5
A146: 137 | B146: =NPV(#REF!,$G146:$CJ146) ->  | C146: =NPV(#REF!,$G$6:$CJ$6) ->  | G146: 0 | H146: 0 | I146: 0 | J146: 0 | K146: 0 | L146: 0 | M146: 0 | N146: 0 | O146: 0 | P146: 0 | Q146: 0 | R146: 0 | S146: 0 | T146: 0 | U146: 3439944.997 | V146: 0 | W146: 0 | X146: 0 | Y146: 0 | Z146: 0 | AA146: 0 | AB146: 0 | AC146: 5069220.363 | AD146: 0 | AE146: 2112861.73 | AF146: 0 | AG146: 0 | AH146: 10113196.9 | AI146: 0 | AJ146: 1146274.684 | AK146: 0 | AL146: 7015888.833 | AM146: 0 | AN146: 0 | AO146: 6023731.067 | AP146: 0 | AQ146: 23350270.63 | AR146: 0 | AS146: 6268318.704 | AT146: 7597202.269 | AU146: 6394311.909 | AV146: 7749906.034 | AW146: 5218270.063 | AX146: 5270452.764 | AY146: 1330789.323 | AZ146: 5376388.864 | BA146: 5430152.753 | BB146: 5484454.28 | BC146: 18002721.18 | BD146: 13986729.53 | BE146: 22602554.92 | BF146: 0 | BG146: 12969487.28 | BH146: 26198364.3 | BI146: 27930367.28 | BJ146: 13362475.71 | BK146: 10496967.03 | BL146: 18174748.63 | BM146: 30594160.2 | BN146: 13905045.81 | BO146: 0 | BP146: 6304238.769 | BQ146: 39795507.23 | BR146: 30547031.35 | BS146: 4871447.631 | BT146: 39361296.86 | BU146: 66258183.04 | BV146: 38479439.8 | BW146: 72905238.96 | BX146: 148262497.4 | BY146: 253484944.4 | BZ146: 58211782.75 | CA146: 43958997.78 | CB146: 33742926.69 | CC146: 5381108.836 | CD146: 43479359.39 | CE146: 73190254.98 | CF146: 42505240.58 | CG146: 80532740.02 | CH146: 163774035 | CI146: 280005078 | CJ146: 64302023.18
A147: 138 | B147: =NPV(#REF!,$G147:$CJ147) ->  | C147: =NPV(#REF!,$G$6:$CJ$6) ->  | G147: 0 | H147: 0 | I147: 0 | J147: 0 | K147: 0 | L147: 0 | M147: 0 | N147: 0 | O147: 0 | P147: 0 | Q147: 0 | R147: 0 | S147: 0 | T147: 0 | U147: 0 | V147: 0 | W147: 3584440.81 | X147: 0 | Y147: 0 | Z147: 0 | AA147: 0 | AB147: 0 | AC147: 2027688.145 | AD147: 0 | AE147: 1056430.865 | AF147: 0 | AG147: 0 | AH147: 0 | AI147: 0 | AJ147: 0 | AK147: 10419636.88 | AL147: 0 | AM147: 0 | AN147: 3578454.099 | AO147: 0 | AP147: 0 | AQ147: 0 | AR147: 0 | AS147: 5014654.963 | AT147: 7597202.269 | AU147: 0 | AV147: 0 | AW147: 15654810.19 | AX147: 6588065.955 | AY147: 13307893.23 | AZ147: 0 | BA147: 10860305.51 | BB147: 8226681.421 | BC147: 8308948.235 | BD147: 1398672.953 | BE147: 7063298.412 | BF147: 4280358.838 | BG147: 38908461.83 | BH147: 4366394.05 | BI147: 4410057.991 | BJ147: 14847195.24 | BK147: 0 | BL147: 16660186.25 | BM147: 0 | BN147: 40170132.34 | BO147: 76462301.9 | BP147: 9456358.154 | BQ147: 0 | BR147: 3215476.984 | BS147: 22733422.28 | BT147: 3280108.072 | BU147: 18221000.34 | BV147: 10038114.73 | BW147: 328465304.6 | BX147: 148262497.4 | BY147: 1723713.274 | BZ147: 24626778.8 | CA147: 0 | CB147: 3551887.02 | CC147: 25111841.23 | CD147: 3623279.95 | CE147: 20127320.12 | CF147: 11088323.63 | CG147: 362830042.9 | CH147: 163774035 | CI147: 1904051.821 | CJ147: 27203284.74
A148: 139 | B148: =NPV(#REF!,$G148:$CJ148) ->  | C148: =NPV(#REF!,$G$6:$CJ$6) ->  | G148: 0 | H148: 0 | I148: 0 | J148: 0 | K148: 0 | L148: 0 | M148: 0 | N148: 0 | O148: 0 | P148: 0 | Q148: 0 | R148: 0 | S148: 0 | T148: 0 | U148: 3439944.997 | V148: 0 | W148: 0 | X148: 0 | Y148: 0 | Z148: 1906322.131 | AA148: 972974.0369 | AB148: 3972795.409 | AC148: 4055376.29 | AD148: 0 | AE148: 0 | AF148: 1078390.464 | AG148: 4403226.109 | AH148: 0 | AI148: 0 | AJ148: 0 | AK148: 2315474.862 | AL148: 22216981.3 | AM148: 0 | AN148: 0 | AO148: 0 | AP148: 3650381.027 | AQ148: 0 | AR148: 0 | AS148: 1253663.741 | AT148: 3798601.134 | AU148: 0 | AV148: 0 | AW148: 5218270.063 | AX148: 0 | AY148: 5323157.291 | AZ148: 1344097.216 | BA148: 9502767.318 | BB148: 8226681.421 | BC148: 6924123.529 | BD148: 18182748.39 | BE148: 12713937.14 | BF148: 18548221.63 | BG148: 11528433.14 | BH148: 7277323.417 | BI148: 5880077.321 | BJ148: 4454158.571 | BK148: 26992200.94 | BL148: 37864059.65 | BM148: 12237664.08 | BN148: 20085066.17 | BO148: 25194476.21 | BP148: 4728179.077 | BQ148: 14326382.6 | BR148: 46624416.27 | BS148: 14614342.89 | BT148: 42641404.93 | BU148: 13492807.57 | BV148: 30114344.19 | BW148: 6758997.252 | BX148: 46079463.77 | BY148: 25855699.11 | BZ148: 68910958.29 | CA148: 15825239.2 | CB148: 51502361.8 | CC148: 16143326.51 | CD148: 47102639.34 | CE148: 14904453.78 | CF148: 33264970.89 | CG148: 7466137.911 | CH148: 50900395.21 | CI148: 28560777.31 | CJ148: 76120569.21
A149: 140 | B149: =NPV(#REF!,$G149:$CJ149) ->  | C149: =NPV(#REF!,$G$6:$CJ$6) ->  | G149: 0 | H149: 0 | I149: 0 | J149: 0 | K149: 0 | L149: 0 | M149: 0 | N149: 0 | O149: 0 | P149: 0 | Q149: 0 | R149: 0 | S149: 0 | T149: 6739792.666 | U149: 0 | V149: 0 | W149: 0 | X149: 0 | Y149: 0 | Z149: 3812644.263 | AA149: 1945948.074 | AB149: 993198.8523 | AC149: 0 | AD149: 0 | AE149: 0 | AF149: 0 | AG149: 0 | AH149: 0 | AI149: 1134925.43 | AJ149: 1146274.684 | AK149: 2315474.862 | AL149: 2338629.611 | AM149: 1181007.954 | AN149: 0 | AO149: 1204746.213 | AP149: 3650381.027 | AQ149: 0 | AR149: 0 | AS149: 5014654.963 | AT149: 7597202.269 | AU149: 11509761.44 | AV149: 3874953.017 | AW149: 3913702.547 | AX149: 5270452.764 | AY149: 29277365.1 | AZ149: 1344097.216 | BA149: 12217843.69 | BB149: 4113340.71 | BC149: 2769649.412 | BD149: 47758519.73 | BE149: 15539256.51 | BF149: 5707145.117 | BG149: 8646324.852 | BH149: 5821858.734 | BI149: 26460347.94 | BJ149: 5938878.094 | BK149: 1499566.719 | BL149: 12116499.09 | BM149: 6118832.039 | BN149: 38625127.25 | BO149: 3120910.282 | BP149: 18912716.31 | BQ149: 22285484.05 | BR149: 3215476.984 | BS149: 4871447.631 | BT149: 42641404.93 | BU149: 16564545.76 | BV149: 77202462.28 | BW149: 13517994.5 | BX149: 22186408.48 | BY149: 29303125.66 | BZ149: 30103103.13 | CA149: 24617038.76 | CB149: 3551887.02 | CC149: 5381108.836 | CD149: 47102639.34 | CE149: 18297563.75 | CF149: 85279547.97 | CG149: 14932275.82 | CH149: 24507597.69 | CI149: 32368880.95 | CJ149: 33252553.76
A150: 141 | B150: =NPV(#REF!,$G150:$CJ150) ->  | C150: =NPV(#REF!,$G$6:$CJ$6) ->  | G150: 0 | H150: 0 | I150: 0 | J150: 0 | K150: 0 | L150: 0 | M150: 0 | N150: 0 | O150: 0 | P150: 0 | Q150: 0 | R150: 0 | S150: 0 | T150: 0 | U150: 1719972.498 | V150: 0 | W150: 0 | X150: 0 | Y150: 0 | Z150: 13344254.92 | AA150: 0 | AB150: 0 | AC150: 0 | AD150: 1034918.437 | AE150: 1056430.865 | AF150: 0 | AG150: 0 | AH150: 4494754.178 | AI150: 9079403.44 | AJ150: 1146274.684 | AK150: 0 | AL150: 0 | AM150: 8267055.675 | AN150: 0 | AO150: 4818984.854 | AP150: 1216793.676 | AQ150: 0 | AR150: 3723753.685 | AS150: 3760991.222 | AT150: 10129603.02 | AU150: 1278862.382 | AV150: 14208161.06 | AW150: 1304567.516 | AX150: 3952839.573 | AY150: 60079275.36 | AZ150: 9408680.512 | BA150: 10860305.51 | BB150: 1371113.57 | BC150: 4154474.117 | BD150: 8392037.717 | BE150: 2825319.365 | BF150: 8560717.675 | BG150: 12969487.28 | BH150: 0 | BI150: 20580270.62 | BJ150: 16331914.76 | BK150: 14995667.19 | BL150: 10601936.7 | BM150: 21415912.14 | BN150: 42165026.45 | BO150: 3120910.282 | BP150: 31521193.85 | BQ150: 22285484.05 | BR150: 176882042.8 | BS150: 6495263.508 | BT150: 14760486.32 | BU150: 24846818.64 | BV150: 5019057.366 | BW150: 6758997.252 | BX150: 63145931.83 | BY150: 95055193.56 | BZ150: 22632355.29 | CA150: 24617038.76 | CB150: 195387818 | CC150: 7174811.781 | CD150: 16304759.77 | CE150: 27446345.62 | CF150: 5544161.815 | CG150: 7466137.911 | CH150: 69752393.43 | CI150: 105000069.9 | CJ150: 25000200.41
A151: 142 | B151: =NPV(#REF!,$G151:$CJ151) ->  | C151: =NPV(#REF!,$G$6:$CJ$6) ->  | G151: 0 | H151: 0 | I151: 0 | J151: 0 | K151: 0 | L151: 0 | M151: 0 | N151: 0 | O151: 0 | P151: 0 | Q151: 0 | R151: 0 | S151: 1650637.046 | T151: 0 | U151: 0 | V151: 877862.4334 | W151: 896110.2025 | X151: 5488423.684 | Y151: 0 | Z151: 0 | AA151: 0 | AB151: 0 | AC151: 4055376.29 | AD151: 1034918.437 | AE151: 20072186.44 | AF151: 0 | AG151: 2201613.055 | AH151: 1123688.545 | AI151: 1134925.43 | AJ151: 0 | AK151: 0 | AL151: 2338629.611 | AM151: 8267055.675 | AN151: 9542544.265 | AO151: 3614238.64 | AP151: 3650381.027 | AQ151: 0 | AR151: 0 | AS151: 1253663.741 | AT151: 1266200.378 | AU151: 7673174.291 | AV151: 0 | AW151: 2609135.032 | AX151: 2635226.382 | AY151: 2661578.646 | AZ151: 0 | BA151: 2715076.376 | BB151: 13711135.7 | BC151: 22157195.29 | BD151: 69933647.64 | BE151: 22602554.92 | BF151: 28535725.58 | BG151: 44672678.4 | BH151: 5821858.734 | BI151: 5880077.321 | BJ151: 5938878.094 | BK151: 31490901.09 | BL151: 9087374.316 | BM151: 7648540.049 | BN151: 4635015.27 | BO151: 23634021.07 | BP151: 49316782.25 | BQ151: 7959101.446 | BR151: 163551978.5 | BS151: 22733422.28 | BT151: 42641404.93 | BU151: 67914637.62 | BV151: 13384152.98 | BW151: 15207743.82 | BX151: 22186408.48 | BY151: 248313804.5 | BZ151: 17409504.07 | CA151: 8791799.556 | CB151: 180663134.1 | CC151: 25111841.23 | CD151: 47102639.34 | CE151: 75020011.36 | CF151: 14784431.51 | CG151: 16798810.3 | CH151: 24507597.69 | CI151: 274292922.5 | CJ151: 19230923.39
A152: 143 | B152: =NPV(#REF!,$G152:$CJ152) ->  | C152: =NPV(#REF!,$G$6:$CJ$6) ->  | G152: 0 | H152: 0 | I152: 0 | J152: 0 | K152: 0 | L152: 0 | M152: 0 | N152: 0 | O152: 0 | P152: 0 | Q152: 0 | R152: 0 | S152: 0 | T152: 0 | U152: 0 | V152: 5394986.694 | W152: 0 | X152: 0 | Y152: 0 | Z152: 0 | AA152: 972974.0369 | AB152: 993198.8523 | AC152: 0 | AD152: 0 | AE152: 2112861.73 | AF152: 4313561.854 | AG152: 0 | AH152: 1123688.545 | AI152: 0 | AJ152: 12609021.53 | AK152: 8104162.018 | AL152: 2338629.611 | AM152: 1181007.954 | AN152: 3578454.099 | AO152: 3614238.64 | AP152: 1216793.676 | AQ152: 1228961.612 | AR152: 0 | AS152: 0 | AT152: 0 | AU152: 0 | AV152: 1291651.006 | AW152: 3913702.547 | AX152: 5270452.764 | AY152: 1330789.323 | AZ152: 18817361.02 | BA152: 12217843.69 | BB152: 16453362.84 | BC152: 15233071.76 | BD152: 1398672.953 | BE152: 4237979.047 | BF152: 17121435.35 | BG152: 12969487.28 | BH152: 13099182.15 | BI152: 20580270.62 | BJ152: 5938878.094 | BK152: 11996533.75 | BL152: 18174748.63 | BM152: 1529708.01 | BN152: 12360040.72 | BO152: 1560455.141 | BP152: 7880298.461 | BQ152: 55713710.12 | BR152: 30547031.35 | BS152: 27604869.91 | BT152: 3280108.072 | BU152: 16564545.76 | BV152: 15057172.1 | BW152: 13517994.5 | BX152: 74131248.72 | BY152: 15513419.47 | BZ152: 30103103.13 | CA152: 61542596.89 | CB152: 33742926.69 | CC152: 30492950.07 | CD152: 3623279.95 | CE152: 18297563.75 | CF152: 16632485.44 | CG152: 14932275.82 | CH152: 81887017.52 | CI152: 17136466.39 | CJ152: 33252553.76
A153: 144 | B153: =NPV(#REF!,$G153:$CJ153) ->  | C153: =NPV(#REF!,$G$6:$CJ$6) ->  | G153: 0 | H153: 0 | I153: 0 | J153: 0 | K153: 0 | L153: 0 | M153: 0 | N153: 0 | O153: 0 | P153: 0 | Q153: 0 | R153: 0 | S153: 4126592.615 | T153: 0 | U153: 0 | V153: 0 | W153: 0 | X153: 914737.2806 | Y153: 933751.5522 | Z153: 15250577.05 | AA153: 0 | AB153: 0 | AC153: 1013844.073 | AD153: 0 | AE153: 1056430.865 | AF153: 1078390.464 | AG153: 0 | AH153: 0 | AI153: 1134925.43 | AJ153: 1146274.684 | AK153: 2315474.862 | AL153: 19878351.69 | AM153: 0 | AN153: 3578454.099 | AO153: 2409492.427 | AP153: 1216793.676 | AQ153: 4915846.449 | AR153: 0 | AS153: 8775646.185 | AT153: 10129603.02 | AU153: 6394311.909 | AV153: 15499812.07 | AW153: 5218270.063 | AX153: 0 | AY153: 1330789.323 | AZ153: 4032291.648 | BA153: 6787690.941 | BB153: 0 | BC153: 5539298.823 | BD153: 19581421.34 | BE153: 0 | BF153: 2853572.558 | BG153: 10087378.99 | BH153: 17465576.2 | BI153: 0 | BJ153: 4454158.571 | BK153: 32990467.81 | BL153: 39378622.04 | BM153: 29064452.19 | BN153: 13905045.81 | BO153: 20285916.83 | BP153: 64618447.38 | BQ153: 23877304.34 | BR153: 29173371.02 | BS153: 9742895.262 | BT153: 34441134.75 | BU153: 13492807.57 | BV153: 111880758.1 | BW153: 43933482.14 | BX153: 0 | BY153: 6894853.097 | BZ153: 13927603.26 | CA153: 26375398.67 | CB153: 32225551.1 | CC153: 10762217.67 | CD153: 38044439.47 | CE153: 14904453.78 | CF153: 123585960.8 | CG153: 48529896.42 | CH153: 0 | CI153: 7616207.283 | CJ153: 15384738.71
A154: 145 | B154: =NPV(#REF!,$G154:$CJ154) ->  | C154: =NPV(#REF!,$G$6:$CJ$6) ->  | G154: 0 | H154: 0 | I154: 0 | J154: 0 | K154: 0 | L154: 0 | M154: 0 | N154: 0 | O154: 0 | P154: 0 | Q154: 0 | R154: 0 | S154: 0 | T154: 0 | U154: 0 | V154: 0 | W154: 2688330.608 | X154: 0 | Y154: 0 | Z154: 953161.0657 | AA154: 0 | AB154: 993198.8523 | AC154: 1013844.073 | AD154: 2069836.874 | AE154: 0 | AF154: 0 | AG154: 5504032.636 | AH154: 1123688.545 | AI154: 0 | AJ154: 9170197.475 | AK154: 0 | AL154: 19878351.69 | AM154: 3543023.861 | AN154: 0 | AO154: 0 | AP154: 15818317.78 | AQ154: 3686884.837 | AR154: 1241251.228 | AS154: 2507327.481 | AT154: 3798601.134 | AU154: 1278862.382 | AV154: 11624859.05 | AW154: 0 | AX154: 3952839.573 | AY154: 2661578.646 | AZ154: 6720486.08 | BA154: 8145229.129 | BB154: 13711135.7 | BC154: 8308948.235 | BD154: 19581421.34 | BE154: 4237979.047 | BF154: 15694649.07 | BG154: 27380028.7 | BH154: 17465576.2 | BI154: 5880077.321 | BJ154: 2969439.047 | BK154: 50985268.44 | BL154: 3029124.772 | BM154: 143183027.6 | BN154: 3090010.18 | BO154: 3120910.282 | BP154: 18912716.31 | BQ154: 11142742.02 | BR154: 43408939.29 | BS154: 1623815.877 | BT154: 14760486.32 | BU154: 13251636.61 | BV154: 5019057.366 | BW154: 52382228.71 | BX154: 29012995.71 | BY154: 5171139.823 | BZ154: 8704752.035 | CA154: 12308519.38 | CB154: 47950474.78 | CC154: 1793702.945 | CD154: 16304759.77 | CE154: 14638051 | CF154: 5544161.815 | CG154: 57862568.81 | CH154: 32048396.98 | CI154: 5712155.462 | CJ154: 9615461.694
A155: 146 | B155: =NPV(#REF!,$G155:$CJ155) ->  | C155: =NPV(#REF!,$G$6:$CJ$6) ->  | G155: 0 | H155: 0 | I155: 0 | J155: 0 | K155: 0 | L155: 0 | M155: 0 | N155: 0 | O155: 0 | P155: 0 | Q155: 0 | R155: 0 | S155: 0 | T155: 0 | U155: 0 | V155: 0 | W155: 0 | X155: 0 | Y155: 0 | Z155: 0 | AA155: 0 | AB155: 1986397.705 | AC155: 2027688.145 | AD155: 0 | AE155: 4225723.46 | AF155: 0 | AG155: 4403226.109 | AH155: 25844836.53 | AI155: 3404776.29 | AJ155: 5731373.422 | AK155: 0 | AL155: 0 | AM155: 9448063.628 | AN155: 0 | AO155: 1204746.213 | AP155: 0 | AQ155: 0 | AR155: 2482502.457 | AS155: 0 | AT155: 0 | AU155: 0 | AV155: 6458255.029 | AW155: 5218270.063 | AX155: 15811358.29 | AY155: 7984735.937 | AZ155: 1344097.216 | BA155: 5430152.753 | BB155: 26051157.83 | BC155: 18002721.18 | BD155: 19581421.34 | BE155: 15539256.51 | BF155: 21401794.19 | BG155: 43231624.26 | BH155: 1455464.683 | BI155: 23520309.28 | BJ155: 16331914.76 | BK155: 45205330.49 | BL155: 4543687.158 | BM155: 19886204.13 | BN155: 0 | BO155: 25194476.21 | BP155: 15760596.92 | BQ155: 0 | BR155: 190212107 | BS155: 9742895.262 | BT155: 44281458.97 | BU155: 3312909.152 | BV155: 30114344.19 | BW155: 3379498.626 | BX155: 64852578.64 | BY155: 60329964.6 | BZ155: 50487561.8 | CA155: 0 | CB155: 210112501.9 | CC155: 10762217.67 | CD155: 48914279.32 | CE155: 3659512.749 | CF155: 33264970.89 | CG155: 3733068.955 | CH155: 71637593.25 | CI155: 66641813.72 | CJ155: 55769677.83
A156: 147 | B156: =NPV(#REF!,$G156:$CJ156) ->  | C156: =NPV(#REF!,$G$6:$CJ$6) ->  | G156: 0 | H156: 0 | I156: 0 | J156: 0 | K156: 0 | L156: 0 | M156: 0 | N156: 0 | O156: 0 | P156: 0 | Q156: 0 | R156: 0 | S156: 0 | T156: 0 | U156: 0 | V156: 0 | W156: 4480551.013 | X156: 0 | Y156: 0 | Z156: 3812644.263 | AA156: 0 | AB156: 0 | AC156: 1013844.073 | AD156: 0 | AE156: 5282154.326 | AF156: 1078390.464 | AG156: 0 | AH156: 0 | AI156: 0 | AJ156: 0 | AK156: 2315474.862 | AL156: 8185203.638 | AM156: 0 | AN156: 9542544.265 | AO156: 3614238.64 | AP156: 12167936.76 | AQ156: 6144808.061 | AR156: 0 | AS156: 1253663.741 | AT156: 3798601.134 | AU156: 5115449.528 | AV156: 1291651.006 | AW156: 1304567.516 | AX156: 0 | AY156: 7984735.937 | AZ156: 9408680.512 | BA156: 1357538.188 | BB156: 1371113.57 | BC156: 15233071.76 | BD156: 12588056.58 | BE156: 1412659.682 | BF156: 41792267.06 | BG156: 1441054.142 | BH156: 8732788.101 | BI156: 4410057.991 | BJ156: 11877756.19 | BK156: 11996533.75 | BL156: 0 | BM156: 160232533.1 | BN156: 9270030.54 | BO156: 20285916.83 | BP156: 52468901.63 | BQ156: 23877304.34 | BR156: 48232154.76 | BS156: 12990527.02 | BT156: 21320702.46 | BU156: 13251636.61 | BV156: 120245853.7 | BW156: 20276991.76 | BX156: 42666170.16 | BY156: 5171139.823 | BZ156: 15668553.66 | CA156: 26375398.67 | CB156: 53278305.31 | CC156: 14349623.56 | CD156: 23551319.67 | CE156: 14638051 | CF156: 132826230.5 | CG156: 22398413.73 | CH156: 47129995.56 | CI156: 5712155.462 | CJ156: 17307831.05
A157: 148 | B157: =NPV(#REF!,$G157:$CJ157) ->  | C157: =NPV(#REF!,$G$6:$CJ$6) ->  | G157: 0 | H157: 0 | I157: 0 | J157: 0 | K157: 0 | L157: 0 | M157: 0 | N157: 0 | O157: 0 | P157: 0 | Q157: 0 | R157: 0 | S157: 0 | T157: 0 | U157: 0 | V157: 4517124.261 | W157: 0 | X157: 914737.2806 | Y157: 0 | Z157: 0 | AA157: 972974.0369 | AB157: 0 | AC157: 0 | AD157: 0 | AE157: 11620739.52 | AF157: 0 | AG157: 2201613.055 | AH157: 2247377.089 | AI157: 12484179.73 | AJ157: 17194120.27 | AK157: 11577374.31 | AL157: 5846574.027 | AM157: 0 | AN157: 0 | AO157: 0 | AP157: 0 | AQ157: 0 | AR157: 4965004.914 | AS157: 8775646.185 | AT157: 5064801.512 | AU157: 7673174.291 | AV157: 7749906.034 | AW157: 6522837.579 | AX157: 17128971.48 | AY157: 9315525.26 | AZ157: 1344097.216 | BA157: 13575381.88 | BB157: 17824476.41 | BC157: 9693772.941 | BD157: 12588056.58 | BE157: 9888617.777 | BF157: 2853572.558 | BG157: 11528433.14 | BH157: 1455464.683 | BI157: 142406017.6 | BJ157: 25456399.15 | BK157: 14995667.19 | BL157: 18174748.63 | BM157: 21415912.14 | BN157: 16995055.99 | BO157: 15604551.41 | BP157: 33097253.54 | BQ157: 23877304.34 | BR157: 17685123.41 | BS157: 6495263.508 | BT157: 21320702.46 | BU157: 4969363.728 | BV157: 6692076.488 | BW157: 11828245.19 | BX157: 29012995.71 | BY157: 253484944.4 | BZ157: 73626863.3 | CA157: 26375398.67 | CB157: 19535378.61 | CC157: 7174811.781 | CD157: 23551319.67 | CE157: 5489269.124 | CF157: 7392215.753 | CG157: 13065741.34 | CH157: 32048396.98 | CI157: 280005078 | CJ157: 81329862.23
A158: 149 | B158: =NPV(#REF!,$G158:$CJ158) ->  | C158: =NPV(#REF!,$G$6:$CJ$6) ->  | G158: 0 | H158: 0 | I158: 0 | J158: 0 | K158: 0 | L158: 0 | M158: 0 | N158: 0 | O158: 0 | P158: 0 | Q158: 0 | R158: 0 | S158: 0 | T158: 0 | U158: 859986.2492 | V158: 10534349.2 | W158: 2688330.608 | X158: 0 | Y158: 1867503.104 | Z158: 0 | AA158: 0 | AB158: 993198.8523 | AC158: 0 | AD158: 0 | AE158: 3169292.595 | AF158: 0 | AG158: 4403226.109 | AH158: 0 | AI158: 1134925.43 | AJ158: 1146274.684 | AK158: 1157737.431 | AL158: 5846574.027 | AM158: 0 | AN158: 9542544.265 | AO158: 0 | AP158: 17035111.46 | AQ158: 1228961.612 | AR158: 0 | AS158: 6268318.704 | AT158: 10129603.02 | AU158: 1278862.382 | AV158: 12916510.06 | AW158: 5218270.063 | AX158: 0 | AY158: 2661578.646 | AZ158: 1344097.216 | BA158: 0 | BB158: 17824476.41 | BC158: 9693772.941 | BD158: 4196018.859 | BE158: 18364575.87 | BF158: 19975007.91 | BG158: 8646324.852 | BH158: 197814961 | BI158: 16598266.6 | BJ158: 7423597.618 | BK158: 5998266.875 | BL158: 45436871.58 | BM158: 21415912.14 | BN158: 42165026.45 | BO158: 0 | BP158: 7880298.461 | BQ158: 51170009.81 | BR158: 0 | BS158: 27604869.91 | BT158: 1640054.036 | BU158: 4969363.728 | BV158: 208947926.7 | BW158: 6758997.252 | BX158: 17066468.06 | BY158: 0 | BZ158: 24373305.7 | CA158: 56523524.99 | CB158: 0 | CC158: 30492950.07 | CD158: 1811639.975 | CE158: 5489269.124 | CF158: 230808502.9 | CG158: 7466137.911 | CH158: 18851998.22 | CI158: 0 | CJ158: 26923292.74
A159: 150 | B159: =NPV(#REF!,$G159:$CJ159) ->  | C159: =NPV(#REF!,$G$6:$CJ$6) ->  | G159: 0 | H159: 0 | I159: 0 | J159: 0 | K159: 0 | L159: 0 | M159: 0 | N159: 0 | O159: 0 | P159: 0 | Q159: 0 | R159: 0 | S159: 825318.523 | T159: 0 | U159: 0 | V159: 0 | W159: 1792220.405 | X159: 0 | Y159: 0 | Z159: 0 | AA159: 7783792.295 | AB159: 0 | AC159: 1013844.073 | AD159: 1034918.437 | AE159: 2112861.73 | AF159: 0 | AG159: 0 | AH159: 4494754.178 | AI159: 0 | AJ159: 4585098.737 | AK159: 0 | AL159: 0 | AM159: 3543023.861 | AN159: 3578454.099 | AO159: 2409492.427 | AP159: 0 | AQ159: 0 | AR159: 0 | AS159: 6268318.704 | AT159: 1266200.378 | AU159: 3836587.146 | AV159: 1291651.006 | AW159: 2609135.032 | AX159: 38210782.54 | AY159: 11977103.91 | AZ159: 5376388.864 | BA159: 0 | BB159: 4113340.71 | BC159: 22157195.29 | BD159: 18182748.39 | BE159: 5650638.73 | BF159: 21401794.19 | BG159: 7205270.71 | BH159: 1455464.683 | BI159: 36964510.24 | BJ159: 19301353.81 | BK159: 4498700.156 | BL159: 3029124.772 | BM159: 0 | BN159: 38625127.25 | BO159: 34330013.1 | BP159: 31521193.85 | BQ159: 0 | BR159: 16077384.92 | BS159: 1623815.877 | BT159: 16400540.36 | BU159: 38098455.25 | BV159: 6692076.488 | BW159: 16897493.13 | BX159: 29012995.71 | BY159: 20684559.29 | BZ159: 24373305.7 | CA159: 0 | CB159: 17759435.1 | CC159: 1793702.945 | CD159: 18116399.75 | CE159: 42084396.61 | CF159: 7392215.753 | CG159: 18665344.78 | CH159: 32048396.98 | CI159: 22848621.85 | CJ159: 26923292.74
A160: 151 | B160: =NPV(#REF!,$G160:$CJ160) ->  | C160: =NPV(#REF!,$G$6:$CJ$6) ->  | G160: 0 | H160: 0 | I160: 0 | J160: 0 | K160: 0 | L160: 0 | M160: 0 | N160: 0 | O160: 0 | P160: 0 | Q160: 0 | R160: 0 | S160: 4126592.615 | T160: 0 | U160: 859986.2492 | V160: 0 | W160: 0 | X160: 0 | Y160: 0 | Z160: 0 | AA160: 1945948.074 | AB160: 0 | AC160: 0 | AD160: 9314265.931 | AE160: 11620739.52 | AF160: 2156780.927 | AG160: 0 | AH160: 0 | AI160: 11349254.3 | AJ160: 2292549.369 | AK160: 0 | AL160: 5846574.027 | AM160: 0 | AN160: 3578454.099 | AO160: 6023731.067 | AP160: 3650381.027 | AQ160: 3686884.837 | AR160: 6206256.142 | AS160: 0 | AT160: 7597202.269 | AU160: 0 | AV160: 2583302.011 | AW160: 1304567.516 | AX160: 5270452.764 | AY160: 14638682.55 | AZ160: 13440972.16 | BA160: 0 | BB160: 4113340.71 | BC160: 1384824.706 | BD160: 6993364.764 | BE160: 22602554.92 | BF160: 8560717.675 | BG160: 4323162.426 | BH160: 24742899.62 | BI160: 16598266.6 | BJ160: 1484719.524 | BK160: 0 | BL160: 18174748.63 | BM160: 12237664.08 | BN160: 13905045.81 | BO160: 14044096.27 | BP160: 4728179.077 | BQ160: 22285484.05 | BR160: 1607738.492 | BS160: 27604869.91 | BT160: 4920162.107 | BU160: 13492807.57 | BV160: 16730191.22 | BW160: 21966741.07 | BX160: 6826587.225 | BY160: 18960846.02 | BZ160: 31844053.54 | CA160: 24617038.76 | CB160: 1775943.51 | CC160: 30492950.07 | CD160: 5434919.924 | CE160: 14904453.78 | CF160: 18480539.38 | CG160: 24264948.21 | CH160: 7540799.29 | CI160: 20944570.03 | CJ160: 35175646.1
A161: 152 | B161: =NPV(#REF!,$G161:$CJ161) ->  | C161: =NPV(#REF!,$G$6:$CJ$6) ->  | G161: 0 | H161: 0 | I161: 0 | J161: 0 | K161: 0 | L161: 0 | M161: 0 | N161: 0 | O161: 0 | P161: 0 | Q161: 0 | R161: 0 | S161: 0 | T161: 0 | U161: 859986.2492 | V161: 0 | W161: 0 | X161: 3658949.123 | Y161: 0 | Z161: 0 | AA161: 0 | AB161: 0 | AC161: 0 | AD161: 0 | AE161: 0 | AF161: 0 | AG161: 0 | AH161: 0 | AI161: 4539701.72 | AJ161: 1146274.684 | AK161: 0 | AL161: 1169314.805 | AM161: 0 | AN161: 0 | AO161: 0 | AP161: 0 | AQ161: 0 | AR161: 0 | AS161: 0 | AT161: 1266200.378 | AU161: 5115449.528 | AV161: 15687869.57 | AW161: 0 | AX161: 0 | AY161: 0 | AZ161: 5376388.864 | BA161: 0 | BB161: 8226681.421 | BC161: 15233071.76 | BD161: 0 | BE161: 24015214.6 | BF161: 15694649.07 | BG161: 7205270.71 | BH161: 26198364.3 | BI161: 22050289.95 | BJ161: 5938878.094 | BK161: 14995667.19 | BL161: 10601936.7 | BM161: 13767372.09 | BN161: 15450050.9 | BO161: 1560455.141 | BP161: 3152119.385 | BQ161: 11142742.02 | BR161: 25723815.87 | BS161: 69824082.71 | BT161: 9840324.215 | BU161: 34785546.1 | BV161: 21749248.58 | BW161: 3379498.626 | BX161: 22186408.48 | BY161: 22408272.57 | BZ161: 8704752.035 | CA161: 12308519.38 | CB161: 28415096.16 | CC161: 77129226.65 | CD161: 10869839.85 | CE161: 38424883.87 | CF161: 24024701.2 | CG161: 3733068.955 | CH161: 24507597.69 | CI161: 24752673.67 | CJ161: 9615461.694
A162: 153 | B162: =NPV(#REF!,$G162:$CJ162) ->  | C162: =NPV(#REF!,$G$6:$CJ$6) ->  | G162: 0 | H162: 0 | I162: 0 | J162: 0 | K162: 0 | L162: 0 | M162: 0 | N162: 0 | O162: 0 | P162: 0 | Q162: 0 | R162: 0 | S162: 0 | T162: 0 | U162: 0 | V162: 0 | W162: 0 | X162: 0 | Y162: 2801254.657 | Z162: 1906322.131 | AA162: 0 | AB162: 0 | AC162: 2027688.145 | AD162: 6209510.621 | AE162: 0 | AF162: 1078390.464 | AG162: 5504032.636 | AH162: 1123688.545 | AI162: 0 | AJ162: 0 | AK162: 0 | AL162: 5846574.027 | AM162: 0 | AN162: 9542544.265 | AO162: 7228477.28 | AP162: 6083968.378 | AQ162: 0 | AR162: 2482502.457 | AS162: 0 | AT162: 5064801.512 | AU162: 0 | AV162: 15499812.07 | AW162: 3913702.547 | AX162: 0 | AY162: 29277365.1 | AZ162: 1344097.216 | BA162: 5430152.753 | BB162: 4113340.71 | BC162: 5539298.823 | BD162: 2797345.906 | BE162: 2825319.365 | BF162: 4280358.838 | BG162: 4323162.426 | BH162: 0 | BI162: 14700193.3 | BJ162: 8908317.141 | BK162: 11996533.75 | BL162: 0 | BM162: 52010072.34 | BN162: 10815035.63 | BO162: 17392200.5 | BP162: 7880298.461 | BQ162: 4775460.868 | BR162: 4823215.476 | BS162: 9742895.262 | BT162: 0 | BU162: 23190364.07 | BV162: 18403210.34 | BW162: 40800002.01 | BX162: 23893055.29 | BY162: 62053677.87 | BZ162: 24373305.7 | CA162: 5275079.733 | CB162: 5327830.531 | CC162: 10762217.67 | CD162: 0 | CE162: 25616589.24 | CF162: 20328593.32 | CG162: 45068584.94 | CH162: 26392797.51 | CI162: 68545865.54 | CJ162: 26923292.74
A163: 154 | B163: =NPV(#REF!,$G163:$CJ163) ->  | C163: =NPV(#REF!,$G$6:$CJ$6) ->  | G163: 0 | H163: 0 | I163: 0 | J163: 0 | K163: 0 | L163: 0 | M163: 0 | N163: 0 | O163: 0 | P163: 0 | Q163: 0 | R163: 0 | S163: 0 | T163: 0 | U163: 0 | V163: 0 | W163: 896110.2025 | X163: 914737.2806 | Y163: 0 | Z163: 13344254.92 | AA163: 0 | AB163: 0 | AC163: 0 | AD163: 2069836.874 | AE163: 0 | AF163: 0 | AG163: 0 | AH163: 0 | AI163: 0 | AJ163: 1146274.684 | AK163: 2315474.862 | AL163: 5846574.027 | AM163: 17715119.3 | AN163: 17892270.5 | AO163: 3614238.64 | AP163: 6083968.378 | AQ163: 2457923.225 | AR163: 3723753.685 | AS163: 0 | AT163: 3798601.134 | AU163: 5115449.528 | AV163: 2583302.011 | AW163: 5218270.063 | AX163: 3952839.573 | AY163: 5323157.291 | AZ163: 0 | BA163: 5430152.753 | BB163: 1371113.57 | BC163: 70827683.1 | BD163: 16784075.43 | BE163: 5650638.73 | BF163: 2853572.558 | BG163: 7205270.71 | BH163: 70286120.61 | BI163: 0 | BJ163: 16331914.76 | BK163: 11996533.75 | BL163: 6058249.544 | BM163: 21415912.14 | BN163: 9270030.54 | BO163: 0 | BP163: 149296940.5 | BQ163: 19101843.47 | BR163: 25723815.87 | BS163: 45703263.5 | BT163: 32801080.72 | BU163: 24846818.64 | BV163: 0 | BW163: 15207743.82 | BX163: 32426289.32 | BY163: 6894853.097 | BZ163: 8704752.035 | CA163: 21100318.93 | CB163: 28415096.16 | CC163: 50484836.06 | CD163: 36232799.5 | CE163: 27446345.62 | CF163: 0 | CG163: 16798810.3 | CH163: 35818796.63 | CI163: 7616207.283 | CJ163: 9615461.694
A164: 155 | B164: =NPV(#REF!,$G164:$CJ164) ->  | C164: =NPV(#REF!,$G$6:$CJ$6) ->  | G164: 0 | H164: 0 | I164: 0 | J164: 0 | K164: 0 | L164: 0 | M164: 0 | N164: 0 | O164: 0 | P164: 0 | Q164: 0 | R164: 0 | S164: 0 | T164: 8424740.833 | U164: 0 | V164: 0 | W164: 0 | X164: 914737.2806 | Y164: 0 | Z164: 3812644.263 | AA164: 0 | AB164: 6952391.966 | AC164: 4055376.29 | AD164: 1034918.437 | AE164: 0 | AF164: 7548733.245 | AG164: 0 | AH164: 0 | AI164: 4539701.72 | AJ164: 3438824.053 | AK164: 10419636.88 | AL164: 0 | AM164: 0 | AN164: 3578454.099 | AO164: 0 | AP164: 0 | AQ164: 27037155.47 | AR164: 0 | AS164: 0 | AT164: 5064801.512 | AU164: 0 | AV164: 14208161.06 | AW164: 2609135.032 | AX164: 2635226.382 | AY164: 1330789.323 | AZ164: 0 | BA164: 5430152.753 | BB164: 12340022.13 | BC164: 23542020 | BD164: 16784075.43 | BE164: 22602554.92 | BF164: 2853572.558 | BG164: 14410541.42 | BH164: 24742899.62 | BI164: 8820115.982 | BJ164: 10393036.66 | BK164: 2999133.438 | BL164: 0 | BM164: 13767372.09 | BN164: 38625127.25 | BO164: 17165006.55 | BP164: 11032417.85 | BQ164: 11142742.02 | BR164: 1607738.492 | BS164: 38971581.05 | BT164: 6560216.143 | BU164: 23190364.07 | BV164: 40152458.93 | BW164: 30415487.64 | BX164: 153382437.9 | BY164: 13789706.19 | BZ164: 73626863.3 | CA164: 12308519.38 | CB164: 1775943.51 | CC164: 43048870.69 | CD164: 7246559.899 | CE164: 25616589.24 | CF164: 44353294.52 | CG164: 33597620.6 | CH164: 169429634.5 | CI164: 15232414.57 | CJ164: 81329862.23
A165: 156 | B165: =NPV(#REF!,$G165:$CJ165) ->  | C165: =NPV(#REF!,$G$6:$CJ$6) ->  | G165: 0 | H165: 0 | I165: 0 | J165: 0 | K165: 0 | L165: 0 | M165: 0 | N165: 0 | O165: 0 | P165: 0 | Q165: 0 | R165: 0 | S165: 0 | T165: 0 | U165: 0 | V165: 1755724.867 | W165: 0 | X165: 4573686.403 | Y165: 2801254.657 | Z165: 953161.0657 | AA165: 0 | AB165: 1986397.705 | AC165: 0 | AD165: 1034918.437 | AE165: 0 | AF165: 0 | AG165: 5504032.636 | AH165: 0 | AI165: 1134925.43 | AJ165: 0 | AK165: 0 | AL165: 8185203.638 | AM165: 1181007.954 | AN165: 2385636.066 | AO165: 3614238.64 | AP165: 0 | AQ165: 28266117.08 | AR165: 0 | AS165: 1253663.741 | AT165: 7597202.269 | AU165: 0 | AV165: 0 | AW165: 1304567.516 | AX165: 17128971.48 | AY165: 7984735.937 | AZ165: 1344097.216 | BA165: 21720611.01 | BB165: 5484454.28 | BC165: 1384824.706 | BD165: 6993364.764 | BE165: 46617769.52 | BF165: 0 | BG165: 12969487.28 | BH165: 45119405.19 | BI165: 1470019.33 | BJ165: 32663829.52 | BK165: 20993934.06 | BL165: 10601936.7 | BM165: 7648540.049 | BN165: 4635015.27 | BO165: 12483641.13 | BP165: 23640895.38 | BQ165: 22285484.05 | BR165: 54663108.73 | BS165: 48714476.31 | BT165: 223110204.6 | BU165: 71227546.77 | BV165: 43498497.17 | BW165: 3379498.626 | BX165: 18773114.87 | BY165: 49987684.95 | BZ165: 50994508.01 | CA165: 24617038.76 | CB165: 60382079.35 | CC165: 53811088.36 | CD165: 246452468.4 | CE165: 78679524.1 | CF165: 48049402.4 | CG165: 3733068.955 | CH165: 20737198.05 | CI165: 55217502.8 | CJ165: 56329661.83
A166: 157 | B166: =NPV(#REF!,$G166:$CJ166) ->  | C166: =NPV(#REF!,$G$6:$CJ$6) ->  | G166: 0 | H166: 0 | I166: 0 | J166: 0 | K166: 0 | L166: 0 | M166: 0 | N166: 0 | O166: 0 | P166: 0 | Q166: 0 | R166: 0 | S166: 0 | T166: 0 | U166: 1719972.498 | V166: 0 | W166: 6272771.418 | X166: 914737.2806 | Y166: 0 | Z166: 13344254.92 | AA166: 0 | AB166: 0 | AC166: 0 | AD166: 0 | AE166: 0 | AF166: 0 | AG166: 15411291.38 | AH166: 5618442.723 | AI166: 5674627.15 | AJ166: 0 | AK166: 2315474.862 | AL166: 9354518.444 | AM166: 0 | AN166: 2385636.066 | AO166: 0 | AP166: 6083968.378 | AQ166: 1228961.612 | AR166: 6206256.142 | AS166: 6268318.704 | AT166: 0 | AU166: 1278862.382 | AV166: 1291651.006 | AW166: 5218270.063 | AX166: 0 | AY166: 7984735.937 | AZ166: 1344097.216 | BA166: 0 | BB166: 1371113.57 | BC166: 8308948.235 | BD166: 22378767.25 | BE166: 22602554.92 | BF166: 15694649.07 | BG166: 12969487.28 | BH166: 4366394.05 | BI166: 11760154.64 | BJ166: 16331914.76 | BK166: 10496967.03 | BL166: 4543687.158 | BM166: 0 | BN166: 20085066.17 | BO166: 3120910.282 | BP166: 18912716.31 | BQ166: 15918202.89 | BR166: 3215476.984 | BS166: 24357238.15 | BT166: 1640054.036 | BU166: 34785546.1 | BV166: 33460382.44 | BW166: 33794986.26 | BX166: 15359821.26 | BY166: 73148847.93 | BZ166: 26114256.11 | CA166: 17583599.11 | CB166: 3551887.02 | CC166: 26905544.18 | CD166: 1811639.975 | CE166: 38424883.87 | CF166: 36961078.77 | CG166: 37330689.55 | CH166: 16966798.4 | CI166: 80801835.87 | CJ166: 28846385.08
A167: 158 | B167: =NPV(#REF!,$G167:$CJ167) ->  | C167: =NPV(#REF!,$G$6:$CJ$6) ->  | G167: 0 | H167: 0 | I167: 0 | J167: 0 | K167: 0 | L167: 0 | M167: 0 | N167: 0 | O167: 0 | P167: 0 | Q167: 0 | R167: 0 | S167: 0 | T167: 0 | U167: 0 | V167: 0 | W167: 0 | X167: 914737.2806 | Y167: 0 | Z167: 0 | AA167: 1945948.074 | AB167: 0 | AC167: 1013844.073 | AD167: 2069836.874 | AE167: 1056430.865 | AF167: 4313561.854 | AG167: 0 | AH167: 0 | AI167: 0 | AJ167: 0 | AK167: 0 | AL167: 1169314.805 | AM167: 0 | AN167: 0 | AO167: 22890178.05 | AP167: 7300762.053 | AQ167: 4915846.449 | AR167: 1241251.228 | AS167: 1253663.741 | AT167: 3798601.134 | AU167: 11509761.44 | AV167: 2583302.011 | AW167: 9131972.61 | AX167: 21081811.05 | AY167: 6653946.614 | AZ167: 0 | BA167: 0 | BB167: 4113340.71 | BC167: 19387545.88 | BD167: 6993364.764 | BE167: 7063298.412 | BF167: 5707145.117 | BG167: 0 | BH167: 4366394.05 | BI167: 7350096.651 | BJ167: 10393036.66 | BK167: 31490901.09 | BL167: 6058249.544 | BM167: 29064452.19 | BN167: 15450050.9 | BO167: 81143667.32 | BP167: 6304238.769 | BQ167: 25469124.63 | BR167: 0 | BS167: 22733422.28 | BT167: 0 | BU167: 53006546.44 | BV167: 223062827.7 | BW167: 30415487.64 | BX167: 8533234.031 | BY167: 13789706.19 | BZ167: 19150454.48 | CA167: 28133758.58 | CB167: 0 | CC167: 25111841.23 | CD167: 0 | CE167: 58552203.98 | CF167: 246400134.8 | CG167: 33597620.6 | CH167: 9425999.112 | CI167: 15232414.57 | CJ167: 21154015.73
A168: 159 | B168: =NPV(#REF!,$G168:$CJ168) ->  | C168: =NPV(#REF!,$G$6:$CJ$6) ->  | G168: 0 | H168: 0 | I168: 0 | J168: 0 | K168: 0 | L168: 0 | M168: 0 | N168: 0 | O168: 0 | P168: 0 | Q168: 0 | R168: 0 | S168: 0 | T168: 0 | U168: 0 | V168: 877862.4334 | W168: 1792220.405 | X168: 0 | Y168: 0 | Z168: 953161.0657 | AA168: 0 | AB168: 0 | AC168: 1013844.073 | AD168: 0 | AE168: 6338585.191 | AF168: 0 | AG168: 0 | AH168: 0 | AI168: 0 | AJ168: 0 | AK168: 0 | AL168: 22216981.3 | AM168: 0 | AN168: 0 | AO168: 1204746.213 | AP168: 8517555.729 | AQ168: 0 | AR168: 0 | AS168: 1253663.741 | AT168: 3798601.134 | AU168: 3836587.146 | AV168: 1291651.006 | AW168: 6522837.579 | AX168: 15811358.29 | AY168: 65596188.49 | AZ168: 18817361.02 | BA168: 102210664.8 | BB168: 2742227.14 | BC168: 5539298.823 | BD168: 2797345.906 | BE168: 8475958.094 | BF168: 5707145.117 | BG168: 7205270.71 | BH168: 8732788.101 | BI168: 7350096.651 | BJ168: 22270792.85 | BK168: 0 | BL168: 0 | BM168: 7648540.049 | BN168: 0 | BO168: 0 | BP168: 4728179.077 | BQ168: 15918202.89 | BR168: 54663108.73 | BS168: 42219212.8 | BT168: 1640054.036 | BU168: 38098455.25 | BV168: 11711133.85 | BW168: 23656490.38 | BX168: 213893216.1 | BY168: 93331480.28 | BZ168: 24373305.7 | CA168: 17583599.11 | CB168: 60382079.35 | CC168: 46636276.58 | CD168: 1811639.975 | CE168: 42084396.61 | CF168: 12936377.57 | CG168: 26131482.69 | CH168: 236271179 | CI168: 103096018.1 | CJ168: 26923292.74
A169: 160 | B169: =NPV(#REF!,$G169:$CJ169) ->  | C169: =NPV(#REF!,$G$6:$CJ$6) ->  | G169: 0 | H169: 0 | I169: 0 | J169: 0 | K169: 0 | L169: 0 | M169: 0 | N169: 0 | O169: 0 | P169: 0 | Q169: 0 | R169: 0 | S169: 0 | T169: 0 | U169: 859986.2492 | V169: 4517124.261 | W169: 0 | X169: 2744211.842 | Y169: 933751.5522 | Z169: 0 | AA169: 972974.0369 | AB169: 2979596.557 | AC169: 1013844.073 | AD169: 0 | AE169: 0 | AF169: 0 | AG169: 0 | AH169: 17979016.71 | AI169: 0 | AJ169: 12609021.53 | AK169: 9261899.449 | AL169: 18709036.89 | AM169: 0 | AN169: 9542544.265 | AO169: 7228477.28 | AP169: 4867174.702 | AQ169: 1228961.612 | AR169: 2482502.457 | AS169: 5014654.963 | AT169: 6331001.891 | AU169: 2557724.764 | AV169: 3874953.017 | AW169: 9131972.61 | AX169: 0 | AY169: 13307893.23 | AZ169: 4032291.648 | BA169: 6787690.941 | BB169: 8226681.421 | BC169: 12463422.35 | BD169: 0 | BE169: 4237979.047 | BF169: 4280358.838 | BG169: 7205270.71 | BH169: 2910929.367 | BI169: 51450676.56 | BJ169: 2969439.047 | BK169: 19494367.34 | BL169: 16660186.25 | BM169: 0 | BN169: 13905045.81 | BO169: 79583212.18 | BP169: 3152119.385 | BQ169: 33428226.07 | BR169: 6430953.968 | BS169: 9742895.262 | BT169: 18040594.39 | BU169: 29816182.37 | BV169: 111880758.1 | BW169: 8448746.566 | BX169: 5119940.419 | BY169: 43092831.86 | BZ169: 5222851.221 | CA169: 36925558.13 | CB169: 7103774.041 | CC169: 10762217.67 | CD169: 19928039.72 | CE169: 32935614.74 | CF169: 123585960.8 | CG169: 9332672.388 | CH169: 5655599.467 | CI169: 47601295.52 | CJ169: 5769277.017
A170: 161 | B170: =NPV(#REF!,$G170:$CJ170) ->  | C170: =NPV(#REF!,$G$6:$CJ$6) ->  | G170: 0 | H170: 0 | I170: 0 | J170: 0 | K170: 0 | L170: 0 | M170: 0 | N170: 0 | O170: 0 | P170: 0 | Q170: 0 | R170: 0 | S170: 0 | T170: 6739792.666 | U170: 0 | V170: 0 | W170: 0 | X170: 0 | Y170: 3735006.209 | Z170: 1906322.131 | AA170: 0 | AB170: 0 | AC170: 0 | AD170: 9314265.931 | AE170: 1056430.865 | AF170: 1078390.464 | AG170: 0 | AH170: 0 | AI170: 12484179.73 | AJ170: 0 | AK170: 4630949.725 | AL170: 0 | AM170: 0 | AN170: 9542544.265 | AO170: 0 | AP170: 4867174.702 | AQ170: 3686884.837 | AR170: 3723753.685 | AS170: 1253663.741 | AT170: 3798601.134 | AU170: 6394311.909 | AV170: 12916510.06 | AW170: 5218270.063 | AX170: 0 | AY170: 21292629.17 | AZ170: 5376388.864 | BA170: 102210664.8 | BB170: 5484454.28 | BC170: 4154474.117 | BD170: 13986729.53 | BE170: 86583592.07 | BF170: 1426786.279 | BG170: 4323162.426 | BH170: 4366394.05 | BI170: 16170212.63 | BJ170: 0 | BK170: 2999133.438 | BL170: 7572811.93 | BM170: 7648540.049 | BN170: 58710193.42 | BO170: 23406827.11 | BP170: 0 | BQ170: 9550921.735 | BR170: 33996586.49 | BS170: 19485790.52 | BT170: 47561567.04 | BU170: 93726140.11 | BV170: 11711133.85 | BW170: 25346239.7 | BX170: 152669705.8 | BY170: 20684559.29 | BZ170: 54729881.93 | CA170: 10550159.47 | CB170: 37553381.63 | CC170: 21524435.34 | CD170: 52537559.27 | CE170: 103531968.1 | CF170: 12936377.57 | CG170: 27998017.16 | CH170: 168642334.9 | CI170: 22848621.85 | CJ170: 60455838.5
A171: 162 | B171: =NPV(#REF!,$G171:$CJ171) ->  | C171: =NPV(#REF!,$G$6:$CJ$6) ->  | G171: 0 | H171: 0 | I171: 0 | J171: 0 | K171: 0 | L171: 0 | M171: 0 | N171: 0 | O171: 0 | P171: 0 | Q171: 0 | R171: 0 | S171: 0 | T171: 0 | U171: 0 | V171: 0 | W171: 12545542.84 | X171: 0 | Y171: 0 | Z171: 3812644.263 | AA171: 0 | AB171: 0 | AC171: 0 | AD171: 1034918.437 | AE171: 0 | AF171: 0 | AG171: 3302419.582 | AH171: 0 | AI171: 9079403.44 | AJ171: 2292549.369 | AK171: 0 | AL171: 0 | AM171: 0 | AN171: 10735362.3 | AO171: 0 | AP171: 8517555.729 | AQ171: 3686884.837 | AR171: 0 | AS171: 0 | AT171: 1266200.378 | AU171: 5115449.528 | AV171: 2583302.011 | AW171: 27395917.83 | AX171: 6588065.955 | AY171: 7984735.937 | AZ171: 2688194.432 | BA171: 0 | BB171: 5484454.28 | BC171: 31850968.23 | BD171: 13986729.53 | BE171: 36729151.74 | BF171: 21401794.19 | BG171: 5764216.568 | BH171: 4366394.05 | BI171: 22050289.95 | BJ171: 2969439.047 | BK171: 11996533.75 | BL171: 13631061.47 | BM171: 7648540.049 | BN171: 3090010.18 | BO171: 17165006.55 | BP171: 18912716.31 | BQ171: 41387327.52 | BR171: 4823215.476 | BS171: 16238158.77 | BT171: 42641404.93 | BU171: 18221000.34 | BV171: 77202462.28 | BW171: 25346239.7 | BX171: 10239880.84 | BY171: 242891701.3 | BZ171: 19150454.48 | CA171: 45717357.69 | CB171: 5327830.531 | CC171: 17937029.45 | CD171: 47102639.34 | CE171: 20127320.12 | CF171: 85279547.97 | CG171: 27998017.16 | CH171: 11311198.93 | CI171: 268303547.3 | CJ171: 21154015.73
A172: 163 | B172: =NPV(#REF!,$G172:$CJ172) ->  | C172: =NPV(#REF!,$G$6:$CJ$6) ->  | G172: 0 | H172: 0 | I172: 0 | J172: 0 | K172: 0 | L172: 0 | M172: 0 | N172: 0 | O172: 0 | P172: 0 | Q172: 0 | R172: 0 | S172: 825318.523 | T172: 0 | U172: 4299931.246 | V172: 0 | W172: 0 | X172: 7317898.245 | Y172: 3735006.209 | Z172: 0 | AA172: 0 | AB172: 0 | AC172: 0 | AD172: 0 | AE172: 0 | AF172: 1078390.464 | AG172: 0 | AH172: 0 | AI172: 5674627.15 | AJ172: 1146274.684 | AK172: 3473212.294 | AL172: 0 | AM172: 8267055.675 | AN172: 2385636.066 | AO172: 20480685.63 | AP172: 0 | AQ172: 0 | AR172: 4965004.914 | AS172: 0 | AT172: 1266200.378 | AU172: 3836587.146 | AV172: 10333208.05 | AW172: 6522837.579 | AX172: 5270452.764 | AY172: 7984735.937 | AZ172: 0 | BA172: 8145229.129 | BB172: 1371113.57 | BC172: 22157195.29 | BD172: 16784075.43 | BE172: 2825319.365 | BF172: 4280358.838 | BG172: 4323162.426 | BH172: 54487917 | BI172: 32768479.23 | BJ172: 22270792.85 | BK172: 53984401.88 | BL172: 10601936.7 | BM172: 9178248.059 | BN172: 12360040.72 | BO172: 79583212.18 | BP172: 20488776 | BQ172: 20693663.76 | BR172: 43408939.29 | BS172: 9742895.262 | BT172: 42641404.93 | BU172: 4969363.728 | BV172: 111880758.1 | BW172: 16897493.13 | BX172: 13653174.45 | BY172: 248313804.5 | BZ172: 34819008.14 | CA172: 22858678.84 | CB172: 47950474.78 | CC172: 10762217.67 | CD172: 47102639.34 | CE172: 5489269.124 | CF172: 123585960.8 | CG172: 18665344.78 | CH172: 15081598.58 | CI172: 274292922.5 | CJ172: 38461846.78
A173: 164 | B173: =NPV(#REF!,$G173:$CJ173) ->  | C173: =NPV(#REF!,$G$6:$CJ$6) ->  | G173: 0 | H173: 0 | I173: 0 | J173: 0 | K173: 0 | L173: 0 | M173: 0 | N173: 0 | O173: 0 | P173: 0 | Q173: 0 | R173: 0 | S173: 4951911.138 | T173: 842474.0833 | U173: 859986.2492 | V173: 0 | W173: 0 | X173: 0 | Y173: 933751.5522 | Z173: 0 | AA173: 0 | AB173: 0 | AC173: 1013844.073 | AD173: 0 | AE173: 0 | AF173: 2156780.927 | AG173: 0 | AH173: 2247377.089 | AI173: 4539701.72 | AJ173: 0 | AK173: 1157737.431 | AL173: 1169314.805 | AM173: 7086047.721 | AN173: 0 | AO173: 0 | AP173: 0 | AQ173: 1228961.612 | AR173: 9930009.827 | AS173: 2507327.481 | AT173: 6331001.891 | AU173: 3836587.146 | AV173: 15687869.57 | AW173: 5218270.063 | AX173: 0 | AY173: 9315525.26 | AZ173: 0 | BA173: 13575381.88 | BB173: 5484454.28 | BC173: 22157195.29 | BD173: 16784075.43 | BE173: 0 | BF173: 5707145.117 | BG173: 4323162.426 | BH173: 4366394.05 | BI173: 10290135.31 | BJ173: 16331914.76 | BK173: 13496100.47 | BL173: 0 | BM173: 13767372.09 | BN173: 15450050.9 | BO173: 12483641.13 | BP173: 58314208.61 | BQ173: 55713710.12 | BR173: 3215476.984 | BS173: 22733422.28 | BT173: 32801080.72 | BU173: 8282272.881 | BV173: 40152458.93 | BW173: 3379498.626 | BX173: 23893055.29 | BY173: 1723713.274 | BZ173: 68910958.29 | CA173: 61542596.89 | CB173: 3551887.02 | CC173: 25111841.23 | CD173: 36232799.5 | CE173: 9148781.873 | CF173: 44353294.52 | CG173: 3733068.955 | CH173: 26392797.51 | CI173: 1904051.821 | CJ173: 76120569.21
A174: 165 | B174: =NPV(#REF!,$G174:$CJ174) ->  | C174: =NPV(#REF!,$G$6:$CJ$6) ->  | G174: 0 | H174: 0 | I174: 0 | J174: 0 | K174: 0 | L174: 0 | M174: 0 | N174: 0 | O174: 0 | P174: 0 | Q174: 0 | R174: 0 | S174: 0 | T174: 1684948.167 | U174: 0 | V174: 0 | W174: 3584440.81 | X174: 0 | Y174: 0 | Z174: 953161.0657 | AA174: 0 | AB174: 0 | AC174: 1013844.073 | AD174: 0 | AE174: 0 | AF174: 0 | AG174: 2201613.055 | AH174: 0 | AI174: 0 | AJ174: 10316472.16 | AK174: 0 | AL174: 5846574.027 | AM174: 0 | AN174: 0 | AO174: 0 | AP174: 3650381.027 | AQ174: 3686884.837 | AR174: 1241251.228 | AS174: 1253663.741 | AT174: 10129603.02 | AU174: 5115449.528 | AV174: 19562822.59 | AW174: 0 | AX174: 3952839.573 | AY174: 13307893.23 | AZ174: 2688194.432 | BA174: 19005534.64 | BB174: 5484454.28 | BC174: 6924123.529 | BD174: 19581421.34 | BE174: 14126596.82 | BF174: 4280358.838 | BG174: 8646324.852 | BH174: 2910929.367 | BI174: 0 | BJ174: 8908317.141 | BK174: 0 | BL174: 0 | BM174: 9178248.059 | BN174: 7725025.45 | BO174: 10923185.99 | BP174: 128119766.9 | BQ174: 66856452.15 | BR174: 4823215.476 | BS174: 3247631.754 | BT174: 32801080.72 | BU174: 29816182.37 | BV174: 6692076.488 | BW174: 3379498.626 | BX174: 8533234.031 | BY174: 20684559.29 | BZ174: 53969462.62 | CA174: 73851116.27 | CB174: 5327830.531 | CC174: 3587405.891 | CD174: 36232799.5 | CE174: 32935614.74 | CF174: 7392215.753 | CG174: 3733068.955 | CH174: 9425999.112 | CI174: 22848621.85 | CJ174: 59615862.5
A175: 166 | B175: =NPV(#REF!,$G175:$CJ175) ->  | C175: =NPV(#REF!,$G$6:$CJ$6) ->  | G175: 0 | H175: 0 | I175: 0 | J175: 0 | K175: 0 | L175: 0 | M175: 0 | N175: 0 | O175: 0 | P175: 0 | Q175: 0 | R175: 0 | S175: 0 | T175: 0 | U175: 0 | V175: 0 | W175: 0 | X175: 0 | Y175: 0 | Z175: 3812644.263 | AA175: 7783792.295 | AB175: 0 | AC175: 4055376.29 | AD175: 0 | AE175: 1056430.865 | AF175: 0 | AG175: 2201613.055 | AH175: 0 | AI175: 9079403.44 | AJ175: 0 | AK175: 2315474.862 | AL175: 9354518.444 | AM175: 7086047.721 | AN175: 4771272.132 | AO175: 21685431.84 | AP175: 9734349.404 | AQ175: 2457923.225 | AR175: 1241251.228 | AS175: 0 | AT175: 13928204.16 | AU175: 5115449.528 | AV175: 1291651.006 | AW175: 0 | AX175: 17128971.48 | AY175: 9315525.26 | AZ175: 99658887.38 | BA175: 6787690.941 | BB175: 10968908.56 | BC175: 12463422.35 | BD175: 2797345.906 | BE175: 12713937.14 | BF175: 4280358.838 | BG175: 7205270.71 | BH175: 18921040.88 | BI175: 0 | BJ175: 23755512.38 | BK175: 13496100.47 | BL175: 37864059.65 | BM175: 13767372.09 | BN175: 12360040.72 | BO175: 18725461.69 | BP175: 154254585.5 | BQ175: 19101843.47 | BR175: 17685123.41 | BS175: 24357238.15 | BT175: 0 | BU175: 29816182.37 | BV175: 33460382.44 | BW175: 6758997.252 | BX175: 25599702.09 | BY175: 18960846.02 | BZ175: 13927603.26 | CA175: 21100318.93 | CB175: 19535378.61 | CC175: 26905544.18 | CD175: 0 | CE175: 32935614.74 | CF175: 36961078.77 | CG175: 7466137.911 | CH175: 28277997.34 | CI175: 20944570.03 | CJ175: 15384738.71
A176: 167 | B176: =NPV(#REF!,$G176:$CJ176) ->  | C176: =NPV(#REF!,$G$6:$CJ$6) ->  | G176: 0 | H176: 0 | I176: 0 | J176: 0 | K176: 0 | L176: 0 | M176: 0 | N176: 0 | O176: 0 | P176: 0 | Q176: 0 | R176: 0 | S176: 0 | T176: 0 | U176: 0 | V176: 0 | W176: 0 | X176: 914737.2806 | Y176: 933751.5522 | Z176: 0 | AA176: 972974.0369 | AB176: 1986397.705 | AC176: 4055376.29 | AD176: 7244429.057 | AE176: 0 | AF176: 4313561.854 | AG176: 2201613.055 | AH176: 0 | AI176: 1134925.43 | AJ176: 5731373.422 | AK176: 0 | AL176: 8185203.638 | AM176: 0 | AN176: 9542544.265 | AO176: 0 | AP176: 3650381.027 | AQ176: 4915846.449 | AR176: 0 | AS176: 0 | AT176: 0 | AU176: 0 | AV176: 6458255.029 | AW176: 0 | AX176: 1317613.191 | AY176: 2661578.646 | AZ176: 0 | BA176: 0 | BB176: 1371113.57 | BC176: 18002721.18 | BD176: 22378767.25 | BE176: 32491172.7 | BF176: 15694649.07 | BG176: 0 | BH176: 26198364.3 | BI176: 16598266.6 | BJ176: 35633268.57 | BK176: 10496967.03 | BL176: 10601936.7 | BM176: 160232533.1 | BN176: 10815035.63 | BO176: 81143667.32 | BP176: 18912716.31 | BQ176: 12734562.31 | BR176: 48232154.76 | BS176: 42219212.8 | BT176: 39361296.86 | BU176: 13492807.57 | BV176: 120002271 | BW176: 21966741.07 | BX176: 27306348.9 | BY176: 24131985.84 | BZ176: 15668553.66 | CA176: 14066879.29 | CB176: 53278305.31 | CC176: 46636276.58 | CD176: 43479359.39 | CE176: 14904453.78 | CF176: 132557163.7 | CG176: 24264948.21 | CH176: 30163197.16 | CI176: 26656725.49 | CJ176: 17307831.05
A177: 168 | B177: =NPV(#REF!,$G177:$CJ177) ->  | C177: =NPV(#REF!,$G$6:$CJ$6) ->  | G177: 0 | H177: 0 | I177: 0 | J177: 0 | K177: 0 | L177: 0 | M177: 0 | N177: 0 | O177: 0 | P177: 0 | Q177: 0 | R177: 0 | S177: 0 | T177: 0 | U177: 0 | V177: 877862.4334 | W177: 6272771.418 | X177: 4573686.403 | Y177: 0 | Z177: 0 | AA177: 6810818.258 | AB177: 1986397.705 | AC177: 1013844.073 | AD177: 0 | AE177: 2112861.73 | AF177: 0 | AG177: 0 | AH177: 10113196.9 | AI177: 4539701.72 | AJ177: 1146274.684 | AK177: 2315474.862 | AL177: 0 | AM177: 0 | AN177: 9542544.265 | AO177: 1204746.213 | AP177: 0 | AQ177: 17205462.57 | AR177: 2482502.457 | AS177: 0 | AT177: 6331001.891 | AU177: 0 | AV177: 6458255.029 | AW177: 3913702.547 | AX177: 2635226.382 | AY177: 14638682.55 | AZ177: 1344097.216 | BA177: 0 | BB177: 5484454.28 | BC177: 12463422.35 | BD177: 22378767.25 | BE177: 0 | BF177: 22828580.47 | BG177: 5764216.568 | BH177: 27653828.99 | BI177: 13230173.97 | BJ177: 14847195.24 | BK177: 8997400.313 | BL177: 1514562.386 | BM177: 55069488.35 | BN177: 46350152.7 | BO177: 18725461.69 | BP177: 18912716.31 | BQ177: 11142742.02 | BR177: 48232154.76 | BS177: 1623815.877 | BT177: 42641404.93 | BU177: 29816182.37 | BV177: 40152458.93 | BW177: 13517994.5 | BX177: 63145931.83 | BY177: 10342279.65 | BZ177: 24373305.7 | CA177: 12308519.38 | CB177: 53278305.31 | CC177: 1793702.945 | CD177: 47102639.34 | CE177: 32935614.74 | CF177: 44353294.52 | CG177: 14932275.82 | CH177: 69752393.43 | CI177: 11424310.92 | CJ177: 26923292.74
A178: 169 | B178: =NPV(#REF!,$G178:$CJ178) ->  | C178: =NPV(#REF!,$G$6:$CJ$6) ->  | G178: 0 | H178: 0 | I178: 0 | J178: 0 | K178: 0 | L178: 0 | M178: 0 | N178: 0 | O178: 0 | P178: 0 | Q178: 0 | R178: 0 | S178: 0 | T178: 0 | U178: 0 | V178: 3511449.734 | W178: 0 | X178: 0 | Y178: 0 | Z178: 3812644.263 | AA178: 972974.0369 | AB178: 0 | AC178: 1013844.073 | AD178: 2069836.874 | AE178: 1056430.865 | AF178: 2156780.927 | AG178: 2201613.055 | AH178: 3371065.634 | AI178: 0 | AJ178: 5731373.422 | AK178: 0 | AL178: 22216981.3 | AM178: 0 | AN178: 0 | AO178: 0 | AP178: 0 | AQ178: 4915846.449 | AR178: 0 | AS178: 5014654.963 | AT178: 1266200.378 | AU178: 2557724.764 | AV178: 0 | AW178: 5218270.063 | AX178: 1317613.191 | AY178: 13307893.23 | AZ178: 1344097.216 | BA178: 4072614.565 | BB178: 10968908.56 | BC178: 0 | BD178: 9790710.67 | BE178: 24220890.32 | BF178: 1426786.279 | BG178: 4323162.426 | BH178: 4366394.05 | BI178: 16170212.63 | BJ178: 2969439.047 | BK178: 11996533.75 | BL178: 18174748.63 | BM178: 9178248.059 | BN178: 42165026.45 | BO178: 4681365.423 | BP178: 30174600.05 | BQ178: 0 | BR178: 11254169.44 | BS178: 32476317.54 | BT178: 42641404.93 | BU178: 80233332.54 | BV178: 82465102.32 | BW178: 18587242.44 | BX178: 5119940.419 | BY178: 6894853.097 | BZ178: 28108679.62 | CA178: 0 | CB178: 12431604.57 | CC178: 35874058.91 | CD178: 47102639.34 | CE178: 88627514.32 | CF178: 91092776.59 | CG178: 20531879.25 | CH178: 5655599.467 | CI178: 7616207.283 | CJ178: 31049469.42
A179: 170 | B179: =NPV(#REF!,$G179:$CJ179) ->  | C179: =NPV(#REF!,$G$6:$CJ$6) ->  | G179: 0 | H179: 0 | I179: 0 | J179: 0 | K179: 0 | L179: 0 | M179: 0 | N179: 0 | O179: 0 | P179: 0 | Q179: 0 | R179: 0 | S179: 0 | T179: 842474.0833 | U179: 0 | V179: 2633587.3 | W179: 0 | X179: 0 | Y179: 0 | Z179: 2859483.197 | AA179: 0 | AB179: 2979596.557 | AC179: 0 | AD179: 1034918.437 | AE179: 0 | AF179: 1078390.464 | AG179: 3302419.582 | AH179: 0 | AI179: 0 | AJ179: 0 | AK179: 0 | AL179: 5846574.027 | AM179: 0 | AN179: 1192818.033 | AO179: 20480685.63 | AP179: 8517555.729 | AQ179: 1228961.612 | AR179: 0 | AS179: 0 | AT179: 10129603.02 | AU179: 0 | AV179: 5166604.023 | AW179: 5218270.063 | AX179: 5270452.764 | AY179: 3992367.969 | AZ179: 8064583.296 | BA179: 4072614.565 | BB179: 1371113.57 | BC179: 6924123.529 | BD179: 6993364.764 | BE179: 0 | BF179: 5707145.117 | BG179: 47554786.69 | BH179: 0 | BI179: 143876036.9 | BJ179: 8908317.141 | BK179: 31490901.09 | BL179: 46951433.97 | BM179: 13767372.09 | BN179: 150990216.3 | BO179: 14044096.27 | BP179: 57197080.71 | BQ179: 33428226.07 | BR179: 32154769.84 | BS179: 32476317.54 | BT179: 8200270.179 | BU179: 123059980.6 | BV179: 0 | BW179: 10138495.88 | BX179: 199991563 | BY179: 69701421.38 | BZ179: 27855206.51 | CA179: 36925558.13 | CB179: 35518870.2 | CC179: 35874058.91 | CD179: 9058199.874 | CE179: 135934777.3 | CF179: 0 | CG179: 11199206.87 | CH179: 220915105.3 | CI179: 76993732.23 | CJ179: 30769477.42
A180: 171 | B180: =NPV(#REF!,$G180:$CJ180) ->  | C180: =NPV(#REF!,$G$6:$CJ$6) ->  | G180: 0 | H180: 0 | I180: 0 | J180: 0 | K180: 0 | L180: 0 | M180: 0 | N180: 0 | O180: 0 | P180: 0 | Q180: 0 | R180: 0 | S180: 0 | T180: 0 | U180: 0 | V180: 0 | W180: 0 | X180: 0 | Y180: 0 | Z180: 953161.0657 | AA180: 0 | AB180: 0 | AC180: 0 | AD180: 0 | AE180: 0 | AF180: 0 | AG180: 2201613.055 | AH180: 0 | AI180: 0 | AJ180: 2292549.369 | AK180: 0 | AL180: 1169314.805 | AM180: 2362015.907 | AN180: 3578454.099 | AO180: 1204746.213 | AP180: 3650381.027 | AQ180: 0 | AR180: 14895014.74 | AS180: 6268318.704 | AT180: 0 | AU180: 7673174.291 | AV180: 0 | AW180: 2609135.032 | AX180: 0 | AY180: 6653946.614 | AZ180: 12096874.94 | BA180: 118698773.4 | BB180: 6855567.851 | BC180: 20772370.59 | BD180: 22378767.25 | BE180: 22602554.92 | BF180: 5707145.117 | BG180: 15851595.56 | BH180: 10188252.78 | BI180: 14700193.3 | BJ180: 5938878.094 | BK180: 20993934.06 | BL180: 13631061.47 | BM180: 48950656.32 | BN180: 13905045.81 | BO180: 12483641.13 | BP180: 154254585.5 | BQ180: 15918202.89 | BR180: 12861907.94 | BS180: 48714476.31 | BT180: 3280108.072 | BU180: 34785546.1 | BV180: 120245853.7 | BW180: 106454206.7 | BX180: 23893055.29 | BY180: 13789706.19 | BZ180: 52228512.21 | CA180: 17583599.11 | CB180: 14207548.08 | CC180: 53811088.36 | CD180: 3623279.95 | CE180: 38424883.87 | CF180: 132826230.5 | CG180: 117591672.1 | CH180: 26392797.51 | CI180: 15232414.57 | CJ180: 57692770.17
A181: 172 | B181: =NPV(#REF!,$G181:$CJ181) ->  | C181: =NPV(#REF!,$G$6:$CJ$6) ->  | G181: 0 | H181: 0 | I181: 0 | J181: 0 | K181: 0 | L181: 0 | M181: 0 | N181: 0 | O181: 0 | P181: 0 | Q181: 0 | R181: 0 | S181: 0 | T181: 6739792.666 | U181: 0 | V181: 0 | W181: 0 | X181: 0 | Y181: 0 | Z181: 0 | AA181: 4864870.185 | AB181: 1986397.705 | AC181: 1013844.073 | AD181: 2069836.874 | AE181: 3169292.595 | AF181: 0 | AG181: 0 | AH181: 1123688.545 | AI181: 9079403.44 | AJ181: 5731373.422 | AK181: 2315474.862 | AL181: 0 | AM181: 0 | AN181: 14313816.4 | AO181: 0 | AP181: 0 | AQ181: 0 | AR181: 4965004.914 | AS181: 1253663.741 | AT181: 1266200.378 | AU181: 0 | AV181: 7749906.034 | AW181: 5218270.063 | AX181: 0 | AY181: 14638682.55 | AZ181: 0 | BA181: 1357538.188 | BB181: 0 | BC181: 4154474.117 | BD181: 1398672.953 | BE181: 0 | BF181: 5707145.117 | BG181: 4323162.426 | BH181: 5821858.734 | BI181: 1470019.33 | BJ181: 4454158.571 | BK181: 22493500.78 | BL181: 19689311.02 | BM181: 7648540.049 | BN181: 179700085.9 | BO181: 0 | BP181: 20488776 | BQ181: 30244585.49 | BR181: 28939292.86 | BS181: 25981054.03 | BT181: 9840324.215 | BU181: 9938727.457 | BV181: 8365095.609 | BW181: 6758997.252 | BX181: 155089084.7 | BY181: 68948530.97 | BZ181: 1740950.407 | CA181: 33408838.31 | CB181: 31966983.18 | CC181: 28699247.13 | CD181: 10869839.85 | CE181: 10978538.25 | CF181: 9240269.691 | CG181: 7466137.911 | CH181: 171314834.3 | CI181: 76162072.83 | CJ181: 1923092.339
A182: 173 | B182: =NPV(#REF!,$G182:$CJ182) ->  | C182: =NPV(#REF!,$G$6:$CJ$6) ->  | G182: 0 | H182: 0 | I182: 0 | J182: 0 | K182: 0 | L182: 0 | M182: 0 | N182: 0 | O182: 0 | P182: 0 | Q182: 0 | R182: 0 | S182: 0 | T182: 0 | U182: 0 | V182: 0 | W182: 0 | X182: 914737.2806 | Y182: 933751.5522 | Z182: 0 | AA182: 2918922.111 | AB182: 0 | AC182: 1013844.073 | AD182: 3104755.31 | AE182: 19015755.57 | AF182: 1078390.464 | AG182: 0 | AH182: 1123688.545 | AI182: 3404776.29 | AJ182: 0 | AK182: 0 | AL182: 0 | AM182: 0 | AN182: 1192818.033 | AO182: 6023731.067 | AP182: 6083968.378 | AQ182: 3686884.837 | AR182: 7447507.371 | AS182: 0 | AT182: 13928204.16 | AU182: 3836587.146 | AV182: 2583302.011 | AW182: 0 | AX182: 0 | AY182: 15969471.87 | AZ182: 13440972.16 | BA182: 8145229.129 | BB182: 0 | BC182: 0 | BD182: 9790710.67 | BE182: 14126596.82 | BF182: 5707145.117 | BG182: 5764216.568 | BH182: 20376505.57 | BI182: 36964510.24 | BJ182: 31395277.25 | BK182: 22493500.78 | BL182: 0 | BM182: 6118832.039 | BN182: 15450050.9 | BO182: 3120910.282 | BP182: 31521193.85 | BQ182: 73687254.41 | BR182: 27331554.37 | BS182: 22733422.28 | BT182: 34441134.75 | BU182: 121403526 | BV182: 214210566.8 | BW182: 106454206.7 | BX182: 5119940.419 | BY182: 36197978.76 | BZ182: 24373305.7 | CA182: 81396571.58 | CB182: 30191039.67 | CC182: 25111841.23 | CD182: 38044439.47 | CE182: 134105020.9 | CF182: 236621731.5 | CG182: 117591672.1 | CH182: 5655599.467 | CI182: 39985088.23 | CJ182: 26923292.74
A183: 174 | B183: =NPV(#REF!,$G183:$CJ183) ->  | C183: =NPV(#REF!,$G$6:$CJ$6) ->  | G183: 0 | H183: 0 | I183: 0 | J183: 0 | K183: 0 | L183: 0 | M183: 0 | N183: 0 | O183: 0 | P183: 0 | Q183: 0 | R183: 0 | S183: 0 | T183: 0 | U183: 0 | V183: 0 | W183: 0 | X183: 2744211.842 | Y183: 933751.5522 | Z183: 0 | AA183: 0 | AB183: 1986397.705 | AC183: 6230674.732 | AD183: 0 | AE183: 0 | AF183: 0 | AG183: 4403226.109 | AH183: 0 | AI183: 2269850.86 | AJ183: 0 | AK183: 1157737.431 | AL183: 0 | AM183: 0 | AN183: 3578454.099 | AO183: 2409492.427 | AP183: 0 | AQ183: 3686884.837 | AR183: 0 | AS183: 0 | AT183: 5064801.512 | AU183: 0 | AV183: 15687869.57 | AW183: 0 | AX183: 17128971.48 | AY183: 9315525.26 | AZ183: 47043402.56 | BA183: 0 | BB183: 98919803.88 | BC183: 22157195.29 | BD183: 6993364.764 | BE183: 22602554.92 | BF183: 14267862.79 | BG183: 7205270.71 | BH183: 5821858.734 | BI183: 0 | BJ183: 32663829.52 | BK183: 10496967.03 | BL183: 16660186.25 | BM183: 21415912.14 | BN183: 18540061.08 | BO183: 54615929.93 | BP183: 9456358.154 | BQ183: 14326382.6 | BR183: 0 | BS183: 9742895.262 | BT183: 6560216.143 | BU183: 34785546.1 | BV183: 109720573.6 | BW183: 23656490.38 | BX183: 101686076.3 | BY183: 25855699.11 | BZ183: 13927603.26 | CA183: 15825239.2 | CB183: 0 | CC183: 10762217.67 | CD183: 7246559.899 | CE183: 38424883.87 | CF183: 121199773.2 | CG183: 26131482.69 | CH183: 112324689.7 | CI183: 28560777.31 | CJ183: 15384738.71
A184: 175 | B184: =NPV(#REF!,$G184:$CJ184) ->  | C184: =NPV(#REF!,$G$6:$CJ$6) ->  | G184: 0 | H184: 0 | I184: 0 | J184: 0 | K184: 0 | L184: 0 | M184: 0 | N184: 0 | O184: 0 | P184: 0 | Q184: 0 | R184: 0 | S184: 825318.523 | T184: 0 | U184: 859986.2492 | V184: 0 | W184: 0 | X184: 0 | Y184: 0 | Z184: 2859483.197 | AA184: 0 | AB184: 0 | AC184: 0 | AD184: 0 | AE184: 0 | AF184: 6470342.782 | AG184: 0 | AH184: 2247377.089 | AI184: 0 | AJ184: 5731373.422 | AK184: 0 | AL184: 5846574.027 | AM184: 2362015.907 | AN184: 0 | AO184: 21685431.84 | AP184: 4867174.702 | AQ184: 1228961.612 | AR184: 6206256.142 | AS184: 1253663.741 | AT184: 0 | AU184: 2557724.764 | AV184: 5166604.023 | AW184: 2609135.032 | AX184: 0 | AY184: 1330789.323 | AZ184: 1344097.216 | BA184: 2715076.376 | BB184: 0 | BC184: 1384824.706 | BD184: 1398672.953 | BE184: 7063298.412 | BF184: 15694649.07 | BG184: 5764216.568 | BH184: 0 | BI184: 48510637.9 | BJ184: 10393036.66 | BK184: 0 | BL184: 0 | BM184: 0 | BN184: 0 | BO184: 224992539.3 | BP184: 6304238.769 | BQ184: 23877304.34 | BR184: 12861907.94 | BS184: 17861974.65 | BT184: 29520972.64 | BU184: 51350091.86 | BV184: 21749248.58 | BW184: 15207743.82 | BX184: 5119940.419 | BY184: 48263971.68 | BZ184: 10445702.44 | CA184: 26375398.67 | CB184: 14207548.08 | CC184: 19730732.4 | CD184: 32609519.55 | CE184: 56722447.61 | CF184: 24024701.2 | CG184: 16798810.3 | CH184: 5655599.467 | CI184: 53313450.98 | CJ184: 11538554.03
A185: 176 | B185: =NPV(#REF!,$G185:$CJ185) ->  | C185: =NPV(#REF!,$G$6:$CJ$6) ->  | G185: 0 | H185: 0 | I185: 0 | J185: 0 | K185: 0 | L185: 0 | M185: 0 | N185: 0 | O185: 0 | P185: 0 | Q185: 0 | R185: 0 | S185: 0 | T185: 0 | U185: 859986.2492 | V185: 5394986.694 | W185: 7168881.62 | X185: 914737.2806 | Y185: 0 | Z185: 2859483.197 | AA185: 6810818.258 | AB185: 1986397.705 | AC185: 0 | AD185: 2069836.874 | AE185: 0 | AF185: 0 | AG185: 0 | AH185: 0 | AI185: 1134925.43 | AJ185: 0 | AK185: 4630949.725 | AL185: 7015888.833 | AM185: 0 | AN185: 0 | AO185: 0 | AP185: 0 | AQ185: 17205462.57 | AR185: 4965004.914 | AS185: 1253663.741 | AT185: 1266200.378 | AU185: 7673174.291 | AV185: 9041557.04 | AW185: 7827405.095 | AX185: 1317613.191 | AY185: 7984735.937 | AZ185: 0 | BA185: 1357538.188 | BB185: 0 | BC185: 0 | BD185: 19581421.34 | BE185: 24015214.6 | BF185: 8560717.675 | BG185: 20174757.99 | BH185: 11643717.47 | BI185: 7350096.651 | BJ185: 34364716.3 | BK185: 0 | BL185: 7572811.93 | BM185: 0 | BN185: 4635015.27 | BO185: 24967282.25 | BP185: 45935196.97 | BQ185: 12734562.31 | BR185: 35370246.83 | BS185: 122495447.6 | BT185: 47561567.04 | BU185: 8282272.881 | BV185: 43498497.17 | BW185: 101384958.8 | BX185: 25599702.09 | BY185: 13789706.19 | BZ185: 15668553.66 | CA185: 14066879.29 | CB185: 39070757.22 | CC185: 135311181.7 | CD185: 52537559.27 | CE185: 9148781.873 | CF185: 48049402.4 | CG185: 111992068.7 | CH185: 28277997.34 | CI185: 15232414.57 | CJ185: 17307831.05
A186: 177 | B186: =NPV(#REF!,$G186:$CJ186) ->  | C186: =NPV(#REF!,$G$6:$CJ$6) ->  | G186: 0 | H186: 0 | I186: 0 | J186: 0 | K186: 0 | L186: 0 | M186: 0 | N186: 0 | O186: 0 | P186: 0 | Q186: 0 | R186: 0 | S186: 0 | T186: 0 | U186: 2579958.748 | V186: 0 | W186: 0 | X186: 0 | Y186: 0 | Z186: 0 | AA186: 0 | AB186: 0 | AC186: 0 | AD186: 1034918.437 | AE186: 0 | AF186: 1078390.464 | AG186: 15411291.38 | AH186: 0 | AI186: 0 | AJ186: 20632944.32 | AK186: 3473212.294 | AL186: 5846574.027 | AM186: 1181007.954 | AN186: 5964090.165 | AO186: 4818984.854 | AP186: 0 | AQ186: 0 | AR186: 0 | AS186: 5014654.963 | AT186: 10129603.02 | AU186: 2557724.764 | AV186: 0 | AW186: 14350242.67 | AX186: 7905679.146 | AY186: 13307893.23 | AZ186: 0 | BA186: 9502767.318 | BB186: 13711135.7 | BC186: 12463422.35 | BD186: 6993364.764 | BE186: 15539256.51 | BF186: 21401794.19 | BG186: 4323162.426 | BH186: 55943381.68 | BI186: 1470019.33 | BJ186: 14847195.24 | BK186: 11996533.75 | BL186: 0 | BM186: 70366568.45 | BN186: 150990216.3 | BO186: 82704122.47 | BP186: 20488776 | BQ186: 313247090.2 | BR186: 6430953.968 | BS186: 24357238.15 | BT186: 14760486.32 | BU186: 29816182.37 | BV186: 71939822.24 | BW186: 42243732.83 | BX186: 29012995.71 | BY186: 32750552.21 | BZ186: 59192313.84 | CA186: 346019666.6 | CB186: 7103774.041 | CC186: 26905544.18 | CD186: 16304759.77 | CE186: 32935614.74 | CF186: 79466319.35 | CG186: 46663361.94 | CH186: 32048396.98 | CI186: 36176984.59 | CJ186: 65385139.52
A187: 178 | B187: =NPV(#REF!,$G187:$CJ187) ->  | C187: =NPV(#REF!,$G$6:$CJ$6) ->  | G187: 0 | H187: 0 | I187: 0 | J187: 0 | K187: 0 | L187: 0 | M187: 0 | N187: 0 | O187: 0 | P187: 0 | Q187: 0 | R187: 0 | S187: 0 | T187: 2527422.25 | U187: 0 | V187: 0 | W187: 0 | X187: 0 | Y187: 0 | Z187: 953161.0657 | AA187: 972974.0369 | AB187: 0 | AC187: 0 | AD187: 2069836.874 | AE187: 0 | AF187: 0 | AG187: 0 | AH187: 0 | AI187: 0 | AJ187: 1146274.684 | AK187: 3473212.294 | AL187: 18709036.89 | AM187: 0 | AN187: 0 | AO187: 0 | AP187: 2433587.351 | AQ187: 0 | AR187: 0 | AS187: 1253663.741 | AT187: 2532400.756 | AU187: 0 | AV187: 5166604.023 | AW187: 5218270.063 | AX187: 46116461.68 | AY187: 7984735.937 | AZ187: 13440972.16 | BA187: 2715076.376 | BB187: 10968908.56 | BC187: 26311669.41 | BD187: 20980094.29 | BE187: 7063298.412 | BF187: 2853572.558 | BG187: 11528433.14 | BH187: 0 | BI187: 7350096.651 | BJ187: 25456399.15 | BK187: 0 | BL187: 39378622.04 | BM187: 7648540.049 | BN187: 23175076.35 | BO187: 25194476.21 | BP187: 18912716.31 | BQ187: 20693663.76 | BR187: 6430953.968 | BS187: 9742895.262 | BT187: 1640054.036 | BU187: 36683171.64 | BV187: 31787363.32 | BW187: 27035989.01 | BX187: 20479761.67 | BY187: 81014523.89 | BZ187: 110186821.9 | CA187: 22858678.84 | CB187: 7103774.041 | CC187: 10762217.67 | CD187: 1811639.975 | CE187: 40521043.02 | CF187: 35113024.83 | CG187: 29864551.64 | CH187: 22622397.87 | CI187: 89490435.57 | CJ187: 121714801.3
A188: 179 | B188: =NPV(#REF!,$G188:$CJ188) ->  | C188: =NPV(#REF!,$G$6:$CJ$6) ->  | G188: 0 | H188: 0 | I188: 0 | J188: 0 | K188: 0 | L188: 0 | M188: 0 | N188: 0 | O188: 0 | P188: 0 | Q188: 0 | R188: 0 | S188: 0 | T188: 3369896.333 | U188: 859986.2492 | V188: 0 | W188: 0 | X188: 0 | Y188: 933751.5522 | Z188: 0 | AA188: 0 | AB188: 0 | AC188: 0 | AD188: 1034918.437 | AE188: 3169292.595 | AF188: 2156780.927 | AG188: 0 | AH188: 1123688.545 | AI188: 1134925.43 | AJ188: 0 | AK188: 2315474.862 | AL188: 0 | AM188: 9448063.628 | AN188: 0 | AO188: 4818984.854 | AP188: 0 | AQ188: 0 | AR188: 0 | AS188: 0 | AT188: 8863402.647 | AU188: 1278862.382 | AV188: 19374765.09 | AW188: 15654810.19 | AX188: 3952839.573 | AY188: 21292629.17 | AZ188: 8064583.296 | BA188: 10860305.51 | BB188: 4113340.71 | BC188: 11078597.65 | BD188: 15385402.48 | BE188: 25633550.01 | BF188: 5707145.117 | BG188: 20174757.99 | BH188: 26198364.3 | BI188: 5880077.321 | BJ188: 35633268.57 | BK188: 180660464.6 | BL188: 6058249.544 | BM188: 52010072.34 | BN188: 9270030.54 | BO188: 32769557.96 | BP188: 17336656.61 | BQ188: 25469124.63 | BR188: 6430953.968 | BS188: 50338292.19 | BT188: 44281458.97 | BU188: 9938727.457 | BV188: 6692076.488 | BW188: 27035989.01 | BX188: 42666170.16 | BY188: 22408272.57 | BZ188: 27855206.51 | CA188: 28133758.58 | CB188: 7103774.041 | CC188: 55604791.31 | CD188: 48914279.32 | CE188: 10978538.25 | CF188: 7392215.753 | CG188: 29864551.64 | CH188: 47129995.56 | CI188: 24752673.67 | CJ188: 30769477.42
A189: 180 | B189: =NPV(#REF!,$G189:$CJ189) ->  | C189: =NPV(#REF!,$G$6:$CJ$6) ->  | G189: 0 | H189: 0 | I189: 0 | J189: 0 | K189: 0 | L189: 0 | M189: 0 | N189: 0 | O189: 0 | P189: 0 | Q189: 0 | R189: 0 | S189: 0 | T189: 0 | U189: 0 | V189: 877862.4334 | W189: 896110.2025 | X189: 914737.2806 | Y189: 933751.5522 | Z189: 0 | AA189: 4864870.185 | AB189: 3972795.409 | AC189: 1013844.073 | AD189: 0 | AE189: 2112861.73 | AF189: 0 | AG189: 0 | AH189: 8989508.357 | AI189: 1134925.43 | AJ189: 1146274.684 | AK189: 0 | AL189: 5846574.027 | AM189: 0 | AN189: 16699452.46 | AO189: 1204746.213 | AP189: 0 | AQ189: 2457923.225 | AR189: 1241251.228 | AS189: 0 | AT189: 1266200.378 | AU189: 0 | AV189: 69749154.31 | AW189: 5218270.063 | AX189: 0 | AY189: 6653946.614 | AZ189: 99658887.38 | BA189: 19005534.64 | BB189: 10968908.56 | BC189: 6924123.529 | BD189: 6993364.764 | BE189: 31284188.74 | BF189: 31389298.14 | BG189: 15851595.56 | BH189: 1455464.683 | BI189: 23520309.28 | BJ189: 4454158.571 | BK189: 0 | BL189: 10601936.7 | BM189: 1529708.01 | BN189: 6180020.36 | BO189: 22073565.93 | BP189: 19142182.2 | BQ189: 19101843.47 | BR189: 3215476.984 | BS189: 34100133.42 | BT189: 22960756.5 | BU189: 245009332.8 | BV189: 21749248.58 | BW189: 18587242.44 | BX189: 103392723.1 | BY189: 5171139.823 | BZ189: 24373305.7 | CA189: 21100318.93 | CB189: 3551887.02 | CC189: 37667761.85 | CD189: 25362959.65 | CE189: 270642729.9 | CF189: 24024701.2 | CG189: 20531879.25 | CH189: 114209889.5 | CI189: 5712155.462 | CJ189: 26923292.74
A190: 181 | B190: =NPV(#REF!,$G190:$CJ190) ->  | C190: =NPV(#REF!,$G$6:$CJ$6) ->  | G190: 0 | H190: 0 | I190: 0 | J190: 0 | K190: 0 | L190: 0 | M190: 0 | N190: 0 | O190: 0 | P190: 0 | Q190: 0 | R190: 0 | S190: 0 | T190: 2527422.25 | U190: 0 | V190: 0 | W190: 0 | X190: 0 | Y190: 0 | Z190: 2859483.197 | AA190: 0 | AB190: 1986397.705 | AC190: 2027688.145 | AD190: 1034918.437 | AE190: 0 | AF190: 1078390.464 | AG190: 13369949.89 | AH190: 1123688.545 | AI190: 0 | AJ190: 12609021.53 | AK190: 10419636.88 | AL190: 2338629.611 | AM190: 2362015.907 | AN190: 9542544.265 | AO190: 4818984.854 | AP190: 0 | AQ190: 0 | AR190: 0 | AS190: 0 | AT190: 1266200.378 | AU190: 0 | AV190: 1291651.006 | AW190: 3913702.547 | AX190: 3952839.573 | AY190: 2661578.646 | AZ190: 0 | BA190: 1357538.188 | BB190: 0 | BC190: 6924123.529 | BD190: 2797345.906 | BE190: 24015214.6 | BF190: 7133931.396 | BG190: 18733703.85 | BH190: 0 | BI190: 19110251.29 | BJ190: 22270792.85 | BK190: 14995667.19 | BL190: 16660186.25 | BM190: 13767372.09 | BN190: 20085066.17 | BO190: 0 | BP190: 15990062.82 | BQ190: 9550921.735 | BR190: 3215476.984 | BS190: 42219212.8 | BT190: 6560216.143 | BU190: 34785546.1 | BV190: 82465102.32 | BW190: 52382228.71 | BX190: 8533234.031 | BY190: 48263971.68 | BZ190: 20891404.88 | CA190: 10550159.47 | CB190: 3551887.02 | CC190: 46636276.58 | CD190: 7246559.899 | CE190: 38424883.87 | CF190: 91092776.59 | CG190: 57862568.81 | CH190: 9425999.112 | CI190: 53313450.98 | CJ190: 23077108.07
A191: 182 | B191: =NPV(#REF!,$G191:$CJ191) ->  | C191: =NPV(#REF!,$G$6:$CJ$6) ->  | G191: 0 | H191: 0 | I191: 0 | J191: 0 | K191: 0 | L191: 0 | M191: 0 | N191: 0 | O191: 0 | P191: 0 | Q191: 0 | R191: 0 | S191: 0 | T191: 2527422.25 | U191: 0 | V191: 0 | W191: 0 | X191: 914737.2806 | Y191: 0 | Z191: 0 | AA191: 0 | AB191: 0 | AC191: 3041532.218 | AD191: 0 | AE191: 2112861.73 | AF191: 2156780.927 | AG191: 2201613.055 | AH191: 0 | AI191: 0 | AJ191: 5731373.422 | AK191: 3473212.294 | AL191: 10523833.25 | AM191: 0 | AN191: 20277906.56 | AO191: 1204746.213 | AP191: 0 | AQ191: 1228961.612 | AR191: 0 | AS191: 2507327.481 | AT191: 0 | AU191: 6394311.909 | AV191: 7749906.034 | AW191: 0 | AX191: 2635226.382 | AY191: 2661578.646 | AZ191: 96970692.95 | BA191: 16290458.26 | BB191: 4113340.71 | BC191: 13848247.06 | BD191: 11189383.62 | BE191: 5650638.73 | BF191: 7133931.396 | BG191: 0 | BH191: 7277323.417 | BI191: 5880077.321 | BJ191: 5938878.094 | BK191: 11996533.75 | BL191: 16660186.25 | BM191: 70366568.45 | BN191: 4635015.27 | BO191: 4681365.423 | BP191: 18912716.31 | BQ191: 9550921.735 | BR191: 9646430.952 | BS191: 21109606.4 | BT191: 13120432.29 | BU191: 4969363.728 | BV191: 11711133.85 | BW191: 11828245.19 | BX191: 63145931.83 | BY191: 86185663.71 | BZ191: 24626778.8 | CA191: 10550159.47 | CB191: 10655661.06 | CC191: 23318138.29 | CD191: 14493119.8 | CE191: 5489269.124 | CF191: 12936377.57 | CG191: 13065741.34 | CH191: 69752393.43 | CI191: 95202591.03 | CJ191: 27203284.74
A192: 183 | B192: =NPV(#REF!,$G192:$CJ192) ->  | C192: =NPV(#REF!,$G$6:$CJ$6) ->  | G192: 0 | H192: 0 | I192: 0 | J192: 0 | K192: 0 | L192: 0 | M192: 0 | N192: 0 | O192: 0 | P192: 0 | Q192: 0 | R192: 0 | S192: 0 | T192: 0 | U192: 0 | V192: 0 | W192: 0 | X192: 0 | Y192: 0 | Z192: 0 | AA192: 0 | AB192: 0 | AC192: 0 | AD192: 0 | AE192: 2112861.73 | AF192: 0 | AG192: 0 | AH192: 0 | AI192: 12484179.73 | AJ192: 12609021.53 | AK192: 2315474.862 | AL192: 7015888.833 | AM192: 7086047.721 | AN192: 2385636.066 | AO192: 0 | AP192: 0 | AQ192: 2457923.225 | AR192: 9930009.827 | AS192: 7521982.444 | AT192: 1266200.378 | AU192: 0 | AV192: 1291651.006 | AW192: 3913702.547 | AX192: 0 | AY192: 13307893.23 | AZ192: 13440972.16 | BA192: 6787690.941 | BB192: 1371113.57 | BC192: 6924123.529 | BD192: 8392037.717 | BE192: 22602554.92 | BF192: 31389298.14 | BG192: 14410541.42 | BH192: 4366394.05 | BI192: 0 | BJ192: 5938878.094 | BK192: 14995667.19 | BL192: 4543687.158 | BM192: 3059416.02 | BN192: 4635015.27 | BO192: 26527737.39 | BP192: 11032417.85 | BQ192: 19101843.47 | BR192: 33762508.33 | BS192: 24357238.15 | BT192: 32801080.72 | BU192: 13492807.57 | BV192: 26768305.95 | BW192: 30415487.64 | BX192: 47786110.57 | BY192: 48263971.68 | BZ192: 1740950.407 | CA192: 21100318.93 | CB192: 37294813.71 | CC192: 26905544.18 | CD192: 36232799.5 | CE192: 14904453.78 | CF192: 29568863.01 | CG192: 33597620.6 | CH192: 52785595.03 | CI192: 53313450.98 | CJ192: 1923092.339
A193: 184 | B193: =NPV(#REF!,$G193:$CJ193) ->  | C193: =NPV(#REF!,$G$6:$CJ$6) ->  | G193: 0 | H193: 0 | I193: 0 | J193: 0 | K193: 0 | L193: 0 | M193: 0 | N193: 0 | O193: 0 | P193: 0 | Q193: 0 | R193: 0 | S193: 0 | T193: 0 | U193: 0 | V193: 877862.4334 | W193: 0 | X193: 0 | Y193: 0 | Z193: 0 | AA193: 0 | AB193: 993198.8523 | AC193: 0 | AD193: 0 | AE193: 0 | AF193: 1078390.464 | AG193: 0 | AH193: 0 | AI193: 10214328.87 | AJ193: 2292549.369 | AK193: 9261899.449 | AL193: 0 | AM193: 0 | AN193: 0 | AO193: 30294059.97 | AP193: 3650381.027 | AQ193: 3686884.837 | AR193: 0 | AS193: 1253663.741 | AT193: 5064801.512 | AU193: 2557724.764 | AV193: 14208161.06 | AW193: 0 | AX193: 0 | AY193: 65596188.49 | AZ193: 1344097.216 | BA193: 16290458.26 | BB193: 5484454.28 | BC193: 2769649.412 | BD193: 0 | BE193: 11301277.46 | BF193: 28535725.58 | BG193: 0 | BH193: 71741585.3 | BI193: 1470019.33 | BJ193: 16331914.76 | BK193: 47986135 | BL193: 3029124.772 | BM193: 16826788.11 | BN193: 179700085.9 | BO193: 23406827.11 | BP193: 44129671.38 | BQ193: 4775460.868 | BR193: 3215476.984 | BS193: 17861974.65 | BT193: 32801080.72 | BU193: 80233332.54 | BV193: 21749248.58 | BW193: 109833705.4 | BX193: 25599702.09 | BY193: 239193311.2 | BZ193: 53969462.62 | CA193: 5275079.733 | CB193: 3551887.02 | CC193: 19730732.4 | CD193: 36232799.5 | CE193: 88627514.32 | CF193: 24024701.2 | CG193: 121324741 | CH193: 28277997.34 | CI193: 264218223.8 | CJ193: 59615862.5
A194: 185 | B194: =NPV(#REF!,$G194:$CJ194) ->  | C194: =NPV(#REF!,$G$6:$CJ$6) ->  | G194: 0 | H194: 0 | I194: 0 | J194: 0 | K194: 0 | L194: 0 | M194: 0 | N194: 0 | O194: 0 | P194: 0 | Q194: 0 | R194: 0 | S194: 0 | T194: 2527422.25 | U194: 1719972.498 | V194: 0 | W194: 0 | X194: 2744211.842 | Y194: 0 | Z194: 0 | AA194: 972974.0369 | AB194: 2979596.557 | AC194: 4055376.29 | AD194: 0 | AE194: 0 | AF194: 0 | AG194: 12108871.8 | AH194: 0 | AI194: 0 | AJ194: 0 | AK194: 6946424.587 | AL194: 5846574.027 | AM194: 2362015.907 | AN194: 9542544.265 | AO194: 1204746.213 | AP194: 4867174.702 | AQ194: 0 | AR194: 0 | AS194: 0 | AT194: 0 | AU194: 0 | AV194: 0 | AW194: 5218270.063 | AX194: 17128971.48 | AY194: 9315525.26 | AZ194: 1344097.216 | BA194: 6787690.941 | BB194: 16453362.84 | BC194: 2769649.412 | BD194: 11189383.62 | BE194: 5650638.73 | BF194: 5707145.117 | BG194: 8646324.852 | BH194: 27653828.99 | BI194: 16170212.63 | BJ194: 5938878.094 | BK194: 14995667.19 | BL194: 10601936.7 | BM194: 13767372.09 | BN194: 13905045.81 | BO194: 73341391.62 | BP194: 31521193.85 | BQ194: 55713710.12 | BR194: 33996586.49 | BS194: 71447898.59 | BT194: 24600810.54 | BU194: 13251636.61 | BV194: 25095286.83 | BW194: 18587242.44 | BX194: 20479761.67 | BY194: 13789706.19 | BZ194: 22632355.29 | CA194: 61542596.89 | CB194: 37553381.63 | CC194: 78922929.59 | CD194: 27174599.62 | CE194: 14638051 | CF194: 27720809.07 | CG194: 20531879.25 | CH194: 22622397.87 | CI194: 15232414.57 | CJ194: 25000200.41
A195: 186 | B195: =NPV(#REF!,$G195:$CJ195) ->  | C195: =NPV(#REF!,$G$6:$CJ$6) ->  | G195: 0 | H195: 0 | I195: 0 | J195: 0 | K195: 0 | L195: 0 | M195: 0 | N195: 0 | O195: 0 | P195: 0 | Q195: 0 | R195: 0 | S195: 0 | T195: 842474.0833 | U195: 0 | V195: 0 | W195: 0 | X195: 0 | Y195: 2801254.657 | Z195: 953161.0657 | AA195: 0 | AB195: 0 | AC195: 0 | AD195: 0 | AE195: 0 | AF195: 0 | AG195: 0 | AH195: 0 | AI195: 0 | AJ195: 0 | AK195: 9261899.449 | AL195: 5846574.027 | AM195: 0 | AN195: 0 | AO195: 0 | AP195: 1216793.676 | AQ195: 0 | AR195: 14895014.74 | AS195: 1253663.741 | AT195: 12662003.78 | AU195: 71616293.39 | AV195: 5166604.023 | AW195: 0 | AX195: 6588065.955 | AY195: 65596188.49 | AZ195: 43011110.91 | BA195: 16290458.26 | BB195: 8226681.421 | BC195: 6924123.529 | BD195: 6993364.764 | BE195: 24220890.32 | BF195: 2853572.558 | BG195: 7205270.71 | BH195: 55943381.68 | BI195: 20580270.62 | BJ195: 54934622.37 | BK195: 52484835.16 | BL195: 46951433.97 | BM195: 6118832.039 | BN195: 6180020.36 | BO195: 22073565.93 | BP195: 44129671.38 | BQ195: 35020046.36 | BR195: 48232154.76 | BS195: 38971581.05 | BT195: 18040594.39 | BU195: 29816182.37 | BV195: 33460382.44 | BW195: 328465304.6 | BX195: 66559225.44 | BY195: 248313804.5 | BZ195: 15668553.66 | CA195: 38683918.04 | CB195: 53278305.31 | CC195: 43048870.69 | CD195: 19928039.72 | CE195: 32935614.74 | CF195: 36961078.77 | CG195: 362830042.9 | CH195: 73522793.07 | CI195: 274292922.5 | CJ195: 17307831.05
A196: 187 | B196: =NPV(#REF!,$G196:$CJ196) ->  | C196: =NPV(#REF!,$G$6:$CJ$6) ->  | G196: 0 | H196: 0 | I196: 0 | J196: 0 | K196: 0 | L196: 0 | M196: 0 | N196: 0 | O196: 0 | P196: 0 | Q196: 0 | R196: 0 | S196: 0 | T196: 0 | U196: 0 | V196: 0 | W196: 0 | X196: 0 | Y196: 933751.5522 | Z196: 0 | AA196: 0 | AB196: 2979596.557 | AC196: 0 | AD196: 6209510.621 | AE196: 0 | AF196: 1078390.464 | AG196: 0 | AH196: 0 | AI196: 6809552.58 | AJ196: 0 | AK196: 0 | AL196: 1169314.805 | AM196: 0 | AN196: 0 | AO196: 0 | AP196: 0 | AQ196: 1228961.612 | AR196: 13653763.51 | AS196: 0 | AT196: 0 | AU196: 16625210.96 | AV196: 0 | AW196: 3913702.547 | AX196: 3952839.573 | AY196: 11977103.91 | AZ196: 1344097.216 | BA196: 8145229.129 | BB196: 5484454.28 | BC196: 18002721.18 | BD196: 15385402.48 | BE196: 2825319.365 | BF196: 7133931.396 | BG196: 18733703.85 | BH196: 1455464.683 | BI196: 1470019.33 | BJ196: 32663829.52 | BK196: 11996533.75 | BL196: 19689311.02 | BM196: 7648540.049 | BN196: 4635015.27 | BO196: 12483641.13 | BP196: 37825432.61 | BQ196: 51170009.81 | BR196: 9646430.952 | BS196: 3247631.754 | BT196: 6560216.143 | BU196: 29816182.37 | BV196: 5019057.366 | BW196: 25346239.7 | BX196: 48034589.26 | BY196: 17237132.74 | BZ196: 13927603.26 | CA196: 56523524.99 | CB196: 10655661.06 | CC196: 3587405.891 | CD196: 7246559.899 | CE196: 32935614.74 | CF196: 5544161.815 | CG196: 27998017.16 | CH196: 53060070.08 | CI196: 19040518.21 | CJ196: 15384738.71
A197: 188 | B197: =NPV(#REF!,$G197:$CJ197) ->  | C197: =NPV(#REF!,$G$6:$CJ$6) ->  | G197: 0 | H197: 0 | I197: 0 | J197: 0 | K197: 0 | L197: 0 | M197: 0 | N197: 0 | O197: 0 | P197: 0 | Q197: 0 | R197: 0 | S197: 0 | T197: 842474.0833 | U197: 0 | V197: 0 | W197: 0 | X197: 0 | Y197: 1867503.104 | Z197: 0 | AA197: 0 | AB197: 993198.8523 | AC197: 1013844.073 | AD197: 0 | AE197: 1056430.865 | AF197: 1078390.464 | AG197: 1100806.527 | AH197: 0 | AI197: 0 | AJ197: 0 | AK197: 0 | AL197: 0 | AM197: 0 | AN197: 4771272.132 | AO197: 25299670.48 | AP197: 0 | AQ197: 1228961.612 | AR197: 4965004.914 | AS197: 2507327.481 | AT197: 1266200.378 | AU197: 1278862.382 | AV197: 14208161.06 | AW197: 9131972.61 | AX197: 0 | AY197: 5323157.291 | AZ197: 8064583.296 | BA197: 12217843.69 | BB197: 10968908.56 | BC197: 6924123.529 | BD197: 9790710.67 | BE197: 2825319.365 | BF197: 49133930.94 | BG197: 17292649.7 | BH197: 20376505.57 | BI197: 16170212.63 | BJ197: 14847195.24 | BK197: 180660464.6 | BL197: 10601936.7 | BM197: 0 | BN197: 12360040.72 | BO197: 4681365.423 | BP197: 3152119.385 | BQ197: 17510023.18 | BR197: 49839893.25 | BS197: 12990527.02 | BT197: 9840324.215 | BU197: 121403526 | BV197: 5019057.366 | BW197: 21966741.07 | BX197: 23893055.29 | BY197: 13789706.19 | BZ197: 226863860.4 | CA197: 19341959.02 | CB197: 55054248.82 | CC197: 14349623.56 | CD197: 10869839.85 | CE197: 134105020.9 | CF197: 5544161.815 | CG197: 24264948.21 | CH197: 26392797.51 | CI197: 15232414.57 | CJ197: 250598839.7
A198: 189 | B198: =NPV(#REF!,$G198:$CJ198) ->  | C198: =NPV(#REF!,$G$6:$CJ$6) ->  | G198: 0 | H198: 0 | I198: 0 | J198: 0 | K198: 0 | L198: 0 | M198: 0 | N198: 0 | O198: 0 | P198: 0 | Q198: 0 | R198: 0 | S198: 0 | T198: 0 | U198: 3439944.997 | V198: 0 | W198: 3584440.81 | X198: 0 | Y198: 0 | Z198: 3812644.263 | AA198: 0 | AB198: 0 | AC198: 1013844.073 | AD198: 6209510.621 | AE198: 1056430.865 | AF198: 0 | AG198: 0 | AH198: 0 | AI198: 0 | AJ198: 3438824.053 | AK198: 1157737.431 | AL198: 1169314.805 | AM198: 1181007.954 | AN198: 2385636.066 | AO198: 0 | AP198: 3650381.027 | AQ198: 3686884.837 | AR198: 1241251.228 | AS198: 3760991.222 | AT198: 8863402.647 | AU198: 2557724.764 | AV198: 1291651.006 | AW198: 6522837.579 | AX198: 3952839.573 | AY198: 6653946.614 | AZ198: 9408680.512 | BA198: 2715076.376 | BB198: 1371113.57 | BC198: 1384824.706 | BD198: 0 | BE198: 14126596.82 | BF198: 5707145.117 | BG198: 8646324.852 | BH198: 1455464.683 | BI198: 7350096.651 | BJ198: 25240231.9 | BK198: 13496100.47 | BL198: 4543687.158 | BM198: 7648540.049 | BN198: 12360040.72 | BO198: 15604551.41 | BP198: 4728179.077 | BQ198: 35020046.36 | BR198: 180331597.9 | BS198: 9742895.262 | BT198: 88562917.93 | BU198: 229377728.7 | BV198: 120002271 | BW198: 23656490.38 | BX198: 5119940.419 | BY198: 24131985.84 | BZ198: 6963801.628 | CA198: 38683918.04 | CB198: 199198272.9 | CC198: 10762217.67 | CD198: 97828558.64 | CE198: 253375714.2 | CF198: 132557163.7 | CG198: 26131482.69 | CH198: 5655599.467 | CI198: 26656725.49 | CJ198: 7692369.355
A199: 190 | B199: =NPV(#REF!,$G199:$CJ199) ->  | C199: =NPV(#REF!,$G$6:$CJ$6) ->  | G199: 0 | H199: 0 | I199: 0 | J199: 0 | K199: 0 | L199: 0 | M199: 0 | N199: 0 | O199: 0 | P199: 0 | Q199: 0 | R199: 0 | S199: 0 | T199: 0 | U199: 0 | V199: 2633587.3 | W199: 0 | X199: 0 | Y199: 933751.5522 | Z199: 0 | AA199: 972974.0369 | AB199: 0 | AC199: 1013844.073 | AD199: 0 | AE199: 0 | AF199: 1078390.464 | AG199: 2201613.055 | AH199: 3371065.634 | AI199: 9079403.44 | AJ199: 1146274.684 | AK199: 0 | AL199: 1169314.805 | AM199: 0 | AN199: 14313816.4 | AO199: 1204746.213 | AP199: 6083968.378 | AQ199: 0 | AR199: 1241251.228 | AS199: 11465500.43 | AT199: 5064801.512 | AU199: 12788623.82 | AV199: 3874953.017 | AW199: 5218270.063 | AX199: 17128971.48 | AY199: 6653946.614 | AZ199: 8064583.296 | BA199: 17647996.45 | BB199: 1371113.57 | BC199: 0 | BD199: 8392037.717 | BE199: 5650638.73 | BF199: 41792267.06 | BG199: 4323162.426 | BH199: 17465576.2 | BI199: 0 | BJ199: 5938878.094 | BK199: 46704897.21 | BL199: 18174748.63 | BM199: 0 | BN199: 1545005.09 | BO199: 10923185.99 | BP199: 28369074.46 | BQ199: 19101843.47 | BR199: 16077384.92 | BS199: 47327079.37 | BT199: 3280108.072 | BU199: 13251636.61 | BV199: 3346038.244 | BW199: 6758997.252 | BX199: 3413293.612 | BY199: 49987684.95 | BZ199: 20891404.88 | CA199: 21100318.93 | CB199: 17759435.1 | CC199: 52278539.01 | CD199: 3623279.95 | CE199: 14638051 | CF199: 3696107.877 | CG199: 7466137.911 | CH199: 3770399.645 | CI199: 55217502.8 | CJ199: 23077108.07
A200: 191 | B200: =NPV(#REF!,$G200:$CJ200) ->  | C200: =NPV(#REF!,$G$6:$CJ$6) ->  | G200: 0 | H200: 0 | I200: 0 | J200: 0 | K200: 0 | L200: 0 | M200: 0 | N200: 0 | O200: 0 | P200: 0 | Q200: 0 | R200: 0 | S200: 0 | T200: 842474.0833 | U200: 0 | V200: 0 | W200: 0 | X200: 6403160.965 | Y200: 2801254.657 | Z200: 0 | AA200: 972974.0369 | AB200: 0 | AC200: 0 | AD200: 0 | AE200: 0 | AF200: 3235171.391 | AG200: 2201613.055 | AH200: 0 | AI200: 3404776.29 | AJ200: 4585098.737 | AK200: 4630949.725 | AL200: 1169314.805 | AM200: 0 | AN200: 0 | AO200: 0 | AP200: 1216793.676 | AQ200: 0 | AR200: 0 | AS200: 5014654.963 | AT200: 1266200.378 | AU200: 0 | AV200: 7749906.034 | AW200: 5218270.063 | AX200: 3952839.573 | AY200: 1330789.323 | AZ200: 24193749.89 | BA200: 0 | BB200: 1371113.57 | BC200: 22157195.29 | BD200: 6993364.764 | BE200: 2825319.365 | BF200: 1426786.279 | BG200: 15851595.56 | BH200: 27653828.99 | BI200: 4410057.991 | BJ200: 23971679.63 | BK200: 11996533.75 | BL200: 7572811.93 | BM200: 10707956.07 | BN200: 33990111.98 | BO200: 18725461.69 | BP200: 28369074.46 | BQ200: 38203686.94 | BR200: 51447631.75 | BS200: 1623815.877 | BT200: 75442485.65 | BU200: 53006546.44 | BV200: 21749248.58 | BW200: 27035989.01 | BX200: 29012995.71 | BY200: 38172655.5 | BZ200: 40295332.47 | CA200: 42200637.87 | CB200: 56830192.33 | CC200: 1793702.945 | CD200: 83335438.84 | CE200: 58552203.98 | CF200: 24024701.2 | CG200: 29864551.64 | CH200: 32048396.98 | CI200: 42166359.86 | CJ200: 44511115.79
A201: 192 | B201: =NPV(#REF!,$G201:$CJ201) ->  | C201: =NPV(#REF!,$G$6:$CJ$6) ->  | G201: 0 | H201: 0 | I201: 0 | J201: 0 | K201: 0 | L201: 0 | M201: 0 | N201: 0 | O201: 0 | P201: 0 | Q201: 0 | R201: 0 | S201: 0 | T201: 842474.0833 | U201: 0 | V201: 0 | W201: 896110.2025 | X201: 6403160.965 | Y201: 0 | Z201: 0 | AA201: 0 | AB201: 3972795.409 | AC201: 6230674.732 | AD201: 0 | AE201: 0 | AF201: 0 | AG201: 0 | AH201: 4494754.178 | AI201: 3404776.29 | AJ201: 0 | AK201: 2315474.862 | AL201: 0 | AM201: 1181007.954 | AN201: 9542544.265 | AO201: 7228477.28 | AP201: 1216793.676 | AQ201: 2457923.225 | AR201: 0 | AS201: 7521982.444 | AT201: 7597202.269 | AU201: 5115449.528 | AV201: 3874953.017 | AW201: 0 | AX201: 3952839.573 | AY201: 10646314.58 | AZ201: 1344097.216 | BA201: 1357538.188 | BB201: 0 | BC201: 1384824.706 | BD201: 43358861.54 | BE201: 25427874.28 | BF201: 18548221.63 | BG201: 8646324.852 | BH201: 24742899.62 | BI201: 20580270.62 | BJ201: 5938878.094 | BK201: 14995667.19 | BL201: 1514562.386 | BM201: 13767372.09 | BN201: 46350152.7 | BO201: 224992539.3 | BP201: 18912716.31 | BQ201: 22285484.05 | BR201: 25723815.87 | BS201: 9742895.262 | BT201: 42641404.93 | BU201: 24846818.64 | BV201: 5019057.366 | BW201: 38864234.2 | BX201: 63145931.83 | BY201: 24131985.84 | BZ201: 58211782.75 | CA201: 24617038.76 | CB201: 28415096.16 | CC201: 10762217.67 | CD201: 47102639.34 | CE201: 27446345.62 | CF201: 5544161.815 | CG201: 42930292.99 | CH201: 69752393.43 | CI201: 26656725.49 | CJ201: 64302023.18
A202: 193 | B202: =NPV(#REF!,$G202:$CJ202) ->  | C202: =NPV(#REF!,$G$6:$CJ$6) ->  | G202: 0 | H202: 0 | I202: 0 | J202: 0 | K202: 0 | L202: 0 | M202: 0 | N202: 0 | O202: 0 | P202: 0 | Q202: 0 | R202: 0 | S202: 0 | T202: 0 | U202: 859986.2492 | V202: 0 | W202: 0 | X202: 2744211.842 | Y202: 3735006.209 | Z202: 0 | AA202: 972974.0369 | AB202: 993198.8523 | AC202: 0 | AD202: 0 | AE202: 3169292.595 | AF202: 0 | AG202: 3302419.582 | AH202: 1123688.545 | AI202: 0 | AJ202: 0 | AK202: 1157737.431 | AL202: 22216981.3 | AM202: 0 | AN202: 14313816.4 | AO202: 1204746.213 | AP202: 1216793.676 | AQ202: 4915846.449 | AR202: 0 | AS202: 0 | AT202: 0 | AU202: 1278862.382 | AV202: 14208161.06 | AW202: 16959377.71 | AX202: 17128971.48 | AY202: 1330789.323 | AZ202: 0 | BA202: 1357538.188 | BB202: 16453362.84 | BC202: 5539298.823 | BD202: 6993364.764 | BE202: 11301277.46 | BF202: 15694649.07 | BG202: 18733703.85 | BH202: 17465576.2 | BI202: 2940038.661 | BJ202: 20786073.33 | BK202: 14995667.19 | BL202: 13631061.47 | BM202: 12237664.08 | BN202: 50985167.97 | BO202: 1560455.141 | BP202: 4728179.077 | BQ202: 9550921.735 | BR202: 28939292.86 | BS202: 38971581.05 | BT202: 13120432.29 | BU202: 16564545.76 | BV202: 21749248.58 | BW202: 42243732.83 | BX202: 103392723.1 | BY202: 12065992.92 | BZ202: 19150454.48 | CA202: 10550159.47 | CB202: 31966983.18 | CC202: 43048870.69 | CD202: 14493119.8 | CE202: 18297563.75 | CF202: 24024701.2 | CG202: 46663361.94 | CH202: 114209889.5 | CI202: 13328362.74 | CJ202: 21154015.73
A203: 194 | B203: =NPV(#REF!,$G203:$CJ203) ->  | C203: =NPV(#REF!,$G$6:$CJ$6) ->  | D203: =B203-C203 ->  | E203: =B203/C203 ->  | G203: 0 | H203: 0 | I203: 0 | J203: 0 | K203: 0 | L203: 0 | M203: 0 | N203: 0 | O203: 0 | P203: 0 | Q203: 0 | R203: 0 | S203: 0 | T203: 0 | U203: 2579958.748 | V203: 1755724.867 | W203: 3584440.81 | X203: 0 | Y203: 0 | Z203: 0 | AA203: 0 | AB203: 0 | AC203: 1013844.073 | AD203: 0 | AE203: 0 | AF203: 0 | AG203: 5504032.636 | AH203: 0 | AI203: 3404776.29 | AJ203: 6877648.106 | AK203: 2315474.862 | AL203: 0 | AM203: 3543023.861 | AN203: 0 | AO203: 4818984.854 | AP203: 0 | AQ203: 27037155.47 | AR203: 1241251.228 | AS203: 1253663.741 | AT203: 7597202.269 | AU203: 2557724.764 | AV203: 3874953.017 | AW203: 3913702.547 | AX203: 40846008.92 | AY203: 14638682.55 | AZ203: 4032291.648 | BA203: 14932920.07 | BB203: 17824476.41 | BC203: 75183780.31 | BD203: 18182748.39 | BE203: 53681067.93 | BF203: 8560717.675 | BG203: 47554786.69 | BH203: 70286120.61 | BI203: 10290135.31 | BJ203: 7423597.618 | BK203: 16495233.91 | BL203: 9087374.316 | BM203: 12237664.08 | BN203: 38625127.25 | BO203: 24967282.25 | BP203: 19142182.2 | BQ203: 20693663.76 | BR203: 3215476.984 | BS203: 6495263.508 | BT203: 3280108.072 | BU203: 57975910.16 | BV203: 0 | BW203: 13517994.5 | BX203: 27306348.9 | BY203: 12065992.92 | BZ203: 40041859.36 | CA203: 22858678.84 | CB203: 3551887.02 | CC203: 7174811.781 | CD203: 3623279.95 | CE203: 64041473.11 | CF203: 0 | CG203: 14932275.82 | CH203: 30163197.16 | CI203: 13328362.74 | CJ203: 44231123.79
... 359 more rows

Sheet Overview
A1: Quick Start:
A2: 1) Follow instructions in Weather Data sheet to retrieve and paste in relevant high temperature data into the file.
A3: 2) Go to the User Selections sheet and fill in blue shaded boxes.
A4: 3) Go to the Results sheet and click the Recalculate button to see summary results.
A5: WARNING: Your screen may go blank and/or indicate that Excel is "Not Responding"; please be patient as the simulation calculations may take a long time to complete. Eventually your screen will return to normal and the results will be shown.
A7: Note: Do not make any changes to other cells.
A10: OVERVIEW
A11: As part of ACRP 02-78, this Excel file generates simulation-based benefit-cost analyses (BCA) for a runway extension to mitigate the potential impacts on flights likely to be subjected to weight restrictions due to future projected high temperatures from state-of-the-art climate science models.
A12: The user must download and paste in airport-specific high temperature projections for grid-points near the airport of interest.
A13: As described in the Handbook, some of the high temperature projections from the latest climate models have been downscaled to a finer resolution in order to provide better risk exposure estimates in a localized area. LOCA is a statistical downscaling technique that uses past history to add improved fine-scale detail to global climate models. LOCA has been applied to 32 different circulation climate models under Scenarios RCP4.5 and RCP8.5, and currently provides estimates of maximum daily temperature and daily precipitation at a spatial resolution of 1/16th degree (a rectangular area approximately 4 miles on each side), covering North America from central Mexico through Southern Canada.
A14: The 32 climate models all make different predictions regarding the incidence of future high temperatures, and it is this difference that forms the basis of so-called "Monte Carlo" simulations where we sample across all the models since we do not know which ones will be better or worse in their predictions.
A15: Each simulation represents a future set of annual outcomes for a period far into the future (depending on how much data has been downloaded), and this is repeated 5,000 times.
A17: The process of determining the specific weight restriction that might occur for a given flight depends on many variables, including aircraft type, takeoff weight, runway length, elevation and temperature. Normally, one would have to do many manual calculations by reading off aircraft payload/range and take-off weight/runway charts published by manufacturers in order to estimate the potential weight restriction for any particular flight.
A18: However, in this model we have incorporated data that allow for direct lookups and calculated estimates of weight restrictions that would apply for four specific popular aircraft types used for long-haul flying, for a given runway length, takeoff weight, elevation and temperature. These include the Airbus A320, Boeing 737-800, 777-300 and 787-8.
A19: If desired, users can consider the effects on other aircraft types as well by entering their own estimates of weight restrictions for specific flights.
A21: Given the high temperature projections, the BCA can be completed after the user enters specific information regarding the passenger delay that would be incurred for those who are weight-restricted off the given flight, how passengers value that delay, and the cost and timing of a runway extension to mitigate the estimated weight restrictions.
A23: Individual BCA results are computed for each simulation, and the user can view the resulting mean and standard deviation for net present value (NPV) and the Benefit-Cost ratio across all 5,000.
A24: A different way to look at the results is also presented via a "value-at-risk" graph, which plots the results for each simulation under both the base case (where no runway extension is undertaken) and the scenario case with the extension. This graph can provide valuable information that informs an airport that is deciding between the risky, but higher potential payoff of doing nothing vs. the (more) certain cost of investing in a mitigation project that reduces the exposure to weight restrictions from uncertain but increasingly likely high temperatures.

Sheet Weather Data
A1: User should retrieve relevant localized maximum daily temperature projections; you must pre-select from one of two available RCP scenarios; more information is available from http://loca.ucsd.edu
A2: Best practices suggest you should obtain data from at least 4 different grid points near your airport of interest, but you may select any number of grid points from 1 to 10.
A3: Data must be summarized to fit into WeatherData table below, starting in Column A and ending in Column R.
A4: MODEL names should match exactly with what is shown in Column AD; but see explanation at top of that column if list of models changes for any reason. | AD4: List of models shown below are the current 32 models (as of May 2018) for which LOCA temperature data is available.
A5: YEAR must not go outside the range 2020-2099 (but you can retrieve a smaller subset); this spreadsheet is hard-wired with those limits. | AD5: If you use model names that differ from those below, they will be assigned default weights of 1.0000.
A6: GRID_ID is an indicator for the different grid points; you may use any indicator (e.g., 1-2-3-4).
A7: H100 = Count of days where high temp >= 100 and < 102 (°F)
A8: H102 = Count of days where high temp >= 102 and < 104 (°F)
A9: etc.
A10: Do not attempt to paste in any Excel formulas; your data should be values only.
A11: WeatherData is an Excel table, not just a named range; this means that it can size dynamically.
A12: Recommended procedure to enter new data:
A13: First remove current data by highlighting all cells in one column of the table below, NOT INCLUDING the Header row; then right-click and select Delete | Table Rows; this will remove all the existing rows.
A14: Paste your new data into Columns A through R starting just below the Header row; Columns S-V should automatically fill with the correct data. | AA14: GridCount
A15: If desired, highlight the entire table (including the Header row) and select Data | Sort, then sort on the key1 field in Ascending order. | AA15: =IFERROR(SUMPRODUCT(1/COUNTIF(WeatherData[GRID_ID],WeatherData[GRID_ID])),1) -> 1
A16: When finished, press the Refresh Current Sheet button.
A18: WeatherData | B18: This is sample data for a generic airport, using a single grid point and projections from 7 different models. | AA18: GridList | AD18: Weights | AH18: ModelProb
A19: MODEL | B19: YEAR | C19: GRID_ID | D19: H100 | E19: H102 | F19: H104 | G19: H106 | H19: H108 | I19: H110 | J19: H112 | K19: H114 | L19: H116 | M19: H118 | N19: H120 | O19: H122 | P19: H124 | Q19: H126 | R19: H128 | S19: key1 | T19: H100sum | U19: H110sum | V19: decade | AA19: GRID_ID | AD19: MODELNAME | AE19: WEIGHT | AI19: Average of H100sum | AJ19: decade | AS19: Average of H110sum | AT19: decade
A20: ACCESS1-0 | B20: 2020 | C20: 1 | D20: 15 | E20: 16 | F20: 13 | G20: 22 | H20: 29 | I20: 15 | J20: 18 | K20: 1 | L20: 0 | M20: 0 | N20: 0 | O20: 0 | P20: 0 | Q20: 0 | R20: 0 | S20: =WeatherData[[#This Row],[MODEL]]&"_"&WeatherData[[#This Row],[YEAR]]&"_"&WeatherData[[#This Row],[GRID_ID]] -> ACCESS1-0_2020_1 | T20: =SUM(WeatherData[[#This Row],[H100]:[H128]]) -> 129 | U20: =SUM(WeatherData[[#This Row],[H110]:[H128]]) -> 34 | V20: =LEFT(WeatherData[[#This Row],[YEAR]],3)&"0s" -> 2020s | AA20: 1 | AD20: ACCESS1-0 | AE20: 1.358 | AG20: Weightuse | AH20: PROB | AI20: MODEL | AJ20: 2020s | AK20: 2030s | AL20: 2040s | AM20: 2050s | AN20: 2060s | AO20: 2070s | AP20: 2080s | AQ20: 2090s | AS20: MODEL | AT20: 2020s | AU20: 2030s | AV20: 2040s | AW20: 2050s | AX20: 2060s | AY20: 2070s | AZ20: 2080s | BA20: 2090s
A21: ACCESS1-0 | B21: 2021 | C21: 1 | D21: 24 | E21: 21 | F21: 15 | G21: 21 | H21: 19 | I21: 11 | J21: 7 | K21: 3 | L21: 2 | M21: 0 | N21: 0 | O21: 0 | P21: 0 | Q21: 0 | R21: 0 | S21: =WeatherData[[#This Row],[MODEL]]&"_"&WeatherData[[#This Row],[YEAR]]&"_"&WeatherData[[#This Row],[GRID_ID]] -> ACCESS1-0_2021_1 | T21: =SUM(WeatherData[[#This Row],[H100]:[H128]]) -> 123 | U21: =SUM(WeatherData[[#This Row],[H110]:[H128]]) -> 23 | V21: =LEFT(WeatherData[[#This Row],[YEAR]],3)&"0s" -> 2020s | AD21: ACCESS1-3 | AE21: 1.4447 | AG21: =IF(Use_Model_Weights="Yes",IFERROR(VLOOKUP(AI21,Weights[],2,FALSE),0),IF(ISBLANK(AI21),0,1)) -> 1.358 | AH21: 0 | AI21: ACCESS1-0 | AJ21: 126.1 | AK21: 133.2 | AL21: 144.6 | AM21: 155.7 | AN21: 152.5 | AO21: 162.2 | AP21: 168.2 | AQ21: 165 | AS21: ACCESS1-0 | AT21: 28.8 | AU21: 37.2 | AV21: 52.2 | AW21: 61.7 | AX21: 76.7 | AY21: 83.2 | AZ21: 95.1 | BA21: 107
